Workbook

Sheet Cover
A1: 30
C13: Rate Analysis Model V1.01
C14: RAMmodel_REP2020.xls
C15: Home / Contents
C16: Start Here
C17: Scenario Builder
C18: Purpose of this Workbook:
C22: Legend:
C24: Tab Colors | H24: Font Colors | L24: Hyperlink Types
C26: Blue Tab | E26: Cover Sheet | H26: Blue Font | I26: Constant Values | L26: Cover Hyperlink | N26: Cover Page
C27: Green Tab | E27: Table of Contents | H27: Black Font | I27: Calculated Values | L27: TOC Hyperlink | N27: TOC
C28: Dark Blue Tabs | E28: Input Sheets | H28: Plum Font | I28: Hyperlinks | L28: Sheet Top Hyperlink | N28: é
C29: Rose Tabs | E29: Assumption Sheets | H29: Red Font | I29: Errors/Checks
C30: Tan Tabs | E30: Calculation/Output Sheets | H30: Black/Yellow | I30: Work in Progress
C31: Teal Tabs | E31: Lookup Sheets | H31: Black/Gold | I31: Modifiable Assumptions
C32: Reb Tabs | E32: Log/Error Sheet | H32: White/Grey | I32: Locked Data
C33: Black Tabs | E33: Locked Data Sheet
C34: Yellow Tabs | E34: REP Settlement Sheets
C35: Purple Tabs | E35: 7b2 Related Sheets

Sheet TOC
A1: 30 | B1: Table of Contents
B2: =Cover!C13 -> Rate Analysis Model V1.01
B3: =Cover!$C$14 -> RAMmodel_REP2020.xls
B4: Cover Sheet | F4: PRS | G4: 7(b)(2)
E5: Input | F5: Documentation | G5: Documentation
A6: é | B6: Section & Sheet Titles | D6: Worksheet Name | E6: Datasheet? | F6: Table Number | G6: Table Number
B8: Documentation
B9: 1 | C9: Macro Design Schematic | D9: Macro
B10: Assumption Sheets
B11: =+B9+1 -> 2 | C11: Initialize Assumptions | D11: Init | E11: INPUT
B12: Validation/Error Check/Result Summary
B13: =B11+1 -> 3 | C13: Revenue Check | D13: Rev Check
B14: =+B13+1 -> 4 | C14: Rate Design Summary | D14: RateSummary
B15: 5 | C15: Scenario Results | D15: ScenarioResults
B16: 6 | C16: Expanded Scenario Results | D16: ResultsDetail
B17: Loads and Resources Data
B18: =+B16+1 -> 7 | C18: Load Input Data | D18: Loads | E18: INPUT | F18: Table 2.1.1 | G18: Table 1.1.1
B19: =+B18+1 -> 8 | C19: PF Public with Firm Slice Loads | D19: PF Public | E19: INPUT
B20: 9 | C20: PF Exchange Loads | D20: PF Exchange | E20: INPUT
B21: 10 | C21: IP Loads | D21: RAM IP | E21: INPUT
B22: 11 | C22: NR Loads | D22: RAM NR | E22: INPUT
B23: =+B22+1 -> 12 | C23: Resource Input Data | D23: Resources | E23: INPUT | F23: Table 2.1.2 | G23: Table 1.1.2
B24: 13 | C24: Residential Exchange Input Data | D24: ExchangeInputs | E24: INPUT
B25: =+B24+1 -> 14 | C25: Transmission Inputs | D25: TransInputs | E25: INPUT
B26: =+B25+1 -> 15 | C26: REP Settlement Inputs | D26: REPSettlementSchedule
B27: =+B26+1 -> 16 | C27: Calculation of Exchange Transmission Adder | D27: Exchange Trans
B28: 17 | C28: Calculation of Exchange Resource Size and Costs | D28: Exchange Summary | F28: Table 2.1.3 | G28: Table 1.1.3
B29: =+B28+1 -> 18 | C29: Load Resource Study | D29: LR_Balance | F29: Table 2.2.1 | G29: Table 1.2.1
B30: 19 | C30: Load Resource Balance | D30: LR_Adjust | F30: Table 2.2.2 | G30: Table 1.2.2
B31: 20 | C31: Program Case Energy Allocation Factors | D31: ProgAlloc | F31: Table 2.2.3 | G31: Table 1.2.3
B32: Determination of Active Residential Exchange Costs
B33: =+B31+1 -> 21 | C33: Active Exchanging Utilities | D33: Active Exchange
B34: 22 | C34: Exchanging Utilities' ASCs | D34: Exchange ASC
B35: 23 | C35: Exchanging Utilities' Exchange Loads | D35: Exchange Load
B36: 24 | C36: Exchange Resource Costs | D36: Exchange Resource Cost
B37: Ratemaking Revenue Requirement Data
B38: =+B36+1 -> 25 | C38: Disaggregated Costs with TRM and COSA Flags | D38: Cost | E38: INPUT
B39: =+B38+1 -> 26 | C39: Disaggregated Costs with TRM and COSA Flags, Includes Internally Developed Costs | D39: CostPrint | F39: Table 2.3.1 | G39: Table 1.3.1
B40: =+B39+1 -> 27 | C40: Aggregated COSA Costs | D40: ProgCOSA | F40: Table 2.3.2 | G40: Table 1.3.2
B41: =+B40+1 -> 28 | C41: LDD and IRD Costs | D41: LDD_IRD | F41: Table 2.3.3 | G41: Table 1.3.3
B42: Allocation of COSA Costs to Rate Pools
B43: =+B41+1 -> 29 | C43: Allocation of FBS and LDD/IRD Costs | D43: FBS_LDD_IRD_Allocation | F43: Table 2.3.4.1 | G43: Table 1.3.4.1
B44: =+B43+1 -> 30 | C44: Allocation of New Resource and Exchange Costs | D44: NR_EX_Allocation | F44: Table 2.3.4.2 | G44: Table 1.3.4.2
B45: =+B44+1 -> 31 | C45: Allocation of Conservation, BPA Program and Transmission Costs | D45: Cons_Program_Allocation | F45: Table 2.3.4.3 | G45: Table 1.3.4.3
B46: =+B45+1 -> 32 | C46: Initial Cost Allocation | D46: Initial_Cost_Allocation | F46: Table 2.3.5 | G46: Table 1.3.5
B47: =+B46+1 -> 33 | C47: Cost Allocation Summary | D47: Cost_Allocation Summary
B48: Revenue Credits Allocation to Rate Pools
B49: =+B47+1 -> 34 | C49: Revenue Credits | D49: RDS_Credits | F49: Table 2.3.6 | G49: Table 1.3.6
B50: =+B49+1 -> 35 | C50: Revenue Credits Allocated to Loads Recovering FBS Costs | D50: Credits FBS | F50: Tables 2.3.7.1 & 2.3.7.2 | G50: Tables 1.3.7.1 & 1.3.7.2
B51: 36 | C51: Revenue Credits Allocated to Loads Recovering New Resource and Conservation Costs | D51: Credits NR-Cons | F51: Tables 2.3.7.3 & 2.3.7.4 | G51: Tables 1.3.7.3 & 1.3.7.4
B52: 37 | C52: Revenue Credits Allocated to All Loads | D52: Credits Gen-RSS | F52: Tables 2.3.7.5 & 2.3.7.6 | G52: Tables 1.3.7.5 & 1.3.7.6
B53: 38 | C53: Secondary Revenue and Balancing Purchases Input Data | D53: RevSimInputs | E53: INPUT
B54: 39 | C54: Calculation and Allocation of Secondary Revenue Credit | D54: Secondary | F54: Table 2.3.8 | G54: Table 1.3.8
B55: 40 | C55: Calculation and Allocation of FPS Revenue Deficiency | D55: FPS Revenue Deficiency | F55: Table 2.3.9 | G55: Table 1.3.9
B56: Rate Directive Ratemaking
B57: =+B55+1 -> 41 | C57: Calculation of Rates After Initial Allocation of Cost and Credits | D57: Initial Rates | F57: Table 2.3.10 | G57: Table 1.3.10
B58: =+B57+1 -> 42 | C58: Value of Reserves and Industrial Margin Computation | D58: Margin_VOR
B59: 43 | C59: Value of Reserves and Industrial Margin Computation | D59: Margin_VOR_Calc | F59: Table 2.4.1 | G59: Table 1.4.1
B60: 44 | C60: Calculate Annual Scalars Used to Calculate Monthly Rates for First IP-PF Link | D60: Calc Scalar 1 | F60: Table 2.4.2 | G60: Table 1.4.2
B61: 45 | C61: Calculate Monthly Rates Used in First IP - PF Link Calculation | D61: Calc Monthly 1 | F61: Table 2.4.3 | G61: Table 1.4.3
B62: 46 | C62: Calculation of the 7c2 IP-PF Link Amount | D62: IP_PF_Link | F62: Table 2.4.4 | G62: Table 1.4.4
B63: 47 | C63: Allocation of the 7c2 IP-PF Link Amount and Subsequant Rate Calculations | D63: Rates After Link | F63: Table 2.4.5 | G63: Table 1.4.5
B64: 48 | C64: Calculation of the DSI Floor Rate | D64: IP Floor Calc | F64: Table 2.4.6 | G64: Table 1.4.6
B65: 49 | C65: DSI Floor Rate Test 1 | D65: Floor Test 1 | F65: Table 2.4.7 | G65: Table 1.4.7
B66: =B65+1 -> 50 | C66: Calculation of IOU and COU Base Exchange Rates | D66: Base PF Exchange | F66: Table 2.4.8 | G66: Table 1.4.8
B67: REP Settlement Case Rate Directive Ratemaking
B68: =+B66+1 -> 51 | C68: Calculation of REP Adjustment Amount under Settlement | D68: Post-7b2Rates | F68: Table 2.4.9
B69: =B68+1 -> 52 | C69: Rate Analysis Model - Exchange Resource Cost | D69: Base Exchange Cost | F69: Table 2.4.10
B70: =B69+1 -> 53 | C70: Calculation of Settlement Utility Specific PF Exchange Rates | D70: Utility Specific PFx Settle | F70: Table 2.4.11
B71: =+B70+1 -> 54 | C71: 2012 REP Settlement Agreement Section 6 Reallocations | D71: IOU Reallocation Balances | F71: Table 2.4.12
B72: =+B71+1 -> 55 | C72: Allocation of Increase in the PFx Revenue Requirement under Settlement | D72: Rates After Settlement | F72: Table 2.4.13
B73: 56 | C73: Reallocation of REP Net Benefits under Settlement | D73: WP-10 Adjustment | F73: Table 2.4.14
B74: 57 | C74: Rate Computation after Reallocation of REP Benefits under Settlement | D74: Rates After WP-10 Adjustment | F74: Table 2.4.15
B75: 58 | C75: Calculate Annual Scalars Used to Calculate Monthly Rates | D75: Calc Scalar Settlement | F75: Table 2.4.16
B76: 59 | C76: Calculate Monthly Rates Used in First IP - PF Link Calculation | D76: Calc Monthly Settlement | F76: Table 2.4.17
B77: 60 | C77: Initial 7c2 IP-PF Link Calculation | D77: IP_PF_Link Settlement | F77: Table 2.4.18
B78: 61 | C78: Calculation of Rates after IP-PF Link under Settlement | D78: Rates After Link Settlement | F78: Table 2.4.19
B79: 62 | C79: Settlement Revenue Check | D79: Settlement Rev Check
B80: =+B79+1 -> 63 | C80: Net REP Ratemaking Proof Table under Settlement | D80: Net REP Settlement | F80: Table 3.1.7.1
B81: Program Case Rate Directive Ratemaking
B82: =+B80+1 -> 64 | C82: Calculation of the 7b2 Rate Test Trigger | D82: TriggerCalc | G82: Table 1.4.9
B83: =+B82+1 -> 65 | C83: Calculation and Allocation of the 7b2 Rate Protection Amount | D83: 7b2 Allocation | G83: Table 1.4.10
B84: 66 | C84: Calculation of Rates After the Allocation of the 7b2 Rate Protection Amount | D84: Rates After 7b2 | G84: Table 1.4.11
B85: 67 | C85: Calculate Annual Scalars Used to Calculate Monthly Rates for 7b2 Industrial Adjustment 7c2 Delta | D85: Calc Scalar 2 | G85: Table 1.4.12
B86: 68 | C86: Calculate Monthly Rates Used in 7b2 Industrial Adjustment 7c2 Delta | D86: Calc Monthly 2 | G86: Table 1.4.13
B87: 69 | C87: Calculation of the 7b2 Industrial Adjustment 7c2 Delta | D87: IP_PF_Link 2 | G87: Table 1.4.14
B88: 70 | C88: Allocation of the 7b2 Industrial Adjustment 7c2 Delta and Subsequant Rate Calculations | D88: Rates After Link (2) | G88: Table 1.4.15
B89: 71 | C89: DSI Floor Rate Test 2 | D89: Floor Test 2 | G89: Table 1.4.16
B90: 72 | C90: Calculation of Utility Specific PF Exchange Rates | D90: Utility Specifc PFx
B91: 73 | C91: Program Case Revenue Check | D91: Program Rev Check
B92: Rate Pool Unit Cost Tables and Net REP Ratemaking Proof
B93: =+B91+1 -> 74 | C93: PF Rate Pool Unit Cost Table | D93: PF Allocation | F93: Table 2.5.1 | G93: Table 1.5.4
B94: =+B93+1 -> 75 | C94: IP Rate Pool Unit Cost Table | D94: IP Allocation | F94: Table 2.5.2 | G94: Table 1.5.5
B95: =+B94+1 -> 76 | C95: NR Rate Pool Unit Cost Table | D95: NR Allocation | F95: Table 2.5.3 | G95: Table 1.5.6
B96: =+B95+1 -> 77 | C96: Generating Resource Component Contribution Table | D96: Cost Contribution | F96: Table 2.5.4 | G96: Table 1.5.7
B97: =+B96+1 -> 78 | C97: Net REP Ratemaking Proof Table | D97: Net REP
B98: =+B97+1 -> 79 | C98: Reconciliation of REP Benefits for Tiered Rates | D98: REP Benefits | F98: Table 2.4.20
B99: Tiered Rates Methodology (TRM)
B100: =+B98+1 -> 80 | C100: Aggregated TRM Costs | D100: Costs_TRM | F100: Table 3.1.1
B101: =+B100+1 -> 81 | C101: TRM Billing Determinants | D101: TRM_Billing | E101: INPUT
B102: 82 | C102: Unused RHWM Calculation | D102: UnusedRHWM | F102: Table 3.1.2
B103: 83 | C103: NonSlice Cost for Transmission Losses (Composite Credit) | D103: NonSliceLossAdjust | F103: Table 3.1.3
B104: 84 | C104: Balancing Augmentation Adjustment for Change in T1SFCO | D104: T1SFCO | F104: Table 3.1.4
B105: 85 | C105: TRM Market Prices and Demand Rates | D105: MarketInputs | E105: INPUT
B106: 86 | C106: TRM Demand and Load Shaping Charges | D106: LoadShapingandDemand | F106: Table 3.1.5
B107: 87 | C107: PF Load Forecast Deviation Liquidated Damages | D107: LiquidatedDamages | E107: INPUT | F107: Table 3.12
B108: 88 | C108: Tier 2 Rates Inputs | D108: Tier 2 Rates | E108: INPUT
B109: 89 | C109: Sales Calculation for Tier 2 Overhead Cost Adder | D109: Tier2OverheadSales
B110: 90 | C110: TRM Cost Allocation | D110: Cost_Allocation_TRM | F110: Table 3.1.6
B111: 91 | C111: Cost Proof | D111: Cost_Proof | F111: Table 3.1.7.2
B112: 92 | C112: Transfer Service and Unauthorized Increase Charge Inputs | D112: TransferUAIinputs | E112: INPUT
B113: 93 | C113: Transfer Service Charges and Rates | D113: TransferService | E113: INPUT | F113: Table 6.1
B114: 7b2 Case Loads
B115: =+B113+1 -> 94 | C115: 7b2 Conservation Loads | D115: 7b2 Con Load
B116: =+B115+1 -> 95 | C116: 7b2 PF Loads | D116: 7b2 PF Load | G116: Table 2.1
B117: 7b2 Case Loads/Resource Balance and Resource Stack Utilization
B118: =+B116+1 -> 96 | C118: 7b2 Resource Stack | D118: 7b2 Resource Sort | E118: INPUT | G118: Table 2.2.2
B119: =+B118+1 -> 97 | C119: List of Available Resources | D119: 7b2 Resources1 | G119: Table 2.2.3
B120: 98 | C120: Determination of Resources Selected from Resource Stack | D120: 7b2 Resources2 | G120: Table 2.2.9
B121: 99 | C121: Resources Sorted by Least Cost | D121: ConservRes1
B122: 100 | C122: Conservation Resources Selected | D122: ConservRes2 | G122: Table 2.2.4
B123: 101 | C123: Real 2010 Dollar Cost of Resources Selected | D123: ConservRes3 | G123: Table 2.2.5
B124: 102 | C124: Nominal Amortized Cost of Expensed Portion of Conservation Resources Selected | D124: ConservRes4 | G124: Table 2.2.6
B125: 103 | C125: Nominal Annual Cost of Capital Portion of Conservation Resources Selected | D125: ConservRes5 | G125: Table 2.2.7
B126: 104 | C126: Nominal Cost of Non-Conservation Resources Selected | D126: ConservRes6
B127: 105 | C127: Nominal Total Cost of Resources Selected | D127: ConservRes7 | G127: Table 2.2.8
B128: 7b2 Case Rate Directive Ratemaking
B129: =B127+1 -> 106 | C129: 7b2 Case COSA Table | D129: 7b2COSA | G129: Table 2.3.1
B130: =B129+1 -> 107 | C130: 7b2 Case Energy Allocaction Factors | D130: 7b2Alloc | G130: Table 2.2.1
B131: 108 | C131: 7b2 Case FBS and Resource Stack Cost Allocation | D131: 7b2 FBS_Stack_Allo | G131: Table 2.3.2.1
B132: 109 | C132: 7b2 Case LDD/IRD and Reserve Cost Allocation | D132: 7b2 LDD_IRD_Reserve_Allo | G132: Table 2.3.2.2
B133: 110 | C133: 7b2 Case Programs and Transmission Cost Allocation | D133: 7b2 Program_Trans_Allo | G133: Table 2.3.2.3
B134: 111 | C134: 7b2 Case Initial Net Cost Alloction | D134: 7b2 Initial_Cost_Allo | G134: Table 2.3.3
B135: 112 | C135: 7b2 Case Revenue Credit Summary | D135: 7b2 RDS_Credits | G135: Table 2.3.4
B136: 113 | C136: 7b2 Case Revenue Credits Allocated to Loads Served by FBS Resources | D136: 7b2 Credits FBS | G136: Tables 2.3.5.1 & 2.3.5.2
B137: 114 | C137: 7b2 Case Revenue Credits Allocated to All Loads | D137: 7b2 Credits Gen-RSS | G137: Tables 2.3.5.3
B138: 115 | C138: 7b2 Case Calculation and Allocation of Secondary Revenue | D138: 7b2 Secondary | G138: Table 2.3.6
B139: 116 | C139: 7b2 Case FPS Revenue Deficiency Calculation and Allocation | D139: 7b2 FPS Revenue Deficiency
B140: 117 | C140: Calculation of 7b2 Case Rates | D140: 7b2 Rates
B141: =B140+1 -> 118 | C141: 7b2 Case Revenue Check | D141: 7b2 Rev Check
B142: Rate Case Two Year Rate Period Rates Calculations
B143: =+B141+1 -> 119 | C143: Ave. Tier 1 PF Public Rate | D143: PFAveT1_RateOutput
B144: =+B143+1 -> 120 | C144: PF Melded Equivalent Rate | D144: PFMeldedEqv_RateOutput
B145: 121 | C145: IP Rate | D145: IP_RateOutput | F145: Table 3.1.8.1 | G145: Table 1.5.1
B146: 122 | C146: NR Rate | D146: NR_RateOutput | F146: Table 3.1.8.2
B147: 123 | C147: Load Shaping True-up & Tier 1 Equivalent Rates | D147: LSTUR&PFT1Eqv_RateOutput | F147: Table 3.1.8.3 | G147: Table 1.5.2
B148: 124 | C148: Unbifurcated PF Rate | D148: Unbif PF_RateOutput | F148: Table 3.1.8.4 | G148: Table 1.5.3
B149: 125 | C149: PF Exchange Rate | D149: PF Exchange_RateOutput | F149: Table 3.1.8.5
B150: 126 | C150: Flat Melded Equivalent PF Public Rate | D150: FlatPFMeldedEqv_RateOutput
B151: Outputs and Checks
B152: =+B150+1 -> 127 | C152: RiskMod Output | D152: RiskMod_Out
B153: =+B152+1 -> 128 | C153: Revenue Requirement Output | D153: RROutput
B154: =+B153+1 -> 129 | C154: Rates Output New | D154: RatesOutputNew
B155: 130 | C155: Revenue Requirement Mapping | D155: RevReqMapping
B156: 131 | C156: Summary | D156: Summary
B157: 132 | C157: Net Revenue | D157: NetRevenue
B158: 133 | C158: Slice True Up Calculation | D158: SliceTrueUp
B159: 134 | C159: Tables | D159: Tables

Sheet Macro
B1: Rate Analysis Model - PF Scenario Load Delta Designations | R1: Not printed in documentation.
A2: TOC | B2: =Cover!$C$14 -> RAMmodel_REP2020.xls
A3: é
I4: RAM2010 Macro Diagram

Sheet Init
B1: Initiation Sheet
A2: TOC | B2: =+Cover!C14 -> RAMmodel_REP2020.xls
A3: é | B3: Input Parameters | F3: Diurnal Hours | N3: Annual Hours
F4: date | G4: days | H4: hours | I4: #Sun | J4: #Hol | K4: HLH | L4: LLH | N4: year | O4: days | P4: hours
F5: 2014-10-01 | G5: 31 | H5: 744 | I5: 5 | J5: 1 | K5: 432 | L5: 312 | N5: 2011 | O5: 365 | P5: 8760
F6: 2014-11-01 | G6: 28 | H6: 721 | I6: 4 | J6: 0 | K6: 384 | L6: 337 | N6: 2012 | O6: 365 | P6: 8784
F7: 2014-12-01 | G7: 31 | H7: 744 | I7: 4 | J7: 0 | K7: 416 | L7: 328 | N7: 2013 | O7: 365 | P7: 8760
F8: 2015-01-01 | G8: 30 | H8: 744 | I8: 4 | J8: 0 | K8: 416 | L8: 328 | N8: 2014 | O8: 366 | P8: 8760
B9: Base Year | C9: 2020 | F9: 2015-02-01 | G9: 31 | H9: 672 | I9: 5 | J9: 1 | K9: 384 | L9: 288 | N9: 2015 | O9: 365 | P9: 8760
F10: 2015-03-01 | G10: 30 | H10: 743 | I10: 4 | J10: 0 | K10: 416 | L10: 327 | N10: 2016 | O10: 365 | P10: 8784
F11: 2015-04-01 | G11: 31 | H11: 720 | I11: 5 | J11: 1 | K11: 416 | L11: 304 | N11: 2017 | O11: 365 | P11: 8760
C12: Yes or No? | F12: 2015-05-01 | G12: 31 | H12: 744 | I12: 4 | J12: 0 | K12: 400 | L12: 344 | N12: 2016 | O12: 366 | P12: 8784
B13: Run an REP Settlement Scenario ? | C13: Yes | F13: 2015-06-01 | G13: 30 | H13: 720 | I13: 4 | J13: 1 | K13: 416 | L13: 304 | N13: 2017 | O13: 365 | P13: 8760
B14: Slice RTP Changed for Tier 1 System Change | C14: No | F14: 2015-07-01 | G14: 31 | H14: 744 | I14: 5 | J14: 0 | K14: 416 | L14: 328 | N14: 2018 | O14: 365 | P14: 8760
F15: 2015-08-01 | G15: 30 | H15: 744 | I15: 4 | J15: 1 | K15: 416 | L15: 328 | N15: 2019 | O15: 365 | P15: 8760
B16: Years to Finance Expensed Portion of 7b2 Cons | C16: 5 | F16: 2015-09-01 | G16: 31 | H16: 720 | I16: 4 | J16: 1 | K16: 400 | L16: 320 | N16: 2020 | O16: 366 | P16: 8784
F17: 2015-10-01 | G17: 31 | H17: 744 | I17: 5 | J17: 1 | K17: 432 | L17: 312 | N17: 2021 | O17: 365 | P17: 8760
F18: 2015-11-01 | G18: 29 | H18: 721 | I18: 4 | J18: 0 | K18: 384 | L18: 337 | N18: 2022 | O18: 365 | P18: 8760
F19: 2015-12-01 | G19: 31 | H19: 744 | I19: 4 | J19: 0 | K19: 416 | L19: 328 | N19: 2023 | O19: 365 | P19: 8760
F20: 2016-01-01 | G20: 30 | H20: 744 | I20: 5 | J20: 0 | K20: 400 | L20: 344 | N20: 2024 | O20: 366 | P20: 8784
F21: 2016-02-01 | G21: 31 | H21: 696 | I21: 4 | J21: 1 | K21: 400 | L21: 296 | N21: 2025 | O21: 365 | P21: 8760
F22: 2016-03-01 | G22: 30 | H22: 743 | I22: 4 | J22: 0 | K22: 432 | L22: 311 | N22: 2026 | O22: 365 | P22: 8760
F23: 2016-04-01 | G23: 31 | H23: 720 | I23: 5 | J23: 1 | K23: 416 | L23: 304 | N23: 2027 | O23: 365 | P23: 8760
F24: 2016-05-01 | G24: 31 | H24: 744 | I24: 4 | J24: 0 | K24: 400 | L24: 344 | N24: 2028 | O24: 366 | P24: 8784
F25: 2016-06-01 | G25: 30 | H25: 720 | I25: 5 | J25: 1 | K25: 416 | L25: 304 | N25: 2029 | O25: 365 | P25: 8760
F26: 2016-07-01 | G26: 31 | H26: 744 | I26: 4 | J26: 0 | K26: 400 | L26: 344 | N26: 2030 | O26: 365 | P26: 8760
F27: 2016-08-01 | G27: 30 | H27: 744 | I27: 4 | J27: 1 | K27: 432 | L27: 312 | N27: 2031 | O27: 365 | P27: 8760
F28: 2016-09-01 | G28: 31 | H28: 720 | I28: 5 | J28: 1 | K28: 400 | L28: 320 | N28: 2032 | O28: 366 | P28: 8784
F29: 2016-10-01 | G29: 31 | H29: 744 | I29: 4 | J29: 1 | K29: 416 | L29: 328 | N29: 2033 | O29: 365 | P29: 8760
F30: 2016-11-01 | G30: 28 | H30: 721 | I30: 4 | J30: 0 | K30: 400 | L30: 321 | N30: 2034 | O30: 365 | P30: 8760
F31: 2016-12-01 | G31: 31 | H31: 744 | I31: 5 | J31: 0 | K31: 416 | L31: 328 | N31: 2035 | O31: 365 | P31: 8760
F32: 2017-01-01 | G32: 30 | H32: 744 | I32: 4 | J32: 0 | K32: 400 | L32: 344 | N32: 2036 | O32: 366 | P32: 8784
F33: 2017-02-01 | G33: 31 | H33: 672 | I33: 4 | J33: 1 | K33: 384 | L33: 288 | N33: 2037 | O33: 365 | P33: 8760
F34: 2017-03-01 | G34: 30 | H34: 743 | I34: 5 | J34: 0 | K34: 432 | L34: 311 | N34: 2038 | O34: 365 | P34: 8760
F35: 2017-04-01 | G35: 31 | H35: 720 | I35: 4 | J35: 1 | K35: 400 | L35: 320 | N35: 2039 | O35: 365 | P35: 8760
F36: 2017-05-01 | G36: 31 | H36: 744 | I36: 4 | J36: 0 | K36: 416 | L36: 328 | N36: 2040 | O36: 366 | P36: 8784
F37: 2017-06-01 | G37: 30 | H37: 720 | I37: 5 | J37: 1 | K37: 416 | L37: 304 | N37: 2041 | O37: 365 | P37: 8760
F38: 2017-07-01 | G38: 31 | H38: 744 | I38: 4 | J38: 0 | K38: 400 | L38: 344 | N38: 2042 | O38: 365 | P38: 8760
F39: 2017-08-01 | G39: 30 | H39: 744 | I39: 4 | J39: 1 | K39: 432 | L39: 312 | N39: 2043 | O39: 365 | P39: 8760
F40: 2017-09-01 | G40: 31 | H40: 720 | I40: 5 | J40: 1 | K40: 400 | L40: 320 | N40: 2044 | O40: 366 | P40: 8784
F41: 2017-10-01 | G41: 31 | H41: 744 | I41: 4 | J41: 1 | K41: 416 | L41: 328
F42: 2017-11-01 | G42: 28 | H42: 721 | I42: 4 | J42: 0 | K42: 400 | L42: 321
F43: 2017-12-01 | G43: 31 | H43: 744 | I43: 5 | J43: 0 | K43: 400 | L43: 344
F44: 2018-01-01 | G44: 30 | H44: 744 | I44: 4 | J44: 0 | K44: 416 | L44: 328
F45: 2018-02-01 | G45: 31 | H45: 672 | I45: 4 | J45: 1 | K45: 384 | L45: 288
F46: 2018-03-01 | G46: 30 | H46: 743 | I46: 5 | J46: 0 | K46: 432 | L46: 311
F47: 2018-04-01 | G47: 31 | H47: 720 | I47: 4 | J47: 1 | K47: 400 | L47: 320
F48: 2018-05-01 | G48: 31 | H48: 744 | I48: 5 | J48: 0 | K48: 416 | L48: 328
F49: 2018-06-01 | G49: 30 | H49: 720 | I49: 4 | J49: 1 | K49: 416 | L49: 304
F50: 2018-07-01 | G50: 31 | H50: 744 | I50: 4 | J50: 0 | K50: 400 | L50: 344
F51: 2018-08-01 | G51: 30 | H51: 744 | I51: 5 | J51: 1 | K51: 432 | L51: 312
F52: 2018-09-01 | G52: 31 | H52: 720 | I52: 4 | J52: 1 | K52: 384 | L52: 336
F53: 2018-10-01 | G53: 31 | H53: 744 | I53: 4 | J53: 1 | K53: 432 | L53: 312
F54: 2018-11-01 | G54: 28 | H54: 721 | I54: 4 | J54: 0 | K54: 400 | L54: 321
F55: 2018-12-01 | G55: 31 | H55: 744 | I55: 5 | J55: 0 | K55: 400 | L55: 344
F56: 2019-01-01 | G56: 30 | H56: 744 | I56: 4 | J56: 0 | K56: 416 | L56: 328
F57: 2019-02-01 | G57: 31 | H57: 672 | I57: 5 | J57: 1 | K57: 384 | L57: 288
F58: 2019-03-01 | G58: 30 | H58: 743 | I58: 4 | J58: 0 | K58: 416 | L58: 327
F59: 2019-04-01 | G59: 31 | H59: 720 | I59: 4 | J59: 1 | K59: 416 | L59: 304
F60: 2019-05-01 | G60: 31 | H60: 744 | I60: 5 | J60: 0 | K60: 416 | L60: 328
F61: 2019-06-01 | G61: 30 | H61: 720 | I61: 4 | J61: 1 | K61: 400 | L61: 320
F62: 2019-07-01 | G62: 31 | H62: 744 | I62: 4 | J62: 0 | K62: 416 | L62: 328
F63: 2019-08-01 | G63: 30 | H63: 744 | I63: 5 | J63: 1 | K63: 432 | L63: 312
F64: 2019-09-01 | G64: 31 | H64: 720 | I64: 4 | J64: 1 | K64: 384 | L64: 336
F65: 2019-10-01 | G65: 31 | H65: 744 | I65: 5 | J65: 1 | K65: 432 | L65: 312
F66: 2019-11-01 | G66: 29 | H66: 721 | I66: 4 | J66: 0 | K66: 400 | L66: 321
F67: 2019-12-01 | G67: 31 | H67: 744 | I67: 4 | J67: 0 | K67: 400 | L67: 344
F68: 2020-01-01 | G68: 30 | H68: 744 | I68: 4 | J68: 0 | K68: 416 | L68: 328
F69: 2020-02-01 | G69: 31 | H69: 696 | I69: 5 | J69: 1 | K69: 400 | L69: 296
F70: 2020-03-01 | G70: 30 | H70: 743 | I70: 4 | J70: 0 | K70: 416 | L70: 327
F71: 2020-04-01 | G71: 31 | H71: 720 | I71: 5 | J71: 1 | K71: 416 | L71: 304
F72: 2020-05-01 | G72: 31 | H72: 744 | I72: 4 | J72: 0 | K72: 400 | L72: 344
F73: 2020-06-01 | G73: 30 | H73: 720 | I73: 4 | J73: 1 | K73: 416 | L73: 304
F74: 2020-07-01 | G74: 31 | H74: 744 | I74: 5 | J74: 0 | K74: 416 | L74: 328
F75: 2020-08-01 | G75: 30 | H75: 744 | I75: 4 | J75: 1 | K75: 416 | L75: 328
F76: 2020-09-01 | G76: 31 | H76: 720 | I76: 4 | J76: 1 | K76: 400 | L76: 320
F77: 2020-10-01 | G77: 31 | H77: 744 | I77: 5 | J77: 1 | K77: 432 | L77: 312
F78: 2020-11-01 | G78: 28 | H78: 721 | I78: 4 | J78: 0 | K78: 384 | L78: 337
F79: 2020-12-01 | G79: 31 | H79: 744 | I79: 4 | J79: 0 | K79: 416 | L79: 328
F80: 2021-01-01 | G80: 30 | H80: 744 | I80: 5 | J80: 0 | K80: 400 | L80: 344
F81: 2021-02-01 | G81: 31 | H81: 672 | I81: 4 | J81: 1 | K81: 384 | L81: 288
F82: 2021-03-01 | G82: 30 | H82: 743 | I82: 4 | J82: 0 | K82: 432 | L82: 311
F83: 2021-04-01 | G83: 31 | H83: 720 | I83: 5 | J83: 1 | K83: 416 | L83: 304
F84: 2021-05-01 | G84: 31 | H84: 744 | I84: 4 | J84: 0 | K84: 400 | L84: 344
F85: 2021-06-01 | G85: 30 | H85: 720 | I85: 4 | J85: 1 | K85: 416 | L85: 304
F86: 2021-07-01 | G86: 31 | H86: 744 | I86: 5 | J86: 0 | K86: 416 | L86: 328
F87: 2021-08-01 | G87: 30 | H87: 744 | I87: 4 | J87: 1 | K87: 416 | L87: 328
F88: 2021-09-01 | G88: 31 | H88: 720 | I88: 5 | J88: 1 | K88: 400 | L88: 320
F89: 2021-10-01 | G89: 31 | H89: 744 | I89: 4 | J89: 1 | K89: 416 | L89: 328
F90: 2021-11-01 | G90: 28 | H90: 721 | I90: 4 | J90: 0 | K90: 400 | L90: 321
F91: 2021-12-01 | G91: 31 | H91: 744 | I91: 4 | J91: 0 | K91: 416 | L91: 328
F92: 2022-01-01 | G92: 30 | H92: 744 | I92: 5 | J92: 0 | K92: 400 | L92: 344
F93: 2022-02-01 | G93: 31 | H93: 672 | I93: 4 | J93: 1 | K93: 384 | L93: 288
F94: 2022-03-01 | G94: 30 | H94: 743 | I94: 4 | J94: 0 | K94: 432 | L94: 311
F95: 2022-04-01 | G95: 31 | H95: 720 | I95: 5 | J95: 1 | K95: 416 | L95: 304
F96: 2022-05-01 | G96: 31 | H96: 744 | I96: 4 | J96: 0 | K96: 400 | L96: 344
F97: 2022-06-01 | G97: 30 | H97: 720 | I97: 5 | J97: 1 | K97: 416 | L97: 304
F98: 2022-07-01 | G98: 31 | H98: 744 | I98: 4 | J98: 0 | K98: 400 | L98: 344
F99: 2022-08-01 | G99: 30 | H99: 744 | I99: 4 | J99: 1 | K99: 432 | L99: 312
F100: 2022-09-01 | G100: 31 | H100: 720 | I100: 5 | J100: 1 | K100: 400 | L100: 320
F101: 2022-10-01 | G101: 31 | H101: 744 | I101: 4 | J101: 1 | K101: 416 | L101: 328
F102: 2022-11-01 | G102: 28 | H102: 721 | I102: 4 | J102: 0 | K102: 400 | L102: 321
F103: 2022-12-01 | G103: 31 | H103: 744 | I103: 5 | J103: 0 | K103: 416 | L103: 328
F104: 2023-01-01 | G104: 30 | H104: 744 | I104: 4 | J104: 0 | K104: 400 | L104: 344
F105: 2023-02-01 | G105: 31 | H105: 672 | I105: 4 | J105: 1 | K105: 384 | L105: 288
F106: 2023-03-01 | G106: 30 | H106: 743 | I106: 5 | J106: 0 | K106: 432 | L106: 311
F107: 2023-04-01 | G107: 31 | H107: 720 | I107: 4 | J107: 1 | K107: 400 | L107: 320
F108: 2023-05-01 | G108: 31 | H108: 744 | I108: 4 | J108: 0 | K108: 416 | L108: 328
F109: 2023-06-01 | G109: 30 | H109: 720 | I109: 5 | J109: 1 | K109: 416 | L109: 304
F110: 2023-07-01 | G110: 31 | H110: 744 | I110: 4 | J110: 0 | K110: 400 | L110: 344
F111: 2023-08-01 | G111: 30 | H111: 744 | I111: 4 | J111: 1 | K111: 432 | L111: 312
F112: 2023-09-01 | G112: 31 | H112: 720 | I112: 5 | J112: 1 | K112: 400 | L112: 320
F113: 2023-10-01 | H113: 744 | K113: 416 | L113: 328
F114: 2023-11-01 | H114: 721 | K114: 400 | L114: 321
F115: 2023-12-01 | H115: 744 | K115: 400 | L115: 344
F116: 2024-01-01 | H116: 744 | K116: 416 | L116: 328
F117: 2024-02-01 | H117: 696 | K117: 400 | L117: 296
F118: 2024-03-01 | H118: 743 | K118: 416 | L118: 327
F119: 2024-04-01 | H119: 720 | K119: 416 | L119: 304
F120: 2024-05-01 | H120: 744 | K120: 416 | L120: 328
F121: 2024-06-01 | H121: 720 | K121: 400 | L121: 320
F122: 2024-07-01 | H122: 744 | K122: 416 | L122: 328
F123: 2024-08-01 | H123: 744 | K123: 432 | L123: 312
F124: 2024-09-01 | H124: 720 | K124: 384 | L124: 336
F125: 2024-10-01 | H125: 744 | K125: 432 | L125: 312
F126: 2024-11-01 | H126: 721 | K126: 400 | L126: 321
F127: 2024-12-01 | H127: 744 | K127: 400 | L127: 344
F128: 2025-01-01 | H128: 744 | K128: 416 | L128: 328
F129: 2025-02-01 | H129: 672 | K129: 384 | L129: 288
F130: 2025-03-01 | H130: 743 | K130: 416 | L130: 327
F131: 2025-04-01 | H131: 720 | K131: 416 | L131: 304
F132: 2025-05-01 | H132: 744 | K132: 416 | L132: 328
F133: 2025-06-01 | H133: 720 | K133: 400 | L133: 320
F134: 2025-07-01 | H134: 744 | K134: 416 | L134: 328
F135: 2025-08-01 | H135: 744 | K135: 416 | L135: 328
F136: 2025-09-01 | H136: 720 | K136: 400 | L136: 320
F137: 2025-10-01 | H137: 744 | K137: 432 | L137: 312
F138: 2025-11-01 | H138: 721 | K138: 384 | L138: 337
F139: 2025-12-01 | H139: 744 | K139: 416 | L139: 328
F140: 2026-01-01 | H140: 744 | K140: 416 | L140: 328
F141: 2026-02-01 | H141: 672 | K141: 384 | L141: 288
F142: 2026-03-01 | H142: 743 | K142: 416 | L142: 327
F143: 2026-04-01 | H143: 720 | K143: 416 | L143: 304
F144: 2026-05-01 | H144: 744 | K144: 400 | L144: 344
F145: 2026-06-01 | H145: 720 | K145: 416 | L145: 304
F146: 2026-07-01 | H146: 744 | K146: 416 | L146: 328
F147: 2026-08-01 | H147: 744 | K147: 416 | L147: 328
F148: 2026-09-01 | H148: 720 | K148: 400 | L148: 320
F149: 2026-10-01 | H149: 744 | K149: 432 | L149: 312
F150: 2026-11-01 | H150: 721 | K150: 384 | L150: 337
F151: 2026-12-01 | H151: 744 | K151: 416 | L151: 328
F152: 2027-01-01 | H152: 744 | K152: 400 | L152: 344
F153: 2027-02-01 | H153: 672 | K153: 384 | L153: 288
F154: 2027-03-01 | H154: 743 | K154: 432 | L154: 311
F155: 2027-04-01 | H155: 720 | K155: 416 | L155: 304
F156: 2027-05-01 | H156: 744 | K156: 400 | L156: 344
F157: 2027-06-01 | H157: 720 | K157: 416 | L157: 304
F158: 2027-07-01 | H158: 744 | K158: 416 | L158: 328
F159: 2027-08-01 | H159: 744 | K159: 416 | L159: 328
F160: 2027-09-01 | H160: 720 | K160: 400 | L160: 320
F161: 2027-10-01 | H161: 744 | K161: 416 | L161: 328
F162: 2027-11-01 | H162: 721 | K162: 400 | L162: 321
F163: 2027-12-01 | H163: 744 | K163: 416 | L163: 328
F164: 2028-01-01 | H164: 744 | K164: 400 | L164: 344
F165: 2028-02-01 | H165: 696 | K165: 400 | L165: 296
F166: 2028-03-01 | H166: 743 | K166: 432 | L166: 311
F167: 2028-04-01 | H167: 720 | K167: 400 | L167: 320
F168: 2028-05-01 | H168: 744 | K168: 416 | L168: 328
F169: 2028-06-01 | H169: 720 | K169: 416 | L169: 304
F170: 2028-07-01 | H170: 744 | K170: 400 | L170: 344
F171: 2028-08-01 | H171: 744 | K171: 432 | L171: 312
F172: 2028-09-01 | H172: 720 | K172: 400 | L172: 320
F173: 2028-10-01 | H173: 744 | K173: 416 | L173: 328
F174: 2028-11-01 | H174: 721 | K174: 400 | L174: 321
F175: 2028-12-01 | H175: 744 | K175: 400 | L175: 344
F176: 2029-01-01 | H176: 744 | K176: 416 | L176: 328
F177: 2029-02-01 | H177: 672 | K177: 384 | L177: 288
F178: 2029-03-01 | H178: 743 | K178: 432 | L178: 311
F179: 2029-04-01 | H179: 720 | K179: 400 | L179: 320
F180: 2029-05-01 | H180: 744 | K180: 416 | L180: 328
F181: 2029-06-01 | H181: 720 | K181: 416 | L181: 304
F182: 2029-07-01 | H182: 744 | K182: 400 | L182: 344
F183: 2029-08-01 | H183: 744 | K183: 432 | L183: 312
F184: 2029-09-01 | H184: 720 | K184: 384 | L184: 336
F185: 2029-10-01 | H185: 744 | K185: 432 | L185: 312
F186: 2029-11-01 | H186: 721 | K186: 400 | L186: 321
F187: 2029-12-01 | H187: 744 | K187: 400 | L187: 344
F188: 2030-01-01 | H188: 744 | K188: 416 | L188: 328
F189: 2030-02-01 | H189: 672 | K189: 384 | L189: 288
F190: 2030-03-01 | H190: 743 | K190: 416 | L190: 327
F191: 2030-04-01 | H191: 720 | K191: 416 | L191: 304
F192: 2030-05-01 | H192: 744 | K192: 416 | L192: 328
F193: 2030-06-01 | H193: 720 | K193: 400 | L193: 320
F194: 2030-07-01 | H194: 744 | K194: 416 | L194: 328
F195: 2030-08-01 | H195: 744 | K195: 432 | L195: 312
F196: 2030-09-01 | H196: 720 | K196: 384 | L196: 336
F197: 2030-10-01 | K197: 400 | L197: 344
F198: 2030-11-01 | K198: 384 | L198: 288
F199: 2030-12-01 | K199: 432 | L199: 311
F200: 2031-01-01 | K200: 416 | L200: 304
... 92 more rows

Sheet Rev Check
B1: Rate Analysis Model - Modeling Steps Revenue Check | K1: Not printed in documentation.
A2: TOC | B2: =Cover!$C$14 -> RAMmodel_REP2020.xls | K2: =IF(Init!$C$13="Yes","Results Under Settlement","Results while Running 7b2 Rate Test") -> Results Under Settlement
A3: é
C4: Costs
C5: Before 7b2 Revenue Requirements | D5: =+Init!C9 -> 2020 | E5: =+D5+1 -> 2021 | F5: =+E5+1 -> 2022 | G5: =+F5+1 -> 2023 | H5: =+G5+1 -> 2024 | I5: =+H5+1 -> 2025
C6: FBS | D6: =FBS_LDD_IRD_Allocation!C5 -> 1815762.12 | E6: =FBS_LDD_IRD_Allocation!D5 -> 1876020.533 | F6: =FBS_LDD_IRD_Allocation!E5 -> 1897509.977 | G6: =FBS_LDD_IRD_Allocation!F5 -> 1991908.022 | H6: =FBS_LDD_IRD_Allocation!G5 -> 1959834.488 | I6: =FBS_LDD_IRD_Allocation!H5 -> 2086105.821
C7: NR | D7: =FBS_LDD_IRD_Allocation!C6 -> 55019.28608 | E7: =FBS_LDD_IRD_Allocation!D6 -> 53660.71308 | F7: =FBS_LDD_IRD_Allocation!E6 -> 54333.89208 | G7: =FBS_LDD_IRD_Allocation!F6 -> 55015.43408 | H7: =FBS_LDD_IRD_Allocation!G6 -> 55699.52208 | I7: =FBS_LDD_IRD_Allocation!H6 -> 56369.51808
C8: Exchange | D8: =FBS_LDD_IRD_Allocation!C7-D13 -> 3122896.182 | E8: =FBS_LDD_IRD_Allocation!D7-E13 -> 3121225.252 | F8: =FBS_LDD_IRD_Allocation!E7-F13 -> 3087343.771 | G8: =FBS_LDD_IRD_Allocation!F7-G13 -> 3095457.723 | H8: =FBS_LDD_IRD_Allocation!G7-H13 -> 3169075.8 | I8: =FBS_LDD_IRD_Allocation!H7-I13 -> 3169082.313
C9: Conservation | D9: =FBS_LDD_IRD_Allocation!C8 -> 195331.3407 | E9: =FBS_LDD_IRD_Allocation!D8 -> 201146.8661 | F9: =FBS_LDD_IRD_Allocation!E8 -> 211205.8581 | G9: =FBS_LDD_IRD_Allocation!F8 -> 206518.2801 | H9: =FBS_LDD_IRD_Allocation!G8 -> 199156.3042 | I9: =FBS_LDD_IRD_Allocation!H8 -> 199101.7815
C10: BPA Programs | D10: =FBS_LDD_IRD_Allocation!C9+FBS_LDD_IRD_Allocation!C10 -> 361899.1861 | E10: =FBS_LDD_IRD_Allocation!D9+FBS_LDD_IRD_Allocation!D10 -> 340900.4189 | F10: =FBS_LDD_IRD_Allocation!E9+FBS_LDD_IRD_Allocation!E10 -> 367824.9892 | G10: =FBS_LDD_IRD_Allocation!F9+FBS_LDD_IRD_Allocation!F10 -> 365493.3114 | H10: =FBS_LDD_IRD_Allocation!G9+FBS_LDD_IRD_Allocation!G10 -> 376189.8582 | I10: =FBS_LDD_IRD_Allocation!H9+FBS_LDD_IRD_Allocation!H10 -> 374457.0057
C13: Transmission to Deliver Exchange Sale | D13: =ExchangeInputs!$D$5*'PF Exchange'!D61 -> 235140.6727 | E13: =ExchangeInputs!$D$5*'PF Exchange'!E61 -> 234989.3799 | F13: =ExchangeInputs!$D$5*'PF Exchange'!F61 -> 217735.4009 | G13: =ExchangeInputs!$D$5*'PF Exchange'!G61 -> 218296.8931 | H13: =ExchangeInputs!$D$5*'PF Exchange'!H61 -> 206764.9116 | I13: =ExchangeInputs!$D$5*'PF Exchange'!I61 -> 206764.9093
C15: Sub total | D15: =SUM(D6:D13) -> 5786048.787 | E15: 5827943.163 | F15: 5835953.888 | G15: 5932689.664 | H15: 5966720.883 | I15: 6091881.349
C17: Low Density Discount and IRD Expense | D17: =FBS_LDD_IRD_Allocation!C11 -> 59410.06876 | E17: =FBS_LDD_IRD_Allocation!D11 -> 60011.50097 | F17: =FBS_LDD_IRD_Allocation!E11 -> 59710.78487 | G17: =FBS_LDD_IRD_Allocation!F11 -> 59710.78487 | H17: =FBS_LDD_IRD_Allocation!G11 -> 59710.78487 | I17: =FBS_LDD_IRD_Allocation!H11 -> 59710.78487
C19: Annual Revenue Requirement Grand Total | D19: =SUM(D15:D17) -> 5845458.856 | E19: 5887954.663 | F19: 5895664.673 | G19: 5992400.448 | H19: 6026431.668 | I19: 6151592.134
C22: Revenue Credits
C23: Forecast of Secondary Revenues | D23: =Secondary!D29 -> 367691.4169 | E23: =Secondary!E29 -> 335676.9794 | F23: =Secondary!F29 -> 327544.7671 | G23: =Secondary!G29 -> 326992.393 | H23: =Secondary!H29 -> 333239.3009 | I23: =Secondary!I29 -> 331338.4829
C24: Expected Revenue from FPS Contract Sales | D24: =-('FPS Revenue Deficiency'!C12) -> 52742.78048 | E24: =-('FPS Revenue Deficiency'!D12) -> 41685.856 | F24: =-('FPS Revenue Deficiency'!E12) -> 31225.2228 | G24: =-('FPS Revenue Deficiency'!F12) -> 1406.405068 | H24: =-('FPS Revenue Deficiency'!G12) -> 35017.8782 | I24: =-('FPS Revenue Deficiency'!H12) -> 7805.387703
C25: Expected Revenue from System Obligations | D25: =-RDS_Credits!C15 -> 353 | E25: =-RDS_Credits!D15 -> 347 | F25: =-RDS_Credits!E15 -> 350 | G25: =-RDS_Credits!F15 -> 348.5 | H25: =-RDS_Credits!G15 -> 349.25 | I25: =-RDS_Credits!H15 -> 348.875
C26: Other Revenue Credits | D26: =-(RDS_Credits!C7+RDS_Credits!C19+RDS_Credits!C21+RDS_Credits!C24+SUM(RDS_Credits!C30:'RDS_Credits'!C33)+'Credits Gen-RSS'!C17) -> 261418.2763 | E26: =-(RDS_Credits!D7+RDS_Credits!D19+RDS_Credits!D21+RDS_Credits!D24+SUM(RDS_Credits!D30:'RDS_Credits'!D33)+'Credits Gen-RSS'!D17) -> 262211.9441 | F26: =-(RDS_Credits!E7+RDS_Credits!E19+RDS_Credits!E21+RDS_Credits!E24+SUM(RDS_Credits!E30:'RDS_Credits'!E33)+'Credits Gen-RSS'!E17) -> 261913.7031 | G26: =-(RDS_Credits!F7+RDS_Credits!F19+RDS_Credits!F21+RDS_Credits!F24+SUM(RDS_Credits!F30:'RDS_Credits'!F33)+'Credits Gen-RSS'!F17) -> 262062.8236 | H26: =-(RDS_Credits!G7+RDS_Credits!G19+RDS_Credits!G21+RDS_Credits!G24+SUM(RDS_Credits!G30:'RDS_Credits'!G33)+'Credits Gen-RSS'!G17) -> 261988.2634 | I26: =-(RDS_Credits!H7+RDS_Credits!H19+RDS_Credits!H21+RDS_Credits!H24+SUM(RDS_Credits!H30:'RDS_Credits'!H33)+'Credits Gen-RSS'!H17) -> 262025.5435
C28: Total Revenue Credits | D28: =SUM(D23:D27) -> 682205.4737 | E28: 639921.7795 | F28: 621033.693 | G28: 590810.1216 | H28: 630594.6924 | I28: 601518.2891
C31: Revenues needed from Power Rates | D31: =D19-D28 -> 5163253.383 | E31: 5248032.884 | F31: 5274630.98 | G31: 5401590.327 | H31: 5395836.976 | I31: 5550073.844
C34: Power Revenues After Rate Design Step
D35: =+D5 -> 2020 | E35: =+E5 -> 2021
C36: PF Public | D36: =RateSummary!C32 -> 35.190803 | E36: =RateSummary!D32 -> 35.938683
D37: ='PF Public'!D77 -> 58757.23429 | E37: ='PF Public'!E77 -> 59035.75345
D38: =D36*D37 -> 2067714.257 | E38: =E36*E37 -> 2121667.229
C40: PF Exchange | D40: =RateSummary!C34 -> 66.126834 | E40: =RateSummary!D34 -> 66.827889
D41: ='PF Exchange'!D61 -> 46747.64866 | E41: ='PF Exchange'!E61 -> 46717.57056
D42: =D40*D41 -> 3091274.003 | E42: =E40*E41 -> 3122036.62
C44: IP | D44: =RateSummary!C35 -> 40.451105 | E44: =RateSummary!D35 -> 41.179056
D45: ='RAM IP'!M87 -> 105.42 | E45: ='RAM IP'!N87 -> 105.108
D46: =D44*D45 -> 4264.355489 | E46: =E44*E45 -> 4328.248218
C48: NR | D48: =RateSummary!C36 -> 79.510138 | E48: =RateSummary!D36 -> 79.500492
D49: ='RAM NR'!D68 -> 0.009856 | E49: ='RAM NR'!E68 -> 0.009824
D50: =D48*D49 -> 0.7836519201 | E50: =E48*E49 -> 0.7810128334
C52: Revenues from Power Rates Grand Total | D52: =D38+D42+D46+D50 -> 5163253.398 | E52: =E38+E42+E46+E50 -> 5248032.878
C55: Revenue Check after Standard Ratemaking | D55: =D52-D$31 -> 0.01570222061 | E55: =E52-E$31 -> -0.005969973281

Sheet RateSummary
B1: Rate Analysis Model - Rate Design Step Summary | J1: =IF(Init!$C$13="Yes","Results Under Settlement","Results while Running 7b2 Rate Test") -> Results Under Settlement
A2: TOC | B2: =Cover!$C$14 -> RAMmodel_REP2020.xls | J2: Not printed in documentation.
A3: é
B6: Revenue Under Recovery After Rate Design Step | C6: ='Rev Check'!D55 -> 0.01570222061 | D6: ='Rev Check'!E55 -> -0.005969973281
B10: Rate Design Step | C10: =+Init!C9 -> 2020 | D10: =+C10+1 -> 2021 | E10: =+D10+1 -> 2022 | F10: =+E10+1 -> 2023 | G10: =+F10+1 -> 2024 | H10: =+G10+1 -> 2025
B11: Rates After Initial Allocation
B12: UNBIFURCATED PF | C12: ='Initial Rates'!C22 -> 46.64 | D12: ='Initial Rates'!D22 -> 47.33 | E12: ='Initial Rates'!E22 -> 49.48 | F12: ='Initial Rates'!F22 -> 50.52 | G12: ='Initial Rates'!G22 -> 51.88 | H12: ='Initial Rates'!H22 -> 53.27
B13: IP | C13: ='Initial Rates'!C23 -> 72.54 | D13: ='Initial Rates'!D23 -> 72.53 | E13: ='Initial Rates'!E23 -> 76.76 | F13: ='Initial Rates'!F23 -> 76.99 | G13: ='Initial Rates'!G23 -> 81.89 | H13: ='Initial Rates'!H23 -> 81.4
B14: NR | C14: ='Initial Rates'!C24 -> 72.54 | D14: ='Initial Rates'!D24 -> 72.53 | E14: ='Initial Rates'!E24 -> 76.76 | F14: ='Initial Rates'!F24 -> 76.99 | G14: ='Initial Rates'!G24 -> 81.89 | H14: ='Initial Rates'!H24 -> 81.4
B16: Rate Design Step | C16: =+C10 -> 2020 | D16: 2021 | E16: 2022 | F16: 2023 | G16: 2024 | H16: 2025
B17: Rates After IP-PF Link Allocation
B18: UNBIFURCATED PF (average) | C18: ='Rates After Link'!C42 -> 46.664 | D18: ='Rates After Link'!D42 -> 47.357 | E18: ='Rates After Link'!E42 -> 49.508 | F18: ='Rates After Link'!F42 -> 50.552 | G18: ='Rates After Link'!G42 -> 51.91 | H18: ='Rates After Link'!H42 -> 53.305 | J18: IP Rate Check
B19: UNBIFURCATED PF (flat) | C19: =IP_PF_Link!C15 -> 45.1699202 | D19: =IP_PF_Link!D15 -> 45.84320609 | E19: =IP_PF_Link!E15 -> 46.1449202 | F19: =IP_PF_Link!F15 -> 47.13170609 | G19: =IP_PF_Link!G15 -> 48.4551202 | H19: =IP_PF_Link!H15 -> 49.82610609 | J19: =C20-C19 -> 0.1800798005 | K19: =D20-D19 -> 0.1787939079
B20: IP | C20: ='Rates After Link'!C43 -> 45.35 | D20: ='Rates After Link'!D43 -> 46.022 | E20: ='Rates After Link'!E43 -> 46.324 | F20: ='Rates After Link'!F43 -> 47.311 | G20: ='Rates After Link'!G43 -> 48.634 | H20: ='Rates After Link'!H43 -> 50.005
B21: NR | C21: ='Rates After Link'!C44 -> 72.568 | D21: ='Rates After Link'!D44 -> 72.559 | E21: ='Rates After Link'!E44 -> 76.791 | F21: ='Rates After Link'!F44 -> 77.02 | G21: ='Rates After Link'!G44 -> 81.924 | H21: ='Rates After Link'!H44 -> 81.428
B23: Rate Design Step | C23: =+C10 -> 2020 | D23: =+D10 -> 2021
B24: Rates After REP/7(b)(3) Allocation
B25: PF Public | C25: =IF(Init!$C$13="Yes",'Rates After WP-10 Adjustment'!C40,'Rates After 7b2'!C51) -> 35.17 | D25: =IF(Init!$C$13="Yes",'Rates After WP-10 Adjustment'!D40,'Rates After 7b2'!D51) -> 35.918
B26: PF Exchange | C26: =IF(Init!$C$13="Yes",'Rates After WP-10 Adjustment'!C41,'Rates After 7b2'!C52) -> 66.127 | D26: =IF(Init!$C$13="Yes",'Rates After WP-10 Adjustment'!D41,'Rates After 7b2'!D52) -> 66.828
B27: IP | C27: =IF(Init!$C$13="Yes",'Rates After WP-10 Adjustment'!C42,'Rates After 7b2'!C53) -> 52.271 | D27: =IF(Init!$C$13="Yes",'Rates After WP-10 Adjustment'!D42,'Rates After 7b2'!D53) -> 52.943
B28: NR | C28: =IF(Init!$C$13="Yes",'Rates After WP-10 Adjustment'!C43,'Rates After 7b2'!C54) -> 79.489 | D28: =IF(Init!$C$13="Yes",'Rates After WP-10 Adjustment'!D43,'Rates After 7b2'!D54) -> 79.48
B30: Rate Design Step | C30: =+C10 -> 2020 | D30: =+D10 -> 2021
B31: Rates After IP-PF Link #2 Allocation
B32: PF Public (average) | C32: =IF(Init!$C$13="Yes",'Rates After Link Settlement'!C47,'Rates After Link (2)'!C49) -> 35.190803 | D32: =IF(Init!$C$13="Yes",'Rates After Link Settlement'!D47,'Rates After Link (2)'!D49) -> 35.938683 | J32: IP Rate Check
B33: PF Public (flat) | C33: ='IP_PF_Link Settlement'!C13 -> 33.69621105 | D33: ='IP_PF_Link Settlement'!D13 -> 34.42449203 | J33: =C35-C33 -> 6.754893954 | K33: =D35-D33 -> 6.75456397
B34: PF Exchange | C34: =IF(Init!$C$13="Yes",'Rates After Link Settlement'!C48,'Rates After Link (2)'!C50) -> 66.126834 | D34: =IF(Init!$C$13="Yes",'Rates After Link Settlement'!D48,'Rates After Link (2)'!D50) -> 66.827889 | J34: ='IP_PF_Link Settlement'!C16 -> 6.933623216 | K34: ='IP_PF_Link Settlement'!D16 -> 6.933057549
B35: IP | C35: =IF(Init!$C$13="Yes",'Rates After Link Settlement'!C49,'Rates After Link (2)'!C51) -> 40.451105 | D35: =IF(Init!$C$13="Yes",'Rates After Link Settlement'!D49,'Rates After Link (2)'!D51) -> 41.179056 | J35: =J33-J34 -> -0.1787292616 | K35: =K33-K34 -> -0.1784935787 | L35: =AVERAGE(J35:K35) -> -0.1786114202
B36: NR | C36: =IF(Init!$C$13="Yes",'Rates After Link Settlement'!C50,'Rates After Link (2)'!C52) -> 79.510138 | D36: =IF(Init!$C$13="Yes",'Rates After Link Settlement'!D50,'Rates After Link (2)'!D52) -> 79.500492

Sheet ScenarioResults
B1: Rate Analysis Model - Scenario Summary Box | G1: =IF(Init!$C$13="Yes","Results Under Settlement","Results while Running 7b2 Rate Test") -> Results Under Settlement
A2: TOC | B2: =Cover!$C$14 -> RAMmodel_REP2020.xls | G2: Not printed in documentation.
A3: é | L3: List for Expense Conservation in 7b2
L4: 1
B5: Attachment 1a | G5: From Rate Tables | L5: 2
D6: % above BP-18 | G6: =B7 -> Unbifurcated PF | H6: ='Unbif PF_RateOutput'!E52 -> 47.01 | J6: =C7-H6 -> 0.001365021056 | L6: 3
B7: Unbifurcated PF | C7: ='Rates After Link'!C47 -> 47.01136502 | D7: =C7/H23-1 -> 0.03081685487 | G7: T1 Equivalent PF | H7: =PFAveT1_RateOutput!E52 -> 35.62 | L7: 4
B8: PF Public | C8: =IF(Init!$C$13="Yes",'Rates After Link Settlement'!E47,ROUND((RateSummary!C32+RateSummary!D32)/2,2)) -> 35.56 | D8: =C8/H24-1 -> -0.03994869573 | G8: T1 & T2 Equivalent PF | H8: =PFMeldedEqv_RateOutput!E52 -> 35.57 | J8: =H8-C8 -> 0.01 | L8: 5
B9: PF Exchange | C9: =IF(Init!$C$13="Yes",'Rates After Link Settlement'!E48,'Rates After Link (2)'!C64) -> 66.48 | D9: =C9/H25-1 -> 0.07468477207 | G9: =B9 -> PF Exchange | H9: ='PF Exchange_RateOutput'!E53 -> 66.48 | J9: =H9-C9 -> 0 | L9: 6
B10: IP | C10: =IF(Init!$C$13="Yes",'Rates After Link Settlement'!E49,'Rates After Link (2)'!C66)+I44 -> 41.1077907 | D10: =C10/H26-1 -> -0.05693769912 | G10: =B10 -> IP | H10: =IP_RateOutput!E52 -> 40.81 | J10: =H10-C10 -> -0.2977906996 | L10: 7
B11: NR | C11: =IF(Init!$C$13="Yes",'Rates After Link Settlement'!E50,'Rates After Link (2)'!C67)+I45 -> 79.7977907 | D11: =C11/H27-1 -> 0.009719176844 | G11: =B11 -> NR | H11: =NR_RateOutput!E52 -> 79.51 | J11: =H11-C11 -> -0.2877906996 | L11: 8
L12: 9
B13: Residential Exchange Benefits | C13: =+Init!C9 -> 2020 | D13: =C13+1 -> 2021 | L13: 10
B14: ='Active Exchange'!D10 -> Avista Corporation | C14: =IF(Init!$C$13="Yes",MAX('Utility Specific PFx Settle'!O27,0),MAX('Utility Specifc PFx'!K24,0)) -> 14578.38311 | D14: =IF(Init!$C$13="Yes",MAX('Utility Specific PFx Settle'!P27,0),MAX('Utility Specifc PFx'!K43,0)) -> 14578.39858 | L14: 11
B15: ='Active Exchange'!D11 -> Idaho Power Company | C15: =IF(Init!$C$13="Yes",MAX('Utility Specific PFx Settle'!O28,0),MAX('Utility Specifc PFx'!K25,0)) -> 22292.12196 | D15: =IF(Init!$C$13="Yes",MAX('Utility Specific PFx Settle'!P28,0),MAX('Utility Specifc PFx'!K44,0)) -> 22292.13715 | E15: =IF(Init!$C$13="No","Deemer Amount","") ->  | L15: 12
B16: ='Active Exchange'!D12 -> NorthWestern Energy, LLC | C16: =IF(Init!$C$13="Yes",MAX('Utility Specific PFx Settle'!O29,0),MAX('Utility Specifc PFx'!K26,0)) -> 6133.642484 | D16: =IF(Init!$C$13="Yes",MAX('Utility Specific PFx Settle'!P29,0),MAX('Utility Specifc PFx'!K45,0)) -> 6133.641855 | L16: Settlement Menu
B17: ='Active Exchange'!D13 -> PacifiCorp | C17: =IF(Init!$C$13="Yes",MAX('Utility Specific PFx Settle'!O30,0),MAX('Utility Specifc PFx'!K27,0)) -> 63717.74851 | D17: =IF(Init!$C$13="Yes",MAX('Utility Specific PFx Settle'!P30,0),MAX('Utility Specifc PFx'!K46,0)) -> 63717.76451 | G17: ="Section 7(b)(3) Load for " & RateSummary!$C$10 -> Section 7(b)(3) Load for 2020 | H17: ='Exchange Load'!D29+'RAM IP'!M83+'RAM NR'!D66 -> 5333.911488 | J17: Trigger | L17: Yes
B18: ='Active Exchange'!D14 -> Portland General Electric Company | C18: =IF(Init!$C$13="Yes",MAX('Utility Specific PFx Settle'!O31,0),MAX('Utility Specifc PFx'!K28,0)) -> 58927.06808 | D18: =IF(Init!$C$13="Yes",MAX('Utility Specific PFx Settle'!P31,0),MAX('Utility Specifc PFx'!K47,0)) -> 58927.0286 | G18: Section 7(b)(2) Rate Test Trigger | H18: 0 | J18: =ROUND(TriggerCalc!J35,2) -> 0 | L18: No
B19: ='Active Exchange'!D15 -> Puget Sound Energy, Inc. | C19: =IF(Init!$C$13="Yes",MAX('Utility Specific PFx Settle'!O32,0),MAX('Utility Specifc PFx'!K29,0)) -> 79551.48849 | D19: =IF(Init!$C$13="Yes",MAX('Utility Specific PFx Settle'!P32,0),MAX('Utility Specifc PFx'!K48,0)) -> 79551.48382 | E19: =IF(Init!$C$13="No", "w/o Deemer $s","") -> 
B20: Net IOU Exchange | C20: =IF(Init!$C$13="No",SUM(C14,C16:C19),SUM(C14:C19)) -> 245200.4526 | D20: =IF(Init!$C$13="No",SUM(D14,D16:D19),SUM(D14:D19)) -> 245200.4545 | E20: =(C20+D20)/2 -> 245200.4536
B21: Refund Amt | C21: =IF(Init!$C$13="Yes",'Utility Specific PFx Settle'!$O$41,0) -> 0 | D21: =IF(Init!$C$13="Yes",'Utility Specific PFx Settle'!$P$41,0) -> 0 | E21: =(C21+D21)/2 -> 0
G22: Previous Rates
B23: =ExchangeInputs!C15 -> Clark Public Utilities | C23: =IF(Init!$C$13="Yes",MAX('Utility Specific PFx Settle'!O35,0),MAX('Utility Specifc PFx'!K30,0)) -> 2086.569548 | D23: =IF(Init!$C$13="Yes",MAX('Utility Specific PFx Settle'!P35,0),MAX('Utility Specifc PFx'!K49,0)) -> 2088.717995 | G23: Unbifurcated PF | H23: 45.60593358
B24: =ExchangeInputs!C16 -> Franklin | C24: =IF(Init!$C$13="Yes",MAX('Utility Specific PFx Settle'!O36,0),MAX('Utility Specifc PFx'!K31,0)) -> 0 | D24: =IF(Init!$C$13="Yes",MAX('Utility Specific PFx Settle'!P36,0),MAX('Utility Specifc PFx'!K50,0)) -> 0 | G24: PF Public | H24: =+I24+H43 -> 37.03968719 | I24: 36.96
B25: =ExchangeInputs!C17 -> Snohomish PUD | C25: =IF(Init!$C$13="Yes",MAX('Utility Specific PFx Settle'!O37,0),MAX('Utility Specifc PFx'!K32,0)) -> 2479.924991 | D25: =IF(Init!$C$13="Yes",MAX('Utility Specific PFx Settle'!P37,0),MAX('Utility Specifc PFx'!K51,0)) -> 2457.39785 | G25: PF Exchange | H25: 61.86
B26: Net COU Exchange | C26: =SUM(C23:C25) -> 4566.494539 | D26: =SUM(D23:D25) -> 4546.115844 | E26: =(C26+D26)/2 -> 4556.305192 | G26: IP | H26: =I26+H44 -> 43.58968719 | I26: 43.51
D27: Total | E27: =E20+E21+E26 -> 249756.7588 | G27: NR | H27: =I27+H45 -> 79.02968719 | I27: 78.95
B29: Annual Average $ (1000s) | C29: BP-18 | D29: BP-20 | E29: Change
B30: Composite Revenues | C30: 2470061.271 | D30: =Cost_Allocation_TRM!$E$57/2 -> 2244314.157 | E30: =(D30-C30)/C30 -> -0.09139332538
B31: Non-Slice Revenues | C31: -265959.4612 | D31: =Cost_Allocation_TRM!$E$58/2 -> -173280.0459 | E31: =-(D31-C31)/C31 -> 0.3484719622 | H31: BP-18 | I31: BP-20 | J31: BP-20 max FRP
B32: Slice Revenues | C32: 0 | D32: =Cost_Allocation_TRM!$E$59/2 -> 0 | G32: Surcharges | H32: 5000 | I32: 17500 | J32: 30000
B33: Load Shaping Revenues | C33: 27391.16273 | D33: =-Cost_Allocation_TRM!$E$44/2 -> 28041.87596 | E33: =(D33-C33)/C33 -> 0.02375632005 | G33: Preference Load | H33: 7086.279748 | I33: =AVERAGE(ProgAlloc!C7:D7) -> 6919.695837 | J33: =AVERAGE(ProgAlloc!C7:D7) -> 6919.695837
B34: Demand Revenues | C34: 48157.21696 | D34: =-Cost_Allocation_TRM!$E$46/2 -> 53528.96763 | E34: =(D34-C34)/C34 -> 0.1115461194 | G34: DSI Load | H34: 76.42916868 | I34: =ProgAlloc!C9 -> 12.36871702 | J34: =ProgAlloc!C9 -> 12.36871702
B35: Tier 1 Revenue Requirement | C35: 2279650.189 | D35: =SUM($D$30:$D$34) -> 2152604.955 | E35: =((D35+D38+D41)-(C35+C38+C41))/C35 -> -0.01260172018 | G35: NR Load | H35: 0.00103060909 | I35: =ProgAlloc!C10 -> 0.001156384698 | J35: =ProgAlloc!C10 -> 0.001156384698
B36: Tier 2 Revenue Requirement | C36: 40905.41608 | D36: =(Cost_Allocation_TRM!$H$13+Cost_Allocation_TRM!$I$13)/2 -> 14935.76388 | G36: Preference Allocator | H36: =H33/SUM(H$33:H$35) -> 0.9893294298 | I36: =I33/SUM(I$33:I$35) -> 0.9982155574 | J36: 0.9982155574
G37: DSI Allocator | H37: =H34/SUM(H$33:H$35) -> 0.01067042631 | I37: 0.001784275789 | J37: 0.001784275789
B38: Lookback Return (credit) | C38: -76537.617 | D38: 0 | G38: NR Allocator | H38: =H35/SUM(H$33:H$35) -> 1.438853587e-07 | I38: 1.668167537e-07 | J38: 1.668167537e-07
B39: Spill Surcharge | C39: =H39 -> 4946.647149 | D39: 0 | G39: Preference Surcharge | H39: =H$32*H36 -> 4946.647149 | I39: =I$32*I36 -> 17468.77225 | J39: 29946.46672
B40: FRP Surcharge | C40: 0 | D40: =I39 -> 17468.77225 | G40: DSI Surcharge | H40: =H$32*H37 -> 53.35213156 | I40: 31.22482631 | J40: 53.52827368
B41: Value of Slice Secondary | C41: -94630.67811 | D41: =(Cost_Allocation_TRM!$H$18+Cost_Allocation_TRM!$I$18)/2 -> -72850.57469 | E41: =-(D41-C41)/C41 -> 0.2301590125 | G41: NR Surcharge | H41: =H$32*H38 -> 0.0007194267935 | I41: 0.00291929319 | J41: 0.005004502612
B42: Net Power Cost to All PF | C42: =2149387.31019421+C39 -> 2154333.957 | D42: =SUM(D35:D41) -> 2112158.916 | E42: =+D42/C42-1 -> -0.01957683522 | G42: Hours | H42: 8760 | I42: =AVERAGE(8784,8760) -> 8772 | J42: =AVERAGE(8784,8760) -> 8772
B43: Total PF Load w/Slice (GWh)/yr | C43: 60232.15902 | D43: =('PF Public'!$D$77+'PF Public'!$E$77)/2 -> 58896.49387 | E43: =-(((C42-C36)*(D43-C43))/(C43*C43))/C48 -> 0.0218257294 | G43: PF Melded Adder | H43: =H39*1000/(H$42*H33) -> 0.0796871938 | I43: =I39*1000/(I$42*I33) -> 0.2877906996 | J43: 0.493355485
B44: Average Net Cost $/MWh | C44: =+C42/C43 -> 35.76717143 | D44: =+D42/D43 -> 35.86221823 | E44: =(D44-C$44)/C$44 -> 0.002657375422 | G44: DSI Adder | H44: =H40*1000/(H$42*H34) -> 0.0796871938 | I44: 0.2877906996 | J44: 0.493355485
G45: NR Adder | H45: =H41*1000/(H$42*H35) -> 0.0796871938 | I45: 0.2877906996 | J45: 0.493355485
B46: Tier 1 Load | C46: 59275.89552 | D46: =+(PFAveT1_RateOutput!$E$54/2) -> 58380.36135 | E46: =((C46-D46)*C48)/D46/(C48) -> 0.01533964749
B48: Tier 1 Average Net Cost without FRP ($/MWh) | C48: =ROUND((C35+C37+C38+C40+C41+C39)/C46,2) -> 35.65 | D48: =ROUND((D35+D37+D38+D39+D41)/D46,2) -> 35.62 | E48: =(D48-C$48)/C$48 -> -0.0008415147265
B49: Tier 1 Average Net Cost with max FRP ($/MWh) | C49: =ROUND((C35+C37+C38+C40+C41+C39)/C46,2) -> 35.65 | D49: =ROUND((D35+D37+D38+J39+D41)/D46,2) -> 36.14 | E49: =(D49-C$49)/C$49 -> 0.01374474053
B50: Tier 2 Short-term ($/MWh) | C50: 26.085 | D50: =+ResultsDetail!D32 -> 31.76411205 | E50: =(D50-C$50)/C$50 -> 0.2177156239
B51: Tier 2 Load Growth ($/MWh) | C51: 46.55 | D51: =Cost_Allocation_TRM!E80 -> 0 | E51: =(D51-C$51)/C$51 -> -1
D53: % above BP-16
D54: % above BP-18
B55: Unbifurcated PF | C55: 47.01136502 | D55: 0.03081685487
B56: PF Public | C56: 35.56 | D56: -0.03994869573
B57: PF Exchange | C57: 66.48 | D57: 0.07468477207
B58: IP | C58: 41.1077907 | D58: -0.05693769912
B59: NR | C59: 79.7977907 | D59: 0.009719176844
B61: Residential Exchange Benefits | C61: 2020 | D61: 2021
B62: Avista Corporation | C62: 14578.38311 | D62: 14578.39858
B63: Idaho Power Company | C63: 22292.12196 | D63: 22292.13715
B64: NorthWestern Energy, LLC | C64: 6133.642484 | D64: 6133.641855
B65: PacifiCorp | C65: 63717.74851 | D65: 63717.76451
B66: Portland General Electric Company | C66: 58927.06808 | D66: 58927.0286
B67: Puget Sound Energy, Inc. | C67: 79551.48849 | D67: 79551.48382
B68: Net IOU Exchange | C68: 245200.4526 | D68: 245200.4545 | E68: 245200.4536
B69: Refund Amt | C69: 0 | D69: 0 | E69: 0
B71: Clark Public Utilities | C71: 2086.569548 | D71: 2088.717995
B72: Franklin | C72: 0 | D72: 0
B73: Snohomish PUD | C73: 2479.924991 | D73: 2457.39785
B74: Net COU Exchange | C74: 4566.494539 | D74: 4546.115844 | E74: 4556.305192
D75: Total | E75: 249756.7588
B77: Annual Average $ (1000s) | C77: BP-18 | D77: BP-20 | E77: Change
B78: Composite Revenues | C78: 2470061.271 | D78: 2244314.157 | E78: -0.09139332538
B79: Non-Slice Revenues | C79: -265959.4612 | D79: -173280.0459 | E79: 0.3484719622
B80: Slice Revenues | C80: 0 | D80: 0
B81: Load Shaping Revenues | C81: 27391.16273 | D81: 28041.87596 | E81: 0.02375632005
B82: Demand Revenues | C82: 48157.21696 | D82: 53528.96763 | E82: 0.1115461194
B83: Tier 1 Revenue Requirement | C83: 2279650.189 | D83: 2152604.955 | E83: -0.01260172018
B84: Tier 2 Revenue Requirement | C84: 40905.41608 | D84: 14935.76388
B86: Lookback Return (credit) | C86: -76537.617 | D86: 0
B87: Spill Surcharge | C87: 4946.647149 | D87: 0
B88: FRP Surcharge | C88: 0 | D88: 17468.77225
B89: Value of Slice Secondary | C89: -94630.67811 | D89: -72850.57469 | E89: 0.2301590125
B90: Net Power Cost to All PF | C90: 2154333.957 | D90: 2112158.916 | E90: -0.01957683522
B91: Total PF Load w/Slice (GWh)/yr | C91: 60232.15902 | D91: 58896.49387 | E91: 0.0218257294
B92: Average Net Cost $/MWh | C92: 35.76717143 | D92: 35.86221823 | E92: 0.002657375422

Sheet ResultsDetail
B1: Rate Analysis Model - Scenario Summary | G1: =IF(Init!$C$13="Yes","Results Under Settlement","Results while Running 7b2 Rate Test") -> Results Under Settlement
A2: TOC | B2: =Cover!$C$14 -> RAMmodel_REP2020.xls | G2: Not printed in documentation.
A3: é
D6: % above BP-18
B7: Unbifurcated PF | C7: =ScenarioResults!C7 -> 47.01136502 | D7: =C7/ScenarioResults!H23-1 -> 0.03081685487
B8: PF Public (Tier 1 + Tier 2) | C8: =ScenarioResults!C8 -> 35.56 | D8: =C8/ScenarioResults!H24-1 -> -0.03994869573
B9: PF Exchange (IOU) | C9: =ScenarioResults!C9 -> 66.48 | D9: =C9/ScenarioResults!H25-1 -> 0.07468477207
B10: IP with 7(b)(3) | C10: =ScenarioResults!C10 -> 41.1077907 | D10: =C10/ScenarioResults!H26-1 -> -0.05693769912
B11: NR | C11: =ScenarioResults!C11 -> 79.7977907 | D11: =C11/ScenarioResults!H27-1 -> 0.009719176844
B14: Annual Average $ (1000s) | C14: BP-18 | D14: BP-20 | E14: Change
A15: 1 | B15: Composite Rate Revenues | C15: 2470061.271 | D15: =Cost_Allocation_TRM!$E$57/2 -> 2244314.157 | E15: =D15/C15-1 -> -0.09139332538
A16: =+A15+1 -> 2 | B16: Non-Slice Rate Revenues | C16: -265959.4612 | D16: =Cost_Allocation_TRM!$E$58/2 -> -173280.0459 | E16: =-(D16/C16-1) -> 0.3484719622
A17: =+A16+1 -> 3 | B17: Slice Rate Revenues | C17: 0 | D17: =Cost_Allocation_TRM!$E$59/2 -> 0
A18: 4 | B18: Load Shaping Rate Revenues | C18: 27391.16273 | D18: =-Cost_Allocation_TRM!$E$44/2 -> 28041.87596 | E18: =D18/C18-1 -> 0.02375632005
A19: 5 | B19: Demand Rate Revenues | C19: 48157.21696 | D19: =-Cost_Allocation_TRM!$E$46/2 -> 53528.96763 | E19: =D19/C19-1 -> 0.1115461194
A20: 6 | B20: Tier 1 Revenue Requirement | C20: 2279650.189 | D20: =SUM(D15:D19) -> 2152604.955 | E20: =D20/C20-1 -> -0.0557301444
A21: 7 | B21: Tier 2 Revenue Requirement | C21: 40905.41608 | D21: =(Cost_Allocation_TRM!$H$13+Cost_Allocation_TRM!$I$13)/2 -> 14935.76388
A22: 8 | B22: Value of Slice Surplus | C22: -94630.67811 | D22: =-(Secondary!D27+Secondary!E27)/2 -> -72850.57469 | E22: =-(D22/C22-1) -> 0.2301590125
A23: 9 | B23: Value of CHWM RECs (credit)
A24: 10 | B24: Lookback Return (credit) | C24: -76537.617 | D24: 0
A25: 11 | B25: Net Power Cost to All PF | C25: 2149387.31 | D25: =SUM(D20:D24) -> 2094690.144 | E25: =D25/C25-1 -> -0.02544779424
B26: Surcharges | C26: =ScenarioResults!H39 -> 4946.647149 | D26: =ScenarioResults!I39 -> 17468.77225
A27: =+A25+1 -> 12 | B27: Annual PF Load (w/firm Slice) (GWh) | C27: 60232.15902 | D27: =('PF Public'!$D$77+'PF Public'!$E$77)/2 -> 58896.49387 | E27: =D27/C27-1 -> -0.0221752826
A28: =+A27+1 -> 13 | B28: PF Average Net Cost ($/MWh) | C28: =+(C25+C26)/C27 -> 35.76717143 | D28: =+(D25+D26)/D27 -> 35.86221823 | E28: =D28/C28-1 -> 0.002657375422
A30: =A28+1 -> 14 | B30: Tier 1 Average Net Cost without FRP ($/MWh) | C30: =ROUND((C20+C24+C22+C26)/C60,2) -> 35.65 | D30: =ScenarioResults!D48 -> 35.62 | E30: =D30/C30-1 -> -0.0008415147265
A31: =+A30+1 -> 15 | B31: Tier 1 Average Net Cost max FRP ($/MWh) | C31: =C30 -> 35.65 | D31: =ScenarioResults!D49 -> 36.14 | E31: 0.01374474053
A32: 16 | B32: Tier 2 ($/MWh) | C32: 41.41368514 | D32: =+'Cost Contribution'!F31 -> 31.76411205 | E32: =D32/C32-1 -> -0.233004454
I34: Power Rates ($/MWh) | J34: BP-18 | K34: BP-20 | L34: Change
B35: Slice Sales | C35: BP-18 | D35: BP-20 | E35: Change | I35: Tier 1 Average Net Cost of Power | J35: =C30 -> 35.65 | K35: =D30 -> 35.62 | L35: =E30 -> -0.0008415147265
A36: =+A32+1 -> 17 | B36: Composite+Slice | C36: 579247.7454 | D36: =(Cost_Allocation_TRM!C66*Cost_Allocation_TRM!E69+Cost_Allocation_TRM!D66*Cost_Allocation_TRM!E69+Cost_Allocation_TRM!C66*Cost_Allocation_TRM!E71+Cost_Allocation_TRM!D66*Cost_Allocation_TRM!E71)/2 -> 531485.5367 | I36: Average Non-Slice Rate | J36: =C50 -> 36.25 | K36: =D50 -> 36.34220813 | L36: =E50 -> 0.00254367263
A37: 18 | B37: Surcharges | C37: 0 | I37: Average Slice Rate | J37: =C38 -> 41.88 | K37: =D38 -> 38.57030066 | L37: =E38 -> -0.07902815993
A38: 19 | B38: Tier 1 Average Cost ($/MWh) | C38: =ROUND(SUM(C36:C37)/C59,2) -> 41.88 | D38: =D36/((Loads!E8+Loads!F8)/1000/2) -> 38.57030066 | E38: =D38/C38-1 -> -0.07902815993 | I38: Average Tier 2 Rate | J38: =C32 -> 41.41368514 | K38: =D32 -> 31.76411205 | L38: =E32 -> -0.233004454
A39: 20 | B39: Value of Slice Surplus+Credits | C39: -112579.3187 | D39: =D22+((D23+D24)*(Cost_Allocation_TRM!E66/Cost_Allocation_TRM!E64)) -> -72850.57469
A40: 21 | B40: Net Cost of Slice Power | C40: =+C36+C37+C39 -> 466668.4266 | D40: =D36+D39 -> 458634.962 | I40: IP Rate | J40: 43.51 | K40: 41.75 | L40: =K40/J40-1 -> -0.04045047116
A41: 22 | B41: Tier 1 Average Net Cost ($/MWh) | C41: =C40/C59 -> 33.73894194 | D41: =D40/((Cost_Allocation_TRM!H36+Cost_Allocation_TRM!I36)/2/1000) -> 33.28348072 | E41: =D41/C41-1 -> -0.01349957029
B44: Non-Slice Sales | C44: BP-18 | D44: BP-20 | E44: Change
A45: =+A41+1 -> 23 | B45: Composite+NonSlice+Shape+Demand | C45: 1700250.915 | D45: ='LSTUR&PFT1Eqv_RateOutput'!D52/2 -> 1620982.95
A46: 24 | B46: Tier 1 Average Cost ($/MWh) | C46: 37.42849391 | D46: =D45/(('LSTUR&PFT1Eqv_RateOutput'!E54)/2) -> 36.34220813 | E46: =D46/C46-1 -> -0.02902296261
A47: 25 | B47: Credits | C47: -58588.97637 | D47: =(D23+D24)*(Cost_Allocation_TRM!E65/Cost_Allocation_TRM!E64) -> 0
A48: 26 | B48: Net Cost of Non-Slice Power | C48: 1641661.939 | D48: =D45+D47 -> 1620982.95
A49: 27 | B49: Surcharges | C49: =ScenarioResults!H39 -> 4946.647149 | D49: =+ScenarioResults!J39 -> 29946.46672
A50: 28 | B50: Tier 1 Average Net Cost without FRP ($/MWh) | C50: =ROUND((C48+C49)/C58,2) -> 36.25 | D50: =(D48)/(('LSTUR&PFT1Eqv_RateOutput'!E54)/2) -> 36.34220813 | E50: =D50/C50-1 -> 0.00254367263
A51: 29 | B51: Tier 1 Average Net Cost max FRP ($/MWh) | C51: =+C50 -> 36.25 | D51: =(D48+D49)/(('LSTUR&PFT1Eqv_RateOutput'!E54)/2) -> 37.01360367 | E51: =D51/C51-1 -> 0.02106492896
B54: Tiered PF Rate Components | C54: BP-18 | D54: BP-20 | E54: Change
A55: =+A51+1 -> 30 | B55: Composite Rate ($/ pct/month) | C55: 2123111.808 | D55: =+Cost_Allocation_TRM!E74 -> 1980553.368 | E55: =D55/C55-1 -> -0.06714598791
A56: 31 | B56: Non-Slice Rate ($/ pct/month) | C56: -298634.2465 | D56: =+Cost_Allocation_TRM!E75 -> -200364.6917 | E56: =D56/C56-1 -> -0.329063247
B58: NonSlice Load | C58: 45426.64525
B59: Slice Load | C59: 13831.74456
C60: 59275.89552
B61: REP Summary Information
B62: Residential Exchange Program Benefits
C63: BP-12 | D63: BP-14 REP Benefits | G63: Delta | H63: Change
C64: Errata | D64: Preliminary | E64: Reallocations | F64: Planned | G64: BP-12 vs BP-14
B65: Avista | C65: 11818 | D65: ='Utility Specific PFx Settle'!P8 -> 16558.83508 | E65: ='Utility Specific PFx Settle'!J41-'Utility Specific PFx Settle'!D47 -> -1980.605905 | F65: =AVERAGE('Utility Specific PFx Settle'!O27,'Utility Specific PFx Settle'!P27) -> 14578.39084 | G65: =+F65-C65 -> 2760.390843 | H65: =F65/C65-1 -> 0.2335751263
B66: Idaho Power | C66: 2024 | D66: ='Utility Specific PFx Settle'!P9 -> 22616.16936 | E66: ='Utility Specific PFx Settle'!J42-'Utility Specific PFx Settle'!E47 -> -324.2200651 | F66: =AVERAGE('Utility Specific PFx Settle'!O28,'Utility Specific PFx Settle'!P28) -> 22292.12956 | G66: =+F66-C66 -> 20268.12956 | H66: =F66/C66-1 -> 10.013898
B67: Northwestern | C67: 2903 | D67: ='Utility Specific PFx Settle'!P10 -> 5858.854073 | E67: ='Utility Specific PFx Settle'!J43-'Utility Specific PFx Settle'!F47 -> 274.7606039 | F67: =AVERAGE('Utility Specific PFx Settle'!O29,'Utility Specific PFx Settle'!P29) -> 6133.64217 | G67: 3230.64217 | H67: 1.112863303
B68: PacifiCorp | C68: 32167 | D68: ='Utility Specific PFx Settle'!P11 -> 67906.01142 | E68: ='Utility Specific PFx Settle'!J44-'Utility Specific PFx Settle'!G47 -> -4188.319967 | F68: =AVERAGE('Utility Specific PFx Settle'!O30,'Utility Specific PFx Settle'!P30) -> 63717.75651 | G68: 31550.75651 | H68: 0.9808423698
B69: PGE | C69: 58178 | D69: ='Utility Specific PFx Settle'!P12 -> 56280.53847 | E69: ='Utility Specific PFx Settle'!J45-'Utility Specific PFx Settle'!H47 -> 2646.10412 | F69: =AVERAGE('Utility Specific PFx Settle'!O31,'Utility Specific PFx Settle'!P31) -> 58927.04834 | G69: 749.0483396 | H69: 0.01287511327
B70: Puget Sound | C70: 75012 | D70: ='Utility Specific PFx Settle'!P13 -> 75979.59159 | E70: ='Utility Specific PFx Settle'!J46-'Utility Specific PFx Settle'!I47 -> 3572.281214 | F70: =AVERAGE('Utility Specific PFx Settle'!O32,'Utility Specific PFx Settle'!P32) -> 79551.48615 | G70: 4539.486153 | H70: 0.06051679935
B71: Clark | C71: =AVERAGE(14893,15048) -> 14970.5 | D71: ='Utility Specific PFx Settle'!P14 -> 2087.643771 | E71: 0 | F71: =IF(SUM(('Utility Specific PFx Settle'!O35,'Utility Specific PFx Settle'!P35))=0,0,AVERAGE('Utility Specific PFx Settle'!O35,'Utility Specific PFx Settle'!P35)) -> 2087.643771 | G71: -12882.85623 | H71: -0.8605494959
B72: Snohomish | C72: =AVERAGE(4593,4637) -> 4615 | D72: ='Utility Specific PFx Settle'!P16 -> 2468.66142 | E72: 0 | F72: =IF(SUM(('Utility Specific PFx Settle'!O37,'Utility Specific PFx Settle'!P37))=0,0,AVERAGE('Utility Specific PFx Settle'!O37,'Utility Specific PFx Settle'!P37)) -> 2468.66142 | G72: -2146.33858 | H72: -0.4650787821
B73: Total | C73: 201660.3145 | D73: 198924.2241 | E73: =+SUM(E65:E72) -> 4.547473509e-13 | F73: =+SUM(F65:F72) -> 249756.7588 | G73: =+SUM(G65:G72) -> 48069.25876 | H73: =F73/C73-1 -> 0.2385022776
B74: IOU Total | C74: =SUM(C65:C70) -> 182102 | D74: =SUM(D65:D70) -> 245200 | E74: =SUM(E65:E71) -> 4.547473509e-13 | F74: =SUM(F65:F70) -> 245200.4536 | G74: =SUM(G65:G70) -> 63098.45357 | H74: =F74/C74-1 -> 0.3465006072
B75: COU Total | C75: =SUM(C71:C72) -> 19585.5 | D75: =SUM(D71:D72) -> 4556.305192 | E75: =SUM(E71:E72) -> 0 | F75: =SUM(F71:F72) -> 4556.305192 | G75: =SUM(G71:G72) -> -15029.19481 | H75: -0.7673633458
B80: Residential Exchange Program Cost Allocations
E82: FY 2014 | F82: FY 2015
B83: Unconstrained REP Benefits | E83: ='Rates After Settlement'!C14 -> 924445.2254 | F83: ='Rates After Settlement'!D14 -> 924369.8259
B84: 7(b)(2) Rate Protection | E84: =E83*(Loads!E5/(Loads!E5+Loads!E11+Loads!E14))-E92 -> 673469.8512 | F84: =F83*(Loads!F5/(Loads!F5+Loads!F11+Loads!F14))-F92 -> 673424.1706
B85: 7(b)(3) PFx Allocation | E85: ='Rates After Settlement'!C28 -> 674678.2782 | F85: ='Rates After Settlement'!D28 -> 674623.2556
B86: 7(b)(3) IP Allocation | E86: ='WP-10 Adjustment'!C55 -> 729.6333566 | F86: ='WP-10 Adjustment'!D55 -> 727.4245759
B87: 7(b)(3) NR Allocation | E87: ='WP-10 Adjustment'!C56 -> 0.06821538951 | F87: ='WP-10 Adjustment'!D56 -> 0.06798929704
B88: REP Benefits | E88: ='Utility Specific PFx Settle'!O39 -> 249766.9472 | F88: ='Utility Specific PFx Settle'!P39 -> 249746.5704
B89: Refund Amounts | E89: ='Utility Specific PFx Settle'!O41 -> 0 | F89: ='Utility Specific PFx Settle'!P41 -> 0
B90: Total REP Costs (Benefits + Refunds) | E90: ='Utility Specific PFx Settle'!O42 -> 249766.9472 | F90: ='Utility Specific PFx Settle'!P42 -> 249746.5704
B92: REP Benefits paid by PFp | E92: =E88*(Loads!E5/(Loads!E5+Loads!E11+Loads!E14)) -> 249319.5856 | F92: =F88*(Loads!F5/(Loads!F5+Loads!F11+Loads!F14)) -> 249302.6673
B93: REP Benefits paid by IP | E93: =E88*(Loads!E11/(Loads!E5+Loads!E11+Loads!E14)) -> 447.3197392 | F93: =F88*(Loads!F11/(Loads!F5+Loads!F11+Loads!F14)) -> 443.861613
B94: REP Benefits paid by NR | E94: =E88*(Loads!E14/(Loads!E5+Loads!E11+Loads!E14)) -> 0.04182112833 | F94: =F88*(Loads!F14/(Loads!F5+Loads!F11+Loads!F14)) -> 0.04148586678

Sheet Loads
B1: Loads (MWh)
A2: TOC | B2: =Cover!$C$14 -> RAMmodel_REP2020.xls
A3: é | E3: Annual | L3: HLH | CG3: LLH
E4: =Init!$C$9 -> 2020 | F4: =E4+1 -> 2021 | G4: =F4+1 -> 2022 | H4: 2023 | I4: 2024 | J4: 2025 | L4: =DATE($E$4-1,10,1) -> 2019-10-01 | M4: =EOMONTH(L4,0)+1 -> 2019-11-01 | N4: =EOMONTH(M4,0)+1 -> 2019-12-01 | O4: 2020-01-01 | P4: 2020-02-01 | Q4: 2020-03-01 | R4: 2020-04-01 | S4: 2020-05-01 | T4: 2020-06-01 | U4: 2020-07-01 | V4: 2020-08-01 | W4: 2020-09-01 | X4: 2020-10-01 | Y4: 2020-11-01 | Z4: 2020-12-01 | AA4: 2021-01-01 | AB4: 2021-02-01 | AC4: 2021-03-01 | AD4: 2021-04-01 | AE4: 2021-05-01 | AF4: 2021-06-01 | AG4: 2021-07-01 | AH4: 2021-08-01 | AI4: 2021-09-01 | AJ4: 2021-10-01 | AK4: 2021-11-01 | AL4: 2021-12-01 | AM4: 2022-01-01 | AN4: 2022-02-01 | AO4: 2022-03-01 | AP4: 2022-04-01 | AQ4: 2022-05-01 | AR4: 2022-06-01 | AS4: 2022-07-01 | AT4: 2022-08-01 | AU4: 2022-09-01 | AV4: 2022-10-01 | AW4: 2022-11-01 | AX4: 2022-12-01 | AY4: 2023-01-01 | AZ4: 2023-02-01 | BA4: 2023-03-01 | BB4: 2023-04-01 | BC4: 2023-05-01 | BD4: 2023-06-01 | BE4: 2023-07-01 | BF4: 2023-08-01 | BG4: 2023-09-01 | BH4: 2023-10-01 | BI4: 2023-11-01 | BJ4: 2023-12-01 | BK4: 2024-01-01 | BL4: 2024-02-01 | BM4: 2024-03-01 | BN4: 2024-04-01 | BO4: 2024-05-01 | BP4: 2024-06-01 | BQ4: 2024-07-01 | BR4: 2024-08-01 | BS4: 2024-09-01 | BT4: 2024-10-01 | BU4: 2024-11-01 | BV4: 2024-12-01 | BW4: 2025-01-01 | BX4: 2025-02-01 | BY4: 2025-03-01 | BZ4: =EOMONTH(BY4,0)+1 -> 2025-04-01 | CA4: 2025-05-01 | CB4: 2025-06-01 | CC4: 2025-07-01 | CD4: 2025-08-01 | CE4: 2025-09-01 | CG4: =DATE($E$4-1,10,1) -> 2019-10-01 | CH4: =EOMONTH(CG4,0)+1 -> 2019-11-01 | CI4: =EOMONTH(CH4,0)+1 -> 2019-12-01 | CJ4: 2020-01-01 | CK4: 2020-02-01 | CL4: 2020-03-01 | CM4: 2020-04-01 | CN4: 2020-05-01 | CO4: 2020-06-01 | CP4: 2020-07-01 | CQ4: 2020-08-01 | CR4: 2020-09-01 | CS4: 2020-10-01 | CT4: 2020-11-01 | CU4: 2020-12-01 | CV4: 2021-01-01 | CW4: 2021-02-01 | CX4: 2021-03-01 | CY4: 2021-04-01 | CZ4: 2021-05-01 | DA4: 2021-06-01 | DB4: 2021-07-01 | DC4: 2021-08-01 | DD4: 2021-09-01 | DE4: 2021-10-01 | DF4: 2021-11-01 | DG4: 2021-12-01 | DH4: 2022-01-01 | DI4: 2022-02-01 | DJ4: 2022-03-01 | DK4: 2022-04-01 | DL4: 2022-05-01 | DM4: 2022-06-01 | DN4: 2022-07-01 | DO4: 2022-08-01 | DP4: 2022-09-01 | DQ4: 2022-10-01 | DR4: 2022-11-01 | DS4: 2022-12-01 | DT4: 2023-01-01 | DU4: 2023-02-01 | DV4: 2023-03-01 | DW4: 2023-04-01 | DX4: 2023-05-01 | DY4: 2023-06-01 | DZ4: 2023-07-01 | EA4: 2023-08-01 | EB4: 2023-09-01 | EC4: 2023-10-01 | ED4: 2023-11-01 | EE4: 2023-12-01 | EF4: 2024-01-01 | EG4: 2024-02-01 | EH4: 2024-03-01 | EI4: 2024-04-01 | EJ4: 2024-05-01 | EK4: 2024-06-01 | EL4: 2024-07-01 | EM4: 2024-08-01 | EN4: 2024-09-01 | EO4: 2024-10-01 | EP4: 2024-11-01 | EQ4: 2024-12-01 | ER4: 2025-01-01 | ES4: 2025-02-01 | ET4: 2025-03-01 | EU4: =EOMONTH(ET4,0)+1 -> 2025-04-01 | EV4: 2025-05-01 | EW4: 2025-06-01 | EX4: 2025-07-01 | EY4: 2025-08-01 | EZ4: 2025-09-01
A5: Preference | D5: PRE | E5: =+SUM(E6:E10) -> 58757234.29 | F5: 59035753.45 | G5: 58757234.29 | H5: 59035753.45 | I5: 58757234.29 | J5: 59035753.45 | L5: 2712606.853 | M5: 3177219.202 | N5: 3496991.625 | O5: 3434071.576 | P5: 3037957.109 | Q5: 3020808.963 | R5: 2597940.597 | S5: 2566467.242 | T5: 2873851.948 | U5: 2976061.361 | V5: 2941055.358 | W5: 2646328.384 | X5: 2743716.801 | Y5: 3158983.131 | Z5: 3580620.596 | AA5: 3410378.592 | AB5: 2996232.761 | AC5: 3089891.269 | AD5: 2562006.071 | AE5: 2624888.456 | AF5: 2869705.743 | AG5: 2979895.715 | AH5: 2962461.055 | AI5: 2662825.511 | AJ5: 2712606.853 | AK5: 3177219.202 | AL5: 3496991.625 | AM5: 3434071.576 | AN5: 3037957.109 | AO5: 3020808.963 | AP5: 2597940.597 | AQ5: 2566467.242 | AR5: 2873851.948 | AS5: 2976061.361 | AT5: 2941055.358 | AU5: 2646328.384 | AV5: 2743716.801 | AW5: 3158983.131 | AX5: 3580620.596 | AY5: 3410378.592 | AZ5: 2996232.761 | BA5: 3089891.269 | BB5: 2562006.071 | BC5: 2624888.456 | BD5: 2869705.743 | BE5: 2979895.715 | BF5: 2962461.055 | BG5: 2662825.511 | BH5: 2712606.853 | BI5: 3177219.202 | BJ5: 3496991.625 | BK5: 3434071.576 | BL5: 3037957.109 | BM5: 3020808.963 | BN5: 2597940.597 | BO5: 2566467.242 | BP5: 2873851.948 | BQ5: 2976061.361 | BR5: 2941055.358 | BS5: 2646328.384 | BT5: 2743716.801 | BU5: 3158983.131 | BV5: 3580620.596 | BW5: 3410378.592 | BX5: 2996232.761 | BY5: 3089891.269 | BZ5: 2562006.071 | CA5: 2624888.456 | CB5: 2869705.743 | CC5: 2979895.715 | CD5: 2962461.055 | CE5: 2662825.511 | CG5: 1664124.034 | CH5: 2178071.889 | CI5: 2495576.775 | CJ5: 2369064.255 | CK5: 1993692.846 | CL5: 2012160.573 | CM5: 1665461.105 | CN5: 1775261.732 | CO5: 1746122.811 | CP5: 1839153.829 | CQ5: 1788396.035 | CR5: 1748788.185 | CS5: 1680681.248 | CT5: 2237637.301 | CU5: 2455753.071 | CV5: 2442685.566 | CW5: 1986297.286 | CX5: 1977408.047 | CY5: 1653699.782 | CZ5: 1765136.865 | DA5: 1746488.5 | DB5: 1878337.363 | DC5: 1805694.986 | DD5: 1764327.738 | DE5: 1664124.034 | DF5: 2178071.889 | DG5: 2495576.775 | DH5: 2369064.255 | DI5: 1993692.846 | DJ5: 2012160.573 | DK5: 1665461.105 | DL5: 1775261.732 | DM5: 1746122.811 | DN5: 1839153.829 | DO5: 1788396.035 | DP5: 1748788.185 | DQ5: 1680681.248 | DR5: 2237637.301 | DS5: 2455753.071 | DT5: 2442685.566 | DU5: 1986297.286 | DV5: 1977408.047 | DW5: 1653699.782 | DX5: 1765136.865 | DY5: 1746488.5 | DZ5: 1878337.363 | EA5: 1805694.986 | EB5: 1764327.738 | EC5: 1664124.034 | ED5: 2178071.889 | EE5: 2495576.775 | EF5: 2369064.255 | EG5: 1993692.846 | EH5: 2012160.573 | EI5: 1665461.105 | EJ5: 1775261.732 | EK5: 1746122.811 | EL5: 1839153.829 | EM5: 1788396.035 | EN5: 1748788.185 | EO5: 1680681.248 | EP5: 2237637.301 | EQ5: 2455753.071 | ER5: 2442685.566 | ES5: 1986297.286 | ET5: 1977408.047 | EU5: 1653699.782 | EV5: 1765136.865 | EW5: 1746488.5 | EX5: 1878337.363 | EY5: 1805694.986 | EZ5: 1764327.738
B6: Block | D6: PRE_BLK | E6: =+SUM(L6:W6,CG6:CR6) -> 5042138.859 | F6: =+SUM(X6:AI6,CS6:DD6) -> 5009642.44 | G6: =+SUM(AJ6:AU6,DE6:DP6) -> 5042138.859 | H6: =+SUM(AV6:BG6,DQ6:EB6) -> 5009642.44 | I6: =+SUM(BH6:BS6,EC6:EN6) -> 5042138.859 | J6: =+SUM(BT6:CE6,EO6:EZ6) -> 5009642.44 | L6: 235213.102 | M6: 374038.803 | N6: 383940.969 | O6: 423546.324 | P6: 361151.746 | Q6: 377498.645 | R6: 180328.296 | S6: 65222.385 | T6: 8807.453 | U6: 150137.059 | V6: 169996.299 | W6: 271477.127 | X6: 233899.347 | Y6: 370160.291 | Z6: 383045.006 | AA6: 418751.369 | AB6: 358381.901 | AC6: 376501.95 | AD6: 179398.565 | AE6: 64916.142 | AF6: 8783.388 | AG6: 149248.511 | AH6: 168991.382 | AI6: 269791.18 | AJ6: 235213.102 | AK6: 374038.803 | AL6: 383940.969 | AM6: 423546.324 | AN6: 361151.746 | AO6: 377498.645 | AP6: 180328.296 | AQ6: 65222.385 | AR6: 8807.453 | AS6: 150137.059 | AT6: 169996.299 | AU6: 271477.127 | AV6: 233899.347 | AW6: 370160.291 | AX6: 383045.006 | AY6: 418751.369 | AZ6: 358381.901 | BA6: 376501.95 | BB6: 179398.565 | BC6: 64916.142 | BD6: 8783.388 | BE6: 149248.511 | BF6: 168991.382 | BG6: 269791.18 | BH6: 235213.102 | BI6: 374038.803 | BJ6: 383940.969 | BK6: 423546.324 | BL6: 361151.746 | BM6: 377498.645 | BN6: 180328.296 | BO6: 65222.385 | BP6: 8807.453 | BQ6: 150137.059 | BR6: 169996.299 | BS6: 271477.127 | BT6: 233899.347 | BU6: 370160.291 | BV6: 383045.006 | BW6: 418751.369 | BX6: 358381.901 | BY6: 376501.95 | BZ6: 179398.565 | CA6: 64916.142 | CB6: 8783.388 | CC6: 149248.511 | CD6: 168991.382 | CE6: 269791.18 | CG6: 158017.892 | CH6: 254139.853 | CI6: 263649.139 | CJ6: 288456.602 | CK6: 243969.65 | CL6: 256600.124 | CM6: 121345.566 | CN6: 45775.047 | CO6: 6436.157 | CP6: 102779.573 | CQ6: 115513.245 | CR6: 184097.803 | CS6: 157129.933 | CT6: 253747.441 | CU6: 260312.517 | CV6: 288282.849 | CW6: 242464.039 | CX6: 253239.941 | CY6: 120719.696 | CZ6: 45564.62 | DA6: 6418.572 | DB6: 102159.027 | DC6: 114815.947 | DD6: 182918.826 | DE6: 158017.892 | DF6: 254139.853 | DG6: 263649.139 | DH6: 288456.602 | DI6: 243969.65 | DJ6: 256600.124 | DK6: 121345.566 | DL6: 45775.047 | DM6: 6436.157 | DN6: 102779.573 | DO6: 115513.245 | DP6: 184097.803 | DQ6: 157129.933 | DR6: 253747.441 | DS6: 260312.517 | DT6: 288282.849 | DU6: 242464.039 | DV6: 253239.941 | DW6: 120719.696 | DX6: 45564.62 | DY6: 6418.572 | DZ6: 102159.027 | EA6: 114815.947 | EB6: 182918.826 | EC6: 158017.892 | ED6: 254139.853 | EE6: 263649.139 | EF6: 288456.602 | EG6: 243969.65 | EH6: 256600.124 | EI6: 121345.566 | EJ6: 45775.047 | EK6: 6436.157 | EL6: 102779.573 | EM6: 115513.245 | EN6: 184097.803 | EO6: 157129.933 | EP6: 253747.441 | EQ6: 260312.517 | ER6: 288282.849 | ES6: 242464.039 | ET6: 253239.941 | EU6: 120719.696 | EV6: 45564.62 | EW6: 6418.572 | EX6: 102159.027 | EY6: 114815.947 | EZ6: 182918.826
B7: Slice Block | D7: PRE_BLK | E7: =+SUM(L7:W7,CG7:CR7) -> 11260751.09 | F7: =+SUM(X7:AI7,CS7:DD7) -> 11559704.21 | G7: =+SUM(AJ7:AU7,DE7:DP7) -> 11260751.09 | H7: =+SUM(AV7:BG7,DQ7:EB7) -> 11559704.21 | I7: =+SUM(BH7:BS7,EC7:EN7) -> 11260751.09 | J7: =+SUM(BT7:CE7,EO7:EZ7) -> 11559704.21 | L7: 500558.083 | M7: 542482.899 | N7: 623757.46 | O7: 645867.791 | P7: 549358.652 | Q7: 545582.42 | R7: 505974.828 | S7: 471754.735 | T7: 480470.5 | U7: 503480.276 | V7: 491507.238 | W7: 450535.667 | X7: 514598.257 | Y7: 534526.726 | Z7: 664823.969 | AA7: 636389.461 | AB7: 560157.535 | AC7: 581377.223 | AD7: 519879.729 | AE7: 484491.304 | AF7: 493749.097 | AG7: 516917.82 | AH7: 504941.368 | AI7: 463263.327 | AJ7: 500558.083 | AK7: 542482.899 | AL7: 623757.46 | AM7: 645867.791 | AN7: 549358.652 | AO7: 545582.42 | AP7: 505974.828 | AQ7: 471754.735 | AR7: 480470.5 | AS7: 503480.276 | AT7: 491507.238 | AU7: 450535.667 | AV7: 514598.257 | AW7: 534526.726 | AX7: 664823.969 | AY7: 636389.461 | AZ7: 560157.535 | BA7: 581377.223 | BB7: 519879.729 | BC7: 484491.304 | BD7: 493749.097 | BE7: 516917.82 | BF7: 504941.368 | BG7: 463263.327 | BH7: 500558.083 | BI7: 542482.899 | BJ7: 623757.46 | BK7: 645867.791 | BL7: 549358.652 | BM7: 545582.42 | BN7: 505974.828 | BO7: 471754.735 | BP7: 480470.5 | BQ7: 503480.276 | BR7: 491507.238 | BS7: 450535.667 | BT7: 514598.257 | BU7: 534526.726 | BV7: 664823.969 | BW7: 636389.461 | BX7: 560157.535 | BY7: 581377.223 | BZ7: 519879.729 | CA7: 484491.304 | CB7: 493749.097 | CC7: 516917.82 | CD7: 504941.368 | CE7: 463263.327 | CG7: 361507.016 | CH7: 435333.753 | CI7: 536440.894 | CJ7: 509241.468 | CK7: 406529.799 | CL7: 428863.342 | CM7: 369747.459 | CN7: 405716.249 | CO7: 351109.855 | CP7: 396974.47 | CQ7: 387534.197 | CR7: 360422.039 | CS7: 371646.939 | CT7: 469109.726 | CU7: 524187.633 | CV7: 547304.637 | CW7: 420115.655 | CX7: 418531.973 | CY7: 379908.66 | CZ7: 416669.886 | DA7: 360813.359 | DB7: 407569.459 | DC7: 398126.481 | DD7: 370603.984 | DE7: 361507.016 | DF7: 435333.753 | DG7: 536440.894 | DH7: 509241.468 | DI7: 406529.799 | DJ7: 428863.342 | DK7: 369747.459 | DL7: 405716.249 | DM7: 351109.855 | DN7: 396974.47 | DO7: 387534.197 | DP7: 360422.039 | DQ7: 371646.939 | DR7: 469109.726 | DS7: 524187.633 | DT7: 547304.637 | DU7: 420115.655 | DV7: 418531.973 | DW7: 379908.66 | DX7: 416669.886 | DY7: 360813.359 | DZ7: 407569.459 | EA7: 398126.481 | EB7: 370603.984 | EC7: 361507.016 | ED7: 435333.753 | EE7: 536440.894 | EF7: 509241.468 | EG7: 406529.799 | EH7: 428863.342 | EI7: 369747.459 | EJ7: 405716.249 | EK7: 351109.855 | EL7: 396974.47 | EM7: 387534.197 | EN7: 360422.039 | EO7: 371646.939 | EP7: 469109.726 | EQ7: 524187.633 | ER7: 547304.637 | ES7: 420115.655 | ET7: 418531.973 | EU7: 379908.66 | EV7: 416669.886 | EW7: 360813.359 | EX7: 407569.459 | EY7: 398126.481 | EZ7: 370603.984
B8: Slice | D8: PRE_SNB | E8: =+SUM(L8:W8,CG8:CR8) -> 13856575.21 | F8: =+SUM(X8:AI8,CS8:DD8) -> 13702739.99 | G8: 13856575.21 | H8: 13702739.99 | I8: 13856575.21 | J8: 13702739.99 | L8: 671478.8529 | M8: 818617.0875 | N8: 801517.0609 | O8: 676980.972 | P8: 616694.4429 | Q8: 689761.5369 | R8: 587993.081 | S8: 758303.7842 | T8: 1005693.989 | U8: 833356.3886 | V8: 799469.0766 | W8: 670480.505 | X8: 674335.777 | Y8: 826098.2522 | Z8: 807904.8571 | AA8: 680692.7103 | AB8: 592858.2109 | AC8: 694306.0161 | AD8: 527271.2229 | AE8: 792810.075 | AF8: 973674.4237 | AG8: 812676.1157 | AH8: 796225.0784 | AI8: 668321.2018 | AJ8: 671478.8529 | AK8: 818617.0875 | AL8: 801517.0609 | AM8: 676980.972 | AN8: 616694.4429 | AO8: 689761.5369 | AP8: 587993.081 | AQ8: 758303.7842 | AR8: 1005693.989 | AS8: 833356.3886 | AT8: 799469.0766 | AU8: 670480.505 | AV8: 674335.777 | AW8: 826098.2522 | AX8: 807904.8571 | AY8: 680692.7103 | AZ8: 592858.2109 | BA8: 694306.0161 | BB8: 527271.2229 | BC8: 792810.075 | BD8: 973674.4237 | BE8: 812676.1157 | BF8: 796225.0784 | BG8: 668321.2018 | BH8: 671478.8529 | BI8: 818617.0875 | BJ8: 801517.0609 | BK8: 676980.972 | BL8: 616694.4429 | BM8: 689761.5369 | BN8: 587993.081 | BO8: 758303.7842 | BP8: 1005693.989 | BQ8: 833356.3886 | BR8: 799469.0766 | BS8: 670480.505 | BT8: 674335.777 | BU8: 826098.2522 | BV8: 807904.8571 | BW8: 680692.7103 | BX8: 592858.2109 | BY8: 694306.0161 | BZ8: 527271.2229 | CA8: 792810.075 | CB8: 973674.4237 | CC8: 812676.1157 | CD8: 796225.0784 | CE8: 668321.2018 | CG8: 359853.6318 | CH8: 492372.3789 | CI8: 492705.8653 | CJ8: 402248.9873 | CK8: 358721.3105 | CL8: 397035.9043 | CM8: 342599.3414 | CN8: 434139.2467 | CO8: 543876.9605 | CP8: 361989.3958 | CQ8: 365603.4743 | CR8: 375081.9398 | CS8: 359442.567 | CT8: 486247.5795 | CU8: 489526.8689 | CV8: 400379.2722 | CW8: 351034.8013 | CX8: 395712.6926 | CY8: 314502.5711 | CZ8: 405047.0265 | DA8: 526614.9624 | DB8: 383165.0269 | DC8: 367242.7016 | DD8: 376649.9776 | DE8: 359853.6318 | DF8: 492372.3789 | DG8: 492705.8653 | DH8: 402248.9873 | DI8: 358721.3105 | DJ8: 397035.9043 | DK8: 342599.3414 | DL8: 434139.2467 | DM8: 543876.9605 | DN8: 361989.3958 | DO8: 365603.4743 | DP8: 375081.9398 | DQ8: 359442.567 | DR8: 486247.5795 | DS8: 489526.8689 | DT8: 400379.2722 | DU8: 351034.8013 | DV8: 395712.6926 | DW8: 314502.5711 | DX8: 405047.0265 | DY8: 526614.9624 | DZ8: 383165.0269 | EA8: 367242.7016 | EB8: 376649.9776 | EC8: 359853.6318 | ED8: 492372.3789 | EE8: 492705.8653 | EF8: 402248.9873 | EG8: 358721.3105 | EH8: 397035.9043 | EI8: 342599.3414 | EJ8: 434139.2467 | EK8: 543876.9605 | EL8: 361989.3958 | EM8: 365603.4743 | EN8: 375081.9398 | EO8: 359442.567 | EP8: 486247.5795 | EQ8: 489526.8689 | ER8: 400379.2722 | ES8: 351034.8013 | ET8: 395712.6926 | EU8: 314502.5711 | EV8: 405047.0265 | EW8: 526614.9624 | EX8: 383165.0269 | EY8: 367242.7016 | EZ8: 376649.9776
B9: Load Following | D9: PRE_LDF | E9: 28121737.81 | F9: 28207433.1 | G9: 28121737.81 | H9: 28207433.1 | I9: 28121737.81 | J9: 28207433.1 | L9: 1281945.439 | M9: 1420403.212 | N9: 1666098.935 | O9: 1665132.201 | P9: 1489075.068 | Q9: 1385422.073 | R9: 1301100.104 | S9: 1249509.138 | T9: 1356335.718 | U9: 1466543.349 | V9: 1457538.456 | W9: 1232157.885 | X9: 1293452.716 | Y9: 1403815.014 | Z9: 1698432.012 | AA9: 1649146.252 | AB9: 1460452.266 | AC9: 1410275.376 | AD9: 1309041.802 | AE9: 1257272.135 | AF9: 1367084.082 | AG9: 1474638.516 | AH9: 1465888.475 | AI9: 1236051.002 | AJ9: 1281945.439 | AK9: 1420403.212 | AL9: 1666098.935 | AM9: 1665132.201 | AN9: 1489075.068 | AO9: 1385422.073 | AP9: 1301100.104 | AQ9: 1249509.138 | AR9: 1356335.718 | AS9: 1466543.349 | AT9: 1457538.456 | AU9: 1232157.885 | AV9: 1293452.716 | AW9: 1403815.014 | AX9: 1698432.012 | AY9: 1649146.252 | AZ9: 1460452.266 | BA9: 1410275.376 | BB9: 1309041.802 | BC9: 1257272.135 | BD9: 1367084.082 | BE9: 1474638.516 | BF9: 1465888.475 | BG9: 1236051.002 | BH9: 1281945.439 | BI9: 1420403.212 | BJ9: 1666098.935 | BK9: 1665132.201 | BL9: 1489075.068 | BM9: 1385422.073 | BN9: 1301100.104 | BO9: 1249509.138 | BP9: 1356335.718 | BQ9: 1466543.349 | BR9: 1457538.456 | BS9: 1232157.885 | BT9: 1293452.716 | BU9: 1403815.014 | BV9: 1698432.012 | BW9: 1649146.252 | BX9: 1460452.266 | BY9: 1410275.376 | BZ9: 1309041.802 | CA9: 1257272.135 | CB9: 1367084.082 | CC9: 1474638.516 | CD9: 1465888.475 | CE9: 1236051.002 | CG9: 767837.278 | CH9: 978829.951 | CI9: 1184138.485 | CJ9: 1151341.894 | CK9: 968430.958 | CL9: 911940.092 | CM9: 815294.067 | CN9: 870988.797 | CO9: 828225.166 | CP9: 959635.086 | CQ9: 901969.815 | CR9: 811844.643 | CS9: 772650.745 | CT9: 1007134.066 | CU9: 1160899.036 | CV9: 1184875.84 | CW9: 954395.655 | CX9: 890175.873 | CY9: 819265.767 | CZ9: 876012.365 | DA9: 833338.519 | DB9: 964616.834 | DC9: 904682.84 | DD9: 813835.91 | DE9: 767837.278 | DF9: 978829.951 | DG9: 1184138.485 | DH9: 1151341.894 | DI9: 968430.958 | DJ9: 911940.092 | DK9: 815294.067 | DL9: 870988.797 | DM9: 828225.166 | DN9: 959635.086 | DO9: 901969.815 | DP9: 811844.643 | DQ9: 772650.745 | DR9: 1007134.066 | DS9: 1160899.036 | DT9: 1184875.84 | DU9: 954395.655 | DV9: 890175.873 | DW9: 819265.767 | DX9: 876012.365 | DY9: 833338.519 | DZ9: 964616.834 | EA9: 904682.84 | EB9: 813835.91 | EC9: 767837.278 | ED9: 978829.951 | EE9: 1184138.485 | EF9: 1151341.894 | EG9: 968430.958 | EH9: 911940.092 | EI9: 815294.067 | EJ9: 870988.797 | EK9: 828225.166 | EL9: 959635.086 | EM9: 901969.815 | EN9: 811844.643 | EO9: 772650.745 | EP9: 1007134.066 | EQ9: 1160899.036 | ER9: 1184875.84 | ES9: 954395.655 | ET9: 890175.873 | EU9: 819265.767 | EV9: 876012.365 | EW9: 833338.519 | EX9: 964616.834 | EY9: 904682.84 | EZ9: 813835.91
B10: Tier 2 | D10: PRE_T2 | E10: 476031.312 | F10: 556233.72 | G10: =+SUM(AJ10:AU10,DE10:DP10) -> 476031.312 | H10: 556233.72 | I10: 476031.312 | J10: 556233.72 | L10: 23411.376 | M10: 21677.2 | N10: 21677.2 | O10: 22544.288 | P10: 21677.2 | Q10: 22544.288 | R10: 22544.288 | S10: 21677.2 | T10: 22544.288 | U10: 22544.288 | V10: 22544.288 | W10: 21677.2 | X10: 27430.704 | Y10: 24382.848 | Z10: 26414.752 | AA10: 25398.8 | AB10: 24382.848 | AC10: 27430.704 | AD10: 26414.752 | AE10: 25398.8 | AF10: 26414.752 | AG10: 26414.752 | AH10: 26414.752 | AI10: 25398.8 | AJ10: 23411.376 | AK10: 21677.2 | AL10: 21677.2 | AM10: 22544.288 | AN10: 21677.2 | AO10: 22544.288 | AP10: 22544.288 | AQ10: 21677.2 | AR10: 22544.288 | AS10: 22544.288 | AT10: 22544.288 | AU10: 21677.2 | AV10: 27430.704 | AW10: 24382.848 | AX10: 26414.752 | AY10: 25398.8 | AZ10: 24382.848 | BA10: 27430.704 | BB10: 26414.752 | BC10: 25398.8 | BD10: 26414.752 | BE10: 26414.752 | BF10: 26414.752 | BG10: 25398.8 | BH10: 23411.376 | BI10: 21677.2 | BJ10: 21677.2 | BK10: 22544.288 | BL10: 21677.2 | BM10: 22544.288 | BN10: 22544.288 | BO10: 21677.2 | BP10: 22544.288 | BQ10: 22544.288 | BR10: 22544.288 | BS10: 21677.2 | BT10: 27430.704 | BU10: 24382.848 | BV10: 26414.752 | BW10: 25398.8 | BX10: 24382.848 | BY10: 27430.704 | BZ10: 26414.752 | CA10: 25398.8 | CB10: 26414.752 | CC10: 26414.752 | CD10: 26414.752 | CE10: 25398.8 | CG10: 16908.216 | CH10: 17395.953 | CI10: 18642.392 | CJ10: 17775.304 | CK10: 16041.128 | CL10: 17721.111 | CM10: 16474.672 | CN10: 18642.392 | CO10: 16474.672 | CP10: 17775.304 | CQ10: 17775.304 | CR10: 17341.76 | CS10: 19811.064 | CT10: 21398.489 | CU10: 20827.016 | CV10: 21842.968 | CW10: 18287.136 | CX10: 19747.567 | CY10: 19303.088 | CZ10: 21842.968 | DA10: 19303.088 | DB10: 20827.016 | DC10: 20827.016 | DD10: 20319.04 | DE10: 16908.216 | DF10: 17395.953 | DG10: 18642.392 | DH10: 17775.304 | DI10: 16041.128 | DJ10: 17721.111 | DK10: 16474.672 | DL10: 18642.392 | DM10: 16474.672 | DN10: 17775.304 | DO10: 17775.304 | DP10: 17341.76 | DQ10: 19811.064 | DR10: 21398.489 | DS10: 20827.016 | DT10: 21842.968 | DU10: 18287.136 | DV10: 19747.567 | DW10: 19303.088 | DX10: 21842.968 | DY10: 19303.088 | DZ10: 20827.016 | EA10: 20827.016 | EB10: 20319.04 | EC10: 16908.216 | ED10: 17395.953 | EE10: 18642.392 | EF10: 17775.304 | EG10: 16041.128 | EH10: 17721.111 | EI10: 16474.672 | EJ10: 18642.392 | EK10: 16474.672 | EL10: 17775.304 | EM10: 17775.304 | EN10: 17341.76 | EO10: 19811.064 | EP10: 21398.489 | EQ10: 20827.016 | ER10: 21842.968 | ES10: 18287.136 | ET10: 19747.567 | EU10: 19303.088 | EV10: 21842.968 | EW10: 19303.088 | EX10: 20827.016 | EY10: 20827.016 | EZ10: 20319.04
A11: Industrial | D11: IND | E11: =+SUM(E12:E13) -> 105420 | F11: =+SUM(F12:F13) -> 105108 | G11: 105420 | H11: 105108 | I11: 105420 | J11: 105108 | L11: 5084.197 | M11: 4746.837 | N11: 4809.003 | O11: 4826.339 | P11: 4694.568 | Q11: 5087.579 | R11: 4884.59 | S11: 4885.416 | T11: 4936.183 | U11: 4823.606 | V11: 5130.258 | W11: 4570.003 | X11: 5084.197 | Y11: 4740.253 | Z11: 4809.003 | AA11: 4826.339 | AB11: 4532.686 | AC11: 5080.741 | AD11: 4884.59 | AE11: 4885.416 | AF11: 4936.183 | AG11: 4823.606 | AH11: 5130.258 | AI11: 4570.003 | AJ11: 5084.197 | AK11: 4746.837 | AL11: 4809.003 | AM11: 4826.339 | AN11: 4694.568 | AO11: 5087.579 | AP11: 4884.59 | AQ11: 4885.416 | AR11: 4936.183 | AS11: 4823.606 | AT11: 5130.258 | AU11: 4570.003 | AV11: 5084.197 | AW11: 4740.253 | AX11: 4809.003 | AY11: 4826.339 | AZ11: 4532.686 | BA11: 5080.741 | BB11: 4884.59 | BC11: 4885.416 | BD11: 4936.183 | BE11: 4823.606 | BF11: 5130.258 | BG11: 4570.003 | BH11: 5084.197 | BI11: 4746.837 | BJ11: 4809.003 | BK11: 4826.339 | BL11: 4694.568 | BM11: 5087.579 | BN11: 4884.59 | BO11: 4885.416 | BP11: 4936.183 | BQ11: 4823.606 | BR11: 5130.258 | BS11: 4570.003 | BT11: 5084.197 | BU11: 4740.253 | BV11: 4809.003 | BW11: 4826.339 | BX11: 4532.686 | BY11: 5080.741 | BZ11: 4884.59 | CA11: 4885.416 | CB11: 4936.183 | CC11: 4823.606 | CD11: 5130.258 | CE11: 4570.003 | CG11: 3843.803 | CH11: 3905.163 | CI11: 4118.997 | CJ11: 4101.661 | CK11: 3657.432 | CL11: 3840.421 | CM11: 3755.41 | CN11: 4042.584 | CO11: 3703.817 | CP11: 4104.394 | CQ11: 3797.742 | CR11: 4069.997 | CS11: 3843.803 | CT11: 3899.747 | CU11: 4118.997 | CV11: 4101.661 | CW11: 3531.314 | CX11: 3835.259 | CY11: 3755.41 | CZ11: 4042.584 | DA11: 3703.817 | DB11: 4104.394 | DC11: 3797.742 | DD11: 4069.997 | DE11: 3843.803 | DF11: 3905.163 | DG11: 4118.997 | DH11: 4101.661 | DI11: 3657.432 | DJ11: 3840.421 | DK11: 3755.41 | DL11: 4042.584 | DM11: 3703.817 | DN11: 4104.394 | DO11: 3797.742 | DP11: 4069.997 | DQ11: 3843.803 | DR11: 3899.747 | DS11: 4118.997 | DT11: 4101.661 | DU11: 3531.314 | DV11: 3835.259 | DW11: 3755.41 | DX11: 4042.584 | DY11: 3703.817 | DZ11: 4104.394 | EA11: 3797.742 | EB11: 4069.997 | EC11: 3843.803 | ED11: 3905.163 | EE11: 4118.997 | EF11: 4101.661 | EG11: 3657.432 | EH11: 3840.421 | EI11: 3755.41 | EJ11: 4042.584 | EK11: 3703.817 | EL11: 4104.394 | EM11: 3797.742 | EN11: 4069.997 | EO11: 3843.803 | EP11: 3899.747 | EQ11: 4118.997 | ER11: 4101.661 | ES11: 3531.314 | ET11: 3835.259 | EU11: 3755.41 | EV11: 4042.584 | EW11: 3703.817 | EX11: 4104.394 | EY11: 3797.742 | EZ11: 4069.997
B12: Smelter | D12: IND_SMT | E12: 0 | F12: 0 | G12: =+SUM(AJ12:AU12,DE12:DP12) -> 0 | H12: 0 | I12: 0 | J12: 0 | L12: 0 | M12: 0 | N12: 0 | O12: 0 | P12: 0 | Q12: 0 | R12: 0 | S12: 0 | T12: 0 | U12: 0 | V12: 0 | W12: 0 | X12: 0 | Y12: 0 | Z12: 0 | AA12: 0 | AB12: 0 | AC12: 0 | AD12: 0 | AE12: 0 | AF12: 0 | AG12: 0 | AH12: 0 | AI12: 0 | AJ12: 0 | AK12: 0 | AL12: 0 | AM12: 0 | AN12: 0 | AO12: 0 | AP12: 0 | AQ12: 0 | AR12: 0 | AS12: 0 | AT12: 0 | AU12: 0 | AV12: 0 | AW12: 0 | AX12: 0 | AY12: 0 | AZ12: 0 | BA12: 0 | BB12: 0 | BC12: 0 | BD12: 0 | BE12: 0 | BF12: 0 | BG12: 0 | BH12: 0 | BI12: 0 | BJ12: 0 | BK12: 0 | BL12: 0 | BM12: 0 | BN12: 0 | BO12: 0 | BP12: 0 | BQ12: 0 | BR12: 0 | BS12: 0 | BT12: 0 | BU12: 0 | BV12: 0 | BW12: 0 | BX12: 0 | BY12: 0 | BZ12: 0 | CA12: 0 | CB12: 0 | CC12: 0 | CD12: 0 | CE12: 0 | CG12: 0 | CH12: 0 | CI12: 0 | CJ12: 0 | CK12: 0 | CL12: 0 | CM12: 0 | CN12: 0 | CO12: 0 | CP12: 0 | CQ12: 0 | CR12: 0 | CS12: 0 | CT12: 0 | CU12: 0 | CV12: 0 | CW12: 0 | CX12: 0 | CY12: 0 | CZ12: 0 | DA12: 0 | DB12: 0 | DC12: 0 | DD12: 0 | DE12: 0 | DF12: 0 | DG12: 0 | DH12: 0 | DI12: 0 | DJ12: 0 | DK12: 0 | DL12: 0 | DM12: 0 | DN12: 0 | DO12: 0 | DP12: 0 | DQ12: 0 | DR12: 0 | DS12: 0 | DT12: 0 | DU12: 0 | DV12: 0 | DW12: 0 | DX12: 0 | DY12: 0 | DZ12: 0 | EA12: 0 | EB12: 0 | EC12: 0 | ED12: 0 | EE12: 0 | EF12: 0 | EG12: 0 | EH12: 0 | EI12: 0 | EJ12: 0 | EK12: 0 | EL12: 0 | EM12: 0 | EN12: 0 | EO12: 0 | EP12: 0 | EQ12: 0 | ER12: 0 | ES12: 0 | ET12: 0 | EU12: 0 | EV12: 0 | EW12: 0 | EX12: 0 | EY12: 0 | EZ12: 0
B13: Other Industrial | D13: IND_OTH | E13: 105420 | F13: 105108 | G13: 105420 | H13: 105108 | I13: 105420 | J13: 105108 | L13: 5084.197 | M13: 4746.837 | N13: 4809.003 | O13: 4826.339 | P13: 4694.568 | Q13: 5087.579 | R13: 4884.59 | S13: 4885.416 | T13: 4936.183 | U13: 4823.606 | V13: 5130.258 | W13: 4570.003 | X13: 5084.197 | Y13: 4740.253 | Z13: 4809.003 | AA13: 4826.339 | AB13: 4532.686 | AC13: 5080.741 | AD13: 4884.59 | AE13: 4885.416 | AF13: 4936.183 | AG13: 4823.606 | AH13: 5130.258 | AI13: 4570.003 | AJ13: 5084.197 | AK13: 4746.837 | AL13: 4809.003 | AM13: 4826.339 | AN13: 4694.568 | AO13: 5087.579 | AP13: 4884.59 | AQ13: 4885.416 | AR13: 4936.183 | AS13: 4823.606 | AT13: 5130.258 | AU13: 4570.003 | AV13: 5084.197 | AW13: 4740.253 | AX13: 4809.003 | AY13: 4826.339 | AZ13: 4532.686 | BA13: 5080.741 | BB13: 4884.59 | BC13: 4885.416 | BD13: 4936.183 | BE13: 4823.606 | BF13: 5130.258 | BG13: 4570.003 | BH13: 5084.197 | BI13: 4746.837 | BJ13: 4809.003 | BK13: 4826.339 | BL13: 4694.568 | BM13: 5087.579 | BN13: 4884.59 | BO13: 4885.416 | BP13: 4936.183 | BQ13: 4823.606 | BR13: 5130.258 | BS13: 4570.003 | BT13: 5084.197 | BU13: 4740.253 | BV13: 4809.003 | BW13: 4826.339 | BX13: 4532.686 | BY13: 5080.741 | BZ13: 4884.59 | CA13: 4885.416 | CB13: 4936.183 | CC13: 4823.606 | CD13: 5130.258 | CE13: 4570.003 | CG13: 3843.803 | CH13: 3905.163 | CI13: 4118.997 | CJ13: 4101.661 | CK13: 3657.432 | CL13: 3840.421 | CM13: 3755.41 | CN13: 4042.584 | CO13: 3703.817 | CP13: 4104.394 | CQ13: 3797.742 | CR13: 4069.997 | CS13: 3843.803 | CT13: 3899.747 | CU13: 4118.997 | CV13: 4101.661 | CW13: 3531.314 | CX13: 3835.259 | CY13: 3755.41 | CZ13: 4042.584 | DA13: 3703.817 | DB13: 4104.394 | DC13: 3797.742 | DD13: 4069.997 | DE13: 3843.803 | DF13: 3905.163 | DG13: 4118.997 | DH13: 4101.661 | DI13: 3657.432 | DJ13: 3840.421 | DK13: 3755.41 | DL13: 4042.584 | DM13: 3703.817 | DN13: 4104.394 | DO13: 3797.742 | DP13: 4069.997 | DQ13: 3843.803 | DR13: 3899.747 | DS13: 4118.997 | DT13: 4101.661 | DU13: 3531.314 | DV13: 3835.259 | DW13: 3755.41 | DX13: 4042.584 | DY13: 3703.817 | DZ13: 4104.394 | EA13: 3797.742 | EB13: 4069.997 | EC13: 3843.803 | ED13: 3905.163 | EE13: 4118.997 | EF13: 4101.661 | EG13: 3657.432 | EH13: 3840.421 | EI13: 3755.41 | EJ13: 4042.584 | EK13: 3703.817 | EL13: 4104.394 | EM13: 3797.742 | EN13: 4069.997 | EO13: 3843.803 | EP13: 3899.747 | EQ13: 4118.997 | ER13: 4101.661 | ES13: 3531.314 | ET13: 3835.259 | EU13: 3755.41 | EV13: 4042.584 | EW13: 3703.817 | EX13: 4104.394 | EY13: 3797.742 | EZ13: 4069.997
A14: New Resource | D14: NR | E14: 9.856 | F14: 9.824 | G14: 9.856 | H14: 9.824 | I14: 9.856 | J14: 9.824 | L14: 0.432 | M14: 0.4 | N14: 0.4 | O14: 0.416 | P14: 0.4 | Q14: 0.416 | R14: 0.416 | S14: 0.4 | T14: 0.416 | U14: 0.416 | V14: 0.416 | W14: 0.4 | X14: 0.432 | Y14: 0.384 | Z14: 0.416 | AA14: 0.4 | AB14: 0.384 | AC14: 0.432 | AD14: 0.416 | AE14: 0.4 | AF14: 0.416 | AG14: 0.416 | AH14: 0.416 | AI14: 0.4 | AJ14: 0.432 | AK14: 0.4 | AL14: 0.4 | AM14: 0.416 | AN14: 0.4 | AO14: 0.416 | AP14: 0.416 | AQ14: 0.4 | AR14: 0.416 | AS14: 0.416 | AT14: 0.416 | AU14: 0.4 | AV14: 0.432 | AW14: 0.384 | AX14: 0.416 | AY14: 0.4 | AZ14: 0.384 | BA14: 0.432 | BB14: 0.416 | BC14: 0.4 | BD14: 0.416 | BE14: 0.416 | BF14: 0.416 | BG14: 0.4 | BH14: 0.432 | BI14: 0.4 | BJ14: 0.4 | BK14: 0.416 | BL14: 0.4 | BM14: 0.416 | BN14: 0.416 | BO14: 0.4 | BP14: 0.416 | BQ14: 0.416 | BR14: 0.416 | BS14: 0.4 | BT14: 0.432 | BU14: 0.384 | BV14: 0.416 | BW14: 0.4 | BX14: 0.384 | BY14: 0.432 | BZ14: 0.416 | CA14: 0.4 | CB14: 0.416 | CC14: 0.416 | CD14: 0.416 | CE14: 0.4 | CG14: 0.432 | CH14: 0.4 | CI14: 0.4 | CJ14: 0.416 | CK14: 0.4 | CL14: 0.416 | CM14: 0.416 | CN14: 0.4 | CO14: 0.416 | CP14: 0.416 | CQ14: 0.416 | CR14: 0.4 | CS14: 0.432 | CT14: 0.384 | CU14: 0.416 | CV14: 0.4 | CW14: 0.384 | CX14: 0.432 | CY14: 0.416 | CZ14: 0.4 | DA14: 0.416 | DB14: 0.416 | DC14: 0.416 | DD14: 0.4 | DE14: 0.432 | DF14: 0.4 | DG14: 0.4 | DH14: 0.416 | DI14: 0.4 | DJ14: 0.416 | DK14: 0.416 | DL14: 0.4 | DM14: 0.416 | DN14: 0.416 | DO14: 0.416 | DP14: 0.4 | DQ14: 0.432 | DR14: 0.384 | DS14: 0.416 | DT14: 0.4 | DU14: 0.384 | DV14: 0.432 | DW14: 0.416 | DX14: 0.4 | DY14: 0.416 | DZ14: 0.416 | EA14: 0.416 | EB14: 0.4 | EC14: 0.432 | ED14: 0.4 | EE14: 0.4 | EF14: 0.416 | EG14: 0.4 | EH14: 0.416 | EI14: 0.416 | EJ14: 0.4 | EK14: 0.416 | EL14: 0.416 | EM14: 0.416 | EN14: 0.4 | EO14: 0.432 | EP14: 0.384 | EQ14: 0.416 | ER14: 0.4 | ES14: 0.384 | ET14: 0.432 | EU14: 0.416 | EV14: 0.4 | EW14: 0.416 | EX14: 0.416 | EY14: 0.416 | EZ14: 0.4
A15: Firm Power and Services | D15: FPS | E15: =+SUM(E16,E27,E38) -> 5812379.997 | F15: =+SUM(F16,F27,F38) -> 5751972.637 | G15: 5795447.547 | H15: 5748659.137 | I15: 5795447.547 | J15: 5748659.137 | L15: 373038.002 | M15: 341865.7851 | N15: 350730.635 | O15: 351535.2616 | P15: 330111.1094 | Q15: 358905.0902 | R15: 431947.0536 | S15: 464733.2929 | T15: 463456.1556 | U15: 500884.6913 | V15: 478410.0497 | W15: 411917.4536 | X15: 373034.978 | Y15: 338985.5798 | Z15: 350128.5089 | AA15: 349703.2583 | AB15: 317449.6453 | AC15: 360515.6218 | AD15: 429950.2536 | AE15: 462528.4929 | AF15: 461735.9956 | AG15: 498138.6753 | AH15: 477481.6143 | AI15: 410357.4536 | AJ15: 373038.002 | AK15: 341865.7851 | AL15: 350730.635 | AM15: 351535.2616 | AN15: 330111.1094 | AO15: 358905.0902 | AP15: 431947.0536 | AQ15: 464733.2929 | AR15: 463456.1556 | AS15: 500884.6913 | AT15: 478410.0497 | AU15: 411917.4536 | AV15: 373034.978 | AW15: 338985.5798 | AX15: 350128.5089 | AY15: 349703.2583 | AZ15: 317449.6453 | BA15: 360515.6218 | BB15: 429950.2536 | BC15: 462528.4929 | BD15: 461735.9956 | BE15: 498138.6753 | BF15: 477481.6143 | BG15: 410357.4536 | BH15: 373038.002 | BI15: 341865.7851 | BJ15: 350730.635 | BK15: 351535.2616 | BL15: 330111.1094 | BM15: 358905.0902 | BN15: 431947.0536 | BO15: 464733.2929 | BP15: 463456.1556 | BQ15: 500884.6913 | BR15: 478410.0497 | BS15: 411917.4536 | BT15: 373034.978 | BU15: 338985.5798 | BV15: 350128.5089 | BW15: 349703.2583 | BX15: 317449.6453 | BY15: 360515.6218 | BZ15: 429950.2536 | CA15: 462528.4929 | CB15: 461735.9956 | CC15: 498138.6753 | CD15: 477481.6143 | CE15: 410357.4536 | CG15: 57369.78969 | CH15: 10970.96191 | CI15: 11510.48886 | CJ15: 7413.437366 | CK15: 9314.603457 | CL15: 36352.61308 | CM15: 82166.3191 | CN15: 129823.8659 | CO15: 130265.9904 | CP15: 166361.4608 | CQ15: 180586.6379 | CR15: 115776.7987 | CS15: 57364.79769 | CT15: 9937.052132 | CU15: 9484.49396 | CV15: 6723.359652 | CW15: 8458.608398 | CX15: 33073.23142 | CY15: 80760.3191 | CZ15: 128273.8019 | DA15: 128407.9424 | DB15: 164385.5888 | DC15: 177521.1453 | DD15: 114258.7187 | DE15: 57369.78969 | DF15: 10970.96191 | DG15: 11510.48886 | DH15: 7413.437366 | DI15: 9314.603457 | DJ15: 36352.61308 | DK15: 82166.3191 | DL15: 129823.8659 | DM15: 130265.9904 | DN15: 166361.4608 | DO15: 180586.6379 | DP15: 115776.7987 | DQ15: 57364.79769 | DR15: 9937.052132 | DS15: 9484.49396 | DT15: 6723.359652 | DU15: 8458.608398 | DV15: 33073.23142 | DW15: 80760.3191 | DX15: 128273.8019 | DY15: 128407.9424 | DZ15: 164385.5888 | EA15: 177521.1453 | EB15: 114258.7187 | EC15: 57369.78969 | ED15: 10970.96191 | EE15: 11510.48886 | EF15: 7413.437366 | EG15: 9314.603457 | EH15: 36352.61308 | EI15: 82166.3191 | EJ15: 129823.8659 | EK15: 130265.9904 | EL15: 166361.4608 | EM15: 180586.6379 | EN15: 115776.7987 | EO15: 57364.79769 | EP15: 9937.052132 | EQ15: 9484.49396 | ER15: 6723.359652 | ES15: 8458.608398 | ET15: 33073.23142 | EU15: 80760.3191 | EV15: 128273.8019 | EW15: 128407.9424 | EX15: 164385.5888 | EY15: 177521.1453 | EZ15: 114258.7187
B16: Intraregional Transfer | D16: FPS_IRT | E16: =+SUM(E17:E26) -> 98675.26506 | F16: =+SUM(F17:F26) -> 98426.04384 | G16: 98675.26506 | H16: 98426.04384 | I16: 98675.26506 | J16: 98426.04384 | L16: 4918.364029 | M16: 4298.672055 | N16: 4360.04499 | O16: 4501.264582 | P16: 4222.56745 | Q16: 4475.460159 | R16: 4510.176553 | S16: 5110.827863 | T16: 5308.096586 | U16: 5019.728285 | V16: 4902.656708 | W16: 4358.384568 | X16: 4918.364029 | Y16: 4134.151832 | Z16: 4524.395889 | AA16: 4337.103297 | AB16: 4054.858291 | AC16: 4636.124813 | AD16: 4510.176553 | AE16: 5110.827863 | AF16: 5308.096586 | AG16: 5019.728285 | AH16: 4899.021324 | AI16: 4358.384568 | AJ16: 4918.364029 | AK16: 4298.672055 | AL16: 4360.04499 | AM16: 4501.264582 | AN16: 4222.56745 | AO16: 4475.460159 | AP16: 4510.176553 | AQ16: 5110.827863 | AR16: 5308.096586 | AS16: 5019.728285 | AT16: 4902.656708 | AU16: 4358.384568 | AV16: 4918.364029 | AW16: 4134.151832 | AX16: 4524.395889 | AY16: 4337.103297 | AZ16: 4054.858291 | BA16: 4636.124813 | BB16: 4510.176553 | BC16: 5110.827863 | BD16: 5308.096586 | BE16: 5019.728285 | BF16: 4899.021324 | BG16: 4358.384568 | BH16: 4918.364029 | BI16: 4298.672055 | BJ16: 4360.04499 | BK16: 4501.264582 | BL16: 4222.56745 | BM16: 4475.460159 | BN16: 4510.176553 | BO16: 5110.827863 | BP16: 5308.096586 | BQ16: 5019.728285 | BR16: 4902.656708 | BS16: 4358.384568 | BT16: 4918.364029 | BU16: 4134.151832 | BV16: 4524.395889 | BW16: 4337.103297 | BX16: 4054.858291 | BY16: 4636.124813 | BZ16: 4510.176553 | CA16: 5110.827863 | CB16: 5308.096586 | CC16: 5019.728285 | CD16: 4899.021324 | CE16: 4358.384568 | CG16: 3518.538686 | CH16: 3316.937909 | CI16: 3578.06586 | CJ16: 3399.211366 | CK16: 3004.847457 | CL16: 3372.707076 | CM16: 3207.960103 | CN16: 4304.763887 | CO16: 3820.016414 | CP16: 3909.472811 | CQ16: 3803.345922 | CR16: 3453.153739 | CS16: 3518.538686 | CT16: 3481.458132 | CU16: 3413.71496 | CV16: 3563.372651 | CW16: 2923.335398 | CX16: 3212.042423 | CY16: 3207.960103 | CZ16: 4304.763887 | DA16: 3820.016414 | DB16: 3909.472811 | DC16: 3806.981305 | DD16: 3453.153739 | DE16: 3518.538686 | DF16: 3316.937909 | DG16: 3578.06586 | DH16: 3399.211366 | DI16: 3004.847457 | DJ16: 3372.707076 | DK16: 3207.960103 | DL16: 4304.763887 | DM16: 3820.016414 | DN16: 3909.472811 | DO16: 3803.345922 | DP16: 3453.153739 | DQ16: 3518.538686 | DR16: 3481.458132 | DS16: 3413.71496 | DT16: 3563.372651 | DU16: 2923.335398 | DV16: 3212.042423 | DW16: 3207.960103 | DX16: 4304.763887 | DY16: 3820.016414 | DZ16: 3909.472811 | EA16: 3806.981305 | EB16: 3453.153739 | EC16: 3518.538686 | ED16: 3316.937909 | EE16: 3578.06586 | EF16: 3399.211366 | EG16: 3004.847457 | EH16: 3372.707076 | EI16: 3207.960103 | EJ16: 4304.763887 | EK16: 3820.016414 | EL16: 3909.472811 | EM16: 3803.345922 | EN16: 3453.153739 | EO16: 3518.538686 | EP16: 3481.458132 | EQ16: 3413.71496 | ER16: 3563.372651 | ES16: 2923.335398 | ET16: 3212.042423 | EU16: 3207.960103 | EV16: 4304.763887 | EW16: 3820.016414 | EX16: 3909.472811 | EY16: 3806.981305 | EZ16: 3453.153739
C17: WNP#3 Settlement | D17: FPS_IRT_WNP | E17: 0 | F17: 0 | G17: 0 | H17: 0 | I17: 0 | J17: 0 | L17: 0 | M17: 0 | N17: 0 | O17: 0 | P17: 0 | Q17: 0 | R17: 0 | S17: 0 | T17: 0 | U17: 0 | V17: 0 | W17: 0 | X17: 0 | Y17: 0 | Z17: 0 | AA17: 0 | AB17: 0 | AC17: 0 | AD17: 0 | AE17: 0 | AF17: 0 | AG17: 0 | AH17: 0 | AI17: 0 | AJ17: 0 | AK17: 0 | AL17: 0 | AM17: 0 | AN17: 0 | AO17: 0 | AP17: 0 | AQ17: 0 | AR17: 0 | AS17: 0 | AT17: 0 | AU17: 0 | AV17: 0 | AW17: 0 | AX17: 0 | AY17: 0 | AZ17: 0 | BA17: 0 | BB17: 0 | BC17: 0 | BD17: 0 | BE17: 0 | BF17: 0 | BG17: 0 | BH17: 0 | BI17: 0 | BJ17: 0 | BK17: 0 | BL17: 0 | BM17: 0 | BN17: 0 | BO17: 0 | BP17: 0 | BQ17: 0 | BR17: 0 | BS17: 0 | BT17: 0 | BU17: 0 | BV17: 0 | BW17: 0 | BX17: 0 | BY17: 0 | BZ17: 0 | CA17: 0 | CB17: 0 | CC17: 0 | CD17: 0 | CE17: 0 | CG17: 0 | CH17: 0 | CI17: 0 | CJ17: 0 | CK17: 0 | CL17: 0 | CM17: 0 | CN17: 0 | CO17: 0 | CP17: 0 | CQ17: 0 | CR17: 0 | CS17: 0 | CT17: 0 | CU17: 0 | CV17: 0 | CW17: 0 | CX17: 0 | CY17: 0 | CZ17: 0 | DA17: 0 | DB17: 0 | DC17: 0 | DD17: 0 | DE17: 0 | DF17: 0 | DG17: 0 | DH17: 0 | DI17: 0 | DJ17: 0 | DK17: 0 | DL17: 0 | DM17: 0 | DN17: 0 | DO17: 0 | DP17: 0 | DQ17: 0 | DR17: 0 | DS17: 0 | DT17: 0 | DU17: 0 | DV17: 0 | DW17: 0 | DX17: 0 | DY17: 0 | DZ17: 0 | EA17: 0 | EB17: 0 | EC17: 0 | ED17: 0 | EE17: 0 | EF17: 0 | EG17: 0 | EH17: 0 | EI17: 0 | EJ17: 0 | EK17: 0 | EL17: 0 | EM17: 0 | EN17: 0 | EO17: 0 | EP17: 0 | EQ17: 0 | ER17: 0 | ES17: 0 | ET17: 0 | EU17: 0 | EV17: 0 | EW17: 0 | EX17: 0 | EY17: 0 | EZ17: 0
C18: Dittmer Station Service | D18: FPS_IRT_DIT | E18: 82894.608 | F18: 82668.12 | G18: 82894.608 | H18: 82668.12 | I18: 82894.608 | J18: 82668.12 | L18: 4076.784 | M18: 3774.8 | N18: 3774.8 | O18: 3925.792 | P18: 3774.8 | Q18: 3925.792 | R18: 3925.792 | S18: 3774.8 | T18: 3925.792 | U18: 3925.792 | V18: 3925.792 | W18: 3774.8 | X18: 4076.784 | Y18: 3623.808 | Z18: 3925.792 | AA18: 3774.8 | AB18: 3623.808 | AC18: 4076.784 | AD18: 3925.792 | AE18: 3774.8 | AF18: 3925.792 | AG18: 3925.792 | AH18: 3925.792 | AI18: 3774.8 | AJ18: 4076.784 | AK18: 3774.8 | AL18: 3774.8 | AM18: 3925.792 | AN18: 3774.8 | AO18: 3925.792 | AP18: 3925.792 | AQ18: 3774.8 | AR18: 3925.792 | AS18: 3925.792 | AT18: 3925.792 | AU18: 3774.8 | AV18: 4076.784 | AW18: 3623.808 | AX18: 3925.792 | AY18: 3774.8 | AZ18: 3623.808 | BA18: 4076.784 | BB18: 3925.792 | BC18: 3774.8 | BD18: 3925.792 | BE18: 3925.792 | BF18: 3925.792 | BG18: 3774.8 | BH18: 4076.784 | BI18: 3774.8 | BJ18: 3774.8 | BK18: 3925.792 | BL18: 3774.8 | BM18: 3925.792 | BN18: 3925.792 | BO18: 3774.8 | BP18: 3925.792 | BQ18: 3925.792 | BR18: 3925.792 | BS18: 3774.8 | BT18: 4076.784 | BU18: 3623.808 | BV18: 3925.792 | BW18: 3774.8 | BX18: 3623.808 | BY18: 4076.784 | BZ18: 3925.792 | CA18: 3774.8 | CB18: 3925.792 | CC18: 3925.792 | CD18: 3925.792 | CE18: 3774.8 | CG18: 2944.344 | CH18: 3029.277 | CI18: 3246.328 | CJ18: 3095.336 | CK18: 2793.352 | CL18: 3085.899 | CM18: 2868.848 | CN18: 3246.328 | CO18: 2868.848 | CP18: 3095.336 | CQ18: 3095.336 | CR18: 3019.84 | CS18: 2944.344 | CT18: 3180.269 | CU18: 3095.336 | CV18: 3246.328 | CW18: 2717.856 | CX18: 2934.907 | CY18: 2868.848 | CZ18: 3246.328 | DA18: 2868.848 | DB18: 3095.336 | DC18: 3095.336 | DD18: 3019.84 | DE18: 2944.344 | DF18: 3029.277 | DG18: 3246.328 | DH18: 3095.336 | DI18: 2793.352 | DJ18: 3085.899 | DK18: 2868.848 | DL18: 3246.328 | DM18: 2868.848 | DN18: 3095.336 | DO18: 3095.336 | DP18: 3019.84 | DQ18: 2944.344 | DR18: 3180.269 | DS18: 3095.336 | DT18: 3246.328 | DU18: 2717.856 | DV18: 2934.907 | DW18: 2868.848 | DX18: 3246.328 | DY18: 2868.848 | DZ18: 3095.336 | EA18: 3095.336 | EB18: 3019.84 | EC18: 2944.344 | ED18: 3029.277 | EE18: 3246.328 | EF18: 3095.336 | EG18: 2793.352 | EH18: 3085.899 | EI18: 2868.848 | EJ18: 3246.328 | EK18: 2868.848 | EL18: 3095.336 | EM18: 3095.336 | EN18: 3019.84 | EO18: 2944.344 | EP18: 3180.269 | EQ18: 3095.336 | ER18: 3246.328 | ES18: 2717.856 | ET18: 2934.907 | EU18: 2868.848 | EV18: 3246.328 | EW18: 2868.848 | EX18: 3095.336 | EY18: 3095.336 | EZ18: 3019.84
C19: Transfer Gen Losses | D19: FPS_IRT_TGL | E19: 15780.65706 | F19: 15757.92384 | G19: 15780.65706 | H19: 15757.92384 | I19: 15780.65706 | J19: 15757.92384 | L19: 841.580029 | M19: 523.872055 | N19: 585.2449895 | O19: 575.4725825 | P19: 447.76745 | Q19: 549.668159 | R19: 584.3845535 | S19: 1336.027863 | T19: 1382.304586 | U19: 1093.936285 | V19: 976.8647075 | W19: 583.5845675 | X19: 841.580029 | Y19: 510.3438325 | Z19: 598.6038895 | AA19: 562.303297 | AB19: 431.0502915 | AC19: 559.3408125 | AD19: 584.3845535 | AE19: 1336.027863 | AF19: 1382.304586 | AG19: 1093.936285 | AH19: 973.2293245 | AI19: 583.5845675 | AJ19: 841.580029 | AK19: 523.872055 | AL19: 585.2449895 | AM19: 575.4725825 | AN19: 447.76745 | AO19: 549.668159 | AP19: 584.3845535 | AQ19: 1336.027863 | AR19: 1382.304586 | AS19: 1093.936285 | AT19: 976.8647075 | AU19: 583.5845675 | AV19: 841.580029 | AW19: 510.3438325 | AX19: 598.6038895 | AY19: 562.303297 | AZ19: 431.0502915 | BA19: 559.3408125 | BB19: 584.3845535 | BC19: 1336.027863 | BD19: 1382.304586 | BE19: 1093.936285 | BF19: 973.2293245 | BG19: 583.5845675 | BH19: 841.580029 | BI19: 523.872055 | BJ19: 585.2449895 | BK19: 575.4725825 | BL19: 447.76745 | BM19: 549.668159 | BN19: 584.3845535 | BO19: 1336.027863 | BP19: 1382.304586 | BQ19: 1093.936285 | BR19: 976.8647075 | BS19: 583.5845675 | BT19: 841.580029 | BU19: 510.3438325 | BV19: 598.6038895 | BW19: 562.303297 | BX19: 431.0502915 | BY19: 559.3408125 | BZ19: 584.3845535 | CA19: 1336.027863 | CB19: 1382.304586 | CC19: 1093.936285 | CD19: 973.2293245 | CE19: 583.5845675 | CG19: 574.194686 | CH19: 287.6609095 | CI19: 331.7378605 | CJ19: 303.875366 | CK19: 211.495457 | CL19: 286.808076 | CM19: 339.1121025 | CN19: 1058.435887 | CO19: 951.168414 | CP19: 814.136811 | CQ19: 708.0099225 | CR19: 433.3137385 | CS19: 574.194686 | CT19: 301.189132 | CU19: 318.3789605 | CV19: 317.0446515 | CW19: 205.479398 | CX19: 277.1354225 | CY19: 339.1121025 | CZ19: 1058.435887 | DA19: 951.168414 | DB19: 814.136811 | DC19: 711.6453055 | DD19: 433.3137385 | DE19: 574.194686 | DF19: 287.6609095 | DG19: 331.7378605 | DH19: 303.875366 | DI19: 211.495457 | DJ19: 286.808076 | DK19: 339.1121025 | DL19: 1058.435887 | DM19: 951.168414 | DN19: 814.136811 | DO19: 708.0099225 | DP19: 433.3137385 | DQ19: 574.194686 | DR19: 301.189132 | DS19: 318.3789605 | DT19: 317.0446515 | DU19: 205.479398 | DV19: 277.1354225 | DW19: 339.1121025 | DX19: 1058.435887 | DY19: 951.168414 | DZ19: 814.136811 | EA19: 711.6453055 | EB19: 433.3137385 | EC19: 574.194686 | ED19: 287.6609095 | EE19: 331.7378605 | EF19: 303.875366 | EG19: 211.495457 | EH19: 286.808076 | EI19: 339.1121025 | EJ19: 1058.435887 | EK19: 951.168414 | EL19: 814.136811 | EM19: 708.0099225 | EN19: 433.3137385 | EO19: 574.194686 | EP19: 301.189132 | EQ19: 318.3789605 | ER19: 317.0446515 | ES19: 205.479398 | ET19: 277.1354225 | EU19: 339.1121025 | EV19: 1058.435887 | EW19: 951.168414 | EX19: 814.136811 | EY19: 711.6453055 | EZ19: 433.3137385
E20: 0 | F20: 0 | G20: 0 | H20: 0 | I20: 0 | J20: 0 | L20: 0 | M20: 0 | N20: 0 | O20: 0 | P20: 0 | Q20: 0 | R20: 0 | S20: 0 | T20: 0 | U20: 0 | V20: 0 | W20: 0 | X20: 0 | Y20: 0 | Z20: 0 | AA20: 0 | AB20: 0 | AC20: 0 | AD20: 0 | AE20: 0 | AF20: 0 | AG20: 0 | AH20: 0 | AI20: 0 | AJ20: 0 | AK20: 0 | AL20: 0 | AM20: 0 | AN20: 0 | AO20: 0 | AP20: 0 | AQ20: 0 | AR20: 0 | AS20: 0 | AT20: 0 | AU20: 0 | AV20: 0 | AW20: 0 | AX20: 0 | AY20: 0 | AZ20: 0 | BA20: 0 | BB20: 0 | BC20: 0 | BD20: 0 | BE20: 0 | BF20: 0 | BG20: 0 | BH20: 0 | BI20: 0 | BJ20: 0 | BK20: 0 | BL20: 0 | BM20: 0 | BN20: 0 | BO20: 0 | BP20: 0 | BQ20: 0 | BR20: 0 | BS20: 0 | BT20: 0 | BU20: 0 | BV20: 0 | BW20: 0 | BX20: 0 | BY20: 0 | BZ20: 0 | CA20: 0 | CB20: 0 | CC20: 0 | CD20: 0 | CE20: 0 | CG20: 0 | CH20: 0 | CI20: 0 | CJ20: 0 | CK20: 0 | CL20: 0 | CM20: 0 | CN20: 0 | CO20: 0 | CP20: 0 | CQ20: 0 | CR20: 0 | CS20: 0 | CT20: 0 | CU20: 0 | CV20: 0 | CW20: 0 | CX20: 0 | CY20: 0 | CZ20: 0 | DA20: 0 | DB20: 0 | DC20: 0 | DD20: 0 | DE20: 0 | DF20: 0 | DG20: 0 | DH20: 0 | DI20: 0 | DJ20: 0 | DK20: 0 | DL20: 0 | DM20: 0 | DN20: 0 | DO20: 0 | DP20: 0 | DQ20: 0 | DR20: 0 | DS20: 0 | DT20: 0 | DU20: 0 | DV20: 0 | DW20: 0 | DX20: 0 | DY20: 0 | DZ20: 0 | EA20: 0 | EB20: 0 | EC20: 0 | ED20: 0 | EE20: 0 | EF20: 0 | EG20: 0 | EH20: 0 | EI20: 0 | EJ20: 0 | EK20: 0 | EL20: 0 | EM20: 0 | EN20: 0 | EO20: 0 | EP20: 0 | EQ20: 0 | ER20: 0 | ES20: 0 | ET20: 0 | EU20: 0 | EV20: 0 | EW20: 0 | EX20: 0 | EY20: 0 | EZ20: 0
E21: 0 | F21: 0 | G21: 0 | H21: 0 | I21: 0 | J21: 0 | L21: 0 | M21: 0 | N21: 0 | O21: 0 | P21: 0 | Q21: 0 | R21: 0 | S21: 0 | T21: 0 | U21: 0 | V21: 0 | W21: 0 | X21: 0 | Y21: 0 | Z21: 0 | AA21: 0 | AB21: 0 | AC21: 0 | AD21: 0 | AE21: 0 | AF21: 0 | AG21: 0 | AH21: 0 | AI21: 0 | AJ21: 0 | AK21: 0 | AL21: 0 | AM21: 0 | AN21: 0 | AO21: 0 | AP21: 0 | AQ21: 0 | AR21: 0 | AS21: 0 | AT21: 0 | AU21: 0 | AV21: 0 | AW21: 0 | AX21: 0 | AY21: 0 | AZ21: 0 | BA21: 0 | BB21: 0 | BC21: 0 | BD21: 0 | BE21: 0 | BF21: 0 | BG21: 0 | BH21: 0 | BI21: 0 | BJ21: 0 | BK21: 0 | BL21: 0 | BM21: 0 | BN21: 0 | BO21: 0 | BP21: 0 | BQ21: 0 | BR21: 0 | BS21: 0 | BT21: 0 | BU21: 0 | BV21: 0 | BW21: 0 | BX21: 0 | BY21: 0 | BZ21: 0 | CA21: 0 | CB21: 0 | CC21: 0 | CD21: 0 | CE21: 0 | CG21: 0 | CH21: 0 | CI21: 0 | CJ21: 0 | CK21: 0 | CL21: 0 | CM21: 0 | CN21: 0 | CO21: 0 | CP21: 0 | CQ21: 0 | CR21: 0 | CS21: 0 | CT21: 0 | CU21: 0 | CV21: 0 | CW21: 0 | CX21: 0 | CY21: 0 | CZ21: 0 | DA21: 0 | DB21: 0 | DC21: 0 | DD21: 0 | DE21: 0 | DF21: 0 | DG21: 0 | DH21: 0 | DI21: 0 | DJ21: 0 | DK21: 0 | DL21: 0 | DM21: 0 | DN21: 0 | DO21: 0 | DP21: 0 | DQ21: 0 | DR21: 0 | DS21: 0 | DT21: 0 | DU21: 0 | DV21: 0 | DW21: 0 | DX21: 0 | DY21: 0 | DZ21: 0 | EA21: 0 | EB21: 0 | EC21: 0 | ED21: 0 | EE21: 0 | EF21: 0 | EG21: 0 | EH21: 0 | EI21: 0 | EJ21: 0 | EK21: 0 | EL21: 0 | EM21: 0 | EN21: 0 | EO21: 0 | EP21: 0 | EQ21: 0 | ER21: 0 | ES21: 0 | ET21: 0 | EU21: 0 | EV21: 0 | EW21: 0 | EX21: 0 | EY21: 0 | EZ21: 0
E22: 0 | F22: 0 | G22: 0 | H22: 0 | I22: 0 | J22: 0 | L22: 0 | M22: 0 | N22: 0 | O22: 0 | P22: 0 | Q22: 0 | R22: 0 | S22: 0 | T22: 0 | U22: 0 | V22: 0 | W22: 0 | X22: 0 | Y22: 0 | Z22: 0 | AA22: 0 | AB22: 0 | AC22: 0 | AD22: 0 | AE22: 0 | AF22: 0 | AG22: 0 | AH22: 0 | AI22: 0 | AJ22: 0 | AK22: 0 | AL22: 0 | AM22: 0 | AN22: 0 | AO22: 0 | AP22: 0 | AQ22: 0 | AR22: 0 | AS22: 0 | AT22: 0 | AU22: 0 | AV22: 0 | AW22: 0 | AX22: 0 | AY22: 0 | AZ22: 0 | BA22: 0 | BB22: 0 | BC22: 0 | BD22: 0 | BE22: 0 | BF22: 0 | BG22: 0 | BH22: 0 | BI22: 0 | BJ22: 0 | BK22: 0 | BL22: 0 | BM22: 0 | BN22: 0 | BO22: 0 | BP22: 0 | BQ22: 0 | BR22: 0 | BS22: 0 | BT22: 0 | BU22: 0 | BV22: 0 | BW22: 0 | BX22: 0 | BY22: 0 | BZ22: 0 | CA22: 0 | CB22: 0 | CC22: 0 | CD22: 0 | CE22: 0 | CG22: 0 | CH22: 0 | CI22: 0 | CJ22: 0 | CK22: 0 | CL22: 0 | CM22: 0 | CN22: 0 | CO22: 0 | CP22: 0 | CQ22: 0 | CR22: 0 | CS22: 0 | CT22: 0 | CU22: 0 | CV22: 0 | CW22: 0 | CX22: 0 | CY22: 0 | CZ22: 0 | DA22: 0 | DB22: 0 | DC22: 0 | DD22: 0 | DE22: 0 | DF22: 0 | DG22: 0 | DH22: 0 | DI22: 0 | DJ22: 0 | DK22: 0 | DL22: 0 | DM22: 0 | DN22: 0 | DO22: 0 | DP22: 0 | DQ22: 0 | DR22: 0 | DS22: 0 | DT22: 0 | DU22: 0 | DV22: 0 | DW22: 0 | DX22: 0 | DY22: 0 | DZ22: 0 | EA22: 0 | EB22: 0 | EC22: 0 | ED22: 0 | EE22: 0 | EF22: 0 | EG22: 0 | EH22: 0 | EI22: 0 | EJ22: 0 | EK22: 0 | EL22: 0 | EM22: 0 | EN22: 0 | EO22: 0 | EP22: 0 | EQ22: 0 | ER22: 0 | ES22: 0 | ET22: 0 | EU22: 0 | EV22: 0 | EW22: 0 | EX22: 0 | EY22: 0 | EZ22: 0
E23: 0 | F23: 0 | G23: 0 | H23: 0 | I23: 0 | J23: 0 | L23: 0 | M23: 0 | N23: 0 | O23: 0 | P23: 0 | Q23: 0 | R23: 0 | S23: 0 | T23: 0 | U23: 0 | V23: 0 | W23: 0 | X23: 0 | Y23: 0 | Z23: 0 | AA23: 0 | AB23: 0 | AC23: 0 | AD23: 0 | AE23: 0 | AF23: 0 | AG23: 0 | AH23: 0 | AI23: 0 | AJ23: 0 | AK23: 0 | AL23: 0 | AM23: 0 | AN23: 0 | AO23: 0 | AP23: 0 | AQ23: 0 | AR23: 0 | AS23: 0 | AT23: 0 | AU23: 0 | AV23: 0 | AW23: 0 | AX23: 0 | AY23: 0 | AZ23: 0 | BA23: 0 | BB23: 0 | BC23: 0 | BD23: 0 | BE23: 0 | BF23: 0 | BG23: 0 | BH23: 0 | BI23: 0 | BJ23: 0 | BK23: 0 | BL23: 0 | BM23: 0 | BN23: 0 | BO23: 0 | BP23: 0 | BQ23: 0 | BR23: 0 | BS23: 0 | BT23: 0 | BU23: 0 | BV23: 0 | BW23: 0 | BX23: 0 | BY23: 0 | BZ23: 0 | CA23: 0 | CB23: 0 | CC23: 0 | CD23: 0 | CE23: 0 | CG23: 0 | CH23: 0 | CI23: 0 | CJ23: 0 | CK23: 0 | CL23: 0 | CM23: 0 | CN23: 0 | CO23: 0 | CP23: 0 | CQ23: 0 | CR23: 0 | CS23: 0 | CT23: 0 | CU23: 0 | CV23: 0 | CW23: 0 | CX23: 0 | CY23: 0 | CZ23: 0 | DA23: 0 | DB23: 0 | DC23: 0 | DD23: 0 | DE23: 0 | DF23: 0 | DG23: 0 | DH23: 0 | DI23: 0 | DJ23: 0 | DK23: 0 | DL23: 0 | DM23: 0 | DN23: 0 | DO23: 0 | DP23: 0 | DQ23: 0 | DR23: 0 | DS23: 0 | DT23: 0 | DU23: 0 | DV23: 0 | DW23: 0 | DX23: 0 | DY23: 0 | DZ23: 0 | EA23: 0 | EB23: 0 | EC23: 0 | ED23: 0 | EE23: 0 | EF23: 0 | EG23: 0 | EH23: 0 | EI23: 0 | EJ23: 0 | EK23: 0 | EL23: 0 | EM23: 0 | EN23: 0 | EO23: 0 | EP23: 0 | EQ23: 0 | ER23: 0 | ES23: 0 | ET23: 0 | EU23: 0 | EV23: 0 | EW23: 0 | EX23: 0 | EY23: 0 | EZ23: 0
E24: 0 | F24: 0 | G24: 0 | H24: 0 | I24: 0 | J24: 0 | L24: 0 | M24: 0 | N24: 0 | O24: 0 | P24: 0 | Q24: 0 | R24: 0 | S24: 0 | T24: 0 | U24: 0 | V24: 0 | W24: 0 | X24: 0 | Y24: 0 | Z24: 0 | AA24: 0 | AB24: 0 | AC24: 0 | AD24: 0 | AE24: 0 | AF24: 0 | AG24: 0 | AH24: 0 | AI24: 0 | AJ24: 0 | AK24: 0 | AL24: 0 | AM24: 0 | AN24: 0 | AO24: 0 | AP24: 0 | AQ24: 0 | AR24: 0 | AS24: 0 | AT24: 0 | AU24: 0 | AV24: 0 | AW24: 0 | AX24: 0 | AY24: 0 | AZ24: 0 | BA24: 0 | BB24: 0 | BC24: 0 | BD24: 0 | BE24: 0 | BF24: 0 | BG24: 0 | BH24: 0 | BI24: 0 | BJ24: 0 | BK24: 0 | BL24: 0 | BM24: 0 | BN24: 0 | BO24: 0 | BP24: 0 | BQ24: 0 | BR24: 0 | BS24: 0 | BT24: 0 | BU24: 0 | BV24: 0 | BW24: 0 | BX24: 0 | BY24: 0 | BZ24: 0 | CA24: 0 | CB24: 0 | CC24: 0 | CD24: 0 | CE24: 0 | CG24: 0 | CH24: 0 | CI24: 0 | CJ24: 0 | CK24: 0 | CL24: 0 | CM24: 0 | CN24: 0 | CO24: 0 | CP24: 0 | CQ24: 0 | CR24: 0 | CS24: 0 | CT24: 0 | CU24: 0 | CV24: 0 | CW24: 0 | CX24: 0 | CY24: 0 | CZ24: 0 | DA24: 0 | DB24: 0 | DC24: 0 | DD24: 0 | DE24: 0 | DF24: 0 | DG24: 0 | DH24: 0 | DI24: 0 | DJ24: 0 | DK24: 0 | DL24: 0 | DM24: 0 | DN24: 0 | DO24: 0 | DP24: 0 | DQ24: 0 | DR24: 0 | DS24: 0 | DT24: 0 | DU24: 0 | DV24: 0 | DW24: 0 | DX24: 0 | DY24: 0 | DZ24: 0 | EA24: 0 | EB24: 0 | EC24: 0 | ED24: 0 | EE24: 0 | EF24: 0 | EG24: 0 | EH24: 0 | EI24: 0 | EJ24: 0 | EK24: 0 | EL24: 0 | EM24: 0 | EN24: 0 | EO24: 0 | EP24: 0 | EQ24: 0 | ER24: 0 | ES24: 0 | ET24: 0 | EU24: 0 | EV24: 0 | EW24: 0 | EX24: 0 | EY24: 0 | EZ24: 0
E25: 0 | F25: 0 | G25: 0 | H25: 0 | I25: 0 | J25: 0 | L25: 0 | M25: 0 | N25: 0 | O25: 0 | P25: 0 | Q25: 0 | R25: 0 | S25: 0 | T25: 0 | U25: 0 | V25: 0 | W25: 0 | X25: 0 | Y25: 0 | Z25: 0 | AA25: 0 | AB25: 0 | AC25: 0 | AD25: 0 | AE25: 0 | AF25: 0 | AG25: 0 | AH25: 0 | AI25: 0 | AJ25: 0 | AK25: 0 | AL25: 0 | AM25: 0 | AN25: 0 | AO25: 0 | AP25: 0 | AQ25: 0 | AR25: 0 | AS25: 0 | AT25: 0 | AU25: 0 | AV25: 0 | AW25: 0 | AX25: 0 | AY25: 0 | AZ25: 0 | BA25: 0 | BB25: 0 | BC25: 0 | BD25: 0 | BE25: 0 | BF25: 0 | BG25: 0 | BH25: 0 | BI25: 0 | BJ25: 0 | BK25: 0 | BL25: 0 | BM25: 0 | BN25: 0 | BO25: 0 | BP25: 0 | BQ25: 0 | BR25: 0 | BS25: 0 | BT25: 0 | BU25: 0 | BV25: 0 | BW25: 0 | BX25: 0 | BY25: 0 | BZ25: 0 | CA25: 0 | CB25: 0 | CC25: 0 | CD25: 0 | CE25: 0 | CG25: 0 | CH25: 0 | CI25: 0 | CJ25: 0 | CK25: 0 | CL25: 0 | CM25: 0 | CN25: 0 | CO25: 0 | CP25: 0 | CQ25: 0 | CR25: 0 | CS25: 0 | CT25: 0 | CU25: 0 | CV25: 0 | CW25: 0 | CX25: 0 | CY25: 0 | CZ25: 0 | DA25: 0 | DB25: 0 | DC25: 0 | DD25: 0 | DE25: 0 | DF25: 0 | DG25: 0 | DH25: 0 | DI25: 0 | DJ25: 0 | DK25: 0 | DL25: 0 | DM25: 0 | DN25: 0 | DO25: 0 | DP25: 0 | DQ25: 0 | DR25: 0 | DS25: 0 | DT25: 0 | DU25: 0 | DV25: 0 | DW25: 0 | DX25: 0 | DY25: 0 | DZ25: 0 | EA25: 0 | EB25: 0 | EC25: 0 | ED25: 0 | EE25: 0 | EF25: 0 | EG25: 0 | EH25: 0 | EI25: 0 | EJ25: 0 | EK25: 0 | EL25: 0 | EM25: 0 | EN25: 0 | EO25: 0 | EP25: 0 | EQ25: 0 | ER25: 0 | ES25: 0 | ET25: 0 | EU25: 0 | EV25: 0 | EW25: 0 | EX25: 0 | EY25: 0 | EZ25: 0
E26: 0 | F26: 0 | G26: 0 | H26: 0 | I26: 0 | J26: 0 | L26: 0 | M26: 0 | N26: 0 | O26: 0 | P26: 0 | Q26: 0 | R26: 0 | S26: 0 | T26: 0 | U26: 0 | V26: 0 | W26: 0 | X26: 0 | Y26: 0 | Z26: 0 | AA26: 0 | AB26: 0 | AC26: 0 | AD26: 0 | AE26: 0 | AF26: 0 | AG26: 0 | AH26: 0 | AI26: 0 | AJ26: 0 | AK26: 0 | AL26: 0 | AM26: 0 | AN26: 0 | AO26: 0 | AP26: 0 | AQ26: 0 | AR26: 0 | AS26: 0 | AT26: 0 | AU26: 0 | AV26: 0 | AW26: 0 | AX26: 0 | AY26: 0 | AZ26: 0 | BA26: 0 | BB26: 0 | BC26: 0 | BD26: 0 | BE26: 0 | BF26: 0 | BG26: 0 | BH26: 0 | BI26: 0 | BJ26: 0 | BK26: 0 | BL26: 0 | BM26: 0 | BN26: 0 | BO26: 0 | BP26: 0 | BQ26: 0 | BR26: 0 | BS26: 0 | BT26: 0 | BU26: 0 | BV26: 0 | BW26: 0 | BX26: 0 | BY26: 0 | BZ26: 0 | CA26: 0 | CB26: 0 | CC26: 0 | CD26: 0 | CE26: 0 | CG26: 0 | CH26: 0 | CI26: 0 | CJ26: 0 | CK26: 0 | CL26: 0 | CM26: 0 | CN26: 0 | CO26: 0 | CP26: 0 | CQ26: 0 | CR26: 0 | CS26: 0 | CT26: 0 | CU26: 0 | CV26: 0 | CW26: 0 | CX26: 0 | CY26: 0 | CZ26: 0 | DA26: 0 | DB26: 0 | DC26: 0 | DD26: 0 | DE26: 0 | DF26: 0 | DG26: 0 | DH26: 0 | DI26: 0 | DJ26: 0 | DK26: 0 | DL26: 0 | DM26: 0 | DN26: 0 | DO26: 0 | DP26: 0 | DQ26: 0 | DR26: 0 | DS26: 0 | DT26: 0 | DU26: 0 | DV26: 0 | DW26: 0 | DX26: 0 | DY26: 0 | DZ26: 0 | EA26: 0 | EB26: 0 | EC26: 0 | ED26: 0 | EE26: 0 | EF26: 0 | EG26: 0 | EH26: 0 | EI26: 0 | EJ26: 0 | EK26: 0 | EL26: 0 | EM26: 0 | EN26: 0 | EO26: 0 | EP26: 0 | EQ26: 0 | ER26: 0 | ES26: 0 | ET26: 0 | EU26: 0 | EV26: 0 | EW26: 0 | EX26: 0 | EY26: 0 | EZ26: 0
B27: FBS Obligation | D27: FPS_FBS | E27: =+SUM(E28:E37) -> 5658471.616 | F27: =+SUM(F28:F37) -> 5646953.325 | G27: 5658471.616 | H27: 5646953.325 | I27: 5658471.616 | J27: 5646953.325 | L27: 366276.726 | M27: 335449.913 | N27: 345010.59 | O27: 345793.901 | P27: 324682.542 | Q27: 353589.726 | R27: 425440.077 | S27: 457417.665 | T27: 456427.899 | U27: 493118.947 | V27: 471219.393 | W27: 405999.069 | X27: 366276.726 | Y27: 334851.428 | Z27: 345604.113 | AA27: 345366.155 | AB27: 313394.787 | AC27: 355879.497 | AD27: 425440.077 | AE27: 457417.665 | AF27: 456427.899 | AG27: 493118.947 | AH27: 472582.593 | AI27: 405999.069 | AJ27: 366276.726 | AK27: 335449.913 | AL27: 345010.59 | AM27: 345793.901 | AN27: 324682.542 | AO27: 353589.726 | AP27: 425440.077 | AQ27: 457417.665 | AR27: 456427.899 | AS27: 493118.947 | AT27: 471219.393 | AU27: 405999.069 | AV27: 366276.726 | AW27: 334851.428 | AX27: 345604.113 | AY27: 345366.155 | AZ27: 313394.787 | BA27: 355879.497 | BB27: 425440.077 | BC27: 457417.665 | BD27: 456427.899 | BE27: 493118.947 | BF27: 472582.593 | BG27: 405999.069 | BH27: 366276.726 | BI27: 335449.913 | BJ27: 345010.59 | BK27: 345793.901 | BL27: 324682.542 | BM27: 353589.726 | BN27: 425440.077 | BO27: 457417.665 | BP27: 456427.899 | BQ27: 493118.947 | BR27: 471219.393 | BS27: 405999.069 | BT27: 366276.726 | BU27: 334851.428 | BV27: 345604.113 | BW27: 345366.155 | BX27: 313394.787 | BY27: 355879.497 | BZ27: 425440.077 | CA27: 457417.665 | CB27: 456427.899 | CC27: 493118.947 | CD27: 472582.593 | CE27: 405999.069 | CG27: 52406.379 | CH27: 5969.095 | CI27: 6552.295 | CJ27: 2844.25 | CK27: 5653.82 | CL27: 32150.961 | CM27: 77552.359 | CN27: 123969.038 | CO27: 124587.926 | CP27: 160476.116 | CQ27: 175077.364 | CR27: 110805.565 | CS27: 52406.379 | CT27: 6455.594 | CU27: 6070.779 | CV27: 3159.987 | CW27: 5535.273 | CX27: 29861.189 | CY27: 77552.359 | CZ27: 123969.038 | DA27: 124587.926 | DB27: 160476.116 | DC27: 173714.164 | DD27: 110805.565 | DE27: 52406.379 | DF27: 5969.095 | DG27: 6552.295 | DH27: 2844.25 | DI27: 5653.82 | DJ27: 32150.961 | DK27: 77552.359 | DL27: 123969.038 | DM27: 124587.926 | DN27: 160476.116 | DO27: 175077.364 | DP27: 110805.565 | DQ27: 52406.379 | DR27: 6455.594 | DS27: 6070.779 | DT27: 3159.987 | DU27: 5535.273 | DV27: 29861.189 | DW27: 77552.359 | DX27: 123969.038 | DY27: 124587.926 | DZ27: 160476.116 | EA27: 173714.164 | EB27: 110805.565 | EC27: 52406.379 | ED27: 5969.095 | EE27: 6552.295 | EF27: 2844.25 | EG27: 5653.82 | EH27: 32150.961 | EI27: 77552.359 | EJ27: 123969.038 | EK27: 124587.926 | EL27: 160476.116 | EM27: 175077.364 | EN27: 110805.565 | EO27: 52406.379 | EP27: 6455.594 | EQ27: 6070.779 | ER27: 3159.987 | ES27: 5535.273 | ET27: 29861.189 | EU27: 77552.359 | EV27: 123969.038 | EW27: 124587.926 | EX27: 160476.116 | EY27: 173714.164 | EZ27: 110805.565
C28: Canadian Entitlement | D28: FPS_FBS_CDN | E28: 3990571.168 | F28: 3979667.968 | G28: 3990571.168 | H28: 3979667.968 | I28: 3990571.168 | J28: 3979667.968 | L28: 337999.392 | M28: 327550.4 | N28: 337999.2 | O28: 337999.168 | P28: 316192.8 | Q28: 337544.896 | R28: 327095.808 | S28: 337999.168 | T28: 327096 | U28: 337999.168 | V28: 337999.168 | W28: 327096 | X28: 337999.392 | Y28: 327550.4 | Z28: 337999.2 | AA28: 337999.168 | AB28: 305289.6 | AC28: 337544.896 | AD28: 327095.808 | AE28: 337999.168 | AF28: 327096 | AG28: 337999.168 | AH28: 337999.168 | AI28: 327096 | AJ28: 337999.392 | AK28: 327550.4 | AL28: 337999.2 | AM28: 337999.168 | AN28: 316192.8 | AO28: 337544.896 | AP28: 327095.808 | AQ28: 337999.168 | AR28: 327096 | AS28: 337999.168 | AT28: 337999.168 | AU28: 327096 | AV28: 337999.392 | AW28: 327550.4 | AX28: 337999.2 | AY28: 337999.168 | AZ28: 305289.6 | BA28: 337544.896 | BB28: 327095.808 | BC28: 337999.168 | BD28: 327096 | BE28: 337999.168 | BF28: 337999.168 | BG28: 327096 | BH28: 337999.392 | BI28: 327550.4 | BJ28: 337999.2 | BK28: 337999.168 | BL28: 316192.8 | BM28: 337544.896 | BN28: 327095.808 | BO28: 337999.168 | BP28: 327096 | BQ28: 337999.168 | BR28: 337999.168 | BS28: 327096 | BT28: 337999.392 | BU28: 327550.4 | BV28: 337999.2 | BW28: 337999.168 | BX28: 305289.6 | BY28: 337544.896 | BZ28: 327095.808 | CA28: 337999.168 | CB28: 327096 | CC28: 337999.168 | CD28: 337999.168 | CE28: 327096 | CG28: 0 | CH28: 0 | CI28: 0 | CJ28: 0 | CK28: 0 | CL28: 0 | CM28: 0 | CN28: 0 | CO28: 0 | CP28: 0 | CQ28: 0 | CR28: 0 | CS28: 0 | CT28: 0 | CU28: 0 | CV28: 0 | CW28: 0 | CX28: 0 | CY28: 0 | CZ28: 0 | DA28: 0 | DB28: 0 | DC28: 0 | DD28: 0 | DE28: 0 | DF28: 0 | DG28: 0 | DH28: 0 | DI28: 0 | DJ28: 0 | DK28: 0 | DL28: 0 | DM28: 0 | DN28: 0 | DO28: 0 | DP28: 0 | DQ28: 0 | DR28: 0 | DS28: 0 | DT28: 0 | DU28: 0 | DV28: 0 | DW28: 0 | DX28: 0 | DY28: 0 | DZ28: 0 | EA28: 0 | EB28: 0 | EC28: 0 | ED28: 0 | EE28: 0 | EF28: 0 | EG28: 0 | EH28: 0 | EI28: 0 | EJ28: 0 | EK28: 0 | EL28: 0 | EM28: 0 | EN28: 0 | EO28: 0 | EP28: 0 | EQ28: 0 | ER28: 0 | ES28: 0 | ET28: 0 | EU28: 0 | EV28: 0 | EW28: 0 | EX28: 0 | EY28: 0 | EZ28: 0
C29: USBR Pump Load | D29: FPS_FBS_UBR | E29: 1562314.914 | F29: 1561924 | G29: 1562314.914 | H29: 1561924 | I29: 1562314.914 | J29: 1561924 | L29: 28277.334 | M29: 5099.513 | N29: 4211.39 | O29: 4882.733 | P29: 5689.742 | Q29: 16044.83 | R29: 98344.269 | S29: 119418.497 | T29: 129331.899 | U29: 146217.379 | V29: 89997.825 | W29: 78903.069 | X29: 28277.334 | Y29: 4613.028 | Z29: 4692.913 | AA29: 4566.987 | AB29: 5417.187 | AC29: 18334.601 | AD29: 98344.269 | AE29: 119418.497 | AF29: 129331.899 | AG29: 146217.379 | AH29: 89997.825 | AI29: 78903.069 | AJ29: 28277.334 | AK29: 5099.513 | AL29: 4211.39 | AM29: 4882.733 | AN29: 5689.742 | AO29: 16044.83 | AP29: 98344.269 | AQ29: 119418.497 | AR29: 129331.899 | AS29: 146217.379 | AT29: 89997.825 | AU29: 78903.069 | AV29: 28277.334 | AW29: 4613.028 | AX29: 4692.913 | AY29: 4566.987 | AZ29: 5417.187 | BA29: 18334.601 | BB29: 98344.269 | BC29: 119418.497 | BD29: 129331.899 | BE29: 146217.379 | BF29: 89997.825 | BG29: 78903.069 | BH29: 28277.334 | BI29: 5099.513 | BJ29: 4211.39 | BK29: 4882.733 | BL29: 5689.742 | BM29: 16044.83 | BN29: 98344.269 | BO29: 119418.497 | BP29: 129331.899 | BQ29: 146217.379 | BR29: 89997.825 | BS29: 78903.069 | BT29: 28277.334 | BU29: 4613.028 | BV29: 4692.913 | BW29: 4566.987 | BX29: 5417.187 | BY29: 18334.601 | BZ29: 98344.269 | CA29: 119418.497 | CB29: 129331.899 | CC29: 146217.379 | CD29: 89997.825 | CE29: 78903.069 | CG29: 52406.379 | CH29: 5962.033 | CI29: 6545.415 | CJ29: 2837.362 | CK29: 5646.716 | CL29: 32150.961 | CM29: 77552.359 | CN29: 123969.038 | CO29: 124587.926 | CP29: 153456.916 | CQ29: 139975.764 | CR29: 110805.565 | CS29: 52406.379 | CT29: 6448.517 | CU29: 6063.891 | CV29: 3153.107 | CW29: 5528.361 | CX29: 29861.189 | CY29: 77552.359 | CZ29: 123969.038 | DA29: 124587.926 | DB29: 153456.916 | DC29: 139975.764 | DD29: 110805.565 | DE29: 52406.379 | DF29: 5962.033 | DG29: 6545.415 | DH29: 2837.362 | DI29: 5646.716 | DJ29: 32150.961 | DK29: 77552.359 | DL29: 123969.038 | DM29: 124587.926 | DN29: 153456.916 | DO29: 139975.764 | DP29: 110805.565 | DQ29: 52406.379 | DR29: 6448.517 | DS29: 6063.891 | DT29: 3153.107 | DU29: 5528.361 | DV29: 29861.189 | DW29: 77552.359 | DX29: 123969.038 | DY29: 124587.926 | DZ29: 153456.916 | EA29: 139975.764 | EB29: 110805.565 | EC29: 52406.379 | ED29: 5962.033 | EE29: 6545.415 | EF29: 2837.362 | EG29: 5646.716 | EH29: 32150.961 | EI29: 77552.359 | EJ29: 123969.038 | EK29: 124587.926 | EL29: 153456.916 | EM29: 139975.764 | EN29: 110805.565 | EO29: 52406.379 | EP29: 6448.517 | EQ29: 6063.891 | ER29: 3153.107 | ES29: 5528.361 | ET29: 29861.189 | EU29: 77552.359 | EV29: 123969.038 | EW29: 124587.926 | EX29: 153456.916 | EY29: 139975.764 | EZ29: 110805.565
C30: Hungry Horse | D30: FPS_FBS_HH | E30: 0 | F30: 0 | G30: 0 | H30: 0 | I30: 0 | J30: 0 | L30: 0 | M30: 0 | N30: 0 | O30: 0 | P30: 0 | Q30: 0 | R30: 0 | S30: 0 | T30: 0 | U30: 0 | V30: 0 | W30: 0 | X30: 0 | Y30: 0 | Z30: 0 | AA30: 0 | AB30: 0 | AC30: 0 | AD30: 0 | AE30: 0 | AF30: 0 | AG30: 0 | AH30: 0 | AI30: 0 | AJ30: 0 | AK30: 0 | AL30: 0 | AM30: 0 | AN30: 0 | AO30: 0 | AP30: 0 | AQ30: 0 | AR30: 0 | AS30: 0 | AT30: 0 | AU30: 0 | AV30: 0 | AW30: 0 | AX30: 0 | AY30: 0 | AZ30: 0 | BA30: 0 | BB30: 0 | BC30: 0 | BD30: 0 | BE30: 0 | BF30: 0 | BG30: 0 | BH30: 0 | BI30: 0 | BJ30: 0 | BK30: 0 | BL30: 0 | BM30: 0 | BN30: 0 | BO30: 0 | BP30: 0 | BQ30: 0 | BR30: 0 | BS30: 0 | BT30: 0 | BU30: 0 | BV30: 0 | BW30: 0 | BX30: 0 | BY30: 0 | BZ30: 0 | CA30: 0 | CB30: 0 | CC30: 0 | CD30: 0 | CE30: 0 | CG30: 0 | CH30: 0 | CI30: 0 | CJ30: 0 | CK30: 0 | CL30: 0 | CM30: 0 | CN30: 0 | CO30: 0 | CP30: 0 | CQ30: 0 | CR30: 0 | CS30: 0 | CT30: 0 | CU30: 0 | CV30: 0 | CW30: 0 | CX30: 0 | CY30: 0 | CZ30: 0 | DA30: 0 | DB30: 0 | DC30: 0 | DD30: 0 | DE30: 0 | DF30: 0 | DG30: 0 | DH30: 0 | DI30: 0 | DJ30: 0 | DK30: 0 | DL30: 0 | DM30: 0 | DN30: 0 | DO30: 0 | DP30: 0 | DQ30: 0 | DR30: 0 | DS30: 0 | DT30: 0 | DU30: 0 | DV30: 0 | DW30: 0 | DX30: 0 | DY30: 0 | DZ30: 0 | EA30: 0 | EB30: 0 | EC30: 0 | ED30: 0 | EE30: 0 | EF30: 0 | EG30: 0 | EH30: 0 | EI30: 0 | EJ30: 0 | EK30: 0 | EL30: 0 | EM30: 0 | EN30: 0 | EO30: 0 | EP30: 0 | EQ30: 0 | ER30: 0 | ES30: 0 | ET30: 0 | EU30: 0 | EV30: 0 | EW30: 0 | EX30: 0 | EY30: 0 | EZ30: 0
C31: Upper Baker | D31: FPS_FBS_UPB | E31: 11339.934 | F31: 11115.757 | G31: 11339.934 | H31: 11115.757 | I31: 11339.934 | J31: 11115.757 | L31: 0 | M31: 2800 | N31: 2800 | O31: 2912 | P31: 2800 | Q31: 0 | R31: 0 | S31: 0 | T31: 0 | U31: 0 | V31: 0 | W31: 0 | X31: 0 | Y31: 2688 | Z31: 2912 | AA31: 2800 | AB31: 2688 | AC31: 0 | AD31: 0 | AE31: 0 | AF31: 0 | AG31: 0 | AH31: 0 | AI31: 0 | AJ31: 0 | AK31: 2800 | AL31: 2800 | AM31: 2912 | AN31: 2800 | AO31: 0 | AP31: 0 | AQ31: 0 | AR31: 0 | AS31: 0 | AT31: 0 | AU31: 0 | AV31: 0 | AW31: 2688 | AX31: 2912 | AY31: 2800 | AZ31: 2688 | BA31: 0 | BB31: 0 | BC31: 0 | BD31: 0 | BE31: 0 | BF31: 0 | BG31: 0 | BH31: 0 | BI31: 2800 | BJ31: 2800 | BK31: 2912 | BL31: 2800 | BM31: 0 | BN31: 0 | BO31: 0 | BP31: 0 | BQ31: 0 | BR31: 0 | BS31: 0 | BT31: 0 | BU31: 2688 | BV31: 2912 | BW31: 2800 | BX31: 2688 | BY31: 0 | BZ31: 0 | CA31: 0 | CB31: 0 | CC31: 0 | CD31: 0 | CE31: 0 | CG31: 0 | CH31: 7.062 | CI31: 6.88 | CJ31: 6.888 | CK31: 7.104 | CL31: 0 | CM31: 0 | CN31: 0 | CO31: 0 | CP31: 0 | CQ31: 0 | CR31: 0 | CS31: 0 | CT31: 7.077 | CU31: 6.888 | CV31: 6.88 | CW31: 6.912 | CX31: 0 | CY31: 0 | CZ31: 0 | DA31: 0 | DB31: 0 | DC31: 0 | DD31: 0 | DE31: 0 | DF31: 7.062 | DG31: 6.88 | DH31: 6.888 | DI31: 7.104 | DJ31: 0 | DK31: 0 | DL31: 0 | DM31: 0 | DN31: 0 | DO31: 0 | DP31: 0 | DQ31: 0 | DR31: 7.077 | DS31: 6.888 | DT31: 6.88 | DU31: 6.912 | DV31: 0 | DW31: 0 | DX31: 0 | DY31: 0 | DZ31: 0 | EA31: 0 | EB31: 0 | EC31: 0 | ED31: 7.062 | EE31: 6.88 | EF31: 6.888 | EG31: 7.104 | EH31: 0 | EI31: 0 | EJ31: 0 | EK31: 0 | EL31: 0 | EM31: 0 | EN31: 0 | EO31: 0 | EP31: 7.077 | EQ31: 6.888 | ER31: 6.88 | ES31: 6.912 | ET31: 0 | EU31: 0 | EV31: 0 | EW31: 0 | EX31: 0 | EY31: 0 | EZ31: 0
C32: Non-Treaty Storage | D32: FPS_FBS_NTS | E32: 94245.6 | F32: 94245.6 | G32: 94245.6 | H32: 94245.6 | I32: 94245.6 | J32: 94245.6 | L32: 0 | M32: 0 | N32: 0 | O32: 0 | P32: 0 | Q32: 0 | R32: 0 | S32: 0 | T32: 0 | U32: 8902.4 | V32: 43222.4 | W32: 0 | X32: 0 | Y32: 0 | Z32: 0 | AA32: 0 | AB32: 0 | AC32: 0 | AD32: 0 | AE32: 0 | AF32: 0 | AG32: 8902.4 | AH32: 44585.6 | AI32: 0 | AJ32: 0 | AK32: 0 | AL32: 0 | AM32: 0 | AN32: 0 | AO32: 0 | AP32: 0 | AQ32: 0 | AR32: 0 | AS32: 8902.4 | AT32: 43222.4 | AU32: 0 | AV32: 0 | AW32: 0 | AX32: 0 | AY32: 0 | AZ32: 0 | BA32: 0 | BB32: 0 | BC32: 0 | BD32: 0 | BE32: 8902.4 | BF32: 44585.6 | BG32: 0 | BH32: 0 | BI32: 0 | BJ32: 0 | BK32: 0 | BL32: 0 | BM32: 0 | BN32: 0 | BO32: 0 | BP32: 0 | BQ32: 8902.4 | BR32: 43222.4 | BS32: 0 | BT32: 0 | BU32: 0 | BV32: 0 | BW32: 0 | BX32: 0 | BY32: 0 | BZ32: 0 | CA32: 0 | CB32: 0 | CC32: 8902.4 | CD32: 44585.6 | CE32: 0 | CG32: 0 | CH32: 0 | CI32: 0 | CJ32: 0 | CK32: 0 | CL32: 0 | CM32: 0 | CN32: 0 | CO32: 0 | CP32: 7019.2 | CQ32: 35101.6 | CR32: 0 | CS32: 0 | CT32: 0 | CU32: 0 | CV32: 0 | CW32: 0 | CX32: 0 | CY32: 0 | CZ32: 0 | DA32: 0 | DB32: 7019.2 | DC32: 33738.4 | DD32: 0 | DE32: 0 | DF32: 0 | DG32: 0 | DH32: 0 | DI32: 0 | DJ32: 0 | DK32: 0 | DL32: 0 | DM32: 0 | DN32: 7019.2 | DO32: 35101.6 | DP32: 0 | DQ32: 0 | DR32: 0 | DS32: 0 | DT32: 0 | DU32: 0 | DV32: 0 | DW32: 0 | DX32: 0 | DY32: 0 | DZ32: 7019.2 | EA32: 33738.4 | EB32: 0 | EC32: 0 | ED32: 0 | EE32: 0 | EF32: 0 | EG32: 0 | EH32: 0 | EI32: 0 | EJ32: 0 | EK32: 0 | EL32: 7019.2 | EM32: 35101.6 | EN32: 0 | EO32: 0 | EP32: 0 | EQ32: 0 | ER32: 0 | ES32: 0 | ET32: 0 | EU32: 0 | EV32: 0 | EW32: 0 | EX32: 7019.2 | EY32: 33738.4 | EZ32: 0
C33: Libby Coordination | D33: FPS_FBS_LCA | E33: 0 | F33: 0 | G33: 0 | H33: 0 | I33: 0 | J33: 0 | L33: 0 | M33: 0 | N33: 0 | O33: 0 | P33: 0 | Q33: 0 | R33: 0 | S33: 0 | T33: 0 | U33: 0 | V33: 0 | W33: 0 | X33: 0 | Y33: 0 | Z33: 0 | AA33: 0 | AB33: 0 | AC33: 0 | AD33: 0 | AE33: 0 | AF33: 0 | AG33: 0 | AH33: 0 | AI33: 0 | AJ33: 0 | AK33: 0 | AL33: 0 | AM33: 0 | AN33: 0 | AO33: 0 | AP33: 0 | AQ33: 0 | AR33: 0 | AS33: 0 | AT33: 0 | AU33: 0 | AV33: 0 | AW33: 0 | AX33: 0 | AY33: 0 | AZ33: 0 | BA33: 0 | BB33: 0 | BC33: 0 | BD33: 0 | BE33: 0 | BF33: 0 | BG33: 0 | BH33: 0 | BI33: 0 | BJ33: 0 | BK33: 0 | BL33: 0 | BM33: 0 | BN33: 0 | BO33: 0 | BP33: 0 | BQ33: 0 | BR33: 0 | BS33: 0 | BT33: 0 | BU33: 0 | BV33: 0 | BW33: 0 | BX33: 0 | BY33: 0 | BZ33: 0 | CA33: 0 | CB33: 0 | CC33: 0 | CD33: 0 | CE33: 0 | CG33: 0 | CH33: 0 | CI33: 0 | CJ33: 0 | CK33: 0 | CL33: 0 | CM33: 0 | CN33: 0 | CO33: 0 | CP33: 0 | CQ33: 0 | CR33: 0 | CS33: 0 | CT33: 0 | CU33: 0 | CV33: 0 | CW33: 0 | CX33: 0 | CY33: 0 | CZ33: 0 | DA33: 0 | DB33: 0 | DC33: 0 | DD33: 0 | DE33: 0 | DF33: 0 | DG33: 0 | DH33: 0 | DI33: 0 | DJ33: 0 | DK33: 0 | DL33: 0 | DM33: 0 | DN33: 0 | DO33: 0 | DP33: 0 | DQ33: 0 | DR33: 0 | DS33: 0 | DT33: 0 | DU33: 0 | DV33: 0 | DW33: 0 | DX33: 0 | DY33: 0 | DZ33: 0 | EA33: 0 | EB33: 0 | EC33: 0 | ED33: 0 | EE33: 0 | EF33: 0 | EG33: 0 | EH33: 0 | EI33: 0 | EJ33: 0 | EK33: 0 | EL33: 0 | EM33: 0 | EN33: 0 | EO33: 0 | EP33: 0 | EQ33: 0 | ER33: 0 | ES33: 0 | ET33: 0 | EU33: 0 | EV33: 0 | EW33: 0 | EX33: 0 | EY33: 0 | EZ33: 0
E34: 0 | F34: 0 | G34: 0 | H34: 0 | I34: 0 | J34: 0 | L34: 0 | M34: 0 | N34: 0 | O34: 0 | P34: 0 | Q34: 0 | R34: 0 | S34: 0 | T34: 0 | U34: 0 | V34: 0 | W34: 0 | X34: 0 | Y34: 0 | Z34: 0 | AA34: 0 | AB34: 0 | AC34: 0 | AD34: 0 | AE34: 0 | AF34: 0 | AG34: 0 | AH34: 0 | AI34: 0 | AJ34: 0 | AK34: 0 | AL34: 0 | AM34: 0 | AN34: 0 | AO34: 0 | AP34: 0 | AQ34: 0 | AR34: 0 | AS34: 0 | AT34: 0 | AU34: 0 | AV34: 0 | AW34: 0 | AX34: 0 | AY34: 0 | AZ34: 0 | BA34: 0 | BB34: 0 | BC34: 0 | BD34: 0 | BE34: 0 | BF34: 0 | BG34: 0 | BH34: 0 | BI34: 0 | BJ34: 0 | BK34: 0 | BL34: 0 | BM34: 0 | BN34: 0 | BO34: 0 | BP34: 0 | BQ34: 0 | BR34: 0 | BS34: 0 | BT34: 0 | BU34: 0 | BV34: 0 | BW34: 0 | BX34: 0 | BY34: 0 | BZ34: 0 | CA34: 0 | CB34: 0 | CC34: 0 | CD34: 0 | CE34: 0 | CG34: 0 | CH34: 0 | CI34: 0 | CJ34: 0 | CK34: 0 | CL34: 0 | CM34: 0 | CN34: 0 | CO34: 0 | CP34: 0 | CQ34: 0 | CR34: 0 | CS34: 0 | CT34: 0 | CU34: 0 | CV34: 0 | CW34: 0 | CX34: 0 | CY34: 0 | CZ34: 0 | DA34: 0 | DB34: 0 | DC34: 0 | DD34: 0 | DE34: 0 | DF34: 0 | DG34: 0 | DH34: 0 | DI34: 0 | DJ34: 0 | DK34: 0 | DL34: 0 | DM34: 0 | DN34: 0 | DO34: 0 | DP34: 0 | DQ34: 0 | DR34: 0 | DS34: 0 | DT34: 0 | DU34: 0 | DV34: 0 | DW34: 0 | DX34: 0 | DY34: 0 | DZ34: 0 | EA34: 0 | EB34: 0 | EC34: 0 | ED34: 0 | EE34: 0 | EF34: 0 | EG34: 0 | EH34: 0 | EI34: 0 | EJ34: 0 | EK34: 0 | EL34: 0 | EM34: 0 | EN34: 0 | EO34: 0 | EP34: 0 | EQ34: 0 | ER34: 0 | ES34: 0 | ET34: 0 | EU34: 0 | EV34: 0 | EW34: 0 | EX34: 0 | EY34: 0 | EZ34: 0
E35: 0 | F35: 0 | G35: 0 | H35: 0 | I35: 0 | J35: 0 | L35: 0 | M35: 0 | N35: 0 | O35: 0 | P35: 0 | Q35: 0 | R35: 0 | S35: 0 | T35: 0 | U35: 0 | V35: 0 | W35: 0 | X35: 0 | Y35: 0 | Z35: 0 | AA35: 0 | AB35: 0 | AC35: 0 | AD35: 0 | AE35: 0 | AF35: 0 | AG35: 0 | AH35: 0 | AI35: 0 | AJ35: 0 | AK35: 0 | AL35: 0 | AM35: 0 | AN35: 0 | AO35: 0 | AP35: 0 | AQ35: 0 | AR35: 0 | AS35: 0 | AT35: 0 | AU35: 0 | AV35: 0 | AW35: 0 | AX35: 0 | AY35: 0 | AZ35: 0 | BA35: 0 | BB35: 0 | BC35: 0 | BD35: 0 | BE35: 0 | BF35: 0 | BG35: 0 | BH35: 0 | BI35: 0 | BJ35: 0 | BK35: 0 | BL35: 0 | BM35: 0 | BN35: 0 | BO35: 0 | BP35: 0 | BQ35: 0 | BR35: 0 | BS35: 0 | BT35: 0 | BU35: 0 | BV35: 0 | BW35: 0 | BX35: 0 | BY35: 0 | BZ35: 0 | CA35: 0 | CB35: 0 | CC35: 0 | CD35: 0 | CE35: 0 | CG35: 0 | CH35: 0 | CI35: 0 | CJ35: 0 | CK35: 0 | CL35: 0 | CM35: 0 | CN35: 0 | CO35: 0 | CP35: 0 | CQ35: 0 | CR35: 0 | CS35: 0 | CT35: 0 | CU35: 0 | CV35: 0 | CW35: 0 | CX35: 0 | CY35: 0 | CZ35: 0 | DA35: 0 | DB35: 0 | DC35: 0 | DD35: 0 | DE35: 0 | DF35: 0 | DG35: 0 | DH35: 0 | DI35: 0 | DJ35: 0 | DK35: 0 | DL35: 0 | DM35: 0 | DN35: 0 | DO35: 0 | DP35: 0 | DQ35: 0 | DR35: 0 | DS35: 0 | DT35: 0 | DU35: 0 | DV35: 0 | DW35: 0 | DX35: 0 | DY35: 0 | DZ35: 0 | EA35: 0 | EB35: 0 | EC35: 0 | ED35: 0 | EE35: 0 | EF35: 0 | EG35: 0 | EH35: 0 | EI35: 0 | EJ35: 0 | EK35: 0 | EL35: 0 | EM35: 0 | EN35: 0 | EO35: 0 | EP35: 0 | EQ35: 0 | ER35: 0 | ES35: 0 | ET35: 0 | EU35: 0 | EV35: 0 | EW35: 0 | EX35: 0 | EY35: 0 | EZ35: 0
E36: 0 | F36: 0 | G36: 0 | H36: 0 | I36: 0 | J36: 0 | L36: 0 | M36: 0 | N36: 0 | O36: 0 | P36: 0 | Q36: 0 | R36: 0 | S36: 0 | T36: 0 | U36: 0 | V36: 0 | W36: 0 | X36: 0 | Y36: 0 | Z36: 0 | AA36: 0 | AB36: 0 | AC36: 0 | AD36: 0 | AE36: 0 | AF36: 0 | AG36: 0 | AH36: 0 | AI36: 0 | AJ36: 0 | AK36: 0 | AL36: 0 | AM36: 0 | AN36: 0 | AO36: 0 | AP36: 0 | AQ36: 0 | AR36: 0 | AS36: 0 | AT36: 0 | AU36: 0 | AV36: 0 | AW36: 0 | AX36: 0 | AY36: 0 | AZ36: 0 | BA36: 0 | BB36: 0 | BC36: 0 | BD36: 0 | BE36: 0 | BF36: 0 | BG36: 0 | BH36: 0 | BI36: 0 | BJ36: 0 | BK36: 0 | BL36: 0 | BM36: 0 | BN36: 0 | BO36: 0 | BP36: 0 | BQ36: 0 | BR36: 0 | BS36: 0 | BT36: 0 | BU36: 0 | BV36: 0 | BW36: 0 | BX36: 0 | BY36: 0 | BZ36: 0 | CA36: 0 | CB36: 0 | CC36: 0 | CD36: 0 | CE36: 0 | CG36: 0 | CH36: 0 | CI36: 0 | CJ36: 0 | CK36: 0 | CL36: 0 | CM36: 0 | CN36: 0 | CO36: 0 | CP36: 0 | CQ36: 0 | CR36: 0 | CS36: 0 | CT36: 0 | CU36: 0 | CV36: 0 | CW36: 0 | CX36: 0 | CY36: 0 | CZ36: 0 | DA36: 0 | DB36: 0 | DC36: 0 | DD36: 0 | DE36: 0 | DF36: 0 | DG36: 0 | DH36: 0 | DI36: 0 | DJ36: 0 | DK36: 0 | DL36: 0 | DM36: 0 | DN36: 0 | DO36: 0 | DP36: 0 | DQ36: 0 | DR36: 0 | DS36: 0 | DT36: 0 | DU36: 0 | DV36: 0 | DW36: 0 | DX36: 0 | DY36: 0 | DZ36: 0 | EA36: 0 | EB36: 0 | EC36: 0 | ED36: 0 | EE36: 0 | EF36: 0 | EG36: 0 | EH36: 0 | EI36: 0 | EJ36: 0 | EK36: 0 | EL36: 0 | EM36: 0 | EN36: 0 | EO36: 0 | EP36: 0 | EQ36: 0 | ER36: 0 | ES36: 0 | ET36: 0 | EU36: 0 | EV36: 0 | EW36: 0 | EX36: 0 | EY36: 0 | EZ36: 0
E37: 0 | F37: 0 | G37: 0 | H37: 0 | I37: 0 | J37: 0 | L37: 0 | M37: 0 | N37: 0 | O37: 0 | P37: 0 | Q37: 0 | R37: 0 | S37: 0 | T37: 0 | U37: 0 | V37: 0 | W37: 0 | X37: 0 | Y37: 0 | Z37: 0 | AA37: 0 | AB37: 0 | AC37: 0 | AD37: 0 | AE37: 0 | AF37: 0 | AG37: 0 | AH37: 0 | AI37: 0 | AJ37: 0 | AK37: 0 | AL37: 0 | AM37: 0 | AN37: 0 | AO37: 0 | AP37: 0 | AQ37: 0 | AR37: 0 | AS37: 0 | AT37: 0 | AU37: 0 | AV37: 0 | AW37: 0 | AX37: 0 | AY37: 0 | AZ37: 0 | BA37: 0 | BB37: 0 | BC37: 0 | BD37: 0 | BE37: 0 | BF37: 0 | BG37: 0 | BH37: 0 | BI37: 0 | BJ37: 0 | BK37: 0 | BL37: 0 | BM37: 0 | BN37: 0 | BO37: 0 | BP37: 0 | BQ37: 0 | BR37: 0 | BS37: 0 | BT37: 0 | BU37: 0 | BV37: 0 | BW37: 0 | BX37: 0 | BY37: 0 | BZ37: 0 | CA37: 0 | CB37: 0 | CC37: 0 | CD37: 0 | CE37: 0 | CG37: 0 | CH37: 0 | CI37: 0 | CJ37: 0 | CK37: 0 | CL37: 0 | CM37: 0 | CN37: 0 | CO37: 0 | CP37: 0 | CQ37: 0 | CR37: 0 | CS37: 0 | CT37: 0 | CU37: 0 | CV37: 0 | CW37: 0 | CX37: 0 | CY37: 0 | CZ37: 0 | DA37: 0 | DB37: 0 | DC37: 0 | DD37: 0 | DE37: 0 | DF37: 0 | DG37: 0 | DH37: 0 | DI37: 0 | DJ37: 0 | DK37: 0 | DL37: 0 | DM37: 0 | DN37: 0 | DO37: 0 | DP37: 0 | DQ37: 0 | DR37: 0 | DS37: 0 | DT37: 0 | DU37: 0 | DV37: 0 | DW37: 0 | DX37: 0 | DY37: 0 | DZ37: 0 | EA37: 0 | EB37: 0 | EC37: 0 | ED37: 0 | EE37: 0 | EF37: 0 | EG37: 0 | EH37: 0 | EI37: 0 | EJ37: 0 | EK37: 0 | EL37: 0 | EM37: 0 | EN37: 0 | EO37: 0 | EP37: 0 | EQ37: 0 | ER37: 0 | ES37: 0 | ET37: 0 | EU37: 0 | EV37: 0 | EW37: 0 | EX37: 0 | EY37: 0 | EZ37: 0
B38: Seasonal or Capacity Exchange | D38: FPS_EXS | E38: =+SUM(E39:E48) -> 55233.116 | F38: =+SUM(F39:F48) -> 6593.268 | G38: 38300.666 | H38: 3279.768 | I38: 38300.666 | J38: 3279.768 | L38: 1842.912 | M38: 2117.2 | N38: 1360 | O38: 1240.096 | P38: 1206 | Q38: 839.904 | R38: 1996.8 | S38: 2204.8 | T38: 1720.16 | U38: 2746.016 | V38: 2288 | W38: 1560 | X38: 1839.888 | Y38: 0 | Z38: 0 | AA38: 0 | AB38: 0 | AC38: 0 | AD38: 0 | AE38: 0 | AF38: 0 | AG38: 0 | AH38: 0 | AI38: 0 | AJ38: 1842.912 | AK38: 2117.2 | AL38: 1360 | AM38: 1240.096 | AN38: 1206 | AO38: 839.904 | AP38: 1996.8 | AQ38: 2204.8 | AR38: 1720.16 | AS38: 2746.016 | AT38: 2288 | AU38: 1560 | AV38: 1839.888 | AW38: 0 | AX38: 0 | AY38: 0 | AZ38: 0 | BA38: 0 | BB38: 0 | BC38: 0 | BD38: 0 | BE38: 0 | BF38: 0 | BG38: 0 | BH38: 1842.912 | BI38: 2117.2 | BJ38: 1360 | BK38: 1240.096 | BL38: 1206 | BM38: 839.904 | BN38: 1996.8 | BO38: 2204.8 | BP38: 1720.16 | BQ38: 2746.016 | BR38: 2288 | BS38: 1560 | BT38: 1839.888 | BU38: 0 | BV38: 0 | BW38: 0 | BX38: 0 | BY38: 0 | BZ38: 0 | CA38: 0 | CB38: 0 | CC38: 0 | CD38: 0 | CE38: 0 | CG38: 1444.872 | CH38: 1684.929 | CI38: 1380.128 | CJ38: 1169.976 | CK38: 655.936 | CL38: 828.945 | CM38: 1406 | CN38: 1550.064 | CO38: 1858.048 | CP38: 1975.872 | CQ38: 1705.928 | CR38: 1518.08 | CS38: 1439.88 | CT38: 0 | CU38: 0 | CV38: 0 | CW38: 0 | CX38: 0 | CY38: 0 | CZ38: 0 | DA38: 0 | DB38: 0 | DC38: 0 | DD38: 0 | DE38: 1444.872 | DF38: 1684.929 | DG38: 1380.128 | DH38: 1169.976 | DI38: 655.936 | DJ38: 828.945 | DK38: 1406 | DL38: 1550.064 | DM38: 1858.048 | DN38: 1975.872 | DO38: 1705.928 | DP38: 1518.08 | DQ38: 1439.88 | DR38: 0 | DS38: 0 | DT38: 0 | DU38: 0 | DV38: 0 | DW38: 0 | DX38: 0 | DY38: 0 | DZ38: 0 | EA38: 0 | EB38: 0 | EC38: 1444.872 | ED38: 1684.929 | EE38: 1380.128 | EF38: 1169.976 | EG38: 655.936 | EH38: 828.945 | EI38: 1406 | EJ38: 1550.064 | EK38: 1858.048 | EL38: 1975.872 | EM38: 1705.928 | EN38: 1518.08 | EO38: 1439.88 | EP38: 0 | EQ38: 0 | ER38: 0 | ES38: 0 | ET38: 0 | EU38: 0 | EV38: 0 | EW38: 0 | EX38: 0 | EY38: 0 | EZ38: 0
C39: Riverside Capacity | D39: FPS_EXS_RVC | E39: 0 | F39: 0 | G39: 0 | H39: 0 | I39: 0 | J39: 0 | L39: 0 | M39: 0 | N39: 0 | O39: 0 | P39: 0 | Q39: 0 | R39: 0 | S39: 0 | T39: 0 | U39: 0 | V39: 0 | W39: 0 | X39: 0 | Y39: 0 | Z39: 0 | AA39: 0 | AB39: 0 | AC39: 0 | AD39: 0 | AE39: 0 | AF39: 0 | AG39: 0 | AH39: 0 | AI39: 0 | AJ39: 0 | AK39: 0 | AL39: 0 | AM39: 0 | AN39: 0 | AO39: 0 | AP39: 0 | AQ39: 0 | AR39: 0 | AS39: 0 | AT39: 0 | AU39: 0 | AV39: 0 | AW39: 0 | AX39: 0 | AY39: 0 | AZ39: 0 | BA39: 0 | BB39: 0 | BC39: 0 | BD39: 0 | BE39: 0 | BF39: 0 | BG39: 0 | BH39: 0 | BI39: 0 | BJ39: 0 | BK39: 0 | BL39: 0 | BM39: 0 | BN39: 0 | BO39: 0 | BP39: 0 | BQ39: 0 | BR39: 0 | BS39: 0 | BT39: 0 | BU39: 0 | BV39: 0 | BW39: 0 | BX39: 0 | BY39: 0 | BZ39: 0 | CA39: 0 | CB39: 0 | CC39: 0 | CD39: 0 | CE39: 0 | CG39: 0 | CH39: 0 | CI39: 0 | CJ39: 0 | CK39: 0 | CL39: 0 | CM39: 0 | CN39: 0 | CO39: 0 | CP39: 0 | CQ39: 0 | CR39: 0 | CS39: 0 | CT39: 0 | CU39: 0 | CV39: 0 | CW39: 0 | CX39: 0 | CY39: 0 | CZ39: 0 | DA39: 0 | DB39: 0 | DC39: 0 | DD39: 0 | DE39: 0 | DF39: 0 | DG39: 0 | DH39: 0 | DI39: 0 | DJ39: 0 | DK39: 0 | DL39: 0 | DM39: 0 | DN39: 0 | DO39: 0 | DP39: 0 | DQ39: 0 | DR39: 0 | DS39: 0 | DT39: 0 | DU39: 0 | DV39: 0 | DW39: 0 | DX39: 0 | DY39: 0 | DZ39: 0 | EA39: 0 | EB39: 0 | EC39: 0 | ED39: 0 | EE39: 0 | EF39: 0 | EG39: 0 | EH39: 0 | EI39: 0 | EJ39: 0 | EK39: 0 | EL39: 0 | EM39: 0 | EN39: 0 | EO39: 0 | EP39: 0 | EQ39: 0 | ER39: 0 | ES39: 0 | ET39: 0 | EU39: 0 | EV39: 0 | EW39: 0 | EX39: 0 | EY39: 0 | EZ39: 0
C40: Riverside Seasonal | D40: FPS_EXS_RVS | E40: 0 | F40: 0 | G40: 0 | H40: 0 | I40: 0 | J40: 0 | L40: 0 | M40: 0 | N40: 0 | O40: 0 | P40: 0 | Q40: 0 | R40: 0 | S40: 0 | T40: 0 | U40: 0 | V40: 0 | W40: 0 | X40: 0 | Y40: 0 | Z40: 0 | AA40: 0 | AB40: 0 | AC40: 0 | AD40: 0 | AE40: 0 | AF40: 0 | AG40: 0 | AH40: 0 | AI40: 0 | AJ40: 0 | AK40: 0 | AL40: 0 | AM40: 0 | AN40: 0 | AO40: 0 | AP40: 0 | AQ40: 0 | AR40: 0 | AS40: 0 | AT40: 0 | AU40: 0 | AV40: 0 | AW40: 0 | AX40: 0 | AY40: 0 | AZ40: 0 | BA40: 0 | BB40: 0 | BC40: 0 | BD40: 0 | BE40: 0 | BF40: 0 | BG40: 0 | BH40: 0 | BI40: 0 | BJ40: 0 | BK40: 0 | BL40: 0 | BM40: 0 | BN40: 0 | BO40: 0 | BP40: 0 | BQ40: 0 | BR40: 0 | BS40: 0 | BT40: 0 | BU40: 0 | BV40: 0 | BW40: 0 | BX40: 0 | BY40: 0 | BZ40: 0 | CA40: 0 | CB40: 0 | CC40: 0 | CD40: 0 | CE40: 0 | CG40: 0 | CH40: 0 | CI40: 0 | CJ40: 0 | CK40: 0 | CL40: 0 | CM40: 0 | CN40: 0 | CO40: 0 | CP40: 0 | CQ40: 0 | CR40: 0 | CS40: 0 | CT40: 0 | CU40: 0 | CV40: 0 | CW40: 0 | CX40: 0 | CY40: 0 | CZ40: 0 | DA40: 0 | DB40: 0 | DC40: 0 | DD40: 0 | DE40: 0 | DF40: 0 | DG40: 0 | DH40: 0 | DI40: 0 | DJ40: 0 | DK40: 0 | DL40: 0 | DM40: 0 | DN40: 0 | DO40: 0 | DP40: 0 | DQ40: 0 | DR40: 0 | DS40: 0 | DT40: 0 | DU40: 0 | DV40: 0 | DW40: 0 | DX40: 0 | DY40: 0 | DZ40: 0 | EA40: 0 | EB40: 0 | EC40: 0 | ED40: 0 | EE40: 0 | EF40: 0 | EG40: 0 | EH40: 0 | EI40: 0 | EJ40: 0 | EK40: 0 | EL40: 0 | EM40: 0 | EN40: 0 | EO40: 0 | EP40: 0 | EQ40: 0 | ER40: 0 | ES40: 0 | ET40: 0 | EU40: 0 | EV40: 0 | EW40: 0 | EX40: 0 | EY40: 0 | EZ40: 0
C41: Pasadena Capacity | D41: FPS_EXS_PAC | E41: 0 | F41: 0 | G41: 0 | H41: 0 | I41: 0 | J41: 0 | L41: 0 | M41: 0 | N41: 0 | O41: 0 | P41: 0 | Q41: 0 | R41: 0 | S41: 0 | T41: 0 | U41: 0 | V41: 0 | W41: 0 | X41: 0 | Y41: 0 | Z41: 0 | AA41: 0 | AB41: 0 | AC41: 0 | AD41: 0 | AE41: 0 | AF41: 0 | AG41: 0 | AH41: 0 | AI41: 0 | AJ41: 0 | AK41: 0 | AL41: 0 | AM41: 0 | AN41: 0 | AO41: 0 | AP41: 0 | AQ41: 0 | AR41: 0 | AS41: 0 | AT41: 0 | AU41: 0 | AV41: 0 | AW41: 0 | AX41: 0 | AY41: 0 | AZ41: 0 | BA41: 0 | BB41: 0 | BC41: 0 | BD41: 0 | BE41: 0 | BF41: 0 | BG41: 0 | BH41: 0 | BI41: 0 | BJ41: 0 | BK41: 0 | BL41: 0 | BM41: 0 | BN41: 0 | BO41: 0 | BP41: 0 | BQ41: 0 | BR41: 0 | BS41: 0 | BT41: 0 | BU41: 0 | BV41: 0 | BW41: 0 | BX41: 0 | BY41: 0 | BZ41: 0 | CA41: 0 | CB41: 0 | CC41: 0 | CD41: 0 | CE41: 0 | CG41: 0 | CH41: 0 | CI41: 0 | CJ41: 0 | CK41: 0 | CL41: 0 | CM41: 0 | CN41: 0 | CO41: 0 | CP41: 0 | CQ41: 0 | CR41: 0 | CS41: 0 | CT41: 0 | CU41: 0 | CV41: 0 | CW41: 0 | CX41: 0 | CY41: 0 | CZ41: 0 | DA41: 0 | DB41: 0 | DC41: 0 | DD41: 0 | DE41: 0 | DF41: 0 | DG41: 0 | DH41: 0 | DI41: 0 | DJ41: 0 | DK41: 0 | DL41: 0 | DM41: 0 | DN41: 0 | DO41: 0 | DP41: 0 | DQ41: 0 | DR41: 0 | DS41: 0 | DT41: 0 | DU41: 0 | DV41: 0 | DW41: 0 | DX41: 0 | DY41: 0 | DZ41: 0 | EA41: 0 | EB41: 0 | EC41: 0 | ED41: 0 | EE41: 0 | EF41: 0 | EG41: 0 | EH41: 0 | EI41: 0 | EJ41: 0 | EK41: 0 | EL41: 0 | EM41: 0 | EN41: 0 | EO41: 0 | EP41: 0 | EQ41: 0 | ER41: 0 | ES41: 0 | ET41: 0 | EU41: 0 | EV41: 0 | EW41: 0 | EX41: 0 | EY41: 0 | EZ41: 0
C42: Pasadena Seasonal | D42: FPS_EXS_PAS | E42: 0 | F42: 0 | G42: 0 | H42: 0 | I42: 0 | J42: 0 | L42: 0 | M42: 0 | N42: 0 | O42: 0 | P42: 0 | Q42: 0 | R42: 0 | S42: 0 | T42: 0 | U42: 0 | V42: 0 | W42: 0 | X42: 0 | Y42: 0 | Z42: 0 | AA42: 0 | AB42: 0 | AC42: 0 | AD42: 0 | AE42: 0 | AF42: 0 | AG42: 0 | AH42: 0 | AI42: 0 | AJ42: 0 | AK42: 0 | AL42: 0 | AM42: 0 | AN42: 0 | AO42: 0 | AP42: 0 | AQ42: 0 | AR42: 0 | AS42: 0 | AT42: 0 | AU42: 0 | AV42: 0 | AW42: 0 | AX42: 0 | AY42: 0 | AZ42: 0 | BA42: 0 | BB42: 0 | BC42: 0 | BD42: 0 | BE42: 0 | BF42: 0 | BG42: 0 | BH42: 0 | BI42: 0 | BJ42: 0 | BK42: 0 | BL42: 0 | BM42: 0 | BN42: 0 | BO42: 0 | BP42: 0 | BQ42: 0 | BR42: 0 | BS42: 0 | BT42: 0 | BU42: 0 | BV42: 0 | BW42: 0 | BX42: 0 | BY42: 0 | BZ42: 0 | CA42: 0 | CB42: 0 | CC42: 0 | CD42: 0 | CE42: 0 | CG42: 0 | CH42: 0 | CI42: 0 | CJ42: 0 | CK42: 0 | CL42: 0 | CM42: 0 | CN42: 0 | CO42: 0 | CP42: 0 | CQ42: 0 | CR42: 0 | CS42: 0 | CT42: 0 | CU42: 0 | CV42: 0 | CW42: 0 | CX42: 0 | CY42: 0 | CZ42: 0 | DA42: 0 | DB42: 0 | DC42: 0 | DD42: 0 | DE42: 0 | DF42: 0 | DG42: 0 | DH42: 0 | DI42: 0 | DJ42: 0 | DK42: 0 | DL42: 0 | DM42: 0 | DN42: 0 | DO42: 0 | DP42: 0 | DQ42: 0 | DR42: 0 | DS42: 0 | DT42: 0 | DU42: 0 | DV42: 0 | DW42: 0 | DX42: 0 | DY42: 0 | DZ42: 0 | EA42: 0 | EB42: 0 | EC42: 0 | ED42: 0 | EE42: 0 | EF42: 0 | EG42: 0 | EH42: 0 | EI42: 0 | EJ42: 0 | EK42: 0 | EL42: 0 | EM42: 0 | EN42: 0 | EO42: 0 | EP42: 0 | EQ42: 0 | ER42: 0 | ES42: 0 | ET42: 0 | EU42: 0 | EV42: 0 | EW42: 0 | EX42: 0 | EY42: 0 | EZ42: 0
C43: PG&E | D43: FPS_EXS_PGE | E43: 0 | F43: 0 | G43: 0 | H43: 0 | I43: 0 | J43: 0 | L43: 0 | M43: 0 | N43: 0 | O43: 0 | P43: 0 | Q43: 0 | R43: 0 | S43: 0 | T43: 0 | U43: 0 | V43: 0 | W43: 0 | X43: 0 | Y43: 0 | Z43: 0 | AA43: 0 | AB43: 0 | AC43: 0 | AD43: 0 | AE43: 0 | AF43: 0 | AG43: 0 | AH43: 0 | AI43: 0 | AJ43: 0 | AK43: 0 | AL43: 0 | AM43: 0 | AN43: 0 | AO43: 0 | AP43: 0 | AQ43: 0 | AR43: 0 | AS43: 0 | AT43: 0 | AU43: 0 | AV43: 0 | AW43: 0 | AX43: 0 | AY43: 0 | AZ43: 0 | BA43: 0 | BB43: 0 | BC43: 0 | BD43: 0 | BE43: 0 | BF43: 0 | BG43: 0 | BH43: 0 | BI43: 0 | BJ43: 0 | BK43: 0 | BL43: 0 | BM43: 0 | BN43: 0 | BO43: 0 | BP43: 0 | BQ43: 0 | BR43: 0 | BS43: 0 | BT43: 0 | BU43: 0 | BV43: 0 | BW43: 0 | BX43: 0 | BY43: 0 | BZ43: 0 | CA43: 0 | CB43: 0 | CC43: 0 | CD43: 0 | CE43: 0 | CG43: 0 | CH43: 0 | CI43: 0 | CJ43: 0 | CK43: 0 | CL43: 0 | CM43: 0 | CN43: 0 | CO43: 0 | CP43: 0 | CQ43: 0 | CR43: 0 | CS43: 0 | CT43: 0 | CU43: 0 | CV43: 0 | CW43: 0 | CX43: 0 | CY43: 0 | CZ43: 0 | DA43: 0 | DB43: 0 | DC43: 0 | DD43: 0 | DE43: 0 | DF43: 0 | DG43: 0 | DH43: 0 | DI43: 0 | DJ43: 0 | DK43: 0 | DL43: 0 | DM43: 0 | DN43: 0 | DO43: 0 | DP43: 0 | DQ43: 0 | DR43: 0 | DS43: 0 | DT43: 0 | DU43: 0 | DV43: 0 | DW43: 0 | DX43: 0 | DY43: 0 | DZ43: 0 | EA43: 0 | EB43: 0 | EC43: 0 | ED43: 0 | EE43: 0 | EF43: 0 | EG43: 0 | EH43: 0 | EI43: 0 | EJ43: 0 | EK43: 0 | EL43: 0 | EM43: 0 | EN43: 0 | EO43: 0 | EP43: 0 | EQ43: 0 | ER43: 0 | ES43: 0 | ET43: 0 | EU43: 0 | EV43: 0 | EW43: 0 | EX43: 0 | EY43: 0 | EZ43: 0
C44: Intertie Losses | D44: FPS_EXS_LSS | E44: 16932.45 | F44: 3313.5 | G44: 0 | H44: 0 | I44: 0 | J44: 0 | L44: 1360.8 | M44: 1260 | N44: 1260 | O44: 686.4 | P44: 600 | Q44: 624 | R44: 624 | S44: 600 | T44: 624 | U44: 624 | V44: 624 | W44: 600 | X44: 648 | Y44: 576 | Z44: 624 | AA44: 0 | AB44: 0 | AC44: 0 | AD44: 0 | AE44: 0 | AF44: 0 | AG44: 0 | AH44: 0 | AI44: 0 | AJ44: 0 | AK44: 0 | AL44: 0 | AM44: 0 | AN44: 0 | AO44: 0 | AP44: 0 | AQ44: 0 | AR44: 0 | AS44: 0 | AT44: 0 | AU44: 0 | AV44: 0 | AW44: 0 | AX44: 0 | AY44: 0 | AZ44: 0 | BA44: 0 | BB44: 0 | BC44: 0 | BD44: 0 | BE44: 0 | BF44: 0 | BG44: 0 | BH44: 0 | BI44: 0 | BJ44: 0 | BK44: 0 | BL44: 0 | BM44: 0 | BN44: 0 | BO44: 0 | BP44: 0 | BQ44: 0 | BR44: 0 | BS44: 0 | BT44: 0 | BU44: 0 | BV44: 0 | BW44: 0 | BX44: 0 | BY44: 0 | BZ44: 0 | CA44: 0 | CB44: 0 | CC44: 0 | CD44: 0 | CE44: 0 | CG44: 982.8 | CH44: 1011.15 | CI44: 1083.6 | CJ44: 541.2 | CK44: 444 | CL44: 490.5 | CM44: 456 | CN44: 516 | CO44: 456 | CP44: 492 | CQ44: 492 | CR44: 480 | CS44: 468 | CT44: 505.5 | CU44: 492 | CV44: 0 | CW44: 0 | CX44: 0 | CY44: 0 | CZ44: 0 | DA44: 0 | DB44: 0 | DC44: 0 | DD44: 0 | DE44: 0 | DF44: 0 | DG44: 0 | DH44: 0 | DI44: 0 | DJ44: 0 | DK44: 0 | DL44: 0 | DM44: 0 | DN44: 0 | DO44: 0 | DP44: 0 | DQ44: 0 | DR44: 0 | DS44: 0 | DT44: 0 | DU44: 0 | DV44: 0 | DW44: 0 | DX44: 0 | DY44: 0 | DZ44: 0 | EA44: 0 | EB44: 0 | EC44: 0 | ED44: 0 | EE44: 0 | EF44: 0 | EG44: 0 | EH44: 0 | EI44: 0 | EJ44: 0 | EK44: 0 | EL44: 0 | EM44: 0 | EN44: 0 | EO44: 0 | EP44: 0 | EQ44: 0 | ER44: 0 | ES44: 0 | ET44: 0 | EU44: 0 | EV44: 0 | EW44: 0 | EX44: 0 | EY44: 0 | EZ44: 0
C45: PacifiCorp | D45: FPS_EXS_PPL | E45: 38300.666 | F45: 3279.768 | G45: 38300.666 | H45: 3279.768 | I45: 38300.666 | J45: 3279.768 | L45: 1842.912 | M45: 2117.2 | N45: 1360 | O45: 1240.096 | P45: 1206 | Q45: 839.904 | R45: 1996.8 | S45: 2204.8 | T45: 1720.16 | U45: 2746.016 | V45: 2288 | W45: 1560 | X45: 1839.888 | Y45: 0 | Z45: 0 | AA45: 0 | AB45: 0 | AC45: 0 | AD45: 0 | AE45: 0 | AF45: 0 | AG45: 0 | AH45: 0 | AI45: 0 | AJ45: 1842.912 | AK45: 2117.2 | AL45: 1360 | AM45: 1240.096 | AN45: 1206 | AO45: 839.904 | AP45: 1996.8 | AQ45: 2204.8 | AR45: 1720.16 | AS45: 2746.016 | AT45: 2288 | AU45: 1560 | AV45: 1839.888 | AW45: 0 | AX45: 0 | AY45: 0 | AZ45: 0 | BA45: 0 | BB45: 0 | BC45: 0 | BD45: 0 | BE45: 0 | BF45: 0 | BG45: 0 | BH45: 1842.912 | BI45: 2117.2 | BJ45: 1360 | BK45: 1240.096 | BL45: 1206 | BM45: 839.904 | BN45: 1996.8 | BO45: 2204.8 | BP45: 1720.16 | BQ45: 2746.016 | BR45: 2288 | BS45: 1560 | BT45: 1839.888 | BU45: 0 | BV45: 0 | BW45: 0 | BX45: 0 | BY45: 0 | BZ45: 0 | CA45: 0 | CB45: 0 | CC45: 0 | CD45: 0 | CE45: 0 | CG45: 1444.872 | CH45: 1684.929 | CI45: 1380.128 | CJ45: 1169.976 | CK45: 655.936 | CL45: 828.945 | CM45: 1406 | CN45: 1550.064 | CO45: 1858.048 | CP45: 1975.872 | CQ45: 1705.928 | CR45: 1518.08 | CS45: 1439.88 | CT45: 0 | CU45: 0 | CV45: 0 | CW45: 0 | CX45: 0 | CY45: 0 | CZ45: 0 | DA45: 0 | DB45: 0 | DC45: 0 | DD45: 0 | DE45: 1444.872 | DF45: 1684.929 | DG45: 1380.128 | DH45: 1169.976 | DI45: 655.936 | DJ45: 828.945 | DK45: 1406 | DL45: 1550.064 | DM45: 1858.048 | DN45: 1975.872 | DO45: 1705.928 | DP45: 1518.08 | DQ45: 1439.88 | DR45: 0 | DS45: 0 | DT45: 0 | DU45: 0 | DV45: 0 | DW45: 0 | DX45: 0 | DY45: 0 | DZ45: 0 | EA45: 0 | EB45: 0 | EC45: 1444.872 | ED45: 1684.929 | EE45: 1380.128 | EF45: 1169.976 | EG45: 655.936 | EH45: 828.945 | EI45: 1406 | EJ45: 1550.064 | EK45: 1858.048 | EL45: 1975.872 | EM45: 1705.928 | EN45: 1518.08 | EO45: 1439.88 | EP45: 0 | EQ45: 0 | ER45: 0 | ES45: 0 | ET45: 0 | EU45: 0 | EV45: 0 | EW45: 0 | EX45: 0 | EY45: 0 | EZ45: 0
E46: 0 | F46: 0 | G46: 0 | H46: 0 | I46: 0 | J46: 0 | L46: 0 | M46: 0 | N46: 0 | O46: 0 | P46: 0 | Q46: 0 | R46: 0 | S46: 0 | T46: 0 | U46: 0 | V46: 0 | W46: 0 | X46: 0 | Y46: 0 | Z46: 0 | AA46: 0 | AB46: 0 | AC46: 0 | AD46: 0 | AE46: 0 | AF46: 0 | AG46: 0 | AH46: 0 | AI46: 0 | AJ46: 0 | AK46: 0 | AL46: 0 | AM46: 0 | AN46: 0 | AO46: 0 | AP46: 0 | AQ46: 0 | AR46: 0 | AS46: 0 | AT46: 0 | AU46: 0 | AV46: 0 | AW46: 0 | AX46: 0 | AY46: 0 | AZ46: 0 | BA46: 0 | BB46: 0 | BC46: 0 | BD46: 0 | BE46: 0 | BF46: 0 | BG46: 0 | BH46: 0 | BI46: 0 | BJ46: 0 | BK46: 0 | BL46: 0 | BM46: 0 | BN46: 0 | BO46: 0 | BP46: 0 | BQ46: 0 | BR46: 0 | BS46: 0 | BT46: 0 | BU46: 0 | BV46: 0 | BW46: 0 | BX46: 0 | BY46: 0 | BZ46: 0 | CA46: 0 | CB46: 0 | CC46: 0 | CD46: 0 | CE46: 0 | CG46: 0 | CH46: 0 | CI46: 0 | CJ46: 0 | CK46: 0 | CL46: 0 | CM46: 0 | CN46: 0 | CO46: 0 | CP46: 0 | CQ46: 0 | CR46: 0 | CS46: 0 | CT46: 0 | CU46: 0 | CV46: 0 | CW46: 0 | CX46: 0 | CY46: 0 | CZ46: 0 | DA46: 0 | DB46: 0 | DC46: 0 | DD46: 0 | DE46: 0 | DF46: 0 | DG46: 0 | DH46: 0 | DI46: 0 | DJ46: 0 | DK46: 0 | DL46: 0 | DM46: 0 | DN46: 0 | DO46: 0 | DP46: 0 | DQ46: 0 | DR46: 0 | DS46: 0 | DT46: 0 | DU46: 0 | DV46: 0 | DW46: 0 | DX46: 0 | DY46: 0 | DZ46: 0 | EA46: 0 | EB46: 0 | EC46: 0 | ED46: 0 | EE46: 0 | EF46: 0 | EG46: 0 | EH46: 0 | EI46: 0 | EJ46: 0 | EK46: 0 | EL46: 0 | EM46: 0 | EN46: 0 | EO46: 0 | EP46: 0 | EQ46: 0 | ER46: 0 | ES46: 0 | ET46: 0 | EU46: 0 | EV46: 0 | EW46: 0 | EX46: 0 | EY46: 0 | EZ46: 0
E47: 0 | F47: 0 | G47: 0 | H47: 0 | I47: 0 | J47: 0 | L47: 0 | M47: 0 | N47: 0 | O47: 0 | P47: 0 | Q47: 0 | R47: 0 | S47: 0 | T47: 0 | U47: 0 | V47: 0 | W47: 0 | X47: 0 | Y47: 0 | Z47: 0 | AA47: 0 | AB47: 0 | AC47: 0 | AD47: 0 | AE47: 0 | AF47: 0 | AG47: 0 | AH47: 0 | AI47: 0 | AJ47: 0 | AK47: 0 | AL47: 0 | AM47: 0 | AN47: 0 | AO47: 0 | AP47: 0 | AQ47: 0 | AR47: 0 | AS47: 0 | AT47: 0 | AU47: 0 | AV47: 0 | AW47: 0 | AX47: 0 | AY47: 0 | AZ47: 0 | BA47: 0 | BB47: 0 | BC47: 0 | BD47: 0 | BE47: 0 | BF47: 0 | BG47: 0 | BH47: 0 | BI47: 0 | BJ47: 0 | BK47: 0 | BL47: 0 | BM47: 0 | BN47: 0 | BO47: 0 | BP47: 0 | BQ47: 0 | BR47: 0 | BS47: 0 | BT47: 0 | BU47: 0 | BV47: 0 | BW47: 0 | BX47: 0 | BY47: 0 | BZ47: 0 | CA47: 0 | CB47: 0 | CC47: 0 | CD47: 0 | CE47: 0 | CG47: 0 | CH47: 0 | CI47: 0 | CJ47: 0 | CK47: 0 | CL47: 0 | CM47: 0 | CN47: 0 | CO47: 0 | CP47: 0 | CQ47: 0 | CR47: 0 | CS47: 0 | CT47: 0 | CU47: 0 | CV47: 0 | CW47: 0 | CX47: 0 | CY47: 0 | CZ47: 0 | DA47: 0 | DB47: 0 | DC47: 0 | DD47: 0 | DE47: 0 | DF47: 0 | DG47: 0 | DH47: 0 | DI47: 0 | DJ47: 0 | DK47: 0 | DL47: 0 | DM47: 0 | DN47: 0 | DO47: 0 | DP47: 0 | DQ47: 0 | DR47: 0 | DS47: 0 | DT47: 0 | DU47: 0 | DV47: 0 | DW47: 0 | DX47: 0 | DY47: 0 | DZ47: 0 | EA47: 0 | EB47: 0 | EC47: 0 | ED47: 0 | EE47: 0 | EF47: 0 | EG47: 0 | EH47: 0 | EI47: 0 | EJ47: 0 | EK47: 0 | EL47: 0 | EM47: 0 | EN47: 0 | EO47: 0 | EP47: 0 | EQ47: 0 | ER47: 0 | ES47: 0 | ET47: 0 | EU47: 0 | EV47: 0 | EW47: 0 | EX47: 0 | EY47: 0 | EZ47: 0
E48: 0 | F48: 0 | G48: 0 | H48: 0 | I48: 0 | J48: 0 | L48: 0 | M48: 0 | N48: 0 | O48: 0 | P48: 0 | Q48: 0 | R48: 0 | S48: 0 | T48: 0 | U48: 0 | V48: 0 | W48: 0 | X48: 0 | Y48: 0 | Z48: 0 | AA48: 0 | AB48: 0 | AC48: 0 | AD48: 0 | AE48: 0 | AF48: 0 | AG48: 0 | AH48: 0 | AI48: 0 | AJ48: 0 | AK48: 0 | AL48: 0 | AM48: 0 | AN48: 0 | AO48: 0 | AP48: 0 | AQ48: 0 | AR48: 0 | AS48: 0 | AT48: 0 | AU48: 0 | AV48: 0 | AW48: 0 | AX48: 0 | AY48: 0 | AZ48: 0 | BA48: 0 | BB48: 0 | BC48: 0 | BD48: 0 | BE48: 0 | BF48: 0 | BG48: 0 | BH48: 0 | BI48: 0 | BJ48: 0 | BK48: 0 | BL48: 0 | BM48: 0 | BN48: 0 | BO48: 0 | BP48: 0 | BQ48: 0 | BR48: 0 | BS48: 0 | BT48: 0 | BU48: 0 | BV48: 0 | BW48: 0 | BX48: 0 | BY48: 0 | BZ48: 0 | CA48: 0 | CB48: 0 | CC48: 0 | CD48: 0 | CE48: 0 | CG48: 0 | CH48: 0 | CI48: 0 | CJ48: 0 | CK48: 0 | CL48: 0 | CM48: 0 | CN48: 0 | CO48: 0 | CP48: 0 | CQ48: 0 | CR48: 0 | CS48: 0 | CT48: 0 | CU48: 0 | CV48: 0 | CW48: 0 | CX48: 0 | CY48: 0 | CZ48: 0 | DA48: 0 | DB48: 0 | DC48: 0 | DD48: 0 | DE48: 0 | DF48: 0 | DG48: 0 | DH48: 0 | DI48: 0 | DJ48: 0 | DK48: 0 | DL48: 0 | DM48: 0 | DN48: 0 | DO48: 0 | DP48: 0 | DQ48: 0 | DR48: 0 | DS48: 0 | DT48: 0 | DU48: 0 | DV48: 0 | DW48: 0 | DX48: 0 | DY48: 0 | DZ48: 0 | EA48: 0 | EB48: 0 | EC48: 0 | ED48: 0 | EE48: 0 | EF48: 0 | EG48: 0 | EH48: 0 | EI48: 0 | EJ48: 0 | EK48: 0 | EL48: 0 | EM48: 0 | EN48: 0 | EO48: 0 | EP48: 0 | EQ48: 0 | ER48: 0 | ES48: 0 | ET48: 0 | EU48: 0 | EV48: 0 | EW48: 0 | EX48: 0 | EY48: 0 | EZ48: 0
A49: Firm Surplus Sale | D49: FSS | E49: 1381840 | F49: 300550 | G49: 1381840 | H49: 300550 | I49: 1381840 | J49: 300550 | L49: 110160 | M49: 102000 | N49: 102000 | O49: 54080 | P49: 50000 | Q49: 52000 | R49: 41600 | S49: 40000 | T49: 41600 | U49: 52000 | V49: 52000 | W49: 50000 | X49: 54000 | Y49: 48000 | Z49: 52000 | AA49: 0 | AB49: 0 | AC49: 0 | AD49: 0 | AE49: 0 | AF49: 0 | AG49: 0 | AH49: 0 | AI49: 0 | AJ49: 110160 | AK49: 102000 | AL49: 102000 | AM49: 54080 | AN49: 50000 | AO49: 52000 | AP49: 41600 | AQ49: 40000 | AR49: 41600 | AS49: 52000 | AT49: 52000 | AU49: 50000 | AV49: 54000 | AW49: 48000 | AX49: 52000 | AY49: 0 | AZ49: 0 | BA49: 0 | BB49: 0 | BC49: 0 | BD49: 0 | BE49: 0 | BF49: 0 | BG49: 0 | BH49: 110160 | BI49: 102000 | BJ49: 102000 | BK49: 54080 | BL49: 50000 | BM49: 52000 | BN49: 41600 | BO49: 40000 | BP49: 41600 | BQ49: 52000 | BR49: 52000 | BS49: 50000 | BT49: 54000 | BU49: 48000 | BV49: 52000 | BW49: 0 | BX49: 0 | BY49: 0 | BZ49: 0 | CA49: 0 | CB49: 0 | CC49: 0 | CD49: 0 | CE49: 0 | CG49: 71760 | CH49: 73830 | CI49: 79120 | CJ49: 50840 | CK49: 44400 | CL49: 49050 | CM49: 38000 | CN49: 43000 | CO49: 38000 | CP49: 49200 | CQ49: 49200 | CR49: 48000 | CS49: 46800 | CT49: 50550 | CU49: 49200 | CV49: 0 | CW49: 0 | CX49: 0 | CY49: 0 | CZ49: 0 | DA49: 0 | DB49: 0 | DC49: 0 | DD49: 0 | DE49: 71760 | DF49: 73830 | DG49: 79120 | DH49: 50840 | DI49: 44400 | DJ49: 49050 | DK49: 38000 | DL49: 43000 | DM49: 38000 | DN49: 49200 | DO49: 49200 | DP49: 48000 | DQ49: 46800 | DR49: 50550 | DS49: 49200 | DT49: 0 | DU49: 0 | DV49: 0 | DW49: 0 | DX49: 0 | DY49: 0 | DZ49: 0 | EA49: 0 | EB49: 0 | EC49: 71760 | ED49: 73830 | EE49: 79120 | EF49: 50840 | EG49: 44400 | EH49: 49050 | EI49: 38000 | EJ49: 43000 | EK49: 38000 | EL49: 49200 | EM49: 49200 | EN49: 48000 | EO49: 46800 | EP49: 50550 | EQ49: 49200 | ER49: 0 | ES49: 0 | ET49: 0 | EU49: 0 | EV49: 0 | EW49: 0 | EX49: 0 | EY49: 0 | EZ49: 0
A50: Presale of Secondary | D50: PRS | E50: 0 | F50: 0 | G50: 0 | H50: 0 | I50: 0 | J50: 0 | L50: 0 | M50: 0 | N50: 0 | O50: 0 | P50: 0 | Q50: 0 | R50: 0 | S50: 0 | T50: 0 | U50: 0 | V50: 0 | W50: 0 | X50: 0 | Y50: 0 | Z50: 0 | AA50: 0 | AB50: 0 | AC50: 0 | AD50: 0 | AE50: 0 | AF50: 0 | AG50: 0 | AH50: 0 | AI50: 0 | AJ50: 0 | AK50: 0 | AL50: 0 | AM50: 0 | AN50: 0 | AO50: 0 | AP50: 0 | AQ50: 0 | AR50: 0 | AS50: 0 | AT50: 0 | AU50: 0 | AV50: 0 | AW50: 0 | AX50: 0 | AY50: 0 | AZ50: 0 | BA50: 0 | BB50: 0 | BC50: 0 | BD50: 0 | BE50: 0 | BF50: 0 | BG50: 0 | BH50: 0 | BI50: 0 | BJ50: 0 | BK50: 0 | BL50: 0 | BM50: 0 | BN50: 0 | BO50: 0 | BP50: 0 | BQ50: 0 | BR50: 0 | BS50: 0 | BT50: 0 | BU50: 0 | BV50: 0 | BW50: 0 | BX50: 0 | BY50: 0 | BZ50: 0 | CA50: 0 | CB50: 0 | CC50: 0 | CD50: 0 | CE50: 0 | CG50: 0 | CH50: 0 | CI50: 0 | CJ50: 0 | CK50: 0 | CL50: 0 | CM50: 0 | CN50: 0 | CO50: 0 | CP50: 0 | CQ50: 0 | CR50: 0 | CS50: 0 | CT50: 0 | CU50: 0 | CV50: 0 | CW50: 0 | CX50: 0 | CY50: 0 | CZ50: 0 | DA50: 0 | DB50: 0 | DC50: 0 | DD50: 0 | DE50: 0 | DF50: 0 | DG50: 0 | DH50: 0 | DI50: 0 | DJ50: 0 | DK50: 0 | DL50: 0 | DM50: 0 | DN50: 0 | DO50: 0 | DP50: 0 | DQ50: 0 | DR50: 0 | DS50: 0 | DT50: 0 | DU50: 0 | DV50: 0 | DW50: 0 | DX50: 0 | DY50: 0 | DZ50: 0 | EA50: 0 | EB50: 0 | EC50: 0 | ED50: 0 | EE50: 0 | EF50: 0 | EG50: 0 | EH50: 0 | EI50: 0 | EJ50: 0 | EK50: 0 | EL50: 0 | EM50: 0 | EN50: 0 | EO50: 0 | EP50: 0 | EQ50: 0 | ER50: 0 | ES50: 0 | ET50: 0 | EU50: 0 | EV50: 0 | EW50: 0 | EX50: 0 | EY50: 0 | EZ50: 0
A51: Conservation | D51: CON | E51: 0 | F51: 0 | G51: 0 | H51: 0 | I51: 0 | J51: 0 | L51: 0 | M51: 0 | N51: 0 | O51: 0 | P51: 0 | Q51: 0 | R51: 0 | S51: 0 | T51: 0 | U51: 0 | V51: 0 | W51: 0 | X51: 0 | Y51: 0 | Z51: 0 | AA51: 0 | AB51: 0 | AC51: 0 | AD51: 0 | AE51: 0 | AF51: 0 | AG51: 0 | AH51: 0 | AI51: 0 | AJ51: 0 | AK51: 0 | AL51: 0 | AM51: 0 | AN51: 0 | AO51: 0 | AP51: 0 | AQ51: 0 | AR51: 0 | AS51: 0 | AT51: 0 | AU51: 0 | AV51: 0 | AW51: 0 | AX51: 0 | AY51: 0 | AZ51: 0 | BA51: 0 | BB51: 0 | BC51: 0 | BD51: 0 | BE51: 0 | BF51: 0 | BG51: 0 | BH51: 0 | BI51: 0 | BJ51: 0 | BK51: 0 | BL51: 0 | BM51: 0 | BN51: 0 | BO51: 0 | BP51: 0 | BQ51: 0 | BR51: 0 | BS51: 0 | BT51: 0 | BU51: 0 | BV51: 0 | BW51: 0 | BX51: 0 | BY51: 0 | BZ51: 0 | CA51: 0 | CB51: 0 | CC51: 0 | CD51: 0 | CE51: 0 | CG51: 0 | CH51: 0 | CI51: 0 | CJ51: 0 | CK51: 0 | CL51: 0 | CM51: 0 | CN51: 0 | CO51: 0 | CP51: 0 | CQ51: 0 | CR51: 0 | CS51: 0 | CT51: 0 | CU51: 0 | CV51: 0 | CW51: 0 | CX51: 0 | CY51: 0 | CZ51: 0 | DA51: 0 | DB51: 0 | DC51: 0 | DD51: 0 | DE51: 0 | DF51: 0 | DG51: 0 | DH51: 0 | DI51: 0 | DJ51: 0 | DK51: 0 | DL51: 0 | DM51: 0 | DN51: 0 | DO51: 0 | DP51: 0 | DQ51: 0 | DR51: 0 | DS51: 0 | DT51: 0 | DU51: 0 | DV51: 0 | DW51: 0 | DX51: 0 | DY51: 0 | DZ51: 0 | EA51: 0 | EB51: 0 | EC51: 0 | ED51: 0 | EE51: 0 | EF51: 0 | EG51: 0 | EH51: 0 | EI51: 0 | EJ51: 0 | EK51: 0 | EL51: 0 | EM51: 0 | EN51: 0 | EO51: 0 | EP51: 0 | EQ51: 0 | ER51: 0 | ES51: 0 | ET51: 0 | EU51: 0 | EV51: 0 | EW51: 0 | EX51: 0 | EY51: 0 | EZ51: 0
A54: Loss Percentage | E54: 0.03060908997 | F54: 0.03060908997 | G54: 0.03060908997 | H54: 0.03060908997 | I54: 0.03060908997 | J54: 0.03060908997 | L54: 0.03060908997 | M54: 0.03060908997 | N54: 0.03060908997 | O54: 0.03060908997 | P54: 0.03060908997 | Q54: 0.03060908997 | R54: 0.03060908997 | S54: 0.03060908997 | T54: 0.03060908997 | U54: 0.03060908997 | V54: 0.03060908997 | W54: 0.03060908997 | X54: 0.03060908997 | Y54: 0.03060908997 | Z54: 0.03060908997 | AA54: 0.03060908997 | AB54: 0.03060908997 | AC54: 0.03060908997 | AD54: 0.03060908997 | AE54: 0.03060908997 | AF54: 0.03060908997 | AG54: 0.03060908997 | AH54: 0.03060908997 | AI54: 0.03060908997 | AJ54: 0.03060908997 | AK54: 0.03060908997 | AL54: 0.03060908997 | AM54: 0.03060908997 | AN54: 0.03060908997 | AO54: 0.03060908997 | AP54: 0.03060908997 | AQ54: 0.03060908997 | AR54: 0.03060908997 | AS54: 0.03060908997 | AT54: 0.03060908997 | AU54: 0.03060908997 | AV54: 0.03060908997 | AW54: 0.03060908997 | AX54: 0.03060908997 | AY54: 0.03060908997 | AZ54: 0.03060908997 | BA54: 0.03060908997 | BB54: 0.03060908997 | BC54: 0.03060908997 | BD54: 0.03060908997 | BE54: 0.03060908997 | BF54: 0.03060908997 | BG54: 0.03060908997 | BH54: 0.03060908997 | BI54: 0.03060908997 | BJ54: 0.03060908997 | BK54: 0.03060908997 | BL54: 0.03060908997 | BM54: 0.03060908997 | BN54: 0.03060908997 | BO54: 0.03060908997 | BP54: 0.03060908997 | BQ54: 0.03060908997 | BR54: 0.03060908997 | BS54: 0.03060908997 | BT54: 0.03060908997 | BU54: 0.03060908997 | BV54: 0.03060908997 | BW54: 0.03060908997 | BX54: 0.03060908997 | BY54: 0.03060908997 | BZ54: 0.03060908997 | CA54: 0.03060908997 | CB54: 0.03060908997 | CC54: 0.03060908997 | CD54: 0.03060908997 | CE54: 0.03060908997 | CG54: 0.03060908997 | CH54: 0.03060908997 | CI54: 0.03060908997 | CJ54: 0.03060908997 | CK54: 0.03060908997 | CL54: 0.03060908997 | CM54: 0.03060908997 | CN54: 0.03060908997 | CO54: 0.03060908997 | CP54: 0.03060908997 | CQ54: 0.03060908997 | CR54: 0.03060908997 | CS54: 0.03060908997 | CT54: 0.03060908997 | CU54: 0.03060908997 | CV54: 0.03060908997 | CW54: 0.03060908997 | CX54: 0.03060908997 | CY54: 0.03060908997 | CZ54: 0.03060908997 | DA54: 0.03060908997 | DB54: 0.03060908997 | DC54: 0.03060908997 | DD54: 0.03060908997 | DE54: 0.03060908997 | DF54: 0.03060908997 | DG54: 0.03060908997 | DH54: 0.03060908997 | DI54: 0.03060908997 | DJ54: 0.03060908997 | DK54: 0.03060908997 | DL54: 0.03060908997 | DM54: 0.03060908997 | DN54: 0.03060908997 | DO54: 0.03060908997 | DP54: 0.03060908997 | DQ54: 0.03060908997 | DR54: 0.03060908997 | DS54: 0.03060908997 | DT54: 0.03060908997 | DU54: 0.03060908997 | DV54: 0.03060908997 | DW54: 0.03060908997 | DX54: 0.03060908997 | DY54: 0.03060908997 | DZ54: 0.03060908997 | EA54: 0.03060908997 | EB54: 0.03060908997 | EC54: 0.03060908997 | ED54: 0.03060908997 | EE54: 0.03060908997 | EF54: 0.03060908997 | EG54: 0.03060908997 | EH54: 0.03060908997 | EI54: 0.03060908997 | EJ54: 0.03060908997 | EK54: 0.03060908997 | EL54: 0.03060908997 | EM54: 0.03060908997 | EN54: 0.03060908997 | EO54: 0.03060908997 | EP54: 0.03060908997 | EQ54: 0.03060908997 | ER54: 0.03060908997 | ES54: 0.03060908997 | ET54: 0.03060908997 | EU54: 0.03060908997 | EV54: 0.03060908997 | EW54: 0.03060908997 | EX54: 0.03060908997 | EY54: 0.03060908997 | EZ54: 0.03060908997

Sheet PF Public
B1: Billing Determinants Needed for Rates Analysis Model | O1: Not printed in documentation.
A2: TOC | B2: =Cover!$C$14 -> RAMmodel_REP2020.xls | U2: Not printed in documentation.
A3: é
D4: =+DATE(Init!$C$9-1,10,1) -> 2019-10-01 | E4: =+EOMONTH(D4,0)+1 -> 2019-11-01 | F4: 2019-12-01 | G4: 2020-01-01 | H4: 2020-02-01 | I4: 2020-03-01 | J4: 2020-04-01 | K4: 2020-05-01 | L4: 2020-06-01 | M4: 2020-07-01 | N4: 2020-08-01 | O4: 2020-09-01 | P4: 2020-10-01 | Q4: 2020-11-01 | R4: 2020-12-01 | S4: 2021-01-01 | T4: 2021-02-01 | U4: 2021-03-01 | V4: 2021-04-01 | W4: 2021-05-01 | X4: 2021-06-01 | Y4: 2021-07-01 | Z4: 2021-08-01 | AA4: 2021-09-01 | AB4: 2021-10-01 | AC4: 2021-11-01 | AD4: 2021-12-01 | AE4: 2022-01-01 | AF4: 2022-02-01 | AG4: 2022-03-01 | AH4: 2022-04-01 | AI4: 2022-05-01 | AJ4: 2022-06-01 | AK4: =+EOMONTH(AJ4,0)+1 -> 2022-07-01 | AL4: 2022-08-01 | AM4: 2022-09-01 | AN4: 2022-10-01 | AO4: 2022-11-01 | AP4: 2022-12-01 | AQ4: 2023-01-01 | AR4: 2023-02-01 | AS4: 2023-03-01 | AT4: 2023-04-01 | AU4: 2023-05-01 | AV4: 2023-06-01 | AW4: 2023-07-01 | AX4: 2023-08-01 | AY4: 2023-09-01 | AZ4: 2023-10-01 | BA4: 2023-11-01 | BB4: 2023-12-01 | BC4: 2024-01-01 | BD4: 2024-02-01 | BE4: 2024-03-01 | BF4: 2024-04-01 | BG4: 2024-05-01 | BH4: 2024-06-01 | BI4: 2024-07-01 | BJ4: 2024-08-01 | BK4: 2024-09-01 | BL4: 2024-10-01 | BM4: 2024-11-01 | BN4: 2024-12-01 | BO4: 2025-01-01 | BP4: 2025-02-01 | BQ4: =+EOMONTH(BP4,0)+1 -> 2025-03-01 | BR4: 2025-04-01 | BS4: 2025-05-01 | BT4: 2025-06-01 | BU4: 2025-07-01 | BV4: 2025-08-01 | BW4: 2025-09-01
B5: Public without Undistributed Conservation
B6: HLH | C6: PRE | D6: =+INDEX(Loads!$L:$CE,MATCH($C6,Loads!$D:$D,0),MATCH(D$4,Loads!$L$4:$CE$4,0)) -> 2712606.853 | E6: =+INDEX(Loads!$L:$CE,MATCH($C6,Loads!$D:$D,0),MATCH(E$4,Loads!$L$4:$CE$4,0)) -> 3177219.202 | F6: =+INDEX(Loads!$L:$CE,MATCH($C6,Loads!$D:$D,0),MATCH(F$4,Loads!$L$4:$CE$4,0)) -> 3496991.625 | G6: =+INDEX(Loads!$L:$CE,MATCH($C6,Loads!$D:$D,0),MATCH(G$4,Loads!$L$4:$CE$4,0)) -> 3434071.576 | H6: =+INDEX(Loads!$L:$CE,MATCH($C6,Loads!$D:$D,0),MATCH(H$4,Loads!$L$4:$CE$4,0)) -> 3037957.109 | I6: =+INDEX(Loads!$L:$CE,MATCH($C6,Loads!$D:$D,0),MATCH(I$4,Loads!$L$4:$CE$4,0)) -> 3020808.963 | J6: =+INDEX(Loads!$L:$CE,MATCH($C6,Loads!$D:$D,0),MATCH(J$4,Loads!$L$4:$CE$4,0)) -> 2597940.597 | K6: =+INDEX(Loads!$L:$CE,MATCH($C6,Loads!$D:$D,0),MATCH(K$4,Loads!$L$4:$CE$4,0)) -> 2566467.242 | L6: =+INDEX(Loads!$L:$CE,MATCH($C6,Loads!$D:$D,0),MATCH(L$4,Loads!$L$4:$CE$4,0)) -> 2873851.948 | M6: =+INDEX(Loads!$L:$CE,MATCH($C6,Loads!$D:$D,0),MATCH(M$4,Loads!$L$4:$CE$4,0)) -> 2976061.361 | N6: =+INDEX(Loads!$L:$CE,MATCH($C6,Loads!$D:$D,0),MATCH(N$4,Loads!$L$4:$CE$4,0)) -> 2941055.358 | O6: =+INDEX(Loads!$L:$CE,MATCH($C6,Loads!$D:$D,0),MATCH(O$4,Loads!$L$4:$CE$4,0)) -> 2646328.384 | P6: =+INDEX(Loads!$L:$CE,MATCH($C6,Loads!$D:$D,0),MATCH(P$4,Loads!$L$4:$CE$4,0)) -> 2743716.801 | Q6: =+INDEX(Loads!$L:$CE,MATCH($C6,Loads!$D:$D,0),MATCH(Q$4,Loads!$L$4:$CE$4,0)) -> 3158983.131 | R6: =+INDEX(Loads!$L:$CE,MATCH($C6,Loads!$D:$D,0),MATCH(R$4,Loads!$L$4:$CE$4,0)) -> 3580620.596 | S6: =+INDEX(Loads!$L:$CE,MATCH($C6,Loads!$D:$D,0),MATCH(S$4,Loads!$L$4:$CE$4,0)) -> 3410378.592 | T6: =+INDEX(Loads!$L:$CE,MATCH($C6,Loads!$D:$D,0),MATCH(T$4,Loads!$L$4:$CE$4,0)) -> 2996232.761 | U6: =+INDEX(Loads!$L:$CE,MATCH($C6,Loads!$D:$D,0),MATCH(U$4,Loads!$L$4:$CE$4,0)) -> 3089891.269 | V6: =+INDEX(Loads!$L:$CE,MATCH($C6,Loads!$D:$D,0),MATCH(V$4,Loads!$L$4:$CE$4,0)) -> 2562006.071 | W6: =+INDEX(Loads!$L:$CE,MATCH($C6,Loads!$D:$D,0),MATCH(W$4,Loads!$L$4:$CE$4,0)) -> 2624888.456 | X6: =+INDEX(Loads!$L:$CE,MATCH($C6,Loads!$D:$D,0),MATCH(X$4,Loads!$L$4:$CE$4,0)) -> 2869705.743 | Y6: =+INDEX(Loads!$L:$CE,MATCH($C6,Loads!$D:$D,0),MATCH(Y$4,Loads!$L$4:$CE$4,0)) -> 2979895.715 | Z6: =+INDEX(Loads!$L:$CE,MATCH($C6,Loads!$D:$D,0),MATCH(Z$4,Loads!$L$4:$CE$4,0)) -> 2962461.055 | AA6: =+INDEX(Loads!$L:$CE,MATCH($C6,Loads!$D:$D,0),MATCH(AA$4,Loads!$L$4:$CE$4,0)) -> 2662825.511 | AB6: =+INDEX(Loads!$L:$CE,MATCH($C6,Loads!$D:$D,0),MATCH(AB$4,Loads!$L$4:$CE$4,0)) -> 2712606.853 | AC6: =+INDEX(Loads!$L:$CE,MATCH($C6,Loads!$D:$D,0),MATCH(AC$4,Loads!$L$4:$CE$4,0)) -> 3177219.202 | AD6: =+INDEX(Loads!$L:$CE,MATCH($C6,Loads!$D:$D,0),MATCH(AD$4,Loads!$L$4:$CE$4,0)) -> 3496991.625 | AE6: =+INDEX(Loads!$L:$CE,MATCH($C6,Loads!$D:$D,0),MATCH(AE$4,Loads!$L$4:$CE$4,0)) -> 3434071.576 | AF6: =+INDEX(Loads!$L:$CE,MATCH($C6,Loads!$D:$D,0),MATCH(AF$4,Loads!$L$4:$CE$4,0)) -> 3037957.109 | AG6: =+INDEX(Loads!$L:$CE,MATCH($C6,Loads!$D:$D,0),MATCH(AG$4,Loads!$L$4:$CE$4,0)) -> 3020808.963 | AH6: =+INDEX(Loads!$L:$CE,MATCH($C6,Loads!$D:$D,0),MATCH(AH$4,Loads!$L$4:$CE$4,0)) -> 2597940.597 | AI6: =+INDEX(Loads!$L:$CE,MATCH($C6,Loads!$D:$D,0),MATCH(AI$4,Loads!$L$4:$CE$4,0)) -> 2566467.242 | AJ6: =+INDEX(Loads!$L:$CE,MATCH($C6,Loads!$D:$D,0),MATCH(AJ$4,Loads!$L$4:$CE$4,0)) -> 2873851.948 | AK6: =+INDEX(Loads!$L:$CE,MATCH($C6,Loads!$D:$D,0),MATCH(AK$4,Loads!$L$4:$CE$4,0)) -> 2976061.361 | AL6: =+INDEX(Loads!$L:$CE,MATCH($C6,Loads!$D:$D,0),MATCH(AL$4,Loads!$L$4:$CE$4,0)) -> 2941055.358 | AM6: =+INDEX(Loads!$L:$CE,MATCH($C6,Loads!$D:$D,0),MATCH(AM$4,Loads!$L$4:$CE$4,0)) -> 2646328.384 | AN6: =+INDEX(Loads!$L:$CE,MATCH($C6,Loads!$D:$D,0),MATCH(AN$4,Loads!$L$4:$CE$4,0)) -> 2743716.801 | AO6: =+INDEX(Loads!$L:$CE,MATCH($C6,Loads!$D:$D,0),MATCH(AO$4,Loads!$L$4:$CE$4,0)) -> 3158983.131 | AP6: =+INDEX(Loads!$L:$CE,MATCH($C6,Loads!$D:$D,0),MATCH(AP$4,Loads!$L$4:$CE$4,0)) -> 3580620.596 | AQ6: =+INDEX(Loads!$L:$CE,MATCH($C6,Loads!$D:$D,0),MATCH(AQ$4,Loads!$L$4:$CE$4,0)) -> 3410378.592 | AR6: =+INDEX(Loads!$L:$CE,MATCH($C6,Loads!$D:$D,0),MATCH(AR$4,Loads!$L$4:$CE$4,0)) -> 2996232.761 | AS6: =+INDEX(Loads!$L:$CE,MATCH($C6,Loads!$D:$D,0),MATCH(AS$4,Loads!$L$4:$CE$4,0)) -> 3089891.269 | AT6: =+INDEX(Loads!$L:$CE,MATCH($C6,Loads!$D:$D,0),MATCH(AT$4,Loads!$L$4:$CE$4,0)) -> 2562006.071 | AU6: =+INDEX(Loads!$L:$CE,MATCH($C6,Loads!$D:$D,0),MATCH(AU$4,Loads!$L$4:$CE$4,0)) -> 2624888.456 | AV6: =+INDEX(Loads!$L:$CE,MATCH($C6,Loads!$D:$D,0),MATCH(AV$4,Loads!$L$4:$CE$4,0)) -> 2869705.743 | AW6: =+INDEX(Loads!$L:$CE,MATCH($C6,Loads!$D:$D,0),MATCH(AW$4,Loads!$L$4:$CE$4,0)) -> 2979895.715 | AX6: =+INDEX(Loads!$L:$CE,MATCH($C6,Loads!$D:$D,0),MATCH(AX$4,Loads!$L$4:$CE$4,0)) -> 2962461.055 | AY6: =+INDEX(Loads!$L:$CE,MATCH($C6,Loads!$D:$D,0),MATCH(AY$4,Loads!$L$4:$CE$4,0)) -> 2662825.511 | AZ6: =+INDEX(Loads!$L:$CE,MATCH($C6,Loads!$D:$D,0),MATCH(AZ$4,Loads!$L$4:$CE$4,0)) -> 2712606.853 | BA6: =+INDEX(Loads!$L:$CE,MATCH($C6,Loads!$D:$D,0),MATCH(BA$4,Loads!$L$4:$CE$4,0)) -> 3177219.202 | BB6: =+INDEX(Loads!$L:$CE,MATCH($C6,Loads!$D:$D,0),MATCH(BB$4,Loads!$L$4:$CE$4,0)) -> 3496991.625 | BC6: =+INDEX(Loads!$L:$CE,MATCH($C6,Loads!$D:$D,0),MATCH(BC$4,Loads!$L$4:$CE$4,0)) -> 3434071.576 | BD6: =+INDEX(Loads!$L:$CE,MATCH($C6,Loads!$D:$D,0),MATCH(BD$4,Loads!$L$4:$CE$4,0)) -> 3037957.109 | BE6: =+INDEX(Loads!$L:$CE,MATCH($C6,Loads!$D:$D,0),MATCH(BE$4,Loads!$L$4:$CE$4,0)) -> 3020808.963 | BF6: =+INDEX(Loads!$L:$CE,MATCH($C6,Loads!$D:$D,0),MATCH(BF$4,Loads!$L$4:$CE$4,0)) -> 2597940.597 | BG6: =+INDEX(Loads!$L:$CE,MATCH($C6,Loads!$D:$D,0),MATCH(BG$4,Loads!$L$4:$CE$4,0)) -> 2566467.242 | BH6: =+INDEX(Loads!$L:$CE,MATCH($C6,Loads!$D:$D,0),MATCH(BH$4,Loads!$L$4:$CE$4,0)) -> 2873851.948 | BI6: =+INDEX(Loads!$L:$CE,MATCH($C6,Loads!$D:$D,0),MATCH(BI$4,Loads!$L$4:$CE$4,0)) -> 2976061.361 | BJ6: =+INDEX(Loads!$L:$CE,MATCH($C6,Loads!$D:$D,0),MATCH(BJ$4,Loads!$L$4:$CE$4,0)) -> 2941055.358 | BK6: =+INDEX(Loads!$L:$CE,MATCH($C6,Loads!$D:$D,0),MATCH(BK$4,Loads!$L$4:$CE$4,0)) -> 2646328.384 | BL6: =+INDEX(Loads!$L:$CE,MATCH($C6,Loads!$D:$D,0),MATCH(BL$4,Loads!$L$4:$CE$4,0)) -> 2743716.801 | BM6: =+INDEX(Loads!$L:$CE,MATCH($C6,Loads!$D:$D,0),MATCH(BM$4,Loads!$L$4:$CE$4,0)) -> 3158983.131 | BN6: =+INDEX(Loads!$L:$CE,MATCH($C6,Loads!$D:$D,0),MATCH(BN$4,Loads!$L$4:$CE$4,0)) -> 3580620.596 | BO6: =+INDEX(Loads!$L:$CE,MATCH($C6,Loads!$D:$D,0),MATCH(BO$4,Loads!$L$4:$CE$4,0)) -> 3410378.592 | BP6: =+INDEX(Loads!$L:$CE,MATCH($C6,Loads!$D:$D,0),MATCH(BP$4,Loads!$L$4:$CE$4,0)) -> 2996232.761 | BQ6: =+INDEX(Loads!$L:$CE,MATCH($C6,Loads!$D:$D,0),MATCH(BQ$4,Loads!$L$4:$CE$4,0)) -> 3089891.269 | BR6: =+INDEX(Loads!$L:$CE,MATCH($C6,Loads!$D:$D,0),MATCH(BR$4,Loads!$L$4:$CE$4,0)) -> 2562006.071 | BS6: =+INDEX(Loads!$L:$CE,MATCH($C6,Loads!$D:$D,0),MATCH(BS$4,Loads!$L$4:$CE$4,0)) -> 2624888.456 | BT6: =+INDEX(Loads!$L:$CE,MATCH($C6,Loads!$D:$D,0),MATCH(BT$4,Loads!$L$4:$CE$4,0)) -> 2869705.743 | BU6: =+INDEX(Loads!$L:$CE,MATCH($C6,Loads!$D:$D,0),MATCH(BU$4,Loads!$L$4:$CE$4,0)) -> 2979895.715 | BV6: =+INDEX(Loads!$L:$CE,MATCH($C6,Loads!$D:$D,0),MATCH(BV$4,Loads!$L$4:$CE$4,0)) -> 2962461.055 | BW6: =+INDEX(Loads!$L:$CE,MATCH($C6,Loads!$D:$D,0),MATCH(BW$4,Loads!$L$4:$CE$4,0)) -> 2662825.511
B7: LLH | C7: PRE | D7: =+INDEX(Loads!$CG:$EZ,MATCH($C7,Loads!$D:$D,0),MATCH(D$4,Loads!$CG$4:$EZ$4,0)) -> 1664124.034 | E7: =+INDEX(Loads!$CG:$EZ,MATCH($C7,Loads!$D:$D,0),MATCH(E$4,Loads!$CG$4:$EZ$4,0)) -> 2178071.889 | F7: =+INDEX(Loads!$CG:$EZ,MATCH($C7,Loads!$D:$D,0),MATCH(F$4,Loads!$CG$4:$EZ$4,0)) -> 2495576.775 | G7: =+INDEX(Loads!$CG:$EZ,MATCH($C7,Loads!$D:$D,0),MATCH(G$4,Loads!$CG$4:$EZ$4,0)) -> 2369064.255 | H7: =+INDEX(Loads!$CG:$EZ,MATCH($C7,Loads!$D:$D,0),MATCH(H$4,Loads!$CG$4:$EZ$4,0)) -> 1993692.846 | I7: =+INDEX(Loads!$CG:$EZ,MATCH($C7,Loads!$D:$D,0),MATCH(I$4,Loads!$CG$4:$EZ$4,0)) -> 2012160.573 | J7: =+INDEX(Loads!$CG:$EZ,MATCH($C7,Loads!$D:$D,0),MATCH(J$4,Loads!$CG$4:$EZ$4,0)) -> 1665461.105 | K7: =+INDEX(Loads!$CG:$EZ,MATCH($C7,Loads!$D:$D,0),MATCH(K$4,Loads!$CG$4:$EZ$4,0)) -> 1775261.732 | L7: =+INDEX(Loads!$CG:$EZ,MATCH($C7,Loads!$D:$D,0),MATCH(L$4,Loads!$CG$4:$EZ$4,0)) -> 1746122.811 | M7: =+INDEX(Loads!$CG:$EZ,MATCH($C7,Loads!$D:$D,0),MATCH(M$4,Loads!$CG$4:$EZ$4,0)) -> 1839153.829 | N7: =+INDEX(Loads!$CG:$EZ,MATCH($C7,Loads!$D:$D,0),MATCH(N$4,Loads!$CG$4:$EZ$4,0)) -> 1788396.035 | O7: =+INDEX(Loads!$CG:$EZ,MATCH($C7,Loads!$D:$D,0),MATCH(O$4,Loads!$CG$4:$EZ$4,0)) -> 1748788.185 | P7: =+INDEX(Loads!$CG:$EZ,MATCH($C7,Loads!$D:$D,0),MATCH(P$4,Loads!$CG$4:$EZ$4,0)) -> 1680681.248 | Q7: =+INDEX(Loads!$CG:$EZ,MATCH($C7,Loads!$D:$D,0),MATCH(Q$4,Loads!$CG$4:$EZ$4,0)) -> 2237637.301 | R7: =+INDEX(Loads!$CG:$EZ,MATCH($C7,Loads!$D:$D,0),MATCH(R$4,Loads!$CG$4:$EZ$4,0)) -> 2455753.071 | S7: =+INDEX(Loads!$CG:$EZ,MATCH($C7,Loads!$D:$D,0),MATCH(S$4,Loads!$CG$4:$EZ$4,0)) -> 2442685.566 | T7: =+INDEX(Loads!$CG:$EZ,MATCH($C7,Loads!$D:$D,0),MATCH(T$4,Loads!$CG$4:$EZ$4,0)) -> 1986297.286 | U7: =+INDEX(Loads!$CG:$EZ,MATCH($C7,Loads!$D:$D,0),MATCH(U$4,Loads!$CG$4:$EZ$4,0)) -> 1977408.047 | V7: =+INDEX(Loads!$CG:$EZ,MATCH($C7,Loads!$D:$D,0),MATCH(V$4,Loads!$CG$4:$EZ$4,0)) -> 1653699.782 | W7: =+INDEX(Loads!$CG:$EZ,MATCH($C7,Loads!$D:$D,0),MATCH(W$4,Loads!$CG$4:$EZ$4,0)) -> 1765136.865 | X7: =+INDEX(Loads!$CG:$EZ,MATCH($C7,Loads!$D:$D,0),MATCH(X$4,Loads!$CG$4:$EZ$4,0)) -> 1746488.5 | Y7: =+INDEX(Loads!$CG:$EZ,MATCH($C7,Loads!$D:$D,0),MATCH(Y$4,Loads!$CG$4:$EZ$4,0)) -> 1878337.363 | Z7: =+INDEX(Loads!$CG:$EZ,MATCH($C7,Loads!$D:$D,0),MATCH(Z$4,Loads!$CG$4:$EZ$4,0)) -> 1805694.986 | AA7: =+INDEX(Loads!$CG:$EZ,MATCH($C7,Loads!$D:$D,0),MATCH(AA$4,Loads!$CG$4:$EZ$4,0)) -> 1764327.738 | AB7: =+INDEX(Loads!$CG:$EZ,MATCH($C7,Loads!$D:$D,0),MATCH(AB$4,Loads!$CG$4:$EZ$4,0)) -> 1664124.034 | AC7: =+INDEX(Loads!$CG:$EZ,MATCH($C7,Loads!$D:$D,0),MATCH(AC$4,Loads!$CG$4:$EZ$4,0)) -> 2178071.889 | AD7: =+INDEX(Loads!$CG:$EZ,MATCH($C7,Loads!$D:$D,0),MATCH(AD$4,Loads!$CG$4:$EZ$4,0)) -> 2495576.775 | AE7: =+INDEX(Loads!$CG:$EZ,MATCH($C7,Loads!$D:$D,0),MATCH(AE$4,Loads!$CG$4:$EZ$4,0)) -> 2369064.255 | AF7: =+INDEX(Loads!$CG:$EZ,MATCH($C7,Loads!$D:$D,0),MATCH(AF$4,Loads!$CG$4:$EZ$4,0)) -> 1993692.846 | AG7: =+INDEX(Loads!$CG:$EZ,MATCH($C7,Loads!$D:$D,0),MATCH(AG$4,Loads!$CG$4:$EZ$4,0)) -> 2012160.573 | AH7: =+INDEX(Loads!$CG:$EZ,MATCH($C7,Loads!$D:$D,0),MATCH(AH$4,Loads!$CG$4:$EZ$4,0)) -> 1665461.105 | AI7: =+INDEX(Loads!$CG:$EZ,MATCH($C7,Loads!$D:$D,0),MATCH(AI$4,Loads!$CG$4:$EZ$4,0)) -> 1775261.732 | AJ7: =+INDEX(Loads!$CG:$EZ,MATCH($C7,Loads!$D:$D,0),MATCH(AJ$4,Loads!$CG$4:$EZ$4,0)) -> 1746122.811 | AK7: =+INDEX(Loads!$CG:$EZ,MATCH($C7,Loads!$D:$D,0),MATCH(AK$4,Loads!$CG$4:$EZ$4,0)) -> 1839153.829 | AL7: =+INDEX(Loads!$CG:$EZ,MATCH($C7,Loads!$D:$D,0),MATCH(AL$4,Loads!$CG$4:$EZ$4,0)) -> 1788396.035 | AM7: =+INDEX(Loads!$CG:$EZ,MATCH($C7,Loads!$D:$D,0),MATCH(AM$4,Loads!$CG$4:$EZ$4,0)) -> 1748788.185 | AN7: =+INDEX(Loads!$CG:$EZ,MATCH($C7,Loads!$D:$D,0),MATCH(AN$4,Loads!$CG$4:$EZ$4,0)) -> 1680681.248 | AO7: =+INDEX(Loads!$CG:$EZ,MATCH($C7,Loads!$D:$D,0),MATCH(AO$4,Loads!$CG$4:$EZ$4,0)) -> 2237637.301 | AP7: =+INDEX(Loads!$CG:$EZ,MATCH($C7,Loads!$D:$D,0),MATCH(AP$4,Loads!$CG$4:$EZ$4,0)) -> 2455753.071 | AQ7: =+INDEX(Loads!$CG:$EZ,MATCH($C7,Loads!$D:$D,0),MATCH(AQ$4,Loads!$CG$4:$EZ$4,0)) -> 2442685.566 | AR7: =+INDEX(Loads!$CG:$EZ,MATCH($C7,Loads!$D:$D,0),MATCH(AR$4,Loads!$CG$4:$EZ$4,0)) -> 1986297.286 | AS7: =+INDEX(Loads!$CG:$EZ,MATCH($C7,Loads!$D:$D,0),MATCH(AS$4,Loads!$CG$4:$EZ$4,0)) -> 1977408.047 | AT7: =+INDEX(Loads!$CG:$EZ,MATCH($C7,Loads!$D:$D,0),MATCH(AT$4,Loads!$CG$4:$EZ$4,0)) -> 1653699.782 | AU7: =+INDEX(Loads!$CG:$EZ,MATCH($C7,Loads!$D:$D,0),MATCH(AU$4,Loads!$CG$4:$EZ$4,0)) -> 1765136.865 | AV7: =+INDEX(Loads!$CG:$EZ,MATCH($C7,Loads!$D:$D,0),MATCH(AV$4,Loads!$CG$4:$EZ$4,0)) -> 1746488.5 | AW7: =+INDEX(Loads!$CG:$EZ,MATCH($C7,Loads!$D:$D,0),MATCH(AW$4,Loads!$CG$4:$EZ$4,0)) -> 1878337.363 | AX7: =+INDEX(Loads!$CG:$EZ,MATCH($C7,Loads!$D:$D,0),MATCH(AX$4,Loads!$CG$4:$EZ$4,0)) -> 1805694.986 | AY7: =+INDEX(Loads!$CG:$EZ,MATCH($C7,Loads!$D:$D,0),MATCH(AY$4,Loads!$CG$4:$EZ$4,0)) -> 1764327.738 | AZ7: =+INDEX(Loads!$CG:$EZ,MATCH($C7,Loads!$D:$D,0),MATCH(AZ$4,Loads!$CG$4:$EZ$4,0)) -> 1664124.034 | BA7: =+INDEX(Loads!$CG:$EZ,MATCH($C7,Loads!$D:$D,0),MATCH(BA$4,Loads!$CG$4:$EZ$4,0)) -> 2178071.889 | BB7: =+INDEX(Loads!$CG:$EZ,MATCH($C7,Loads!$D:$D,0),MATCH(BB$4,Loads!$CG$4:$EZ$4,0)) -> 2495576.775 | BC7: =+INDEX(Loads!$CG:$EZ,MATCH($C7,Loads!$D:$D,0),MATCH(BC$4,Loads!$CG$4:$EZ$4,0)) -> 2369064.255 | BD7: =+INDEX(Loads!$CG:$EZ,MATCH($C7,Loads!$D:$D,0),MATCH(BD$4,Loads!$CG$4:$EZ$4,0)) -> 1993692.846 | BE7: =+INDEX(Loads!$CG:$EZ,MATCH($C7,Loads!$D:$D,0),MATCH(BE$4,Loads!$CG$4:$EZ$4,0)) -> 2012160.573 | BF7: =+INDEX(Loads!$CG:$EZ,MATCH($C7,Loads!$D:$D,0),MATCH(BF$4,Loads!$CG$4:$EZ$4,0)) -> 1665461.105 | BG7: =+INDEX(Loads!$CG:$EZ,MATCH($C7,Loads!$D:$D,0),MATCH(BG$4,Loads!$CG$4:$EZ$4,0)) -> 1775261.732 | BH7: =+INDEX(Loads!$CG:$EZ,MATCH($C7,Loads!$D:$D,0),MATCH(BH$4,Loads!$CG$4:$EZ$4,0)) -> 1746122.811 | BI7: =+INDEX(Loads!$CG:$EZ,MATCH($C7,Loads!$D:$D,0),MATCH(BI$4,Loads!$CG$4:$EZ$4,0)) -> 1839153.829 | BJ7: =+INDEX(Loads!$CG:$EZ,MATCH($C7,Loads!$D:$D,0),MATCH(BJ$4,Loads!$CG$4:$EZ$4,0)) -> 1788396.035 | BK7: =+INDEX(Loads!$CG:$EZ,MATCH($C7,Loads!$D:$D,0),MATCH(BK$4,Loads!$CG$4:$EZ$4,0)) -> 1748788.185 | BL7: =+INDEX(Loads!$CG:$EZ,MATCH($C7,Loads!$D:$D,0),MATCH(BL$4,Loads!$CG$4:$EZ$4,0)) -> 1680681.248 | BM7: =+INDEX(Loads!$CG:$EZ,MATCH($C7,Loads!$D:$D,0),MATCH(BM$4,Loads!$CG$4:$EZ$4,0)) -> 2237637.301 | BN7: =+INDEX(Loads!$CG:$EZ,MATCH($C7,Loads!$D:$D,0),MATCH(BN$4,Loads!$CG$4:$EZ$4,0)) -> 2455753.071 | BO7: =+INDEX(Loads!$CG:$EZ,MATCH($C7,Loads!$D:$D,0),MATCH(BO$4,Loads!$CG$4:$EZ$4,0)) -> 2442685.566 | BP7: =+INDEX(Loads!$CG:$EZ,MATCH($C7,Loads!$D:$D,0),MATCH(BP$4,Loads!$CG$4:$EZ$4,0)) -> 1986297.286 | BQ7: =+INDEX(Loads!$CG:$EZ,MATCH($C7,Loads!$D:$D,0),MATCH(BQ$4,Loads!$CG$4:$EZ$4,0)) -> 1977408.047 | BR7: =+INDEX(Loads!$CG:$EZ,MATCH($C7,Loads!$D:$D,0),MATCH(BR$4,Loads!$CG$4:$EZ$4,0)) -> 1653699.782 | BS7: =+INDEX(Loads!$CG:$EZ,MATCH($C7,Loads!$D:$D,0),MATCH(BS$4,Loads!$CG$4:$EZ$4,0)) -> 1765136.865 | BT7: =+INDEX(Loads!$CG:$EZ,MATCH($C7,Loads!$D:$D,0),MATCH(BT$4,Loads!$CG$4:$EZ$4,0)) -> 1746488.5 | BU7: =+INDEX(Loads!$CG:$EZ,MATCH($C7,Loads!$D:$D,0),MATCH(BU$4,Loads!$CG$4:$EZ$4,0)) -> 1878337.363 | BV7: =+INDEX(Loads!$CG:$EZ,MATCH($C7,Loads!$D:$D,0),MATCH(BV$4,Loads!$CG$4:$EZ$4,0)) -> 1805694.986 | BW7: =+INDEX(Loads!$CG:$EZ,MATCH($C7,Loads!$D:$D,0),MATCH(BW$4,Loads!$CG$4:$EZ$4,0)) -> 1764327.738
B8: Undistrubuted Conservation
B9: HLH | C9: CON | D9: =+INDEX(Loads!$L:$CE,MATCH($C9,Loads!$D:$D,0),MATCH(D$4,Loads!$L$4:$CE$4,0)) -> 0 | E9: =+INDEX(Loads!$L:$CE,MATCH($C9,Loads!$D:$D,0),MATCH(E$4,Loads!$L$4:$CE$4,0)) -> 0 | F9: =+INDEX(Loads!$L:$CE,MATCH($C9,Loads!$D:$D,0),MATCH(F$4,Loads!$L$4:$CE$4,0)) -> 0 | G9: =+INDEX(Loads!$L:$CE,MATCH($C9,Loads!$D:$D,0),MATCH(G$4,Loads!$L$4:$CE$4,0)) -> 0 | H9: =+INDEX(Loads!$L:$CE,MATCH($C9,Loads!$D:$D,0),MATCH(H$4,Loads!$L$4:$CE$4,0)) -> 0 | I9: =+INDEX(Loads!$L:$CE,MATCH($C9,Loads!$D:$D,0),MATCH(I$4,Loads!$L$4:$CE$4,0)) -> 0 | J9: =+INDEX(Loads!$L:$CE,MATCH($C9,Loads!$D:$D,0),MATCH(J$4,Loads!$L$4:$CE$4,0)) -> 0 | K9: =+INDEX(Loads!$L:$CE,MATCH($C9,Loads!$D:$D,0),MATCH(K$4,Loads!$L$4:$CE$4,0)) -> 0 | L9: =+INDEX(Loads!$L:$CE,MATCH($C9,Loads!$D:$D,0),MATCH(L$4,Loads!$L$4:$CE$4,0)) -> 0 | M9: =+INDEX(Loads!$L:$CE,MATCH($C9,Loads!$D:$D,0),MATCH(M$4,Loads!$L$4:$CE$4,0)) -> 0 | N9: =+INDEX(Loads!$L:$CE,MATCH($C9,Loads!$D:$D,0),MATCH(N$4,Loads!$L$4:$CE$4,0)) -> 0 | O9: =+INDEX(Loads!$L:$CE,MATCH($C9,Loads!$D:$D,0),MATCH(O$4,Loads!$L$4:$CE$4,0)) -> 0 | P9: =+INDEX(Loads!$L:$CE,MATCH($C9,Loads!$D:$D,0),MATCH(P$4,Loads!$L$4:$CE$4,0)) -> 0 | Q9: =+INDEX(Loads!$L:$CE,MATCH($C9,Loads!$D:$D,0),MATCH(Q$4,Loads!$L$4:$CE$4,0)) -> 0 | R9: =+INDEX(Loads!$L:$CE,MATCH($C9,Loads!$D:$D,0),MATCH(R$4,Loads!$L$4:$CE$4,0)) -> 0 | S9: =+INDEX(Loads!$L:$CE,MATCH($C9,Loads!$D:$D,0),MATCH(S$4,Loads!$L$4:$CE$4,0)) -> 0 | T9: =+INDEX(Loads!$L:$CE,MATCH($C9,Loads!$D:$D,0),MATCH(T$4,Loads!$L$4:$CE$4,0)) -> 0 | U9: =+INDEX(Loads!$L:$CE,MATCH($C9,Loads!$D:$D,0),MATCH(U$4,Loads!$L$4:$CE$4,0)) -> 0 | V9: =+INDEX(Loads!$L:$CE,MATCH($C9,Loads!$D:$D,0),MATCH(V$4,Loads!$L$4:$CE$4,0)) -> 0 | W9: =+INDEX(Loads!$L:$CE,MATCH($C9,Loads!$D:$D,0),MATCH(W$4,Loads!$L$4:$CE$4,0)) -> 0 | X9: =+INDEX(Loads!$L:$CE,MATCH($C9,Loads!$D:$D,0),MATCH(X$4,Loads!$L$4:$CE$4,0)) -> 0 | Y9: =+INDEX(Loads!$L:$CE,MATCH($C9,Loads!$D:$D,0),MATCH(Y$4,Loads!$L$4:$CE$4,0)) -> 0 | Z9: =+INDEX(Loads!$L:$CE,MATCH($C9,Loads!$D:$D,0),MATCH(Z$4,Loads!$L$4:$CE$4,0)) -> 0 | AA9: =+INDEX(Loads!$L:$CE,MATCH($C9,Loads!$D:$D,0),MATCH(AA$4,Loads!$L$4:$CE$4,0)) -> 0 | AB9: =+INDEX(Loads!$L:$CE,MATCH($C9,Loads!$D:$D,0),MATCH(AB$4,Loads!$L$4:$CE$4,0)) -> 0 | AC9: =+INDEX(Loads!$L:$CE,MATCH($C9,Loads!$D:$D,0),MATCH(AC$4,Loads!$L$4:$CE$4,0)) -> 0 | AD9: =+INDEX(Loads!$L:$CE,MATCH($C9,Loads!$D:$D,0),MATCH(AD$4,Loads!$L$4:$CE$4,0)) -> 0 | AE9: =+INDEX(Loads!$L:$CE,MATCH($C9,Loads!$D:$D,0),MATCH(AE$4,Loads!$L$4:$CE$4,0)) -> 0 | AF9: =+INDEX(Loads!$L:$CE,MATCH($C9,Loads!$D:$D,0),MATCH(AF$4,Loads!$L$4:$CE$4,0)) -> 0 | AG9: =+INDEX(Loads!$L:$CE,MATCH($C9,Loads!$D:$D,0),MATCH(AG$4,Loads!$L$4:$CE$4,0)) -> 0 | AH9: =+INDEX(Loads!$L:$CE,MATCH($C9,Loads!$D:$D,0),MATCH(AH$4,Loads!$L$4:$CE$4,0)) -> 0 | AI9: =+INDEX(Loads!$L:$CE,MATCH($C9,Loads!$D:$D,0),MATCH(AI$4,Loads!$L$4:$CE$4,0)) -> 0 | AJ9: =+INDEX(Loads!$L:$CE,MATCH($C9,Loads!$D:$D,0),MATCH(AJ$4,Loads!$L$4:$CE$4,0)) -> 0 | AK9: =+INDEX(Loads!$L:$CE,MATCH($C9,Loads!$D:$D,0),MATCH(AK$4,Loads!$L$4:$CE$4,0)) -> 0 | AL9: =+INDEX(Loads!$L:$CE,MATCH($C9,Loads!$D:$D,0),MATCH(AL$4,Loads!$L$4:$CE$4,0)) -> 0 | AM9: =+INDEX(Loads!$L:$CE,MATCH($C9,Loads!$D:$D,0),MATCH(AM$4,Loads!$L$4:$CE$4,0)) -> 0 | AN9: =+INDEX(Loads!$L:$CE,MATCH($C9,Loads!$D:$D,0),MATCH(AN$4,Loads!$L$4:$CE$4,0)) -> 0 | AO9: =+INDEX(Loads!$L:$CE,MATCH($C9,Loads!$D:$D,0),MATCH(AO$4,Loads!$L$4:$CE$4,0)) -> 0 | AP9: =+INDEX(Loads!$L:$CE,MATCH($C9,Loads!$D:$D,0),MATCH(AP$4,Loads!$L$4:$CE$4,0)) -> 0 | AQ9: =+INDEX(Loads!$L:$CE,MATCH($C9,Loads!$D:$D,0),MATCH(AQ$4,Loads!$L$4:$CE$4,0)) -> 0 | AR9: =+INDEX(Loads!$L:$CE,MATCH($C9,Loads!$D:$D,0),MATCH(AR$4,Loads!$L$4:$CE$4,0)) -> 0 | AS9: =+INDEX(Loads!$L:$CE,MATCH($C9,Loads!$D:$D,0),MATCH(AS$4,Loads!$L$4:$CE$4,0)) -> 0 | AT9: =+INDEX(Loads!$L:$CE,MATCH($C9,Loads!$D:$D,0),MATCH(AT$4,Loads!$L$4:$CE$4,0)) -> 0 | AU9: =+INDEX(Loads!$L:$CE,MATCH($C9,Loads!$D:$D,0),MATCH(AU$4,Loads!$L$4:$CE$4,0)) -> 0 | AV9: =+INDEX(Loads!$L:$CE,MATCH($C9,Loads!$D:$D,0),MATCH(AV$4,Loads!$L$4:$CE$4,0)) -> 0 | AW9: =+INDEX(Loads!$L:$CE,MATCH($C9,Loads!$D:$D,0),MATCH(AW$4,Loads!$L$4:$CE$4,0)) -> 0 | AX9: =+INDEX(Loads!$L:$CE,MATCH($C9,Loads!$D:$D,0),MATCH(AX$4,Loads!$L$4:$CE$4,0)) -> 0 | AY9: =+INDEX(Loads!$L:$CE,MATCH($C9,Loads!$D:$D,0),MATCH(AY$4,Loads!$L$4:$CE$4,0)) -> 0 | AZ9: =+INDEX(Loads!$L:$CE,MATCH($C9,Loads!$D:$D,0),MATCH(AZ$4,Loads!$L$4:$CE$4,0)) -> 0 | BA9: =+INDEX(Loads!$L:$CE,MATCH($C9,Loads!$D:$D,0),MATCH(BA$4,Loads!$L$4:$CE$4,0)) -> 0 | BB9: =+INDEX(Loads!$L:$CE,MATCH($C9,Loads!$D:$D,0),MATCH(BB$4,Loads!$L$4:$CE$4,0)) -> 0 | BC9: =+INDEX(Loads!$L:$CE,MATCH($C9,Loads!$D:$D,0),MATCH(BC$4,Loads!$L$4:$CE$4,0)) -> 0 | BD9: =+INDEX(Loads!$L:$CE,MATCH($C9,Loads!$D:$D,0),MATCH(BD$4,Loads!$L$4:$CE$4,0)) -> 0 | BE9: =+INDEX(Loads!$L:$CE,MATCH($C9,Loads!$D:$D,0),MATCH(BE$4,Loads!$L$4:$CE$4,0)) -> 0 | BF9: =+INDEX(Loads!$L:$CE,MATCH($C9,Loads!$D:$D,0),MATCH(BF$4,Loads!$L$4:$CE$4,0)) -> 0 | BG9: =+INDEX(Loads!$L:$CE,MATCH($C9,Loads!$D:$D,0),MATCH(BG$4,Loads!$L$4:$CE$4,0)) -> 0 | BH9: =+INDEX(Loads!$L:$CE,MATCH($C9,Loads!$D:$D,0),MATCH(BH$4,Loads!$L$4:$CE$4,0)) -> 0 | BI9: =+INDEX(Loads!$L:$CE,MATCH($C9,Loads!$D:$D,0),MATCH(BI$4,Loads!$L$4:$CE$4,0)) -> 0 | BJ9: =+INDEX(Loads!$L:$CE,MATCH($C9,Loads!$D:$D,0),MATCH(BJ$4,Loads!$L$4:$CE$4,0)) -> 0 | BK9: =+INDEX(Loads!$L:$CE,MATCH($C9,Loads!$D:$D,0),MATCH(BK$4,Loads!$L$4:$CE$4,0)) -> 0 | BL9: =+INDEX(Loads!$L:$CE,MATCH($C9,Loads!$D:$D,0),MATCH(BL$4,Loads!$L$4:$CE$4,0)) -> 0 | BM9: =+INDEX(Loads!$L:$CE,MATCH($C9,Loads!$D:$D,0),MATCH(BM$4,Loads!$L$4:$CE$4,0)) -> 0 | BN9: =+INDEX(Loads!$L:$CE,MATCH($C9,Loads!$D:$D,0),MATCH(BN$4,Loads!$L$4:$CE$4,0)) -> 0 | BO9: =+INDEX(Loads!$L:$CE,MATCH($C9,Loads!$D:$D,0),MATCH(BO$4,Loads!$L$4:$CE$4,0)) -> 0 | BP9: =+INDEX(Loads!$L:$CE,MATCH($C9,Loads!$D:$D,0),MATCH(BP$4,Loads!$L$4:$CE$4,0)) -> 0 | BQ9: =+INDEX(Loads!$L:$CE,MATCH($C9,Loads!$D:$D,0),MATCH(BQ$4,Loads!$L$4:$CE$4,0)) -> 0 | BR9: =+INDEX(Loads!$L:$CE,MATCH($C9,Loads!$D:$D,0),MATCH(BR$4,Loads!$L$4:$CE$4,0)) -> 0 | BS9: =+INDEX(Loads!$L:$CE,MATCH($C9,Loads!$D:$D,0),MATCH(BS$4,Loads!$L$4:$CE$4,0)) -> 0 | BT9: =+INDEX(Loads!$L:$CE,MATCH($C9,Loads!$D:$D,0),MATCH(BT$4,Loads!$L$4:$CE$4,0)) -> 0 | BU9: =+INDEX(Loads!$L:$CE,MATCH($C9,Loads!$D:$D,0),MATCH(BU$4,Loads!$L$4:$CE$4,0)) -> 0 | BV9: =+INDEX(Loads!$L:$CE,MATCH($C9,Loads!$D:$D,0),MATCH(BV$4,Loads!$L$4:$CE$4,0)) -> 0 | BW9: =+INDEX(Loads!$L:$CE,MATCH($C9,Loads!$D:$D,0),MATCH(BW$4,Loads!$L$4:$CE$4,0)) -> 0
B10: LLH | C10: CON | D10: =+INDEX(Loads!$CG:$EZ,MATCH($C10,Loads!$D:$D,0),MATCH(D$4,Loads!$CG$4:$EZ$4,0)) -> 0 | E10: =+INDEX(Loads!$CG:$EZ,MATCH($C10,Loads!$D:$D,0),MATCH(E$4,Loads!$CG$4:$EZ$4,0)) -> 0 | F10: =+INDEX(Loads!$CG:$EZ,MATCH($C10,Loads!$D:$D,0),MATCH(F$4,Loads!$CG$4:$EZ$4,0)) -> 0 | G10: =+INDEX(Loads!$CG:$EZ,MATCH($C10,Loads!$D:$D,0),MATCH(G$4,Loads!$CG$4:$EZ$4,0)) -> 0 | H10: =+INDEX(Loads!$CG:$EZ,MATCH($C10,Loads!$D:$D,0),MATCH(H$4,Loads!$CG$4:$EZ$4,0)) -> 0 | I10: =+INDEX(Loads!$CG:$EZ,MATCH($C10,Loads!$D:$D,0),MATCH(I$4,Loads!$CG$4:$EZ$4,0)) -> 0 | J10: =+INDEX(Loads!$CG:$EZ,MATCH($C10,Loads!$D:$D,0),MATCH(J$4,Loads!$CG$4:$EZ$4,0)) -> 0 | K10: =+INDEX(Loads!$CG:$EZ,MATCH($C10,Loads!$D:$D,0),MATCH(K$4,Loads!$CG$4:$EZ$4,0)) -> 0 | L10: =+INDEX(Loads!$CG:$EZ,MATCH($C10,Loads!$D:$D,0),MATCH(L$4,Loads!$CG$4:$EZ$4,0)) -> 0 | M10: =+INDEX(Loads!$CG:$EZ,MATCH($C10,Loads!$D:$D,0),MATCH(M$4,Loads!$CG$4:$EZ$4,0)) -> 0 | N10: =+INDEX(Loads!$CG:$EZ,MATCH($C10,Loads!$D:$D,0),MATCH(N$4,Loads!$CG$4:$EZ$4,0)) -> 0 | O10: =+INDEX(Loads!$CG:$EZ,MATCH($C10,Loads!$D:$D,0),MATCH(O$4,Loads!$CG$4:$EZ$4,0)) -> 0 | P10: =+INDEX(Loads!$CG:$EZ,MATCH($C10,Loads!$D:$D,0),MATCH(P$4,Loads!$CG$4:$EZ$4,0)) -> 0 | Q10: =+INDEX(Loads!$CG:$EZ,MATCH($C10,Loads!$D:$D,0),MATCH(Q$4,Loads!$CG$4:$EZ$4,0)) -> 0 | R10: =+INDEX(Loads!$CG:$EZ,MATCH($C10,Loads!$D:$D,0),MATCH(R$4,Loads!$CG$4:$EZ$4,0)) -> 0 | S10: =+INDEX(Loads!$CG:$EZ,MATCH($C10,Loads!$D:$D,0),MATCH(S$4,Loads!$CG$4:$EZ$4,0)) -> 0 | T10: =+INDEX(Loads!$CG:$EZ,MATCH($C10,Loads!$D:$D,0),MATCH(T$4,Loads!$CG$4:$EZ$4,0)) -> 0 | U10: =+INDEX(Loads!$CG:$EZ,MATCH($C10,Loads!$D:$D,0),MATCH(U$4,Loads!$CG$4:$EZ$4,0)) -> 0 | V10: =+INDEX(Loads!$CG:$EZ,MATCH($C10,Loads!$D:$D,0),MATCH(V$4,Loads!$CG$4:$EZ$4,0)) -> 0 | W10: =+INDEX(Loads!$CG:$EZ,MATCH($C10,Loads!$D:$D,0),MATCH(W$4,Loads!$CG$4:$EZ$4,0)) -> 0 | X10: =+INDEX(Loads!$CG:$EZ,MATCH($C10,Loads!$D:$D,0),MATCH(X$4,Loads!$CG$4:$EZ$4,0)) -> 0 | Y10: =+INDEX(Loads!$CG:$EZ,MATCH($C10,Loads!$D:$D,0),MATCH(Y$4,Loads!$CG$4:$EZ$4,0)) -> 0 | Z10: =+INDEX(Loads!$CG:$EZ,MATCH($C10,Loads!$D:$D,0),MATCH(Z$4,Loads!$CG$4:$EZ$4,0)) -> 0 | AA10: =+INDEX(Loads!$CG:$EZ,MATCH($C10,Loads!$D:$D,0),MATCH(AA$4,Loads!$CG$4:$EZ$4,0)) -> 0 | AB10: =+INDEX(Loads!$CG:$EZ,MATCH($C10,Loads!$D:$D,0),MATCH(AB$4,Loads!$CG$4:$EZ$4,0)) -> 0 | AC10: =+INDEX(Loads!$CG:$EZ,MATCH($C10,Loads!$D:$D,0),MATCH(AC$4,Loads!$CG$4:$EZ$4,0)) -> 0 | AD10: =+INDEX(Loads!$CG:$EZ,MATCH($C10,Loads!$D:$D,0),MATCH(AD$4,Loads!$CG$4:$EZ$4,0)) -> 0 | AE10: =+INDEX(Loads!$CG:$EZ,MATCH($C10,Loads!$D:$D,0),MATCH(AE$4,Loads!$CG$4:$EZ$4,0)) -> 0 | AF10: =+INDEX(Loads!$CG:$EZ,MATCH($C10,Loads!$D:$D,0),MATCH(AF$4,Loads!$CG$4:$EZ$4,0)) -> 0 | AG10: =+INDEX(Loads!$CG:$EZ,MATCH($C10,Loads!$D:$D,0),MATCH(AG$4,Loads!$CG$4:$EZ$4,0)) -> 0 | AH10: =+INDEX(Loads!$CG:$EZ,MATCH($C10,Loads!$D:$D,0),MATCH(AH$4,Loads!$CG$4:$EZ$4,0)) -> 0 | AI10: =+INDEX(Loads!$CG:$EZ,MATCH($C10,Loads!$D:$D,0),MATCH(AI$4,Loads!$CG$4:$EZ$4,0)) -> 0 | AJ10: =+INDEX(Loads!$CG:$EZ,MATCH($C10,Loads!$D:$D,0),MATCH(AJ$4,Loads!$CG$4:$EZ$4,0)) -> 0 | AK10: =+INDEX(Loads!$CG:$EZ,MATCH($C10,Loads!$D:$D,0),MATCH(AK$4,Loads!$CG$4:$EZ$4,0)) -> 0 | AL10: =+INDEX(Loads!$CG:$EZ,MATCH($C10,Loads!$D:$D,0),MATCH(AL$4,Loads!$CG$4:$EZ$4,0)) -> 0 | AM10: =+INDEX(Loads!$CG:$EZ,MATCH($C10,Loads!$D:$D,0),MATCH(AM$4,Loads!$CG$4:$EZ$4,0)) -> 0 | AN10: =+INDEX(Loads!$CG:$EZ,MATCH($C10,Loads!$D:$D,0),MATCH(AN$4,Loads!$CG$4:$EZ$4,0)) -> 0 | AO10: =+INDEX(Loads!$CG:$EZ,MATCH($C10,Loads!$D:$D,0),MATCH(AO$4,Loads!$CG$4:$EZ$4,0)) -> 0 | AP10: =+INDEX(Loads!$CG:$EZ,MATCH($C10,Loads!$D:$D,0),MATCH(AP$4,Loads!$CG$4:$EZ$4,0)) -> 0 | AQ10: =+INDEX(Loads!$CG:$EZ,MATCH($C10,Loads!$D:$D,0),MATCH(AQ$4,Loads!$CG$4:$EZ$4,0)) -> 0 | AR10: =+INDEX(Loads!$CG:$EZ,MATCH($C10,Loads!$D:$D,0),MATCH(AR$4,Loads!$CG$4:$EZ$4,0)) -> 0 | AS10: =+INDEX(Loads!$CG:$EZ,MATCH($C10,Loads!$D:$D,0),MATCH(AS$4,Loads!$CG$4:$EZ$4,0)) -> 0 | AT10: =+INDEX(Loads!$CG:$EZ,MATCH($C10,Loads!$D:$D,0),MATCH(AT$4,Loads!$CG$4:$EZ$4,0)) -> 0 | AU10: =+INDEX(Loads!$CG:$EZ,MATCH($C10,Loads!$D:$D,0),MATCH(AU$4,Loads!$CG$4:$EZ$4,0)) -> 0 | AV10: =+INDEX(Loads!$CG:$EZ,MATCH($C10,Loads!$D:$D,0),MATCH(AV$4,Loads!$CG$4:$EZ$4,0)) -> 0 | AW10: =+INDEX(Loads!$CG:$EZ,MATCH($C10,Loads!$D:$D,0),MATCH(AW$4,Loads!$CG$4:$EZ$4,0)) -> 0 | AX10: =+INDEX(Loads!$CG:$EZ,MATCH($C10,Loads!$D:$D,0),MATCH(AX$4,Loads!$CG$4:$EZ$4,0)) -> 0 | AY10: =+INDEX(Loads!$CG:$EZ,MATCH($C10,Loads!$D:$D,0),MATCH(AY$4,Loads!$CG$4:$EZ$4,0)) -> 0 | AZ10: =+INDEX(Loads!$CG:$EZ,MATCH($C10,Loads!$D:$D,0),MATCH(AZ$4,Loads!$CG$4:$EZ$4,0)) -> 0 | BA10: =+INDEX(Loads!$CG:$EZ,MATCH($C10,Loads!$D:$D,0),MATCH(BA$4,Loads!$CG$4:$EZ$4,0)) -> 0 | BB10: =+INDEX(Loads!$CG:$EZ,MATCH($C10,Loads!$D:$D,0),MATCH(BB$4,Loads!$CG$4:$EZ$4,0)) -> 0 | BC10: =+INDEX(Loads!$CG:$EZ,MATCH($C10,Loads!$D:$D,0),MATCH(BC$4,Loads!$CG$4:$EZ$4,0)) -> 0 | BD10: =+INDEX(Loads!$CG:$EZ,MATCH($C10,Loads!$D:$D,0),MATCH(BD$4,Loads!$CG$4:$EZ$4,0)) -> 0 | BE10: =+INDEX(Loads!$CG:$EZ,MATCH($C10,Loads!$D:$D,0),MATCH(BE$4,Loads!$CG$4:$EZ$4,0)) -> 0 | BF10: =+INDEX(Loads!$CG:$EZ,MATCH($C10,Loads!$D:$D,0),MATCH(BF$4,Loads!$CG$4:$EZ$4,0)) -> 0 | BG10: =+INDEX(Loads!$CG:$EZ,MATCH($C10,Loads!$D:$D,0),MATCH(BG$4,Loads!$CG$4:$EZ$4,0)) -> 0 | BH10: =+INDEX(Loads!$CG:$EZ,MATCH($C10,Loads!$D:$D,0),MATCH(BH$4,Loads!$CG$4:$EZ$4,0)) -> 0 | BI10: =+INDEX(Loads!$CG:$EZ,MATCH($C10,Loads!$D:$D,0),MATCH(BI$4,Loads!$CG$4:$EZ$4,0)) -> 0 | BJ10: =+INDEX(Loads!$CG:$EZ,MATCH($C10,Loads!$D:$D,0),MATCH(BJ$4,Loads!$CG$4:$EZ$4,0)) -> 0 | BK10: =+INDEX(Loads!$CG:$EZ,MATCH($C10,Loads!$D:$D,0),MATCH(BK$4,Loads!$CG$4:$EZ$4,0)) -> 0 | BL10: =+INDEX(Loads!$CG:$EZ,MATCH($C10,Loads!$D:$D,0),MATCH(BL$4,Loads!$CG$4:$EZ$4,0)) -> 0 | BM10: =+INDEX(Loads!$CG:$EZ,MATCH($C10,Loads!$D:$D,0),MATCH(BM$4,Loads!$CG$4:$EZ$4,0)) -> 0 | BN10: =+INDEX(Loads!$CG:$EZ,MATCH($C10,Loads!$D:$D,0),MATCH(BN$4,Loads!$CG$4:$EZ$4,0)) -> 0 | BO10: =+INDEX(Loads!$CG:$EZ,MATCH($C10,Loads!$D:$D,0),MATCH(BO$4,Loads!$CG$4:$EZ$4,0)) -> 0 | BP10: =+INDEX(Loads!$CG:$EZ,MATCH($C10,Loads!$D:$D,0),MATCH(BP$4,Loads!$CG$4:$EZ$4,0)) -> 0 | BQ10: =+INDEX(Loads!$CG:$EZ,MATCH($C10,Loads!$D:$D,0),MATCH(BQ$4,Loads!$CG$4:$EZ$4,0)) -> 0 | BR10: =+INDEX(Loads!$CG:$EZ,MATCH($C10,Loads!$D:$D,0),MATCH(BR$4,Loads!$CG$4:$EZ$4,0)) -> 0 | BS10: =+INDEX(Loads!$CG:$EZ,MATCH($C10,Loads!$D:$D,0),MATCH(BS$4,Loads!$CG$4:$EZ$4,0)) -> 0 | BT10: =+INDEX(Loads!$CG:$EZ,MATCH($C10,Loads!$D:$D,0),MATCH(BT$4,Loads!$CG$4:$EZ$4,0)) -> 0 | BU10: =+INDEX(Loads!$CG:$EZ,MATCH($C10,Loads!$D:$D,0),MATCH(BU$4,Loads!$CG$4:$EZ$4,0)) -> 0 | BV10: =+INDEX(Loads!$CG:$EZ,MATCH($C10,Loads!$D:$D,0),MATCH(BV$4,Loads!$CG$4:$EZ$4,0)) -> 0 | BW10: =+INDEX(Loads!$CG:$EZ,MATCH($C10,Loads!$D:$D,0),MATCH(BW$4,Loads!$CG$4:$EZ$4,0)) -> 0
B11: Public Load
B12: HLH | C12: PRE | D12: =+D6+D9 -> 2712606.853 | E12: =+E6+E9 -> 3177219.202 | F12: 3496991.625 | G12: 3434071.576 | H12: 3037957.109 | I12: 3020808.963 | J12: 2597940.597 | K12: 2566467.242 | L12: 2873851.948 | M12: 2976061.361 | N12: 2941055.358 | O12: 2646328.384 | P12: 2743716.801 | Q12: 3158983.131 | R12: 3580620.596 | S12: 3410378.592 | T12: 2996232.761 | U12: 3089891.269 | V12: 2562006.071 | W12: 2624888.456 | X12: 2869705.743 | Y12: 2979895.715 | Z12: 2962461.055 | AA12: 2662825.511 | AB12: 2712606.853 | AC12: 3177219.202 | AD12: 3496991.625 | AE12: 3434071.576 | AF12: 3037957.109 | AG12: 3020808.963 | AH12: 2597940.597 | AI12: 2566467.242 | AJ12: 2873851.948 | AK12: 2976061.361 | AL12: 2941055.358 | AM12: 2646328.384 | AN12: 2743716.801 | AO12: 3158983.131 | AP12: 3580620.596 | AQ12: 3410378.592 | AR12: 2996232.761 | AS12: 3089891.269 | AT12: 2562006.071 | AU12: 2624888.456 | AV12: 2869705.743 | AW12: 2979895.715 | AX12: 2962461.055 | AY12: 2662825.511 | AZ12: 2712606.853 | BA12: 3177219.202 | BB12: 3496991.625 | BC12: 3434071.576 | BD12: 3037957.109 | BE12: 3020808.963 | BF12: 2597940.597 | BG12: 2566467.242 | BH12: 2873851.948 | BI12: 2976061.361 | BJ12: 2941055.358 | BK12: 2646328.384 | BL12: 2743716.801 | BM12: 3158983.131 | BN12: 3580620.596 | BO12: 3410378.592 | BP12: 2996232.761 | BQ12: =+BQ6+BQ9 -> 3089891.269 | BR12: 2562006.071 | BS12: 2624888.456 | BT12: 2869705.743 | BU12: 2979895.715 | BV12: 2962461.055 | BW12: 2662825.511
B13: LLH | C13: PRE | D13: =+D7+D10 -> 1664124.034 | E13: 2178071.889 | F13: 2495576.775 | G13: 2369064.255 | H13: 1993692.846 | I13: 2012160.573 | J13: 1665461.105 | K13: 1775261.732 | L13: 1746122.811 | M13: 1839153.829 | N13: 1788396.035 | O13: 1748788.185 | P13: 1680681.248 | Q13: 2237637.301 | R13: 2455753.071 | S13: 2442685.566 | T13: 1986297.286 | U13: 1977408.047 | V13: 1653699.782 | W13: 1765136.865 | X13: 1746488.5 | Y13: 1878337.363 | Z13: 1805694.986 | AA13: 1764327.738 | AB13: 1664124.034 | AC13: 2178071.889 | AD13: 2495576.775 | AE13: 2369064.255 | AF13: 1993692.846 | AG13: 2012160.573 | AH13: 1665461.105 | AI13: 1775261.732 | AJ13: 1746122.811 | AK13: 1839153.829 | AL13: 1788396.035 | AM13: 1748788.185 | AN13: 1680681.248 | AO13: 2237637.301 | AP13: 2455753.071 | AQ13: 2442685.566 | AR13: 1986297.286 | AS13: 1977408.047 | AT13: 1653699.782 | AU13: 1765136.865 | AV13: 1746488.5 | AW13: 1878337.363 | AX13: 1805694.986 | AY13: 1764327.738 | AZ13: 1664124.034 | BA13: 2178071.889 | BB13: 2495576.775 | BC13: 2369064.255 | BD13: 1993692.846 | BE13: 2012160.573 | BF13: 1665461.105 | BG13: 1775261.732 | BH13: 1746122.811 | BI13: 1839153.829 | BJ13: 1788396.035 | BK13: 1748788.185 | BL13: 1680681.248 | BM13: 2237637.301 | BN13: 2455753.071 | BO13: 2442685.566 | BP13: =+BP7+BP10 -> 1986297.286 | BQ13: 1977408.047 | BR13: 1653699.782 | BS13: 1765136.865 | BT13: 1746488.5 | BU13: 1878337.363 | BV13: 1805694.986 | BW13: 1764327.738
B14: Tier 2 Load
B15: HLH | C15: PRE_T2 | D15: =+INDEX(Loads!$L:$CE,MATCH($C15,Loads!$D:$D,0),MATCH(D$4,Loads!$L$4:$CE$4,0)) -> 23411.376 | E15: =+INDEX(Loads!$L:$CE,MATCH($C15,Loads!$D:$D,0),MATCH(E$4,Loads!$L$4:$CE$4,0)) -> 21677.2 | F15: =+INDEX(Loads!$L:$CE,MATCH($C15,Loads!$D:$D,0),MATCH(F$4,Loads!$L$4:$CE$4,0)) -> 21677.2 | G15: =+INDEX(Loads!$L:$CE,MATCH($C15,Loads!$D:$D,0),MATCH(G$4,Loads!$L$4:$CE$4,0)) -> 22544.288 | H15: =+INDEX(Loads!$L:$CE,MATCH($C15,Loads!$D:$D,0),MATCH(H$4,Loads!$L$4:$CE$4,0)) -> 21677.2 | I15: =+INDEX(Loads!$L:$CE,MATCH($C15,Loads!$D:$D,0),MATCH(I$4,Loads!$L$4:$CE$4,0)) -> 22544.288 | J15: =+INDEX(Loads!$L:$CE,MATCH($C15,Loads!$D:$D,0),MATCH(J$4,Loads!$L$4:$CE$4,0)) -> 22544.288 | K15: =+INDEX(Loads!$L:$CE,MATCH($C15,Loads!$D:$D,0),MATCH(K$4,Loads!$L$4:$CE$4,0)) -> 21677.2 | L15: =+INDEX(Loads!$L:$CE,MATCH($C15,Loads!$D:$D,0),MATCH(L$4,Loads!$L$4:$CE$4,0)) -> 22544.288 | M15: =+INDEX(Loads!$L:$CE,MATCH($C15,Loads!$D:$D,0),MATCH(M$4,Loads!$L$4:$CE$4,0)) -> 22544.288 | N15: =+INDEX(Loads!$L:$CE,MATCH($C15,Loads!$D:$D,0),MATCH(N$4,Loads!$L$4:$CE$4,0)) -> 22544.288 | O15: =+INDEX(Loads!$L:$CE,MATCH($C15,Loads!$D:$D,0),MATCH(O$4,Loads!$L$4:$CE$4,0)) -> 21677.2 | P15: =+INDEX(Loads!$L:$CE,MATCH($C15,Loads!$D:$D,0),MATCH(P$4,Loads!$L$4:$CE$4,0)) -> 27430.704 | Q15: =+INDEX(Loads!$L:$CE,MATCH($C15,Loads!$D:$D,0),MATCH(Q$4,Loads!$L$4:$CE$4,0)) -> 24382.848 | R15: =+INDEX(Loads!$L:$CE,MATCH($C15,Loads!$D:$D,0),MATCH(R$4,Loads!$L$4:$CE$4,0)) -> 26414.752 | S15: =+INDEX(Loads!$L:$CE,MATCH($C15,Loads!$D:$D,0),MATCH(S$4,Loads!$L$4:$CE$4,0)) -> 25398.8 | T15: =+INDEX(Loads!$L:$CE,MATCH($C15,Loads!$D:$D,0),MATCH(T$4,Loads!$L$4:$CE$4,0)) -> 24382.848 | U15: =+INDEX(Loads!$L:$CE,MATCH($C15,Loads!$D:$D,0),MATCH(U$4,Loads!$L$4:$CE$4,0)) -> 27430.704 | V15: =+INDEX(Loads!$L:$CE,MATCH($C15,Loads!$D:$D,0),MATCH(V$4,Loads!$L$4:$CE$4,0)) -> 26414.752 | W15: =+INDEX(Loads!$L:$CE,MATCH($C15,Loads!$D:$D,0),MATCH(W$4,Loads!$L$4:$CE$4,0)) -> 25398.8 | X15: =+INDEX(Loads!$L:$CE,MATCH($C15,Loads!$D:$D,0),MATCH(X$4,Loads!$L$4:$CE$4,0)) -> 26414.752 | Y15: =+INDEX(Loads!$L:$CE,MATCH($C15,Loads!$D:$D,0),MATCH(Y$4,Loads!$L$4:$CE$4,0)) -> 26414.752 | Z15: =+INDEX(Loads!$L:$CE,MATCH($C15,Loads!$D:$D,0),MATCH(Z$4,Loads!$L$4:$CE$4,0)) -> 26414.752 | AA15: =+INDEX(Loads!$L:$CE,MATCH($C15,Loads!$D:$D,0),MATCH(AA$4,Loads!$L$4:$CE$4,0)) -> 25398.8 | AB15: =+INDEX(Loads!$L:$CE,MATCH($C15,Loads!$D:$D,0),MATCH(AB$4,Loads!$L$4:$CE$4,0)) -> 23411.376 | AC15: =+INDEX(Loads!$L:$CE,MATCH($C15,Loads!$D:$D,0),MATCH(AC$4,Loads!$L$4:$CE$4,0)) -> 21677.2 | AD15: =+INDEX(Loads!$L:$CE,MATCH($C15,Loads!$D:$D,0),MATCH(AD$4,Loads!$L$4:$CE$4,0)) -> 21677.2 | AE15: =+INDEX(Loads!$L:$CE,MATCH($C15,Loads!$D:$D,0),MATCH(AE$4,Loads!$L$4:$CE$4,0)) -> 22544.288 | AF15: =+INDEX(Loads!$L:$CE,MATCH($C15,Loads!$D:$D,0),MATCH(AF$4,Loads!$L$4:$CE$4,0)) -> 21677.2 | AG15: =+INDEX(Loads!$L:$CE,MATCH($C15,Loads!$D:$D,0),MATCH(AG$4,Loads!$L$4:$CE$4,0)) -> 22544.288 | AH15: =+INDEX(Loads!$L:$CE,MATCH($C15,Loads!$D:$D,0),MATCH(AH$4,Loads!$L$4:$CE$4,0)) -> 22544.288 | AI15: =+INDEX(Loads!$L:$CE,MATCH($C15,Loads!$D:$D,0),MATCH(AI$4,Loads!$L$4:$CE$4,0)) -> 21677.2 | AJ15: =+INDEX(Loads!$L:$CE,MATCH($C15,Loads!$D:$D,0),MATCH(AJ$4,Loads!$L$4:$CE$4,0)) -> 22544.288 | AK15: =+INDEX(Loads!$L:$CE,MATCH($C15,Loads!$D:$D,0),MATCH(AK$4,Loads!$L$4:$CE$4,0)) -> 22544.288 | AL15: =+INDEX(Loads!$L:$CE,MATCH($C15,Loads!$D:$D,0),MATCH(AL$4,Loads!$L$4:$CE$4,0)) -> 22544.288 | AM15: =+INDEX(Loads!$L:$CE,MATCH($C15,Loads!$D:$D,0),MATCH(AM$4,Loads!$L$4:$CE$4,0)) -> 21677.2 | AN15: =+INDEX(Loads!$L:$CE,MATCH($C15,Loads!$D:$D,0),MATCH(AN$4,Loads!$L$4:$CE$4,0)) -> 27430.704 | AO15: =+INDEX(Loads!$L:$CE,MATCH($C15,Loads!$D:$D,0),MATCH(AO$4,Loads!$L$4:$CE$4,0)) -> 24382.848 | AP15: =+INDEX(Loads!$L:$CE,MATCH($C15,Loads!$D:$D,0),MATCH(AP$4,Loads!$L$4:$CE$4,0)) -> 26414.752 | AQ15: =+INDEX(Loads!$L:$CE,MATCH($C15,Loads!$D:$D,0),MATCH(AQ$4,Loads!$L$4:$CE$4,0)) -> 25398.8 | AR15: =+INDEX(Loads!$L:$CE,MATCH($C15,Loads!$D:$D,0),MATCH(AR$4,Loads!$L$4:$CE$4,0)) -> 24382.848 | AS15: =+INDEX(Loads!$L:$CE,MATCH($C15,Loads!$D:$D,0),MATCH(AS$4,Loads!$L$4:$CE$4,0)) -> 27430.704 | AT15: =+INDEX(Loads!$L:$CE,MATCH($C15,Loads!$D:$D,0),MATCH(AT$4,Loads!$L$4:$CE$4,0)) -> 26414.752 | AU15: =+INDEX(Loads!$L:$CE,MATCH($C15,Loads!$D:$D,0),MATCH(AU$4,Loads!$L$4:$CE$4,0)) -> 25398.8 | AV15: =+INDEX(Loads!$L:$CE,MATCH($C15,Loads!$D:$D,0),MATCH(AV$4,Loads!$L$4:$CE$4,0)) -> 26414.752 | AW15: =+INDEX(Loads!$L:$CE,MATCH($C15,Loads!$D:$D,0),MATCH(AW$4,Loads!$L$4:$CE$4,0)) -> 26414.752 | AX15: =+INDEX(Loads!$L:$CE,MATCH($C15,Loads!$D:$D,0),MATCH(AX$4,Loads!$L$4:$CE$4,0)) -> 26414.752 | AY15: =+INDEX(Loads!$L:$CE,MATCH($C15,Loads!$D:$D,0),MATCH(AY$4,Loads!$L$4:$CE$4,0)) -> 25398.8 | AZ15: =+INDEX(Loads!$L:$CE,MATCH($C15,Loads!$D:$D,0),MATCH(AZ$4,Loads!$L$4:$CE$4,0)) -> 23411.376 | BA15: =+INDEX(Loads!$L:$CE,MATCH($C15,Loads!$D:$D,0),MATCH(BA$4,Loads!$L$4:$CE$4,0)) -> 21677.2 | BB15: =+INDEX(Loads!$L:$CE,MATCH($C15,Loads!$D:$D,0),MATCH(BB$4,Loads!$L$4:$CE$4,0)) -> 21677.2 | BC15: =+INDEX(Loads!$L:$CE,MATCH($C15,Loads!$D:$D,0),MATCH(BC$4,Loads!$L$4:$CE$4,0)) -> 22544.288 | BD15: =+INDEX(Loads!$L:$CE,MATCH($C15,Loads!$D:$D,0),MATCH(BD$4,Loads!$L$4:$CE$4,0)) -> 21677.2 | BE15: =+INDEX(Loads!$L:$CE,MATCH($C15,Loads!$D:$D,0),MATCH(BE$4,Loads!$L$4:$CE$4,0)) -> 22544.288 | BF15: =+INDEX(Loads!$L:$CE,MATCH($C15,Loads!$D:$D,0),MATCH(BF$4,Loads!$L$4:$CE$4,0)) -> 22544.288 | BG15: =+INDEX(Loads!$L:$CE,MATCH($C15,Loads!$D:$D,0),MATCH(BG$4,Loads!$L$4:$CE$4,0)) -> 21677.2 | BH15: =+INDEX(Loads!$L:$CE,MATCH($C15,Loads!$D:$D,0),MATCH(BH$4,Loads!$L$4:$CE$4,0)) -> 22544.288 | BI15: =+INDEX(Loads!$L:$CE,MATCH($C15,Loads!$D:$D,0),MATCH(BI$4,Loads!$L$4:$CE$4,0)) -> 22544.288 | BJ15: =+INDEX(Loads!$L:$CE,MATCH($C15,Loads!$D:$D,0),MATCH(BJ$4,Loads!$L$4:$CE$4,0)) -> 22544.288 | BK15: =+INDEX(Loads!$L:$CE,MATCH($C15,Loads!$D:$D,0),MATCH(BK$4,Loads!$L$4:$CE$4,0)) -> 21677.2 | BL15: =+INDEX(Loads!$L:$CE,MATCH($C15,Loads!$D:$D,0),MATCH(BL$4,Loads!$L$4:$CE$4,0)) -> 27430.704 | BM15: =+INDEX(Loads!$L:$CE,MATCH($C15,Loads!$D:$D,0),MATCH(BM$4,Loads!$L$4:$CE$4,0)) -> 24382.848 | BN15: =+INDEX(Loads!$L:$CE,MATCH($C15,Loads!$D:$D,0),MATCH(BN$4,Loads!$L$4:$CE$4,0)) -> 26414.752 | BO15: =+INDEX(Loads!$L:$CE,MATCH($C15,Loads!$D:$D,0),MATCH(BO$4,Loads!$L$4:$CE$4,0)) -> 25398.8 | BP15: =+INDEX(Loads!$L:$CE,MATCH($C15,Loads!$D:$D,0),MATCH(BP$4,Loads!$L$4:$CE$4,0)) -> 24382.848 | BQ15: =+INDEX(Loads!$L:$CE,MATCH($C15,Loads!$D:$D,0),MATCH(BQ$4,Loads!$L$4:$CE$4,0)) -> 27430.704 | BR15: =+INDEX(Loads!$L:$CE,MATCH($C15,Loads!$D:$D,0),MATCH(BR$4,Loads!$L$4:$CE$4,0)) -> 26414.752 | BS15: =+INDEX(Loads!$L:$CE,MATCH($C15,Loads!$D:$D,0),MATCH(BS$4,Loads!$L$4:$CE$4,0)) -> 25398.8 | BT15: =+INDEX(Loads!$L:$CE,MATCH($C15,Loads!$D:$D,0),MATCH(BT$4,Loads!$L$4:$CE$4,0)) -> 26414.752 | BU15: =+INDEX(Loads!$L:$CE,MATCH($C15,Loads!$D:$D,0),MATCH(BU$4,Loads!$L$4:$CE$4,0)) -> 26414.752 | BV15: =+INDEX(Loads!$L:$CE,MATCH($C15,Loads!$D:$D,0),MATCH(BV$4,Loads!$L$4:$CE$4,0)) -> 26414.752 | BW15: =+INDEX(Loads!$L:$CE,MATCH($C15,Loads!$D:$D,0),MATCH(BW$4,Loads!$L$4:$CE$4,0)) -> 25398.8
B16: LLH | C16: PRE_T2 | D16: =+INDEX(Loads!$CG:$EZ,MATCH($C16,Loads!$D:$D,0),MATCH(D$4,Loads!$CG$4:$EZ$4,0)) -> 16908.216 | E16: =+INDEX(Loads!$CG:$EZ,MATCH($C16,Loads!$D:$D,0),MATCH(E$4,Loads!$CG$4:$EZ$4,0)) -> 17395.953 | F16: =+INDEX(Loads!$CG:$EZ,MATCH($C16,Loads!$D:$D,0),MATCH(F$4,Loads!$CG$4:$EZ$4,0)) -> 18642.392 | G16: =+INDEX(Loads!$CG:$EZ,MATCH($C16,Loads!$D:$D,0),MATCH(G$4,Loads!$CG$4:$EZ$4,0)) -> 17775.304 | H16: =+INDEX(Loads!$CG:$EZ,MATCH($C16,Loads!$D:$D,0),MATCH(H$4,Loads!$CG$4:$EZ$4,0)) -> 16041.128 | I16: =+INDEX(Loads!$CG:$EZ,MATCH($C16,Loads!$D:$D,0),MATCH(I$4,Loads!$CG$4:$EZ$4,0)) -> 17721.111 | J16: =+INDEX(Loads!$CG:$EZ,MATCH($C16,Loads!$D:$D,0),MATCH(J$4,Loads!$CG$4:$EZ$4,0)) -> 16474.672 | K16: =+INDEX(Loads!$CG:$EZ,MATCH($C16,Loads!$D:$D,0),MATCH(K$4,Loads!$CG$4:$EZ$4,0)) -> 18642.392 | L16: =+INDEX(Loads!$CG:$EZ,MATCH($C16,Loads!$D:$D,0),MATCH(L$4,Loads!$CG$4:$EZ$4,0)) -> 16474.672 | M16: =+INDEX(Loads!$CG:$EZ,MATCH($C16,Loads!$D:$D,0),MATCH(M$4,Loads!$CG$4:$EZ$4,0)) -> 17775.304 | N16: =+INDEX(Loads!$CG:$EZ,MATCH($C16,Loads!$D:$D,0),MATCH(N$4,Loads!$CG$4:$EZ$4,0)) -> 17775.304 | O16: =+INDEX(Loads!$CG:$EZ,MATCH($C16,Loads!$D:$D,0),MATCH(O$4,Loads!$CG$4:$EZ$4,0)) -> 17341.76 | P16: =+INDEX(Loads!$CG:$EZ,MATCH($C16,Loads!$D:$D,0),MATCH(P$4,Loads!$CG$4:$EZ$4,0)) -> 19811.064 | Q16: =+INDEX(Loads!$CG:$EZ,MATCH($C16,Loads!$D:$D,0),MATCH(Q$4,Loads!$CG$4:$EZ$4,0)) -> 21398.489 | R16: =+INDEX(Loads!$CG:$EZ,MATCH($C16,Loads!$D:$D,0),MATCH(R$4,Loads!$CG$4:$EZ$4,0)) -> 20827.016 | S16: =+INDEX(Loads!$CG:$EZ,MATCH($C16,Loads!$D:$D,0),MATCH(S$4,Loads!$CG$4:$EZ$4,0)) -> 21842.968 | T16: =+INDEX(Loads!$CG:$EZ,MATCH($C16,Loads!$D:$D,0),MATCH(T$4,Loads!$CG$4:$EZ$4,0)) -> 18287.136 | U16: =+INDEX(Loads!$CG:$EZ,MATCH($C16,Loads!$D:$D,0),MATCH(U$4,Loads!$CG$4:$EZ$4,0)) -> 19747.567 | V16: =+INDEX(Loads!$CG:$EZ,MATCH($C16,Loads!$D:$D,0),MATCH(V$4,Loads!$CG$4:$EZ$4,0)) -> 19303.088 | W16: =+INDEX(Loads!$CG:$EZ,MATCH($C16,Loads!$D:$D,0),MATCH(W$4,Loads!$CG$4:$EZ$4,0)) -> 21842.968 | X16: =+INDEX(Loads!$CG:$EZ,MATCH($C16,Loads!$D:$D,0),MATCH(X$4,Loads!$CG$4:$EZ$4,0)) -> 19303.088 | Y16: =+INDEX(Loads!$CG:$EZ,MATCH($C16,Loads!$D:$D,0),MATCH(Y$4,Loads!$CG$4:$EZ$4,0)) -> 20827.016 | Z16: =+INDEX(Loads!$CG:$EZ,MATCH($C16,Loads!$D:$D,0),MATCH(Z$4,Loads!$CG$4:$EZ$4,0)) -> 20827.016 | AA16: =+INDEX(Loads!$CG:$EZ,MATCH($C16,Loads!$D:$D,0),MATCH(AA$4,Loads!$CG$4:$EZ$4,0)) -> 20319.04 | AB16: =+INDEX(Loads!$CG:$EZ,MATCH($C16,Loads!$D:$D,0),MATCH(AB$4,Loads!$CG$4:$EZ$4,0)) -> 16908.216 | AC16: =+INDEX(Loads!$CG:$EZ,MATCH($C16,Loads!$D:$D,0),MATCH(AC$4,Loads!$CG$4:$EZ$4,0)) -> 17395.953 | AD16: =+INDEX(Loads!$CG:$EZ,MATCH($C16,Loads!$D:$D,0),MATCH(AD$4,Loads!$CG$4:$EZ$4,0)) -> 18642.392 | AE16: =+INDEX(Loads!$CG:$EZ,MATCH($C16,Loads!$D:$D,0),MATCH(AE$4,Loads!$CG$4:$EZ$4,0)) -> 17775.304 | AF16: =+INDEX(Loads!$CG:$EZ,MATCH($C16,Loads!$D:$D,0),MATCH(AF$4,Loads!$CG$4:$EZ$4,0)) -> 16041.128 | AG16: =+INDEX(Loads!$CG:$EZ,MATCH($C16,Loads!$D:$D,0),MATCH(AG$4,Loads!$CG$4:$EZ$4,0)) -> 17721.111 | AH16: =+INDEX(Loads!$CG:$EZ,MATCH($C16,Loads!$D:$D,0),MATCH(AH$4,Loads!$CG$4:$EZ$4,0)) -> 16474.672 | AI16: =+INDEX(Loads!$CG:$EZ,MATCH($C16,Loads!$D:$D,0),MATCH(AI$4,Loads!$CG$4:$EZ$4,0)) -> 18642.392 | AJ16: =+INDEX(Loads!$CG:$EZ,MATCH($C16,Loads!$D:$D,0),MATCH(AJ$4,Loads!$CG$4:$EZ$4,0)) -> 16474.672 | AK16: =+INDEX(Loads!$CG:$EZ,MATCH($C16,Loads!$D:$D,0),MATCH(AK$4,Loads!$CG$4:$EZ$4,0)) -> 17775.304 | AL16: =+INDEX(Loads!$CG:$EZ,MATCH($C16,Loads!$D:$D,0),MATCH(AL$4,Loads!$CG$4:$EZ$4,0)) -> 17775.304 | AM16: =+INDEX(Loads!$CG:$EZ,MATCH($C16,Loads!$D:$D,0),MATCH(AM$4,Loads!$CG$4:$EZ$4,0)) -> 17341.76 | AN16: =+INDEX(Loads!$CG:$EZ,MATCH($C16,Loads!$D:$D,0),MATCH(AN$4,Loads!$CG$4:$EZ$4,0)) -> 19811.064 | AO16: =+INDEX(Loads!$CG:$EZ,MATCH($C16,Loads!$D:$D,0),MATCH(AO$4,Loads!$CG$4:$EZ$4,0)) -> 21398.489 | AP16: =+INDEX(Loads!$CG:$EZ,MATCH($C16,Loads!$D:$D,0),MATCH(AP$4,Loads!$CG$4:$EZ$4,0)) -> 20827.016 | AQ16: =+INDEX(Loads!$CG:$EZ,MATCH($C16,Loads!$D:$D,0),MATCH(AQ$4,Loads!$CG$4:$EZ$4,0)) -> 21842.968 | AR16: =+INDEX(Loads!$CG:$EZ,MATCH($C16,Loads!$D:$D,0),MATCH(AR$4,Loads!$CG$4:$EZ$4,0)) -> 18287.136 | AS16: =+INDEX(Loads!$CG:$EZ,MATCH($C16,Loads!$D:$D,0),MATCH(AS$4,Loads!$CG$4:$EZ$4,0)) -> 19747.567 | AT16: =+INDEX(Loads!$CG:$EZ,MATCH($C16,Loads!$D:$D,0),MATCH(AT$4,Loads!$CG$4:$EZ$4,0)) -> 19303.088 | AU16: =+INDEX(Loads!$CG:$EZ,MATCH($C16,Loads!$D:$D,0),MATCH(AU$4,Loads!$CG$4:$EZ$4,0)) -> 21842.968 | AV16: =+INDEX(Loads!$CG:$EZ,MATCH($C16,Loads!$D:$D,0),MATCH(AV$4,Loads!$CG$4:$EZ$4,0)) -> 19303.088 | AW16: =+INDEX(Loads!$CG:$EZ,MATCH($C16,Loads!$D:$D,0),MATCH(AW$4,Loads!$CG$4:$EZ$4,0)) -> 20827.016 | AX16: =+INDEX(Loads!$CG:$EZ,MATCH($C16,Loads!$D:$D,0),MATCH(AX$4,Loads!$CG$4:$EZ$4,0)) -> 20827.016 | AY16: =+INDEX(Loads!$CG:$EZ,MATCH($C16,Loads!$D:$D,0),MATCH(AY$4,Loads!$CG$4:$EZ$4,0)) -> 20319.04 | AZ16: =+INDEX(Loads!$CG:$EZ,MATCH($C16,Loads!$D:$D,0),MATCH(AZ$4,Loads!$CG$4:$EZ$4,0)) -> 16908.216 | BA16: =+INDEX(Loads!$CG:$EZ,MATCH($C16,Loads!$D:$D,0),MATCH(BA$4,Loads!$CG$4:$EZ$4,0)) -> 17395.953 | BB16: =+INDEX(Loads!$CG:$EZ,MATCH($C16,Loads!$D:$D,0),MATCH(BB$4,Loads!$CG$4:$EZ$4,0)) -> 18642.392 | BC16: =+INDEX(Loads!$CG:$EZ,MATCH($C16,Loads!$D:$D,0),MATCH(BC$4,Loads!$CG$4:$EZ$4,0)) -> 17775.304 | BD16: =+INDEX(Loads!$CG:$EZ,MATCH($C16,Loads!$D:$D,0),MATCH(BD$4,Loads!$CG$4:$EZ$4,0)) -> 16041.128 | BE16: =+INDEX(Loads!$CG:$EZ,MATCH($C16,Loads!$D:$D,0),MATCH(BE$4,Loads!$CG$4:$EZ$4,0)) -> 17721.111 | BF16: =+INDEX(Loads!$CG:$EZ,MATCH($C16,Loads!$D:$D,0),MATCH(BF$4,Loads!$CG$4:$EZ$4,0)) -> 16474.672 | BG16: =+INDEX(Loads!$CG:$EZ,MATCH($C16,Loads!$D:$D,0),MATCH(BG$4,Loads!$CG$4:$EZ$4,0)) -> 18642.392 | BH16: =+INDEX(Loads!$CG:$EZ,MATCH($C16,Loads!$D:$D,0),MATCH(BH$4,Loads!$CG$4:$EZ$4,0)) -> 16474.672 | BI16: =+INDEX(Loads!$CG:$EZ,MATCH($C16,Loads!$D:$D,0),MATCH(BI$4,Loads!$CG$4:$EZ$4,0)) -> 17775.304 | BJ16: =+INDEX(Loads!$CG:$EZ,MATCH($C16,Loads!$D:$D,0),MATCH(BJ$4,Loads!$CG$4:$EZ$4,0)) -> 17775.304 | BK16: =+INDEX(Loads!$CG:$EZ,MATCH($C16,Loads!$D:$D,0),MATCH(BK$4,Loads!$CG$4:$EZ$4,0)) -> 17341.76 | BL16: =+INDEX(Loads!$CG:$EZ,MATCH($C16,Loads!$D:$D,0),MATCH(BL$4,Loads!$CG$4:$EZ$4,0)) -> 19811.064 | BM16: =+INDEX(Loads!$CG:$EZ,MATCH($C16,Loads!$D:$D,0),MATCH(BM$4,Loads!$CG$4:$EZ$4,0)) -> 21398.489 | BN16: =+INDEX(Loads!$CG:$EZ,MATCH($C16,Loads!$D:$D,0),MATCH(BN$4,Loads!$CG$4:$EZ$4,0)) -> 20827.016 | BO16: =+INDEX(Loads!$CG:$EZ,MATCH($C16,Loads!$D:$D,0),MATCH(BO$4,Loads!$CG$4:$EZ$4,0)) -> 21842.968 | BP16: =+INDEX(Loads!$CG:$EZ,MATCH($C16,Loads!$D:$D,0),MATCH(BP$4,Loads!$CG$4:$EZ$4,0)) -> 18287.136 | BQ16: =+INDEX(Loads!$CG:$EZ,MATCH($C16,Loads!$D:$D,0),MATCH(BQ$4,Loads!$CG$4:$EZ$4,0)) -> 19747.567 | BR16: =+INDEX(Loads!$CG:$EZ,MATCH($C16,Loads!$D:$D,0),MATCH(BR$4,Loads!$CG$4:$EZ$4,0)) -> 19303.088 | BS16: =+INDEX(Loads!$CG:$EZ,MATCH($C16,Loads!$D:$D,0),MATCH(BS$4,Loads!$CG$4:$EZ$4,0)) -> 21842.968 | BT16: =+INDEX(Loads!$CG:$EZ,MATCH($C16,Loads!$D:$D,0),MATCH(BT$4,Loads!$CG$4:$EZ$4,0)) -> 19303.088 | BU16: =+INDEX(Loads!$CG:$EZ,MATCH($C16,Loads!$D:$D,0),MATCH(BU$4,Loads!$CG$4:$EZ$4,0)) -> 20827.016 | BV16: =+INDEX(Loads!$CG:$EZ,MATCH($C16,Loads!$D:$D,0),MATCH(BV$4,Loads!$CG$4:$EZ$4,0)) -> 20827.016 | BW16: =+INDEX(Loads!$CG:$EZ,MATCH($C16,Loads!$D:$D,0),MATCH(BW$4,Loads!$CG$4:$EZ$4,0)) -> 20319.04
B17: Demand
D18: =+INDEX(TRM_Billing!$Q$6:$Q$149,MATCH(D$4,TRM_Billing!$K$6:$K$149,0),1)/1000 -> 364.2362 | E18: =+INDEX(TRM_Billing!$Q$6:$Q$149,MATCH(E$4,TRM_Billing!$K$6:$K$149,0),1)/1000 -> 326.8017 | F18: =+INDEX(TRM_Billing!$Q$6:$Q$149,MATCH(F$4,TRM_Billing!$K$6:$K$149,0),1)/1000 -> 532.035 | G18: =+INDEX(TRM_Billing!$Q$6:$Q$149,MATCH(G$4,TRM_Billing!$K$6:$K$149,0),1)/1000 -> 595.1084 | H18: =+INDEX(TRM_Billing!$Q$6:$Q$149,MATCH(H$4,TRM_Billing!$K$6:$K$149,0),1)/1000 -> 400.6946 | I18: =+INDEX(TRM_Billing!$Q$6:$Q$149,MATCH(I$4,TRM_Billing!$K$6:$K$149,0),1)/1000 -> 461.5678 | J18: =+INDEX(TRM_Billing!$Q$6:$Q$149,MATCH(J$4,TRM_Billing!$K$6:$K$149,0),1)/1000 -> 425.9809 | K18: =+INDEX(TRM_Billing!$Q$6:$Q$149,MATCH(K$4,TRM_Billing!$K$6:$K$149,0),1)/1000 -> 265.6009 | L18: =+INDEX(TRM_Billing!$Q$6:$Q$149,MATCH(L$4,TRM_Billing!$K$6:$K$149,0),1)/1000 -> 394.5341 | M18: =+INDEX(TRM_Billing!$Q$6:$Q$149,MATCH(M$4,TRM_Billing!$K$6:$K$149,0),1)/1000 -> 469.5608 | N18: =+INDEX(TRM_Billing!$Q$6:$Q$149,MATCH(N$4,TRM_Billing!$K$6:$K$149,0),1)/1000 -> 435.3296 | O18: =+INDEX(TRM_Billing!$Q$6:$Q$149,MATCH(O$4,TRM_Billing!$K$6:$K$149,0),1)/1000 -> 385.6406 | P18: =+INDEX(TRM_Billing!$Q$6:$Q$149,MATCH(P$4,TRM_Billing!$K$6:$K$149,0),1)/1000 -> 369.6912 | Q18: =+INDEX(TRM_Billing!$Q$6:$Q$149,MATCH(Q$4,TRM_Billing!$K$6:$K$149,0),1)/1000 -> 278.1057 | R18: =+INDEX(TRM_Billing!$Q$6:$Q$149,MATCH(R$4,TRM_Billing!$K$6:$K$149,0),1)/1000 -> 625.0352 | S18: =+INDEX(TRM_Billing!$Q$6:$Q$149,MATCH(S$4,TRM_Billing!$K$6:$K$149,0),1)/1000 -> 537.4945 | T18: =+INDEX(TRM_Billing!$Q$6:$Q$149,MATCH(T$4,TRM_Billing!$K$6:$K$149,0),1)/1000 -> 352.3844 | U18: =+INDEX(TRM_Billing!$Q$6:$Q$149,MATCH(U$4,TRM_Billing!$K$6:$K$149,0),1)/1000 -> 527.9041 | V18: =+INDEX(TRM_Billing!$Q$6:$Q$149,MATCH(V$4,TRM_Billing!$K$6:$K$149,0),1)/1000 -> 439.681 | W18: =+INDEX(TRM_Billing!$Q$6:$Q$149,MATCH(W$4,TRM_Billing!$K$6:$K$149,0),1)/1000 -> 274.8646 | X18: =+INDEX(TRM_Billing!$Q$6:$Q$149,MATCH(X$4,TRM_Billing!$K$6:$K$149,0),1)/1000 -> 399.8803 | Y18: =+INDEX(TRM_Billing!$Q$6:$Q$149,MATCH(Y$4,TRM_Billing!$K$6:$K$149,0),1)/1000 -> 478.3325 | Z18: =+INDEX(TRM_Billing!$Q$6:$Q$149,MATCH(Z$4,TRM_Billing!$K$6:$K$149,0),1)/1000 -> 444.4715 | AA18: =+INDEX(TRM_Billing!$Q$6:$Q$149,MATCH(AA$4,TRM_Billing!$K$6:$K$149,0),1)/1000 -> 401.0725 | AB18: =+INDEX(TRM_Billing!$Q$6:$Q$149,MATCH(AB$4,TRM_Billing!$K$6:$K$149,0),1)/1000 -> 1090.381786 | AC18: =+INDEX(TRM_Billing!$Q$6:$Q$149,MATCH(AC$4,TRM_Billing!$K$6:$K$149,0),1)/1000 -> 1117.426042 | AD18: =+INDEX(TRM_Billing!$Q$6:$Q$149,MATCH(AD$4,TRM_Billing!$K$6:$K$149,0),1)/1000 -> 1554.063575 | AE18: =+INDEX(TRM_Billing!$Q$6:$Q$149,MATCH(AE$4,TRM_Billing!$K$6:$K$149,0),1)/1000 -> 1470.743645 | AF18: =+INDEX(TRM_Billing!$Q$6:$Q$149,MATCH(AF$4,TRM_Billing!$K$6:$K$149,0),1)/1000 -> 1192.664643 | AG18: =+INDEX(TRM_Billing!$Q$6:$Q$149,MATCH(AG$4,TRM_Billing!$K$6:$K$149,0),1)/1000 -> 1379.389014 | AH18: =+INDEX(TRM_Billing!$Q$6:$Q$149,MATCH(AH$4,TRM_Billing!$K$6:$K$149,0),1)/1000 -> 1262.771339 | AI18: =+INDEX(TRM_Billing!$Q$6:$Q$149,MATCH(AI$4,TRM_Billing!$K$6:$K$149,0),1)/1000 -> 1120.42752 | AJ18: =+INDEX(TRM_Billing!$Q$6:$Q$149,MATCH(AJ$4,TRM_Billing!$K$6:$K$149,0),1)/1000 -> 1330.567276 | AK18: =+INDEX(TRM_Billing!$Q$6:$Q$149,MATCH(AK$4,TRM_Billing!$K$6:$K$149,0),1)/1000 -> 1375.37241 | AL18: =+INDEX(TRM_Billing!$Q$6:$Q$149,MATCH(AL$4,TRM_Billing!$K$6:$K$149,0),1)/1000 -> 1511.500961 | AM18: =+INDEX(TRM_Billing!$Q$6:$Q$149,MATCH(AM$4,TRM_Billing!$K$6:$K$149,0),1)/1000 -> 1301.004525 | AN18: =+INDEX(TRM_Billing!$Q$6:$Q$149,MATCH(AN$4,TRM_Billing!$K$6:$K$149,0),1)/1000 -> 1148.605144 | AO18: =+INDEX(TRM_Billing!$Q$6:$Q$149,MATCH(AO$4,TRM_Billing!$K$6:$K$149,0),1)/1000 -> 1180.40112 | AP18: =+INDEX(TRM_Billing!$Q$6:$Q$149,MATCH(AP$4,TRM_Billing!$K$6:$K$149,0),1)/1000 -> 1609.970363 | AQ18: =+INDEX(TRM_Billing!$Q$6:$Q$149,MATCH(AQ$4,TRM_Billing!$K$6:$K$149,0),1)/1000 -> 1488.871928 | AR18: =+INDEX(TRM_Billing!$Q$6:$Q$149,MATCH(AR$4,TRM_Billing!$K$6:$K$149,0),1)/1000 -> 1193.219628 | AS18: =+INDEX(TRM_Billing!$Q$6:$Q$149,MATCH(AS$4,TRM_Billing!$K$6:$K$149,0),1)/1000 -> 1400.762799 | AT18: =+INDEX(TRM_Billing!$Q$6:$Q$149,MATCH(AT$4,TRM_Billing!$K$6:$K$149,0),1)/1000 -> 1215.71713 | AU18: =+INDEX(TRM_Billing!$Q$6:$Q$149,MATCH(AU$4,TRM_Billing!$K$6:$K$149,0),1)/1000 -> 1216.607315 | AV18: =+INDEX(TRM_Billing!$Q$6:$Q$149,MATCH(AV$4,TRM_Billing!$K$6:$K$149,0),1)/1000 -> 1351.960248 | AW18: =+INDEX(TRM_Billing!$Q$6:$Q$149,MATCH(AW$4,TRM_Billing!$K$6:$K$149,0),1)/1000 -> 1398.509273 | AX18: =+INDEX(TRM_Billing!$Q$6:$Q$149,MATCH(AX$4,TRM_Billing!$K$6:$K$149,0),1)/1000 -> 1527.654558 | AY18: =+INDEX(TRM_Billing!$Q$6:$Q$149,MATCH(AY$4,TRM_Billing!$K$6:$K$149,0),1)/1000 -> 1313.57248 | AZ18: =+INDEX(TRM_Billing!$Q$6:$Q$149,MATCH(AZ$4,TRM_Billing!$K$6:$K$149,0),1)/1000 -> 1161.180536 | BA18: =+INDEX(TRM_Billing!$Q$6:$Q$149,MATCH(BA$4,TRM_Billing!$K$6:$K$149,0),1)/1000 -> 1193.670998 | BB18: =+INDEX(TRM_Billing!$Q$6:$Q$149,MATCH(BB$4,TRM_Billing!$K$6:$K$149,0),1)/1000 -> 1544.5775 | BC18: =+INDEX(TRM_Billing!$Q$6:$Q$149,MATCH(BC$4,TRM_Billing!$K$6:$K$149,0),1)/1000 -> 1578.235611 | BD18: =+INDEX(TRM_Billing!$Q$6:$Q$149,MATCH(BD$4,TRM_Billing!$K$6:$K$149,0),1)/1000 -> 1284.0922 | BE18: =+INDEX(TRM_Billing!$Q$6:$Q$149,MATCH(BE$4,TRM_Billing!$K$6:$K$149,0),1)/1000 -> 1337.398832 | BF18: =+INDEX(TRM_Billing!$Q$6:$Q$149,MATCH(BF$4,TRM_Billing!$K$6:$K$149,0),1)/1000 -> 1300.858284 | BG18: =+INDEX(TRM_Billing!$Q$6:$Q$149,MATCH(BG$4,TRM_Billing!$K$6:$K$149,0),1)/1000 -> 1229.847418 | BH18: =+INDEX(TRM_Billing!$Q$6:$Q$149,MATCH(BH$4,TRM_Billing!$K$6:$K$149,0),1)/1000 -> 1302.622205 | BI18: =+INDEX(TRM_Billing!$Q$6:$Q$149,MATCH(BI$4,TRM_Billing!$K$6:$K$149,0),1)/1000 -> 1505.317632 | BJ18: =+INDEX(TRM_Billing!$Q$6:$Q$149,MATCH(BJ$4,TRM_Billing!$K$6:$K$149,0),1)/1000 -> 1542.983748 | BK18: =+INDEX(TRM_Billing!$Q$6:$Q$149,MATCH(BK$4,TRM_Billing!$K$6:$K$149,0),1)/1000 -> 1243.552307 | BL18: =+INDEX(TRM_Billing!$Q$6:$Q$149,MATCH(BL$4,TRM_Billing!$K$6:$K$149,0),1)/1000 -> 1227.671229 | BM18: =+INDEX(TRM_Billing!$Q$6:$Q$149,MATCH(BM$4,TRM_Billing!$K$6:$K$149,0),1)/1000 -> 1205.977135 | BN18: =+INDEX(TRM_Billing!$Q$6:$Q$149,MATCH(BN$4,TRM_Billing!$K$6:$K$149,0),1)/1000 -> 1557.055665 | BO18: =+INDEX(TRM_Billing!$Q$6:$Q$149,MATCH(BO$4,TRM_Billing!$K$6:$K$149,0),1)/1000 -> 1591.222375 | BP18: =+INDEX(TRM_Billing!$Q$6:$Q$149,MATCH(BP$4,TRM_Billing!$K$6:$K$149,0),1)/1000 -> 1228.174867 | BQ18: =+INDEX(TRM_Billing!$Q$6:$Q$149,MATCH(BQ$4,TRM_Billing!$K$6:$K$149,0),1)/1000 -> 1361.887103 | BR18: =+INDEX(TRM_Billing!$Q$6:$Q$149,MATCH(BR$4,TRM_Billing!$K$6:$K$149,0),1)/1000 -> 1314.912637 | BS18: =+INDEX(TRM_Billing!$Q$6:$Q$149,MATCH(BS$4,TRM_Billing!$K$6:$K$149,0),1)/1000 -> 1241.333305 | BT18: =+INDEX(TRM_Billing!$Q$6:$Q$149,MATCH(BT$4,TRM_Billing!$K$6:$K$149,0),1)/1000 -> 1314.01116 | BU18: =+INDEX(TRM_Billing!$Q$6:$Q$149,MATCH(BU$4,TRM_Billing!$K$6:$K$149,0),1)/1000 -> 1519.647613 | BV18: =+INDEX(TRM_Billing!$Q$6:$Q$149,MATCH(BV$4,TRM_Billing!$K$6:$K$149,0),1)/1000 -> 1470.570243 | BW18: =+INDEX(TRM_Billing!$Q$6:$Q$149,MATCH(BW$4,TRM_Billing!$K$6:$K$149,0),1)/1000 -> 1337.112162
B19: Load Shaping
C20: HLH | D20: =+INDEX(TRM_Billing!$R$6:$R$149,IF($C20="HLH",MATCH(D$4,TRM_Billing!$K$6:$K$149,0),MATCH(D$4,TRM_Billing!$K$6:$K$149,0)+1),1) -> -144533 | E20: =+INDEX(TRM_Billing!$R$6:$R$149,IF($C20="HLH",MATCH(E$4,TRM_Billing!$K$6:$K$149,0),MATCH(E$4,TRM_Billing!$K$6:$K$149,0)+1),1) -> -305552 | F20: =+INDEX(TRM_Billing!$R$6:$R$149,IF($C20="HLH",MATCH(F$4,TRM_Billing!$K$6:$K$149,0),MATCH(F$4,TRM_Billing!$K$6:$K$149,0)+1),1) -> 88032.51 | G20: =+INDEX(TRM_Billing!$R$6:$R$149,IF($C20="HLH",MATCH(G$4,TRM_Billing!$K$6:$K$149,0),MATCH(G$4,TRM_Billing!$K$6:$K$149,0)+1),1) -> 553248.7 | H20: =+INDEX(TRM_Billing!$R$6:$R$149,IF($C20="HLH",MATCH(H$4,TRM_Billing!$K$6:$K$149,0),MATCH(H$4,TRM_Billing!$K$6:$K$149,0)+1),1) -> 415878 | I20: =+INDEX(TRM_Billing!$R$6:$R$149,IF($C20="HLH",MATCH(I$4,TRM_Billing!$K$6:$K$149,0),MATCH(I$4,TRM_Billing!$K$6:$K$149,0)+1),1) -> 84799.8 | J20: =+INDEX(TRM_Billing!$R$6:$R$149,IF($C20="HLH",MATCH(J$4,TRM_Billing!$K$6:$K$149,0),MATCH(J$4,TRM_Billing!$K$6:$K$149,0)+1),1) -> 195569.1 | K20: =+INDEX(TRM_Billing!$R$6:$R$149,IF($C20="HLH",MATCH(K$4,TRM_Billing!$K$6:$K$149,0),MATCH(K$4,TRM_Billing!$K$6:$K$149,0)+1),1) -> -705510 | L20: =+INDEX(TRM_Billing!$R$6:$R$149,IF($C20="HLH",MATCH(L$4,TRM_Billing!$K$6:$K$149,0),MATCH(L$4,TRM_Billing!$K$6:$K$149,0)+1),1) -> -1334634 | M20: =+INDEX(TRM_Billing!$R$6:$R$149,IF($C20="HLH",MATCH(M$4,TRM_Billing!$K$6:$K$149,0),MATCH(M$4,TRM_Billing!$K$6:$K$149,0)+1),1) -> -524430 | N20: =+INDEX(TRM_Billing!$R$6:$R$149,IF($C20="HLH",MATCH(N$4,TRM_Billing!$K$6:$K$149,0),MATCH(N$4,TRM_Billing!$K$6:$K$149,0)+1),1) -> -444584 | O20: =+INDEX(TRM_Billing!$R$6:$R$149,IF($C20="HLH",MATCH(O$4,TRM_Billing!$K$6:$K$149,0),MATCH(O$4,TRM_Billing!$K$6:$K$149,0)+1),1) -> -196873 | P20: =+INDEX(TRM_Billing!$R$6:$R$149,IF($C20="HLH",MATCH(P$4,TRM_Billing!$K$6:$K$149,0),MATCH(P$4,TRM_Billing!$K$6:$K$149,0)+1),1) -> -132732 | Q20: =+INDEX(TRM_Billing!$R$6:$R$149,IF($C20="HLH",MATCH(Q$4,TRM_Billing!$K$6:$K$149,0),MATCH(Q$4,TRM_Billing!$K$6:$K$149,0)+1),1) -> -349173 | R20: =+INDEX(TRM_Billing!$R$6:$R$149,IF($C20="HLH",MATCH(R$4,TRM_Billing!$K$6:$K$149,0),MATCH(R$4,TRM_Billing!$K$6:$K$149,0)+1),1) -> 145553 | S20: =+INDEX(TRM_Billing!$R$6:$R$149,IF($C20="HLH",MATCH(S$4,TRM_Billing!$K$6:$K$149,0),MATCH(S$4,TRM_Billing!$K$6:$K$149,0)+1),1) -> 510504.5 | T20: =+INDEX(TRM_Billing!$R$6:$R$149,IF($C20="HLH",MATCH(T$4,TRM_Billing!$K$6:$K$149,0),MATCH(T$4,TRM_Billing!$K$6:$K$149,0)+1),1) -> 465111.6 | U20: =+INDEX(TRM_Billing!$R$6:$R$149,IF($C20="HLH",MATCH(U$4,TRM_Billing!$K$6:$K$149,0),MATCH(U$4,TRM_Billing!$K$6:$K$149,0)+1),1) -> 131561 | V20: =+INDEX(TRM_Billing!$R$6:$R$149,IF($C20="HLH",MATCH(V$4,TRM_Billing!$K$6:$K$149,0),MATCH(V$4,TRM_Billing!$K$6:$K$149,0)+1),1) -> 206217.1 | W20: =+INDEX(TRM_Billing!$R$6:$R$149,IF($C20="HLH",MATCH(W$4,TRM_Billing!$K$6:$K$149,0),MATCH(W$4,TRM_Billing!$K$6:$K$149,0)+1),1) -> -699704 | X20: =+INDEX(TRM_Billing!$R$6:$R$149,IF($C20="HLH",MATCH(X$4,TRM_Billing!$K$6:$K$149,0),MATCH(X$4,TRM_Billing!$K$6:$K$149,0)+1),1) -> -1329043 | Y20: =+INDEX(TRM_Billing!$R$6:$R$149,IF($C20="HLH",MATCH(Y$4,TRM_Billing!$K$6:$K$149,0),MATCH(Y$4,TRM_Billing!$K$6:$K$149,0)+1),1) -> -519057 | Z20: =+INDEX(TRM_Billing!$R$6:$R$149,IF($C20="HLH",MATCH(Z$4,TRM_Billing!$K$6:$K$149,0),MATCH(Z$4,TRM_Billing!$K$6:$K$149,0)+1),1) -> -438601 | AA20: =+INDEX(TRM_Billing!$R$6:$R$149,IF($C20="HLH",MATCH(AA$4,TRM_Billing!$K$6:$K$149,0),MATCH(AA$4,TRM_Billing!$K$6:$K$149,0)+1),1) -> -194323 | AB20: =+INDEX(TRM_Billing!$R$6:$R$149,IF($C20="HLH",MATCH(AB$4,TRM_Billing!$K$6:$K$149,0),MATCH(AB$4,TRM_Billing!$K$6:$K$149,0)+1),1) -> -121965.2982 | AC20: =+INDEX(TRM_Billing!$R$6:$R$149,IF($C20="HLH",MATCH(AC$4,TRM_Billing!$K$6:$K$149,0),MATCH(AC$4,TRM_Billing!$K$6:$K$149,0)+1),1) -> -357995.438 | AD20: =+INDEX(TRM_Billing!$R$6:$R$149,IF($C20="HLH",MATCH(AD$4,TRM_Billing!$K$6:$K$149,0),MATCH(AD$4,TRM_Billing!$K$6:$K$149,0)+1),1) -> 106939.3711 | AE20: =+INDEX(TRM_Billing!$R$6:$R$149,IF($C20="HLH",MATCH(AE$4,TRM_Billing!$K$6:$K$149,0),MATCH(AE$4,TRM_Billing!$K$6:$K$149,0)+1),1) -> 439225.3722 | AF20: =+INDEX(TRM_Billing!$R$6:$R$149,IF($C20="HLH",MATCH(AF$4,TRM_Billing!$K$6:$K$149,0),MATCH(AF$4,TRM_Billing!$K$6:$K$149,0)+1),1) -> 277076.4519 | AG20: =+INDEX(TRM_Billing!$R$6:$R$149,IF($C20="HLH",MATCH(AG$4,TRM_Billing!$K$6:$K$149,0),MATCH(AG$4,TRM_Billing!$K$6:$K$149,0)+1),1) -> 63930.5613 | AH20: =+INDEX(TRM_Billing!$R$6:$R$149,IF($C20="HLH",MATCH(AH$4,TRM_Billing!$K$6:$K$149,0),MATCH(AH$4,TRM_Billing!$K$6:$K$149,0)+1),1) -> 6965.640479 | AI20: =+INDEX(TRM_Billing!$R$6:$R$149,IF($C20="HLH",MATCH(AI$4,TRM_Billing!$K$6:$K$149,0),MATCH(AI$4,TRM_Billing!$K$6:$K$149,0)+1),1) -> -1382772.251 | AJ20: =+INDEX(TRM_Billing!$R$6:$R$149,IF($C20="HLH",MATCH(AJ$4,TRM_Billing!$K$6:$K$149,0),MATCH(AJ$4,TRM_Billing!$K$6:$K$149,0)+1),1) -> -637378.309 | AK20: =+INDEX(TRM_Billing!$R$6:$R$149,IF($C20="HLH",MATCH(AK$4,TRM_Billing!$K$6:$K$149,0),MATCH(AK$4,TRM_Billing!$K$6:$K$149,0)+1),1) -> -356206.7066 | AL20: =+INDEX(TRM_Billing!$R$6:$R$149,IF($C20="HLH",MATCH(AL$4,TRM_Billing!$K$6:$K$149,0),MATCH(AL$4,TRM_Billing!$K$6:$K$149,0)+1),1) -> -311621.1905 | AM20: =+INDEX(TRM_Billing!$R$6:$R$149,IF($C20="HLH",MATCH(AM$4,TRM_Billing!$K$6:$K$149,0),MATCH(AM$4,TRM_Billing!$K$6:$K$149,0)+1),1) -> -102192.334 | AN20: =+INDEX(TRM_Billing!$R$6:$R$149,IF($C20="HLH",MATCH(AN$4,TRM_Billing!$K$6:$K$149,0),MATCH(AN$4,TRM_Billing!$K$6:$K$149,0)+1),1) -> -102743.0488 | AO20: =+INDEX(TRM_Billing!$R$6:$R$149,IF($C20="HLH",MATCH(AO$4,TRM_Billing!$K$6:$K$149,0),MATCH(AO$4,TRM_Billing!$K$6:$K$149,0)+1),1) -> -335229.2182 | AP20: =+INDEX(TRM_Billing!$R$6:$R$149,IF($C20="HLH",MATCH(AP$4,TRM_Billing!$K$6:$K$149,0),MATCH(AP$4,TRM_Billing!$K$6:$K$149,0)+1),1) -> 132937.5414 | AQ20: =+INDEX(TRM_Billing!$R$6:$R$149,IF($C20="HLH",MATCH(AQ$4,TRM_Billing!$K$6:$K$149,0),MATCH(AQ$4,TRM_Billing!$K$6:$K$149,0)+1),1) -> 454482.3723 | AR20: =+INDEX(TRM_Billing!$R$6:$R$149,IF($C20="HLH",MATCH(AR$4,TRM_Billing!$K$6:$K$149,0),MATCH(AR$4,TRM_Billing!$K$6:$K$149,0)+1),1) -> 289909.9555 | AS20: =+INDEX(TRM_Billing!$R$6:$R$149,IF($C20="HLH",MATCH(AS$4,TRM_Billing!$K$6:$K$149,0),MATCH(AS$4,TRM_Billing!$K$6:$K$149,0)+1),1) -> 76081.7083 | AT20: =+INDEX(TRM_Billing!$R$6:$R$149,IF($C20="HLH",MATCH(AT$4,TRM_Billing!$K$6:$K$149,0),MATCH(AT$4,TRM_Billing!$K$6:$K$149,0)+1),1) -> -22649.4576 | AU20: =+INDEX(TRM_Billing!$R$6:$R$149,IF($C20="HLH",MATCH(AU$4,TRM_Billing!$K$6:$K$149,0),MATCH(AU$4,TRM_Billing!$K$6:$K$149,0)+1),1) -> -1332229.907 | AV20: =+INDEX(TRM_Billing!$R$6:$R$149,IF($C20="HLH",MATCH(AV$4,TRM_Billing!$K$6:$K$149,0),MATCH(AV$4,TRM_Billing!$K$6:$K$149,0)+1),1) -> -625088.9531 | AW20: =+INDEX(TRM_Billing!$R$6:$R$149,IF($C20="HLH",MATCH(AW$4,TRM_Billing!$K$6:$K$149,0),MATCH(AW$4,TRM_Billing!$K$6:$K$149,0)+1),1) -> -344719.7367 | AX20: =+INDEX(TRM_Billing!$R$6:$R$149,IF($C20="HLH",MATCH(AX$4,TRM_Billing!$K$6:$K$149,0),MATCH(AX$4,TRM_Billing!$K$6:$K$149,0)+1),1) -> -300452.9982 | AY20: =+INDEX(TRM_Billing!$R$6:$R$149,IF($C20="HLH",MATCH(AY$4,TRM_Billing!$K$6:$K$149,0),MATCH(AY$4,TRM_Billing!$K$6:$K$149,0)+1),1) -> -91422.70266 | AZ20: =+INDEX(TRM_Billing!$R$6:$R$149,IF($C20="HLH",MATCH(AZ$4,TRM_Billing!$K$6:$K$149,0),MATCH(AZ$4,TRM_Billing!$K$6:$K$149,0)+1),1) -> -118910.8199 | BA20: =+INDEX(TRM_Billing!$R$6:$R$149,IF($C20="HLH",MATCH(BA$4,TRM_Billing!$K$6:$K$149,0),MATCH(BA$4,TRM_Billing!$K$6:$K$149,0)+1),1) -> -346514.7751 | BB20: =+INDEX(TRM_Billing!$R$6:$R$149,IF($C20="HLH",MATCH(BB$4,TRM_Billing!$K$6:$K$149,0),MATCH(BB$4,TRM_Billing!$K$6:$K$149,0)+1),1) -> 80516.13032 | BC20: =+INDEX(TRM_Billing!$R$6:$R$149,IF($C20="HLH",MATCH(BC$4,TRM_Billing!$K$6:$K$149,0),MATCH(BC$4,TRM_Billing!$K$6:$K$149,0)+1),1) -> 478875.0496 | BD20: =+INDEX(TRM_Billing!$R$6:$R$149,IF($C20="HLH",MATCH(BD$4,TRM_Billing!$K$6:$K$149,0),MATCH(BD$4,TRM_Billing!$K$6:$K$149,0)+1),1) -> 234432.9106 | BE20: =+INDEX(TRM_Billing!$R$6:$R$149,IF($C20="HLH",MATCH(BE$4,TRM_Billing!$K$6:$K$149,0),MATCH(BE$4,TRM_Billing!$K$6:$K$149,0)+1),1) -> 34091.97998 | BF20: =+INDEX(TRM_Billing!$R$6:$R$149,IF($C20="HLH",MATCH(BF$4,TRM_Billing!$K$6:$K$149,0),MATCH(BF$4,TRM_Billing!$K$6:$K$149,0)+1),1) -> 3173.689083 | BG20: =+INDEX(TRM_Billing!$R$6:$R$149,IF($C20="HLH",MATCH(BG$4,TRM_Billing!$K$6:$K$149,0),MATCH(BG$4,TRM_Billing!$K$6:$K$149,0)+1),1) -> -1346560.111 | BH20: =+INDEX(TRM_Billing!$R$6:$R$149,IF($C20="HLH",MATCH(BH$4,TRM_Billing!$K$6:$K$149,0),MATCH(BH$4,TRM_Billing!$K$6:$K$149,0)+1),1) -> -676369.1602 | BI20: =+INDEX(TRM_Billing!$R$6:$R$149,IF($C20="HLH",MATCH(BI$4,TRM_Billing!$K$6:$K$149,0),MATCH(BI$4,TRM_Billing!$K$6:$K$149,0)+1),1) -> -317768.2309 | BJ20: =+INDEX(TRM_Billing!$R$6:$R$149,IF($C20="HLH",MATCH(BJ$4,TRM_Billing!$K$6:$K$149,0),MATCH(BJ$4,TRM_Billing!$K$6:$K$149,0)+1),1) -> -308912.3164 | BK20: =+INDEX(TRM_Billing!$R$6:$R$149,IF($C20="HLH",MATCH(BK$4,TRM_Billing!$K$6:$K$149,0),MATCH(BK$4,TRM_Billing!$K$6:$K$149,0)+1),1) -> -136653.7556 | BL20: =+INDEX(TRM_Billing!$R$6:$R$149,IF($C20="HLH",MATCH(BL$4,TRM_Billing!$K$6:$K$149,0),MATCH(BL$4,TRM_Billing!$K$6:$K$149,0)+1),1) -> -69363.91013 | BM20: =+INDEX(TRM_Billing!$R$6:$R$149,IF($C20="HLH",MATCH(BM$4,TRM_Billing!$K$6:$K$149,0),MATCH(BM$4,TRM_Billing!$K$6:$K$149,0)+1),1) -> -333029.5031 | BN20: =+INDEX(TRM_Billing!$R$6:$R$149,IF($C20="HLH",MATCH(BN$4,TRM_Billing!$K$6:$K$149,0),MATCH(BN$4,TRM_Billing!$K$6:$K$149,0)+1),1) -> 96122.45809 | BO20: =+INDEX(TRM_Billing!$R$6:$R$149,IF($C20="HLH",MATCH(BO$4,TRM_Billing!$K$6:$K$149,0),MATCH(BO$4,TRM_Billing!$K$6:$K$149,0)+1),1) -> 495282.6289 | BP20: =+INDEX(TRM_Billing!$R$6:$R$149,IF($C20="HLH",MATCH(BP$4,TRM_Billing!$K$6:$K$149,0),MATCH(BP$4,TRM_Billing!$K$6:$K$149,0)+1),1) -> 289303.059 | BQ20: =+INDEX(TRM_Billing!$R$6:$R$149,IF($C20="HLH",MATCH(BQ$4,TRM_Billing!$K$6:$K$149,0),MATCH(BQ$4,TRM_Billing!$K$6:$K$149,0)+1),1) -> 38151.78469 | BR20: =+INDEX(TRM_Billing!$R$6:$R$149,IF($C20="HLH",MATCH(BR$4,TRM_Billing!$K$6:$K$149,0),MATCH(BR$4,TRM_Billing!$K$6:$K$149,0)+1),1) -> 15772.11274 | BS20: =+INDEX(TRM_Billing!$R$6:$R$149,IF($C20="HLH",MATCH(BS$4,TRM_Billing!$K$6:$K$149,0),MATCH(BS$4,TRM_Billing!$K$6:$K$149,0)+1),1) -> -1332999.732 | BT20: =+INDEX(TRM_Billing!$R$6:$R$149,IF($C20="HLH",MATCH(BT$4,TRM_Billing!$K$6:$K$149,0),MATCH(BT$4,TRM_Billing!$K$6:$K$149,0)+1),1) -> -662970.511 | BU20: =+INDEX(TRM_Billing!$R$6:$R$149,IF($C20="HLH",MATCH(BU$4,TRM_Billing!$K$6:$K$149,0),MATCH(BU$4,TRM_Billing!$K$6:$K$149,0)+1),1) -> -304185.9747 | BV20: =+INDEX(TRM_Billing!$R$6:$R$149,IF($C20="HLH",MATCH(BV$4,TRM_Billing!$K$6:$K$149,0),MATCH(BV$4,TRM_Billing!$K$6:$K$149,0)+1),1) -> -336762.0184 | BW20: =+INDEX(TRM_Billing!$R$6:$R$149,IF($C20="HLH",MATCH(BW$4,TRM_Billing!$K$6:$K$149,0),MATCH(BW$4,TRM_Billing!$K$6:$K$149,0)+1),1) -> -86220.3564
C21: LLH | D21: =+INDEX(TRM_Billing!$R$6:$R$149,IF($C21="HLH",MATCH(D$4,TRM_Billing!$K$6:$K$149,0),MATCH(D$4,TRM_Billing!$K$6:$K$149,0)+1),1) -> 131712.6 | E21: =+INDEX(TRM_Billing!$R$6:$R$149,IF($C21="HLH",MATCH(E$4,TRM_Billing!$K$6:$K$149,0),MATCH(E$4,TRM_Billing!$K$6:$K$149,0)+1),1) -> 96012.66 | F21: =+INDEX(TRM_Billing!$R$6:$R$149,IF($C21="HLH",MATCH(F$4,TRM_Billing!$K$6:$K$149,0),MATCH(F$4,TRM_Billing!$K$6:$K$149,0)+1),1) -> 406126.5 | G21: =+INDEX(TRM_Billing!$R$6:$R$149,IF($C21="HLH",MATCH(G$4,TRM_Billing!$K$6:$K$149,0),MATCH(G$4,TRM_Billing!$K$6:$K$149,0)+1),1) -> 659501.8 | H21: =+INDEX(TRM_Billing!$R$6:$R$149,IF($C21="HLH",MATCH(H$4,TRM_Billing!$K$6:$K$149,0),MATCH(H$4,TRM_Billing!$K$6:$K$149,0)+1),1) -> 458422.1 | I21: =+INDEX(TRM_Billing!$R$6:$R$149,IF($C21="HLH",MATCH(I$4,TRM_Billing!$K$6:$K$149,0),MATCH(I$4,TRM_Billing!$K$6:$K$149,0)+1),1) -> 323737.3 | J21: =+INDEX(TRM_Billing!$R$6:$R$149,IF($C21="HLH",MATCH(J$4,TRM_Billing!$K$6:$K$149,0),MATCH(J$4,TRM_Billing!$K$6:$K$149,0)+1),1) -> 250659.4 | K21: =+INDEX(TRM_Billing!$R$6:$R$149,IF($C21="HLH",MATCH(K$4,TRM_Billing!$K$6:$K$149,0),MATCH(K$4,TRM_Billing!$K$6:$K$149,0)+1),1) -> -25887.4 | L21: =+INDEX(TRM_Billing!$R$6:$R$149,IF($C21="HLH",MATCH(L$4,TRM_Billing!$K$6:$K$149,0),MATCH(L$4,TRM_Billing!$K$6:$K$149,0)+1),1) -> -534027 | M21: =+INDEX(TRM_Billing!$R$6:$R$149,IF($C21="HLH",MATCH(M$4,TRM_Billing!$K$6:$K$149,0),MATCH(M$4,TRM_Billing!$K$6:$K$149,0)+1),1) -> 262190.5 | N21: =+INDEX(TRM_Billing!$R$6:$R$149,IF($C21="HLH",MATCH(N$4,TRM_Billing!$K$6:$K$149,0),MATCH(N$4,TRM_Billing!$K$6:$K$149,0)+1),1) -> 227502.5 | O21: =+INDEX(TRM_Billing!$R$6:$R$149,IF($C21="HLH",MATCH(O$4,TRM_Billing!$K$6:$K$149,0),MATCH(O$4,TRM_Billing!$K$6:$K$149,0)+1),1) -> 148662.1 | P21: =+INDEX(TRM_Billing!$R$6:$R$149,IF($C21="HLH",MATCH(P$4,TRM_Billing!$K$6:$K$149,0),MATCH(P$4,TRM_Billing!$K$6:$K$149,0)+1),1) -> 139180.3 | Q21: =+INDEX(TRM_Billing!$R$6:$R$149,IF($C21="HLH",MATCH(Q$4,TRM_Billing!$K$6:$K$149,0),MATCH(Q$4,TRM_Billing!$K$6:$K$149,0)+1),1) -> 148592.5 | R21: =+INDEX(TRM_Billing!$R$6:$R$149,IF($C21="HLH",MATCH(R$4,TRM_Billing!$K$6:$K$149,0),MATCH(R$4,TRM_Billing!$K$6:$K$149,0)+1),1) -> 358286.6 | S21: =+INDEX(TRM_Billing!$R$6:$R$149,IF($C21="HLH",MATCH(S$4,TRM_Billing!$K$6:$K$149,0),MATCH(S$4,TRM_Billing!$K$6:$K$149,0)+1),1) -> 723480.9 | T21: =+INDEX(TRM_Billing!$R$6:$R$149,IF($C21="HLH",MATCH(T$4,TRM_Billing!$K$6:$K$149,0),MATCH(T$4,TRM_Billing!$K$6:$K$149,0)+1),1) -> 490437.3 | U21: =+INDEX(TRM_Billing!$R$6:$R$149,IF($C21="HLH",MATCH(U$4,TRM_Billing!$K$6:$K$149,0),MATCH(U$4,TRM_Billing!$K$6:$K$149,0)+1),1) -> 281087.7 | V21: =+INDEX(TRM_Billing!$R$6:$R$149,IF($C21="HLH",MATCH(V$4,TRM_Billing!$K$6:$K$149,0),MATCH(V$4,TRM_Billing!$K$6:$K$149,0)+1),1) -> 258150.1 | W21: =+INDEX(TRM_Billing!$R$6:$R$149,IF($C21="HLH",MATCH(W$4,TRM_Billing!$K$6:$K$149,0),MATCH(W$4,TRM_Billing!$K$6:$K$149,0)+1),1) -> -17827.7 | X21: =+INDEX(TRM_Billing!$R$6:$R$149,IF($C21="HLH",MATCH(X$4,TRM_Billing!$K$6:$K$149,0),MATCH(X$4,TRM_Billing!$K$6:$K$149,0)+1),1) -> -529140 | Y21: =+INDEX(TRM_Billing!$R$6:$R$149,IF($C21="HLH",MATCH(Y$4,TRM_Billing!$K$6:$K$149,0),MATCH(Y$4,TRM_Billing!$K$6:$K$149,0)+1),1) -> 270314.6 | Z21: =+INDEX(TRM_Billing!$R$6:$R$149,IF($C21="HLH",MATCH(Z$4,TRM_Billing!$K$6:$K$149,0),MATCH(Z$4,TRM_Billing!$K$6:$K$149,0)+1),1) -> 233394.5 | AA21: =+INDEX(TRM_Billing!$R$6:$R$149,IF($C21="HLH",MATCH(AA$4,TRM_Billing!$K$6:$K$149,0),MATCH(AA$4,TRM_Billing!$K$6:$K$149,0)+1),1) -> 152757.6 | AB21: =+INDEX(TRM_Billing!$R$6:$R$149,IF($C21="HLH",MATCH(AB$4,TRM_Billing!$K$6:$K$149,0),MATCH(AB$4,TRM_Billing!$K$6:$K$149,0)+1),1) -> 198437.3477 | AC21: =+INDEX(TRM_Billing!$R$6:$R$149,IF($C21="HLH",MATCH(AC$4,TRM_Billing!$K$6:$K$149,0),MATCH(AC$4,TRM_Billing!$K$6:$K$149,0)+1),1) -> 93053.46475 | AD21: =+INDEX(TRM_Billing!$R$6:$R$149,IF($C21="HLH",MATCH(AD$4,TRM_Billing!$K$6:$K$149,0),MATCH(AD$4,TRM_Billing!$K$6:$K$149,0)+1),1) -> 302919.7818 | AE21: =+INDEX(TRM_Billing!$R$6:$R$149,IF($C21="HLH",MATCH(AE$4,TRM_Billing!$K$6:$K$149,0),MATCH(AE$4,TRM_Billing!$K$6:$K$149,0)+1),1) -> 672114.5544 | AF21: =+INDEX(TRM_Billing!$R$6:$R$149,IF($C21="HLH",MATCH(AF$4,TRM_Billing!$K$6:$K$149,0),MATCH(AF$4,TRM_Billing!$K$6:$K$149,0)+1),1) -> 445183.4274 | AG21: =+INDEX(TRM_Billing!$R$6:$R$149,IF($C21="HLH",MATCH(AG$4,TRM_Billing!$K$6:$K$149,0),MATCH(AG$4,TRM_Billing!$K$6:$K$149,0)+1),1) -> 231865.0386 | AH21: =+INDEX(TRM_Billing!$R$6:$R$149,IF($C21="HLH",MATCH(AH$4,TRM_Billing!$K$6:$K$149,0),MATCH(AH$4,TRM_Billing!$K$6:$K$149,0)+1),1) -> 194397.0528 | AI21: =+INDEX(TRM_Billing!$R$6:$R$149,IF($C21="HLH",MATCH(AI$4,TRM_Billing!$K$6:$K$149,0),MATCH(AI$4,TRM_Billing!$K$6:$K$149,0)+1),1) -> -363349.1388 | AJ21: =+INDEX(TRM_Billing!$R$6:$R$149,IF($C21="HLH",MATCH(AJ$4,TRM_Billing!$K$6:$K$149,0),MATCH(AJ$4,TRM_Billing!$K$6:$K$149,0)+1),1) -> -136822.4416 | AK21: =+INDEX(TRM_Billing!$R$6:$R$149,IF($C21="HLH",MATCH(AK$4,TRM_Billing!$K$6:$K$149,0),MATCH(AK$4,TRM_Billing!$K$6:$K$149,0)+1),1) -> 324171.583 | AL21: =+INDEX(TRM_Billing!$R$6:$R$149,IF($C21="HLH",MATCH(AL$4,TRM_Billing!$K$6:$K$149,0),MATCH(AL$4,TRM_Billing!$K$6:$K$149,0)+1),1) -> 161528.3093 | AM21: =+INDEX(TRM_Billing!$R$6:$R$149,IF($C21="HLH",MATCH(AM$4,TRM_Billing!$K$6:$K$149,0),MATCH(AM$4,TRM_Billing!$K$6:$K$149,0)+1),1) -> 168247.6067 | AN21: =+INDEX(TRM_Billing!$R$6:$R$149,IF($C21="HLH",MATCH(AN$4,TRM_Billing!$K$6:$K$149,0),MATCH(AN$4,TRM_Billing!$K$6:$K$149,0)+1),1) -> 213890.0877 | AO21: =+INDEX(TRM_Billing!$R$6:$R$149,IF($C21="HLH",MATCH(AO$4,TRM_Billing!$K$6:$K$149,0),MATCH(AO$4,TRM_Billing!$K$6:$K$149,0)+1),1) -> 111596.2821 | AP21: =+INDEX(TRM_Billing!$R$6:$R$149,IF($C21="HLH",MATCH(AP$4,TRM_Billing!$K$6:$K$149,0),MATCH(AP$4,TRM_Billing!$K$6:$K$149,0)+1),1) -> 324087.6985 | AQ21: =+INDEX(TRM_Billing!$R$6:$R$149,IF($C21="HLH",MATCH(AQ$4,TRM_Billing!$K$6:$K$149,0),MATCH(AQ$4,TRM_Billing!$K$6:$K$149,0)+1),1) -> 684833.5571 | AR21: =+INDEX(TRM_Billing!$R$6:$R$149,IF($C21="HLH",MATCH(AR$4,TRM_Billing!$K$6:$K$149,0),MATCH(AR$4,TRM_Billing!$K$6:$K$149,0)+1),1) -> 455082.4555 | AS21: =+INDEX(TRM_Billing!$R$6:$R$149,IF($C21="HLH",MATCH(AS$4,TRM_Billing!$K$6:$K$149,0),MATCH(AS$4,TRM_Billing!$K$6:$K$149,0)+1),1) -> 240944.6383 | AT21: =+INDEX(TRM_Billing!$R$6:$R$149,IF($C21="HLH",MATCH(AT$4,TRM_Billing!$K$6:$K$149,0),MATCH(AT$4,TRM_Billing!$K$6:$K$149,0)+1),1) -> 245346.7716 | AU21: =+INDEX(TRM_Billing!$R$6:$R$149,IF($C21="HLH",MATCH(AU$4,TRM_Billing!$K$6:$K$149,0),MATCH(AU$4,TRM_Billing!$K$6:$K$149,0)+1),1) -> -393021.3619 | AV21: =+INDEX(TRM_Billing!$R$6:$R$149,IF($C21="HLH",MATCH(AV$4,TRM_Billing!$K$6:$K$149,0),MATCH(AV$4,TRM_Billing!$K$6:$K$149,0)+1),1) -> -128431.9138 | AW21: =+INDEX(TRM_Billing!$R$6:$R$149,IF($C21="HLH",MATCH(AW$4,TRM_Billing!$K$6:$K$149,0),MATCH(AW$4,TRM_Billing!$K$6:$K$149,0)+1),1) -> 334065.7701 | AX21: =+INDEX(TRM_Billing!$R$6:$R$149,IF($C21="HLH",MATCH(AX$4,TRM_Billing!$K$6:$K$149,0),MATCH(AX$4,TRM_Billing!$K$6:$K$149,0)+1),1) -> 169957.9375 | AY21: =+INDEX(TRM_Billing!$R$6:$R$149,IF($C21="HLH",MATCH(AY$4,TRM_Billing!$K$6:$K$149,0),MATCH(AY$4,TRM_Billing!$K$6:$K$149,0)+1),1) -> 176050.0452 | AZ21: =+INDEX(TRM_Billing!$R$6:$R$149,IF($C21="HLH",MATCH(AZ$4,TRM_Billing!$K$6:$K$149,0),MATCH(AZ$4,TRM_Billing!$K$6:$K$149,0)+1),1) -> 209991.383 | BA21: =+INDEX(TRM_Billing!$R$6:$R$149,IF($C21="HLH",MATCH(BA$4,TRM_Billing!$K$6:$K$149,0),MATCH(BA$4,TRM_Billing!$K$6:$K$149,0)+1),1) -> 101398.6774 | BB21: =+INDEX(TRM_Billing!$R$6:$R$149,IF($C21="HLH",MATCH(BB$4,TRM_Billing!$K$6:$K$149,0),MATCH(BB$4,TRM_Billing!$K$6:$K$149,0)+1),1) -> 353152.2827 | BC21: =+INDEX(TRM_Billing!$R$6:$R$149,IF($C21="HLH",MATCH(BC$4,TRM_Billing!$K$6:$K$149,0),MATCH(BC$4,TRM_Billing!$K$6:$K$149,0)+1),1) -> 633441.8105 | BD21: =+INDEX(TRM_Billing!$R$6:$R$149,IF($C21="HLH",MATCH(BD$4,TRM_Billing!$K$6:$K$149,0),MATCH(BD$4,TRM_Billing!$K$6:$K$149,0)+1),1) -> 418331.0746 | BE21: =+INDEX(TRM_Billing!$R$6:$R$149,IF($C21="HLH",MATCH(BE$4,TRM_Billing!$K$6:$K$149,0),MATCH(BE$4,TRM_Billing!$K$6:$K$149,0)+1),1) -> 265266.7448 | BF21: =+INDEX(TRM_Billing!$R$6:$R$149,IF($C21="HLH",MATCH(BF$4,TRM_Billing!$K$6:$K$149,0),MATCH(BF$4,TRM_Billing!$K$6:$K$149,0)+1),1) -> 196852.7595 | BG21: =+INDEX(TRM_Billing!$R$6:$R$149,IF($C21="HLH",MATCH(BG$4,TRM_Billing!$K$6:$K$149,0),MATCH(BG$4,TRM_Billing!$K$6:$K$149,0)+1),1) -> -402673.3639 | BH21: =+INDEX(TRM_Billing!$R$6:$R$149,IF($C21="HLH",MATCH(BH$4,TRM_Billing!$K$6:$K$149,0),MATCH(BH$4,TRM_Billing!$K$6:$K$149,0)+1),1) -> -96079.35592 | BI21: =+INDEX(TRM_Billing!$R$6:$R$149,IF($C21="HLH",MATCH(BI$4,TRM_Billing!$K$6:$K$149,0),MATCH(BI$4,TRM_Billing!$K$6:$K$149,0)+1),1) -> 282305.3026 | BJ21: =+INDEX(TRM_Billing!$R$6:$R$149,IF($C21="HLH",MATCH(BJ$4,TRM_Billing!$K$6:$K$149,0),MATCH(BJ$4,TRM_Billing!$K$6:$K$149,0)+1),1) -> 160255.2221 | BK21: =+INDEX(TRM_Billing!$R$6:$R$149,IF($C21="HLH",MATCH(BK$4,TRM_Billing!$K$6:$K$149,0),MATCH(BK$4,TRM_Billing!$K$6:$K$149,0)+1),1) -> 201328.8808 | BL21: =+INDEX(TRM_Billing!$R$6:$R$149,IF($C21="HLH",MATCH(BL$4,TRM_Billing!$K$6:$K$149,0),MATCH(BL$4,TRM_Billing!$K$6:$K$149,0)+1),1) -> 180254.4452 | BM21: =+INDEX(TRM_Billing!$R$6:$R$149,IF($C21="HLH",MATCH(BM$4,TRM_Billing!$K$6:$K$149,0),MATCH(BM$4,TRM_Billing!$K$6:$K$149,0)+1),1) -> 111157.7245 | BN21: =+INDEX(TRM_Billing!$R$6:$R$149,IF($C21="HLH",MATCH(BN$4,TRM_Billing!$K$6:$K$149,0),MATCH(BN$4,TRM_Billing!$K$6:$K$149,0)+1),1) -> 366997.7795 | BO21: =+INDEX(TRM_Billing!$R$6:$R$149,IF($C21="HLH",MATCH(BO$4,TRM_Billing!$K$6:$K$149,0),MATCH(BO$4,TRM_Billing!$K$6:$K$149,0)+1),1) -> 646142.7673 | BP21: =+INDEX(TRM_Billing!$R$6:$R$149,IF($C21="HLH",MATCH(BP$4,TRM_Billing!$K$6:$K$149,0),MATCH(BP$4,TRM_Billing!$K$6:$K$149,0)+1),1) -> 453083.6403 | BQ21: =+INDEX(TRM_Billing!$R$6:$R$149,IF($C21="HLH",MATCH(BQ$4,TRM_Billing!$K$6:$K$149,0),MATCH(BQ$4,TRM_Billing!$K$6:$K$149,0)+1),1) -> 267875.741 | BR21: =+INDEX(TRM_Billing!$R$6:$R$149,IF($C21="HLH",MATCH(BR$4,TRM_Billing!$K$6:$K$149,0),MATCH(BR$4,TRM_Billing!$K$6:$K$149,0)+1),1) -> 206694.1066 | BS21: =+INDEX(TRM_Billing!$R$6:$R$149,IF($C21="HLH",MATCH(BS$4,TRM_Billing!$K$6:$K$149,0),MATCH(BS$4,TRM_Billing!$K$6:$K$149,0)+1),1) -> -393025.8835 | BT21: =+INDEX(TRM_Billing!$R$6:$R$149,IF($C21="HLH",MATCH(BT$4,TRM_Billing!$K$6:$K$149,0),MATCH(BT$4,TRM_Billing!$K$6:$K$149,0)+1),1) -> -87516.82562 | BU21: =+INDEX(TRM_Billing!$R$6:$R$149,IF($C21="HLH",MATCH(BU$4,TRM_Billing!$K$6:$K$149,0),MATCH(BU$4,TRM_Billing!$K$6:$K$149,0)+1),1) -> 292480.0774 | BV21: =+INDEX(TRM_Billing!$R$6:$R$149,IF($C21="HLH",MATCH(BV$4,TRM_Billing!$K$6:$K$149,0),MATCH(BV$4,TRM_Billing!$K$6:$K$149,0)+1),1) -> 209554.3564 | BW21: =+INDEX(TRM_Billing!$R$6:$R$149,IF($C21="HLH",MATCH(BW$4,TRM_Billing!$K$6:$K$149,0),MATCH(BW$4,TRM_Billing!$K$6:$K$149,0)+1),1) -> 172114.0622
D24: =RateSummary!$C$10 -> 2020 | E24: =RateSummary!$D$10 -> 2021 | F24: =RateSummary!$E$10 -> 2022 | G24: =RateSummary!$F$10 -> 2023 | H24: =RateSummary!$G$10 -> 2024 | I24: =RateSummary!$H$10 -> 2025
C25: Public Load (MWh) | D25: =SUM(D12:O13) -> 58757234.29 | E25: =SUM(P12:AA13) -> 59035753.45 | F25: =SUM(AB12:AM13) -> 58757234.29 | G25: =SUM(AN12:AY13) -> 59035753.45 | H25: =SUM(AZ12:BK13) -> 58757234.29 | I25: =SUM(BL12:BW13) -> 59035753.45
C26: Public Load (aMW) | D26: =D25/VLOOKUP(D24,Init!$N$5:$P$38,3) -> 6689.120479 | E26: =E25/VLOOKUP(E24,Init!$N$5:$P$38,3) -> 6739.241262 | F26: =F25/VLOOKUP(F24,Init!$N$5:$P$38,3) -> 6707.446836 | G26: =G25/VLOOKUP(G24,Init!$N$5:$P$38,3) -> 6739.241262 | H26: =H25/VLOOKUP(H24,Init!$N$5:$P$38,3) -> 6689.120479 | I26: =I25/VLOOKUP(I24,Init!$N$5:$P$38,3) -> 6739.241262
C27: Demand (MW) | D27: =SUM(D18:O18) -> 5057.0906 | E27: =SUM(P18:AA18) -> 5128.9175 | F27: =SUM(AB18:AM18) -> 15706.31274 | G27: =SUM(AN18:AY18) -> 16045.85198 | H27: =SUM(AZ18:BK18) -> 16224.33727 | I27: =SUM(BL18:BW18) -> 16369.5755
D29: =RateSummary!$C$10 -> 2020 | E29: =RateSummary!$D$10 -> 2021 | F29: =RateSummary!$E$10 -> 2022 | G29: =RateSummary!$F$10 -> 2023 | H29: =RateSummary!$G$10 -> 2024 | I29: =RateSummary!$H$10 -> 2025
C30: Base | D30: =D26 -> 6689.120479 | E30: 6739.241262 | F30: 6707.446836 | G30: 6739.241262 | H30: 6689.120479 | I30: 6739.241262
D34: DEMAND: | E34: ENERGY: | F34: (GWh) | AE34: Total
E35: Oct | G35: Nov | I35: Dec | K35: Jan | M35: Feb | O35: Mar | Q35: Apr | S35: May | U35: Jun | W35: Jul | Y35: Aug | AA35: Sep | AC35: Total | AE35: Energy
D36: Annual | E36: LLH | F36: HLH | G36: LLH | H36: HLH | I36: LLH | J36: HLH | K36: LLH | L36: HLH | M36: LLH | N36: HLH | O36: LLH | P36: HLH | Q36: LLH | R36: HLH | S36: LLH | T36: HLH | U36: LLH | V36: HLH | W36: LLH | X36: HLH | Y36: LLH | Z36: HLH | AA36: LLH | AB36: HLH | AC36: LLH | AD36: HLH
B38: =RateSummary!$C$10 -> 2020 | D38: =Q49 -> 5057.0906 | E38: =D48 -> 1664.124034 | F38: =D47 -> 2712.606853 | G38: =E48 -> 2178.071889 | H38: =E47 -> 3177.219202 | I38: =F48 -> 2495.576775 | J38: =F47 -> 3496.991625 | K38: =G48 -> 2369.064255 | L38: =G47 -> 3434.071576 | M38: =H48 -> 1993.692846 | N38: =H47 -> 3037.957109 | O38: =I48 -> 2012.160573 | P38: =I47 -> 3020.808963 | Q38: =J48 -> 1665.461105 | R38: =J47 -> 2597.940597 | S38: =K48 -> 1775.261732 | T38: =K47 -> 2566.467242 | U38: =L48 -> 1746.122811 | V38: =L47 -> 2873.851948 | W38: =M48 -> 1839.153829 | X38: =M47 -> 2976.061361 | Y38: =N48 -> 1788.396035 | Z38: =N47 -> 2941.055358 | AA38: =O48 -> 1748.788185 | AB38: =O47 -> 2646.328384 | AC38: =E38+G38+I38+K38+M38+O38+Q38+S38+U38+W38+Y38+AA38 -> 23275.87407 | AD38: =F38+H38+J38+L38+N38+P38+R38+T38+V38+X38+Z38+AB38 -> 35481.36022 | AE38: =AC38+AD38 -> 58757.23429
B39: =RateSummary!$D$10 -> 2021 | D39: =Q53 -> 5128.9175 | E39: =D52 -> 1680.681248 | F39: =D51 -> 2743.716801 | G39: =E52 -> 2237.637301 | H39: =E51 -> 3158.983131 | I39: =F52 -> 2455.753071 | J39: =F51 -> 3580.620596 | K39: =G52 -> 2442.685566 | L39: =G51 -> 3410.378592 | M39: =H52 -> 1986.297286 | N39: =H51 -> 2996.232761 | O39: =I52 -> 1977.408047 | P39: =I51 -> 3089.891269 | Q39: =J52 -> 1653.699782 | R39: =J51 -> 2562.006071 | S39: =K52 -> 1765.136865 | T39: =K51 -> 2624.888456 | U39: =L52 -> 1746.4885 | V39: =L51 -> 2869.705743 | W39: =M52 -> 1878.337363 | X39: =M51 -> 2979.895715 | Y39: =N52 -> 1805.694986 | Z39: =N51 -> 2962.461055 | AA39: =O52 -> 1764.327738 | AB39: =O51 -> 2662.825511 | AC39: 23394.14775 | AD39: 35641.6057 | AE39: 59035.75345
B40: =RateSummary!$E$10 -> 2022 | D40: =Q57 -> 15706.31274 | E40: =D56 -> 1664.124034 | F40: =D55 -> 2712.606853 | G40: =E56 -> 2178.071889 | H40: =E55 -> 3177.219202 | I40: =F56 -> 2495.576775 | J40: =F55 -> 3496.991625 | K40: =G56 -> 2369.064255 | L40: =G55 -> 3434.071576 | M40: =H56 -> 1993.692846 | N40: =H55 -> 3037.957109 | O40: =I56 -> 2012.160573 | P40: =I55 -> 3020.808963 | Q40: =J56 -> 1665.461105 | R40: =J55 -> 2597.940597 | S40: =K56 -> 1775.261732 | T40: =K55 -> 2566.467242 | U40: =L56 -> 1746.122811 | V40: =L55 -> 2873.851948 | W40: =M56 -> 1839.153829 | X40: =M55 -> 2976.061361 | Y40: =N56 -> 1788.396035 | Z40: =N55 -> 2941.055358 | AA40: =O56 -> 1748.788185 | AB40: =O55 -> 2646.328384 | AC40: 23275.87407 | AD40: 35481.36022 | AE40: 58757.23429
B41: =RateSummary!$F$10 -> 2023 | D41: =Q61 -> 16045.85198 | E41: =D60 -> 1680.681248 | F41: =D59 -> 2743.716801 | G41: =E60 -> 2237.637301 | H41: =E59 -> 3158.983131 | I41: =F60 -> 2455.753071 | J41: =F59 -> 3580.620596 | K41: =G60 -> 2442.685566 | L41: =G59 -> 3410.378592 | M41: =H60 -> 1986.297286 | N41: =H59 -> 2996.232761 | O41: =I60 -> 1977.408047 | P41: =I59 -> 3089.891269 | Q41: =J60 -> 1653.699782 | R41: =J59 -> 2562.006071 | S41: =K60 -> 1765.136865 | T41: =K59 -> 2624.888456 | U41: =L60 -> 1746.4885 | V41: =L59 -> 2869.705743 | W41: =M60 -> 1878.337363 | X41: =M59 -> 2979.895715 | Y41: =N60 -> 1805.694986 | Z41: =N59 -> 2962.461055 | AA41: =O60 -> 1764.327738 | AB41: =O59 -> 2662.825511 | AC41: 23394.14775 | AD41: 35641.6057 | AE41: 59035.75345
B42: =RateSummary!$G$10 -> 2024 | D42: =Q65 -> 16224.33727 | E42: =D64 -> 1664.124034 | F42: =D63 -> 2712.606853 | G42: =E64 -> 2178.071889 | H42: =E63 -> 3177.219202 | I42: =F64 -> 2495.576775 | J42: =F63 -> 3496.991625 | K42: =G64 -> 2369.064255 | L42: =G63 -> 3434.071576 | M42: =H64 -> 1993.692846 | N42: =H63 -> 3037.957109 | O42: =I64 -> 2012.160573 | P42: =I63 -> 3020.808963 | Q42: =J64 -> 1665.461105 | R42: =J63 -> 2597.940597 | S42: =K64 -> 1775.261732 | T42: =K63 -> 2566.467242 | U42: =L64 -> 1746.122811 | V42: =L63 -> 2873.851948 | W42: =M64 -> 1839.153829 | X42: =M63 -> 2976.061361 | Y42: =N64 -> 1788.396035 | Z42: =N63 -> 2941.055358 | AA42: =O64 -> 1748.788185 | AB42: =O63 -> 2646.328384 | AC42: 23275.87407 | AD42: 35481.36022 | AE42: 58757.23429
B43: =RateSummary!$H$10 -> 2025 | D43: =Q69 -> 16369.5755 | E43: =D68 -> 1680.681248 | F43: =D67 -> 2743.716801 | G43: =E68 -> 2237.637301 | H43: =E67 -> 3158.983131 | I43: =F68 -> 2455.753071 | J43: =F67 -> 3580.620596 | K43: =G68 -> 2442.685566 | L43: =G67 -> 3410.378592 | M43: =H68 -> 1986.297286 | N43: =H67 -> 2996.232761 | O43: =I68 -> 1977.408047 | P43: =I67 -> 3089.891269 | Q43: =J68 -> 1653.699782 | R43: =J67 -> 2562.006071 | S43: =K68 -> 1765.136865 | T43: =K67 -> 2624.888456 | U43: =L68 -> 1746.4885 | V43: =L67 -> 2869.705743 | W43: =M68 -> 1878.337363 | X43: =M67 -> 2979.895715 | Y43: =N68 -> 1805.694986 | Z43: =N67 -> 2962.461055 | AA43: =O68 -> 1764.327738 | AB43: =O67 -> 2662.825511 | AC43: 23394.14775 | AD43: 35641.6057 | AE43: 59035.75345
D46: =E35 -> Oct | E46: =G35 -> Nov | F46: =I35 -> Dec | G46: =K35 -> Jan | H46: =M35 -> Feb | I46: =O35 -> Mar | J46: =Q35 -> Apr | K46: =S35 -> May | L46: =U35 -> Jun | M46: =W35 -> Jul | N46: =Y35 -> Aug | O46: =AA35 -> Sep | U46: =D26 -> 6689.120479
B47: =B38 -> 2020 | C47: HLH | D47: =(D12)/1000*$V$48 -> 2712.606853 | E47: 3177.219202 | F47: 3496.991625 | G47: 3434.071576 | H47: 3037.957109 | I47: 3020.808963 | J47: 2597.940597 | K47: 2566.467242 | L47: 2873.851948 | M47: 2976.061361 | N47: 2941.055358 | O47: 2646.328384 | R47: HLH | S47: =B47 -> 2020 | T47: =SUM(D47:O48) -> 58757.23429 | U47: =T47/(VLOOKUP(S47,Init!$N$5:$P$38,3)/1000) -> 6689.120479
C48: LLH | D48: =(D13)/1000*$V$48 -> 1664.124034 | E48: 2178.071889 | F48: 2495.576775 | G48: 2369.064255 | H48: 1993.692846 | I48: 2012.160573 | J48: 1665.461105 | K48: 1775.261732 | L48: 1746.122811 | M48: 1839.153829 | N48: 1788.396035 | O48: 1748.788185 | R48: LLH | U48: =D30 -> 6689.120479 | V48: =U48/U46 -> 1
C49: Demand | D49: =D18*$V$48 -> 364.2362 | E49: 326.8017 | F49: 532.035 | G49: 595.1084 | H49: 400.6946 | I49: 461.5678 | J49: 425.9809 | K49: 265.6009 | L49: 394.5341 | M49: 469.5608 | N49: 435.3296 | O49: 385.6406 | P49: Annual = | Q49: =SUM(D49:P49) -> 5057.0906 | R49: Demand
D50: =D46 -> Oct | E50: Nov | F50: Dec | G50: Jan | H50: Feb | I50: Mar | J50: Apr | K50: May | L50: Jun | M50: Jul | N50: Aug | O50: Sep | U50: =E26 -> 6739.241262
B51: =B47+1 -> 2021 | C51: HLH | D51: =(P12)/1000*$V$52 -> 2743.716801 | E51: 3158.983131 | F51: 3580.620596 | G51: 3410.378592 | H51: 2996.232761 | I51: 3089.891269 | J51: 2562.006071 | K51: 2624.888456 | L51: 2869.705743 | M51: 2979.895715 | N51: 2962.461055 | O51: 2662.825511 | R51: HLH | S51: =B51 -> 2021 | T51: =SUM(D51:O52) -> 59035.75345 | U51: =T51/(VLOOKUP(S51,Init!$N$5:$P$38,3)/1000) -> 6739.241262
C52: LLH | D52: 1680.681248 | E52: 2237.637301 | F52: 2455.753071 | G52: 2442.685566 | H52: 1986.297286 | I52: 1977.408047 | J52: 1653.699782 | K52: 1765.136865 | L52: 1746.4885 | M52: 1878.337363 | N52: 1805.694986 | O52: 1764.327738 | R52: LLH | U52: =E30 -> 6739.241262 | V52: =U52/U50 -> 1
C53: Demand | D53: =P18*$V$52 -> 369.6912 | E53: 278.1057 | F53: 625.0352 | G53: 537.4945 | H53: 352.3844 | I53: 527.9041 | J53: 439.681 | K53: 274.8646 | L53: 399.8803 | M53: 478.3325 | N53: 444.4715 | O53: 401.0725 | P53: Annual = | Q53: =SUM(D53:P53) -> 5128.9175 | R53: Demand
D54: =D50 -> Oct | E54: Nov | F54: Dec | G54: Jan | H54: Feb | I54: Mar | J54: Apr | K54: May | L54: Jun | M54: Jul | N54: Aug | O54: Sep | U54: =F26 -> 6707.446836
B55: =B51+1 -> 2022 | C55: HLH | D55: =(AB12)/1000*$V$56 -> 2712.606853 | E55: 3177.219202 | F55: 3496.991625 | G55: 3434.071576 | H55: 3037.957109 | I55: 3020.808963 | J55: 2597.940597 | K55: 2566.467242 | L55: 2873.851948 | M55: 2976.061361 | N55: 2941.055358 | O55: 2646.328384 | R55: HLH | S55: =B55 -> 2022 | T55: =SUM(D55:O56) -> 58757.23429 | U55: =T55/(VLOOKUP(S55,Init!$N$5:$P$38,3)/1000) -> 6707.446836
C56: LLH | D56: 1664.124034 | E56: 2178.071889 | F56: 2495.576775 | G56: 2369.064255 | H56: 1993.692846 | I56: 2012.160573 | J56: 1665.461105 | K56: 1775.261732 | L56: 1746.122811 | M56: 1839.153829 | N56: 1788.396035 | O56: 1748.788185 | R56: LLH | U56: =F30 -> 6707.446836 | V56: =U56/U54 -> 1
C57: Demand | D57: =AB18*$V$56 -> 1090.381786 | E57: 1117.426042 | F57: 1554.063575 | G57: 1470.743645 | H57: 1192.664643 | I57: 1379.389014 | J57: 1262.771339 | K57: 1120.42752 | L57: 1330.567276 | M57: 1375.37241 | N57: 1511.500961 | O57: 1301.004525 | P57: Annual = | Q57: =SUM(D57:P57) -> 15706.31274 | R57: Demand
D58: =D54 -> Oct | E58: Nov | F58: Dec | G58: Jan | H58: Feb | I58: Mar | J58: Apr | K58: May | L58: Jun | M58: Jul | N58: Aug | O58: Sep | U58: =G26 -> 6739.241262
B59: =B55+1 -> 2023 | C59: HLH | D59: =(AN12)/1000*$V$60 -> 2743.716801 | E59: 3158.983131 | F59: 3580.620596 | G59: 3410.378592 | H59: 2996.232761 | I59: 3089.891269 | J59: 2562.006071 | K59: 2624.888456 | L59: 2869.705743 | M59: 2979.895715 | N59: 2962.461055 | O59: 2662.825511 | R59: HLH | S59: =B59 -> 2023 | T59: =SUM(D59:O60) -> 59035.75345 | U59: =T59/(VLOOKUP(S59,Init!$N$5:$P$38,3)/1000) -> 6739.241262
C60: LLH | D60: 1680.681248 | E60: 2237.637301 | F60: 2455.753071 | G60: 2442.685566 | H60: 1986.297286 | I60: 1977.408047 | J60: 1653.699782 | K60: 1765.136865 | L60: 1746.4885 | M60: 1878.337363 | N60: 1805.694986 | O60: 1764.327738 | R60: LLH | U60: =G30 -> 6739.241262 | V60: =U60/U58 -> 1
C61: Demand | D61: =AN18*$V$60 -> 1148.605144 | E61: 1180.40112 | F61: 1609.970363 | G61: 1488.871928 | H61: 1193.219628 | I61: 1400.762799 | J61: 1215.71713 | K61: 1216.607315 | L61: 1351.960248 | M61: 1398.509273 | N61: 1527.654558 | O61: 1313.57248 | P61: Annual = | Q61: =SUM(D61:P61) -> 16045.85198 | R61: Demand
D62: =D58 -> Oct | E62: Nov | F62: Dec | G62: Jan | H62: Feb | I62: Mar | J62: Apr | K62: May | L62: Jun | M62: Jul | N62: Aug | O62: Sep | U62: =H26 -> 6689.120479
B63: =B59+1 -> 2024 | C63: HLH | D63: =(AZ12)/1000*$V$64 -> 2712.606853 | E63: 3177.219202 | F63: 3496.991625 | G63: 3434.071576 | H63: 3037.957109 | I63: 3020.808963 | J63: 2597.940597 | K63: 2566.467242 | L63: 2873.851948 | M63: 2976.061361 | N63: 2941.055358 | O63: 2646.328384 | R63: HLH | S63: =B63 -> 2024 | T63: =SUM(D63:O64) -> 58757.23429 | U63: =T63/(VLOOKUP(S63,Init!$N$5:$P$38,3)/1000) -> 6689.120479
C64: LLH | D64: 1664.124034 | E64: 2178.071889 | F64: 2495.576775 | G64: 2369.064255 | H64: 1993.692846 | I64: 2012.160573 | J64: 1665.461105 | K64: 1775.261732 | L64: 1746.122811 | M64: 1839.153829 | N64: 1788.396035 | O64: 1748.788185 | R64: LLH | U64: =H30 -> 6689.120479 | V64: =U64/U62 -> 1
C65: Demand | D65: =AZ18*$V$64 -> 1161.180536 | E65: 1193.670998 | F65: 1544.5775 | G65: 1578.235611 | H65: 1284.0922 | I65: 1337.398832 | J65: 1300.858284 | K65: 1229.847418 | L65: 1302.622205 | M65: 1505.317632 | N65: 1542.983748 | O65: 1243.552307 | P65: Annual = | Q65: =SUM(D65:P65) -> 16224.33727 | R65: Demand
D66: =D62 -> Oct | E66: Nov | F66: Dec | G66: Jan | H66: Feb | I66: Mar | J66: Apr | K66: May | L66: Jun | M66: Jul | N66: Aug | O66: Sep | U66: =I26 -> 6739.241262
B67: =B63+1 -> 2025 | C67: HLH | D67: =(BL12)/1000*$V$68 -> 2743.716801 | E67: 3158.983131 | F67: 3580.620596 | G67: 3410.378592 | H67: 2996.232761 | I67: 3089.891269 | J67: 2562.006071 | K67: 2624.888456 | L67: 2869.705743 | M67: 2979.895715 | N67: 2962.461055 | O67: 2662.825511 | R67: HLH | S67: =B67 -> 2025 | T67: =SUM(D67:O68) -> 59035.75345 | U67: =T67/(VLOOKUP(S67,Init!$N$5:$P$38,3)/1000) -> 6739.241262
C68: LLH | D68: 1680.681248 | E68: 2237.637301 | F68: 2455.753071 | G68: 2442.685566 | H68: 1986.297286 | I68: 1977.408047 | J68: 1653.699782 | K68: 1765.136865 | L68: 1746.4885 | M68: 1878.337363 | N68: 1805.694986 | O68: 1764.327738 | R68: LLH | U68: =I30 -> 6739.241262 | V68: =U68/U66 -> 1
C69: Demand | D69: =BL18*$V$68 -> 1227.671229 | E69: 1205.977135 | F69: 1557.055665 | G69: 1591.222375 | H69: 1228.174867 | I69: 1361.887103 | J69: 1314.912637 | K69: 1241.333305 | L69: 1314.01116 | M69: 1519.647613 | N69: 1470.570243 | O69: 1337.112162 | P69: Annual = | Q69: =SUM(D69:P69) -> 16369.5755 | R69: Demand
B72: Final PF Load Billing Determinants
D73: =RateSummary!$C$10 -> 2020 | E73: =RateSummary!$D$10 -> 2021 | F73: =RateSummary!$E$10 -> 2022 | G73: =RateSummary!$F$10 -> 2023 | H73: =RateSummary!$G$10 -> 2024 | I73: =RateSummary!$H$10 -> 2025
C75: Load forecast | D75: =U47 -> 6689.120479 | E75: =U51 -> 6739.241262 | F75: =U55 -> 6707.446836 | G75: =U59 -> 6739.241262 | H75: =U63 -> 6689.120479 | I75: =U67 -> 6739.241262
C77: Loads (GWh) | D77: =T47 -> 58757.23429 | E77: =T51 -> 59035.75345 | F77: =T55 -> 58757.23429 | G77: =T59 -> 59035.75345 | H77: =T63 -> 58757.23429 | I77: =T67 -> 59035.75345

Sheet PF Exchange
B1: Billing Determinants Needed for Rates Analysis Model | P1: Not printed in documentation.
A2: TOC | B2: =Cover!$C$14 -> RAMmodel_REP2020.xls
A3: é
D4: =+DATE(Init!$C$9-1,10,1) -> 2019-10-01 | E4: =+EOMONTH(D4,0)+1 -> 2019-11-01 | F4: 2019-12-01 | G4: 2020-01-01 | H4: 2020-02-01 | I4: 2020-03-01 | J4: 2020-04-01 | K4: 2020-05-01 | L4: 2020-06-01 | M4: 2020-07-01 | N4: 2020-08-01 | O4: 2020-09-01 | P4: 2020-10-01 | Q4: 2020-11-01 | R4: 2020-12-01 | S4: 2021-01-01 | T4: 2021-02-01 | U4: 2021-03-01 | V4: 2021-04-01 | W4: 2021-05-01 | X4: 2021-06-01 | Y4: 2021-07-01 | Z4: 2021-08-01 | AA4: 2021-09-01 | AB4: 2021-10-01 | AC4: 2021-11-01 | AD4: 2021-12-01 | AE4: 2022-01-01 | AF4: 2022-02-01 | AG4: 2022-03-01 | AH4: 2022-04-01 | AI4: 2022-05-01 | AJ4: 2022-06-01 | AK4: =+EOMONTH(AJ4,0)+1 -> 2022-07-01 | AL4: 2022-08-01 | AM4: 2022-09-01 | AN4: 2022-10-01 | AO4: 2022-11-01 | AP4: 2022-12-01 | AQ4: 2023-01-01 | AR4: 2023-02-01 | AS4: 2023-03-01 | AT4: 2023-04-01 | AU4: 2023-05-01 | AV4: 2023-06-01 | AW4: 2023-07-01 | AX4: 2023-08-01 | AY4: 2023-09-01 | AZ4: 2023-10-01 | BA4: 2023-11-01 | BB4: 2023-12-01 | BC4: 2024-01-01 | BD4: 2024-02-01 | BE4: 2024-03-01 | BF4: 2024-04-01 | BG4: 2024-05-01 | BH4: 2024-06-01 | BI4: 2024-07-01 | BJ4: 2024-08-01 | BK4: 2024-09-01 | BL4: 2024-10-01 | BM4: 2024-11-01 | BN4: 2024-12-01 | BO4: 2025-01-01 | BP4: 2025-02-01 | BQ4: =+EOMONTH(BP4,0)+1 -> 2025-03-01 | BR4: 2025-04-01 | BS4: 2025-05-01 | BT4: 2025-06-01 | BU4: 2025-07-01 | BV4: 2025-08-01 | BW4: 2025-09-01
B5: Public Load
C6: HLH | D6: ='PF Public'!D12 -> 2712606.853 | E6: ='PF Public'!E12 -> 3177219.202 | F6: ='PF Public'!F12 -> 3496991.625 | G6: ='PF Public'!G12 -> 3434071.576 | H6: ='PF Public'!H12 -> 3037957.109 | I6: ='PF Public'!I12 -> 3020808.963 | J6: ='PF Public'!J12 -> 2597940.597 | K6: ='PF Public'!K12 -> 2566467.242 | L6: ='PF Public'!L12 -> 2873851.948 | M6: ='PF Public'!M12 -> 2976061.361 | N6: ='PF Public'!N12 -> 2941055.358 | O6: ='PF Public'!O12 -> 2646328.384 | P6: ='PF Public'!P12 -> 2743716.801 | Q6: ='PF Public'!Q12 -> 3158983.131 | R6: ='PF Public'!R12 -> 3580620.596 | S6: ='PF Public'!S12 -> 3410378.592 | T6: ='PF Public'!T12 -> 2996232.761 | U6: ='PF Public'!U12 -> 3089891.269 | V6: ='PF Public'!V12 -> 2562006.071 | W6: ='PF Public'!W12 -> 2624888.456 | X6: ='PF Public'!X12 -> 2869705.743 | Y6: ='PF Public'!Y12 -> 2979895.715 | Z6: ='PF Public'!Z12 -> 2962461.055 | AA6: ='PF Public'!AA12 -> 2662825.511 | AB6: ='PF Public'!AB12 -> 2712606.853 | AC6: ='PF Public'!AC12 -> 3177219.202 | AD6: ='PF Public'!AD12 -> 3496991.625 | AE6: ='PF Public'!AE12 -> 3434071.576 | AF6: ='PF Public'!AF12 -> 3037957.109 | AG6: ='PF Public'!AG12 -> 3020808.963 | AH6: ='PF Public'!AH12 -> 2597940.597 | AI6: ='PF Public'!AI12 -> 2566467.242 | AJ6: ='PF Public'!AJ12 -> 2873851.948 | AK6: ='PF Public'!AK12 -> 2976061.361 | AL6: ='PF Public'!AL12 -> 2941055.358 | AM6: ='PF Public'!AM12 -> 2646328.384 | AN6: ='PF Public'!AN12 -> 2743716.801 | AO6: ='PF Public'!AO12 -> 3158983.131 | AP6: ='PF Public'!AP12 -> 3580620.596 | AQ6: ='PF Public'!AQ12 -> 3410378.592 | AR6: ='PF Public'!AR12 -> 2996232.761 | AS6: ='PF Public'!AS12 -> 3089891.269 | AT6: ='PF Public'!AT12 -> 2562006.071 | AU6: ='PF Public'!AU12 -> 2624888.456 | AV6: ='PF Public'!AV12 -> 2869705.743 | AW6: ='PF Public'!AW12 -> 2979895.715 | AX6: ='PF Public'!AX12 -> 2962461.055 | AY6: ='PF Public'!AY12 -> 2662825.511 | AZ6: ='PF Public'!AZ12 -> 2712606.853 | BA6: ='PF Public'!BA12 -> 3177219.202 | BB6: ='PF Public'!BB12 -> 3496991.625 | BC6: ='PF Public'!BC12 -> 3434071.576 | BD6: ='PF Public'!BD12 -> 3037957.109 | BE6: ='PF Public'!BE12 -> 3020808.963 | BF6: ='PF Public'!BF12 -> 2597940.597 | BG6: ='PF Public'!BG12 -> 2566467.242 | BH6: ='PF Public'!BH12 -> 2873851.948 | BI6: ='PF Public'!BI12 -> 2976061.361 | BJ6: ='PF Public'!BJ12 -> 2941055.358 | BK6: ='PF Public'!BK12 -> 2646328.384 | BL6: ='PF Public'!BL12 -> 2743716.801 | BM6: ='PF Public'!BM12 -> 3158983.131 | BN6: ='PF Public'!BN12 -> 3580620.596 | BO6: ='PF Public'!BO12 -> 3410378.592 | BP6: ='PF Public'!BP12 -> 2996232.761 | BQ6: ='PF Public'!BQ12 -> 3089891.269 | BR6: ='PF Public'!BR12 -> 2562006.071 | BS6: ='PF Public'!BS12 -> 2624888.456 | BT6: ='PF Public'!BT12 -> 2869705.743 | BU6: ='PF Public'!BU12 -> 2979895.715 | BV6: ='PF Public'!BV12 -> 2962461.055 | BW6: ='PF Public'!BW12 -> 2662825.511
C7: LLH | D7: ='PF Public'!D13 -> 1664124.034 | E7: ='PF Public'!E13 -> 2178071.889 | F7: ='PF Public'!F13 -> 2495576.775 | G7: ='PF Public'!G13 -> 2369064.255 | H7: ='PF Public'!H13 -> 1993692.846 | I7: ='PF Public'!I13 -> 2012160.573 | J7: ='PF Public'!J13 -> 1665461.105 | K7: ='PF Public'!K13 -> 1775261.732 | L7: ='PF Public'!L13 -> 1746122.811 | M7: ='PF Public'!M13 -> 1839153.829 | N7: ='PF Public'!N13 -> 1788396.035 | O7: ='PF Public'!O13 -> 1748788.185 | P7: ='PF Public'!P13 -> 1680681.248 | Q7: ='PF Public'!Q13 -> 2237637.301 | R7: ='PF Public'!R13 -> 2455753.071 | S7: ='PF Public'!S13 -> 2442685.566 | T7: ='PF Public'!T13 -> 1986297.286 | U7: ='PF Public'!U13 -> 1977408.047 | V7: ='PF Public'!V13 -> 1653699.782 | W7: ='PF Public'!W13 -> 1765136.865 | X7: ='PF Public'!X13 -> 1746488.5 | Y7: ='PF Public'!Y13 -> 1878337.363 | Z7: ='PF Public'!Z13 -> 1805694.986 | AA7: ='PF Public'!AA13 -> 1764327.738 | AB7: ='PF Public'!AB13 -> 1664124.034 | AC7: ='PF Public'!AC13 -> 2178071.889 | AD7: ='PF Public'!AD13 -> 2495576.775 | AE7: ='PF Public'!AE13 -> 2369064.255 | AF7: ='PF Public'!AF13 -> 1993692.846 | AG7: ='PF Public'!AG13 -> 2012160.573 | AH7: ='PF Public'!AH13 -> 1665461.105 | AI7: ='PF Public'!AI13 -> 1775261.732 | AJ7: ='PF Public'!AJ13 -> 1746122.811 | AK7: ='PF Public'!AK13 -> 1839153.829 | AL7: ='PF Public'!AL13 -> 1788396.035 | AM7: ='PF Public'!AM13 -> 1748788.185 | AN7: ='PF Public'!AN13 -> 1680681.248 | AO7: ='PF Public'!AO13 -> 2237637.301 | AP7: ='PF Public'!AP13 -> 2455753.071 | AQ7: ='PF Public'!AQ13 -> 2442685.566 | AR7: ='PF Public'!AR13 -> 1986297.286 | AS7: ='PF Public'!AS13 -> 1977408.047 | AT7: ='PF Public'!AT13 -> 1653699.782 | AU7: ='PF Public'!AU13 -> 1765136.865 | AV7: ='PF Public'!AV13 -> 1746488.5 | AW7: ='PF Public'!AW13 -> 1878337.363 | AX7: ='PF Public'!AX13 -> 1805694.986 | AY7: ='PF Public'!AY13 -> 1764327.738 | AZ7: ='PF Public'!AZ13 -> 1664124.034 | BA7: ='PF Public'!BA13 -> 2178071.889 | BB7: ='PF Public'!BB13 -> 2495576.775 | BC7: ='PF Public'!BC13 -> 2369064.255 | BD7: ='PF Public'!BD13 -> 1993692.846 | BE7: ='PF Public'!BE13 -> 2012160.573 | BF7: ='PF Public'!BF13 -> 1665461.105 | BG7: ='PF Public'!BG13 -> 1775261.732 | BH7: ='PF Public'!BH13 -> 1746122.811 | BI7: ='PF Public'!BI13 -> 1839153.829 | BJ7: ='PF Public'!BJ13 -> 1788396.035 | BK7: ='PF Public'!BK13 -> 1748788.185 | BL7: ='PF Public'!BL13 -> 1680681.248 | BM7: ='PF Public'!BM13 -> 2237637.301 | BN7: ='PF Public'!BN13 -> 2455753.071 | BO7: ='PF Public'!BO13 -> 2442685.566 | BP7: ='PF Public'!BP13 -> 1986297.286 | BQ7: ='PF Public'!BQ13 -> 1977408.047 | BR7: ='PF Public'!BR13 -> 1653699.782 | BS7: ='PF Public'!BS13 -> 1765136.865 | BT7: ='PF Public'!BT13 -> 1746488.5 | BU7: ='PF Public'!BU13 -> 1878337.363 | BV7: ='PF Public'!BV13 -> 1805694.986 | BW7: ='PF Public'!BW13 -> 1764327.738
B9: Demand | D9: ='PF Public'!D18 -> 364.2362 | E9: ='PF Public'!E18 -> 326.8017 | F9: ='PF Public'!F18 -> 532.035 | G9: ='PF Public'!G18 -> 595.1084 | H9: ='PF Public'!H18 -> 400.6946 | I9: ='PF Public'!I18 -> 461.5678 | J9: ='PF Public'!J18 -> 425.9809 | K9: ='PF Public'!K18 -> 265.6009 | L9: ='PF Public'!L18 -> 394.5341 | M9: ='PF Public'!M18 -> 469.5608 | N9: ='PF Public'!N18 -> 435.3296 | O9: ='PF Public'!O18 -> 385.6406 | P9: ='PF Public'!P18 -> 369.6912 | Q9: ='PF Public'!Q18 -> 278.1057 | R9: ='PF Public'!R18 -> 625.0352 | S9: ='PF Public'!S18 -> 537.4945 | T9: ='PF Public'!T18 -> 352.3844 | U9: ='PF Public'!U18 -> 527.9041 | V9: ='PF Public'!V18 -> 439.681 | W9: ='PF Public'!W18 -> 274.8646 | X9: ='PF Public'!X18 -> 399.8803 | Y9: ='PF Public'!Y18 -> 478.3325 | Z9: ='PF Public'!Z18 -> 444.4715 | AA9: ='PF Public'!AA18 -> 401.0725 | AB9: ='PF Public'!AB18 -> 1090.381786 | AC9: ='PF Public'!AC18 -> 1117.426042 | AD9: ='PF Public'!AD18 -> 1554.063575 | AE9: ='PF Public'!AE18 -> 1470.743645 | AF9: ='PF Public'!AF18 -> 1192.664643 | AG9: ='PF Public'!AG18 -> 1379.389014 | AH9: ='PF Public'!AH18 -> 1262.771339 | AI9: ='PF Public'!AI18 -> 1120.42752 | AJ9: ='PF Public'!AJ18 -> 1330.567276 | AK9: ='PF Public'!AK18 -> 1375.37241 | AL9: ='PF Public'!AL18 -> 1511.500961 | AM9: ='PF Public'!AM18 -> 1301.004525 | AN9: ='PF Public'!AN18 -> 1148.605144 | AO9: ='PF Public'!AO18 -> 1180.40112 | AP9: ='PF Public'!AP18 -> 1609.970363 | AQ9: ='PF Public'!AQ18 -> 1488.871928 | AR9: ='PF Public'!AR18 -> 1193.219628 | AS9: ='PF Public'!AS18 -> 1400.762799 | AT9: ='PF Public'!AT18 -> 1215.71713 | AU9: ='PF Public'!AU18 -> 1216.607315 | AV9: ='PF Public'!AV18 -> 1351.960248 | AW9: ='PF Public'!AW18 -> 1398.509273 | AX9: ='PF Public'!AX18 -> 1527.654558 | AY9: ='PF Public'!AY18 -> 1313.57248 | AZ9: ='PF Public'!AZ18 -> 1161.180536 | BA9: ='PF Public'!BA18 -> 1193.670998 | BB9: ='PF Public'!BB18 -> 1544.5775 | BC9: ='PF Public'!BC18 -> 1578.235611 | BD9: ='PF Public'!BD18 -> 1284.0922 | BE9: ='PF Public'!BE18 -> 1337.398832 | BF9: ='PF Public'!BF18 -> 1300.858284 | BG9: ='PF Public'!BG18 -> 1229.847418 | BH9: ='PF Public'!BH18 -> 1302.622205 | BI9: ='PF Public'!BI18 -> 1505.317632 | BJ9: ='PF Public'!BJ18 -> 1542.983748 | BK9: ='PF Public'!BK18 -> 1243.552307 | BL9: ='PF Public'!BL18 -> 1227.671229 | BM9: ='PF Public'!BM18 -> 1205.977135 | BN9: ='PF Public'!BN18 -> 1557.055665 | BO9: ='PF Public'!BO18 -> 1591.222375 | BP9: ='PF Public'!BP18 -> 1228.174867 | BQ9: ='PF Public'!BQ18 -> 1361.887103 | BR9: ='PF Public'!BR18 -> 1314.912637 | BS9: ='PF Public'!BS18 -> 1241.333305 | BT9: ='PF Public'!BT18 -> 1314.01116 | BU9: ='PF Public'!BU18 -> 1519.647613 | BV9: ='PF Public'!BV18 -> 1470.570243 | BW9: ='PF Public'!BW18 -> 1337.112162
D11: =RateSummary!$C$10 -> 2020 | E11: =RateSummary!$D$10 -> 2021 | F11: =RateSummary!$E$10 -> 2022 | G11: =RateSummary!$F$10 -> 2023 | H11: =RateSummary!$G$10 -> 2024 | I11: =RateSummary!$H$10 -> 2025
C12: Public Load (MWh) | D12: =SUM(D6:O7) -> 58757234.29 | E12: =SUM(P6:AA7) -> 59035753.45 | F12: =SUM(AB6:AM7) -> 58757234.29 | G12: =SUM(AN6:AY7) -> 59035753.45 | H12: =SUM(AZ6:BK7) -> 58757234.29 | I12: =SUM(BL6:BW7) -> 59035753.45
C13: Public Load (aMW) | D13: =D12/VLOOKUP(D11,Init!$N$5:$P$38,3) -> 6689.120479 | E13: =E12/VLOOKUP(E11,Init!$N$5:$P$38,3) -> 6739.241262 | F13: =F12/VLOOKUP(F11,Init!$N$5:$P$38,3) -> 6707.446836 | G13: =G12/VLOOKUP(G11,Init!$N$5:$P$38,3) -> 6739.241262 | H13: =H12/VLOOKUP(H11,Init!$N$5:$P$38,3) -> 6689.120479 | I13: =I12/VLOOKUP(I11,Init!$N$5:$P$38,3) -> 6739.241262
C14: Demand (MW) | D14: =SUM(D9:O9) -> 5057.0906 | E14: =SUM(P9:AA9) -> 5128.9175 | F14: =SUM(AB9:AM9) -> 15706.31274 | G14: =SUM(AN9:AY9) -> 16045.85198 | H14: =SUM(AZ9:BK9) -> 16224.33727 | I14: =SUM(BL9:BW9) -> 16369.5755
D16: DEMAND: | E16: ENERGY: | F16: (GWh) | AE16: Total
E17: Oct | G17: Nov | I17: Dec | K17: Jan | M17: Feb | O17: Mar | Q17: Apr | S17: May | U17: Jun | W17: Jul | Y17: Aug | AA17: Sep | AC17: Total | AE17: Energy
D18: Annual | E18: LLH | F18: HLH | G18: LLH | H18: HLH | I18: LLH | J18: HLH | K18: LLH | L18: HLH | M18: LLH | N18: HLH | O18: LLH | P18: HLH | Q18: LLH | R18: HLH | S18: LLH | T18: HLH | U18: LLH | V18: HLH | W18: LLH | X18: HLH | Y18: LLH | Z18: HLH | AA18: LLH | AB18: HLH | AC18: LLH | AD18: HLH | AG18: check
B20: =RateSummary!$C$10 -> 2020 | D20: =Q31 -> 4023.455111 | E20: =D30 -> 1323.988213 | F20: =D29 -> 2158.168158 | G20: =E30 -> 1732.888565 | H20: =E29 -> 2527.816851 | I20: =F30 -> 1985.497577 | J20: =F29 -> 2782.22993 | K20: =G30 -> 1884.843369 | L20: =G29 -> 2732.170318 | M20: =H30 -> 1586.195365 | N20: =H29 -> 2417.018998 | O20: =I30 -> 1600.888413 | P20: =I29 -> 2403.375819 | Q20: =J30 -> 1325.051997 | R20: =J29 -> 2066.938918 | S20: =K30 -> 1412.410109 | T20: =K29 -> 2041.898506 | U20: =L30 -> 1389.226989 | V20: =L29 -> 2286.455835 | W20: =M30 -> 1463.243089 | X20: =M29 -> 2367.774327 | Y20: =N30 -> 1422.859849 | Z20: =N29 -> 2339.923317 | AA20: =O30 -> 1391.347578 | AB20: =O29 -> 2105.436565 | AC20: =E20+G20+I20+K20+M20+O20+Q20+S20+U20+W20+Y20+AA20 -> 18518.44111 | AD20: =F20+H20+J20+L20+N20+P20+R20+T20+V20+X20+Z20+AB20 -> 28229.20754 | AE20: =AC20+AD20 -> 46747.64866 | AG20: =T29 -> 46747.64866 | AH20: =AG20/(VLOOKUP($B20,Init!$N:$P,3,FALSE)/1000) -> 5321.909
B21: =RateSummary!$D$10 -> 2021 | D21: =Q35 -> 4058.736464 | E21: =D34 -> 1329.996489 | F21: =D33 -> 2171.222958 | G21: =E34 -> 1770.740143 | H21: =E33 -> 2499.841345 | I21: =F34 -> 1943.344679 | J21: =F33 -> 2833.50149 | K21: =G34 -> 1933.003792 | L21: =G33 -> 2698.781555 | M21: =H34 -> 1571.84381 | N21: =H33 -> 2371.049868 | O21: =I34 -> 1564.809366 | P21: =I33 -> 2445.165937 | Q21: =J34 -> 1308.644876 | R21: =J33 -> 2027.42732 | S21: =K34 -> 1396.829908 | T21: =K33 -> 2077.188898 | U21: =L34 -> 1382.072642 | V21: =L33 -> 2270.923511 | W21: =M34 -> 1486.410406 | X21: =M33 -> 2358.121649 | Y21: =N34 -> 1428.92532 | Z21: =N33 -> 2344.324842 | AA21: =O34 -> 1396.18961 | AB21: =O33 -> 2107.210147 | AC21: 18512.81104 | AD21: 28204.75952 | AE21: 46717.57056 | AG21: =T33 -> 46717.57056 | AH21: =AG21/(VLOOKUP($B21,Init!$N:$P,3,FALSE)/1000) -> 5333.056
B22: =RateSummary!$E$10 -> 2022 | D22: =Q39 -> 11571.08158 | E22: =D38 -> 1225.985709 | F22: =D37 -> 1998.419089 | G22: =E38 -> 1604.61898 | H22: =E37 -> 2340.706135 | I22: =F38 -> 1838.529701 | J22: =F37 -> 2576.287386 | K22: =G38 -> 1745.325987 | L22: =G37 -> 2529.933221 | M22: =H38 -> 1468.78411 | N22: =H37 -> 2238.109615 | O22: =I38 -> 1482.389568 | P22: =I37 -> 2225.476313 | Q22: =J38 -> 1226.97075 | R22: =J37 -> 1913.942699 | S22: =K38 -> 1307.862556 | T22: =K37 -> 1890.755796 | U22: =L38 -> 1286.395466 | V22: =L37 -> 2117.210825 | W22: =M38 -> 1354.932845 | X22: =M37 -> 2192.510068 | Y22: =N38 -> 1317.538799 | Z22: =N37 -> 2166.720608 | AA22: =O38 -> 1288.359088 | AB22: =O37 -> 1949.590724 | AC22: 17147.69356 | AD22: 26139.66248 | AE22: 43287.35604 | AG22: =T37 -> 43287.35604 | AH22: =AG22/(VLOOKUP($B22,Init!$N:$P,3,FALSE)/1000) -> 4941.479
B23: =RateSummary!$F$10 -> 2023 | D23: =Q43 -> 11795.79567 | E23: =D42 -> 1235.520096 | F23: =D41 -> 2016.989986 | G23: =E42 -> 1644.955495 | H23: =E41 -> 2322.264943 | I23: =F42 -> 1805.299056 | J23: =F41 -> 2632.223516 | K23: =G42 -> 1795.692735 | L23: =G41 -> 2507.073422 | M23: =H42 -> 1460.187777 | N23: =H41 -> 2202.622177 | O23: =I42 -> 1453.653025 | P23: =I41 -> 2271.473406 | Q23: =J42 -> 1215.685197 | R23: =J41 -> 1883.408881 | S23: =K42 -> 1297.605999 | T23: =K41 -> 1929.635642 | U23: =L42 -> 1283.897017 | V23: =L41 -> 2109.608303 | W23: =M42 -> 1380.823141 | X23: =M41 -> 2190.612316 | Y23: =N42 -> 1327.421512 | Z23: =N41 -> 2177.795565 | AA23: =O42 -> 1297.011185 | AB23: =O41 -> 1957.524329 | AC23: 17197.75223 | AD23: 26201.23249 | AE23: 43398.98472 | AG23: =T41 -> 43398.98472 | AH23: =AG23/(VLOOKUP($B23,Init!$N:$P,3,FALSE)/1000) -> 4954.222
B24: =RateSummary!$G$10 -> 2024 | D24: =Q47 -> 11350.48648 | E24: =D46 -> 1164.215032 | F24: =D45 -> 1897.729743 | G24: =E46 -> 1523.771055 | H24: =E45 -> 2222.770828 | I24: =F46 -> 1745.896302 | J24: =F45 -> 2446.482435 | K24: =G46 -> 1657.38861 | L24: =G45 -> 2402.463801 | M24: =H46 -> 1394.780157 | N24: =H45 -> 2125.343581 | O24: =I46 -> 1407.700111 | P24: =I45 -> 2113.346802 | Q24: =J46 -> 1165.150443 | R24: =J45 -> 1817.509654 | S24: =K46 -> 1241.966556 | T24: =K45 -> 1795.491011 | U24: =L46 -> 1221.581074 | V24: =L45 -> 2010.536217 | W24: =M46 -> 1286.665231 | X24: =M45 -> 2082.041544 | Y24: =N46 -> 1251.155266 | Z24: =N45 -> 2057.551474 | AA24: =O46 -> 1223.44576 | AB24: =O45 -> 1851.361571 | AC24: 16283.7156 | AD24: 24822.62866 | AE24: 41106.34426 | AG24: =T45 -> 41106.34426 | AH24: =AG24/(VLOOKUP($B24,Init!$N:$P,3,FALSE)/1000) -> 4679.684
B25: =RateSummary!$H$10 -> 2025 | D25: =Q51 -> 11398.06573 | E25: =D50 -> 1170.251198 | F25: =D49 -> 1910.438328 | G25: =E50 -> 1558.057327 | H25: =E49 -> 2199.586506 | I25: =F50 -> 1709.930408 | J25: =F49 -> 2493.170877 | K25: =G50 -> 1700.831561 | L25: =G49 -> 2374.632095 | M25: =H50 -> 1383.050344 | N25: =H49 -> 2086.264116 | O25: =I50 -> 1376.860805 | P25: =I49 -> 2151.478136 | Q25: =J50 -> 1151.464118 | R25: =J49 -> 1783.91392 | S25: =K50 -> 1229.057285 | T25: =K49 -> 1827.698657 | U25: =L50 -> 1216.072508 | V25: =L49 -> 1998.163892 | W25: =M50 -> 1307.878309 | X25: =M49 -> 2074.8887 | Y25: =N50 -> 1257.297731 | Z25: =N49 -> 2062.749021 | AA25: =O50 -> 1228.493892 | AB25: =O49 -> 1854.114067 | AC25: 16289.24549 | AD25: 24817.09831 | AE25: 41106.3438 | AG25: =T49 -> 41106.3438 | AH25: =AG25/(VLOOKUP($B25,Init!$N:$P,3,FALSE)/1000) -> 4692.505
D28: =E17 -> Oct | E28: =G17 -> Nov | F28: =I17 -> Dec | G28: =K17 -> Jan | H28: =M17 -> Feb | I28: =O17 -> Mar | J28: =Q17 -> Apr | K28: =S17 -> May | L28: =U17 -> Jun | M28: =W17 -> Jul | N28: =Y17 -> Aug | O28: =AA17 -> Sep
B29: =B20 -> 2020 | C29: HLH | D29: =D6/1000*$V$30 -> 2158.168158 | E29: 2527.816851 | F29: 2782.22993 | G29: 2732.170318 | H29: 2417.018998 | I29: 2403.375819 | J29: 2066.938918 | K29: 2041.898506 | L29: 2286.455835 | M29: 2367.774327 | N29: 2339.923317 | O29: 2105.436565 | R29: HLH | S29: =B29 -> 2020 | T29: =SUM(D29:O30) -> 46747.64866 | U29: =T29/(VLOOKUP(S29,Init!$N$5:$P$38,3)/1000) -> 5321.909 | V29: =D13 -> 6689.120479
C30: LLH | D30: =D7/1000*$V$30 -> 1323.988213 | E30: 1732.888565 | F30: 1985.497577 | G30: 1884.843369 | H30: 1586.195365 | I30: 1600.888413 | J30: 1325.051997 | K30: 1412.410109 | L30: 1389.226989 | M30: 1463.243089 | N30: 1422.859849 | O30: 1391.347578 | R30: LLH | U30: =D59 -> 5321.909 | V30: =U30/V29 -> 0.7956066895
C31: Demand | D31: =D9*$V$30 -> 289.7887573 | E31: 260.0056187 | F31: 423.2906051 | G31: 473.472224 | H31: 318.7953042 | I31: 367.2264294 | J31: 338.9132537 | K31: 211.3138528 | L31: 313.8939692 | M31: 373.5857136 | N31: 346.3511419 | O31: 306.8182411 | P31: Annual = | Q31: =SUM(D31:P31) -> 4023.455111 | R31: Demand
D32: =D28 -> Oct | E32: Nov | F32: Dec | G32: Jan | H32: Feb | I32: Mar | J32: Apr | K32: May | L32: Jun | M32: Jul | N32: Aug | O32: Sep
B33: =B29+1 -> 2021 | C33: HLH | D33: =P6/1000*$V$34 -> 2171.222958 | E33: 2499.841345 | F33: 2833.50149 | G33: 2698.781555 | H33: 2371.049868 | I33: 2445.165937 | J33: 2027.42732 | K33: 2077.188898 | L33: 2270.923511 | M33: 2358.121649 | N33: 2344.324842 | O33: 2107.210147 | R33: HLH | S33: =B33 -> 2021 | T33: =SUM(D33:O34) -> 46717.57056 | U33: =T33/(VLOOKUP(S33,Init!$N$5:$P$38,3)/1000) -> 5333.056 | V33: =E13 -> 6739.241262
C34: LLH | D34: 1329.996489 | E34: 1770.740143 | F34: 1943.344679 | G34: 1933.003792 | H34: 1571.84381 | I34: 1564.809366 | J34: 1308.644876 | K34: 1396.829908 | L34: 1382.072642 | M34: 1486.410406 | N34: 1428.92532 | O34: 1396.18961 | R34: LLH | U34: =E59 -> 5333.056 | V34: =U34/V33 -> 0.7913436829
C35: Demand | D35: =P9*$V$34 -> 292.5527957 | E35: 220.0771889 | F35: 494.6176571 | G35: 425.3428772 | H35: 278.8571689 | I35: 417.7535747 | J35: 347.9387818 | K35: 217.5123649 | L35: 316.4427493 | M35: 378.5254022 | N35: 351.7297137 | O35: 317.3861892 | P35: Annual = | Q35: =SUM(D35:P35) -> 4058.736464 | R35: Demand
D36: =D32 -> Oct | E36: Nov | F36: Dec | G36: Jan | H36: Feb | I36: Mar | J36: Apr | K36: May | L36: Jun | M36: Jul | N36: Aug | O36: Sep
B37: =B33+1 -> 2022 | C37: HLH | D37: =AB6/1000*$V$38 -> 1998.419089 | E37: 2340.706135 | F37: 2576.287386 | G37: 2529.933221 | H37: 2238.109615 | I37: 2225.476313 | J37: 1913.942699 | K37: 1890.755796 | L37: 2117.210825 | M37: 2192.510068 | N37: 2166.720608 | O37: 1949.590724 | R37: HLH | S37: =B37 -> 2022 | T37: =SUM(D37:O38) -> 43287.35604 | U37: =T37/(VLOOKUP(S37,Init!$N$5:$P$38,3)/1000) -> 4941.479 | V37: =F13 -> 6707.446836
C38: LLH | D38: 1225.985709 | E38: 1604.61898 | F38: 1838.529701 | G38: 1745.325987 | H38: 1468.78411 | I38: 1482.389568 | J38: 1226.97075 | K38: 1307.862556 | L38: 1286.395466 | M38: 1354.932845 | N38: 1317.538799 | O38: 1288.359088 | R38: LLH | U38: =F59 -> 4941.479 | V38: =U38/V37 -> 0.7367153435
C39: Demand | D39: =AB9*$V$38 -> 803.3009921 | E39: 823.2249107 | F39: 1144.90248 | G39: 1083.51941 | H39: 878.6543423 | I39: 1016.217051 | J39: 930.3030207 | K39: 825.4361453 | L39: 980.2493281 | M39: 1013.257957 | N39: 1113.545949 | O39: 958.4699955 | P39: Annual = | Q39: =SUM(D39:P39) -> 11571.08158 | R39: Demand
D40: =D36 -> Oct | E40: Nov | F40: Dec | G40: Jan | H40: Feb | I40: Mar | J40: Apr | K40: May | L40: Jun | M40: Jul | N40: Aug | O40: Sep
B41: =B37+1 -> 2023 | C41: HLH | D41: =AN6/1000*$V$42 -> 2016.989986 | E41: 2322.264943 | F41: 2632.223516 | G41: 2507.073422 | H41: 2202.622177 | I41: 2271.473406 | J41: 1883.408881 | K41: 1929.635642 | L41: 2109.608303 | M41: 2190.612316 | N41: 2177.795565 | O41: 1957.524329 | R41: HLH | S41: =B41 -> 2023 | T41: =SUM(D41:O42) -> 43398.98472 | U41: =T41/(VLOOKUP(S41,Init!$N$5:$P$38,3)/1000) -> 4954.222 | V41: =G13 -> 6739.241262
C42: LLH | D42: 1235.520096 | E42: 1644.955495 | F42: 1805.299056 | G42: 1795.692735 | H42: 1460.187777 | I42: 1453.653025 | J42: 1215.685197 | K42: 1297.605999 | L42: 1283.897017 | M42: 1380.823141 | N42: 1327.421512 | O42: 1297.011185 | R42: LLH | U42: =G59 -> 4954.222 | V42: =U42/V41 -> 0.7351305299
C43: Demand | D43: =AN9*$V$42 -> 844.3747083 | E43: 867.7489008 | F43: 1183.538366 | G43: 1094.515209 | H43: 877.1721771 | I43: 1029.743498 | J43: 893.710778 | K43: 894.3651801 | L43: 993.8672532 | M43: 1028.086863 | N43: 1123.025505 | O43: 965.6472333 | P43: Annual = | Q43: =SUM(D43:P43) -> 11795.79567 | R43: Demand
D44: =D40 -> Oct | E44: Nov | F44: Dec | G44: Jan | H44: Feb | I44: Mar | J44: Apr | K44: May | L44: Jun | M44: Jul | N44: Aug | O44: Sep
B45: =B41+1 -> 2024 | C45: HLH | D45: =AZ6/1000*$V$46 -> 1897.729743 | E45: 2222.770828 | F45: 2446.482435 | G45: 2402.463801 | H45: 2125.343581 | I45: 2113.346802 | J45: 1817.509654 | K45: 1795.491011 | L45: 2010.536217 | M45: 2082.041544 | N45: 2057.551474 | O45: 1851.361571 | R45: HLH | S45: =B45 -> 2024 | T45: =SUM(D45:O46) -> 41106.34426 | U45: =T45/(VLOOKUP(S45,Init!$N$5:$P$38,3)/1000) -> 4679.684 | V45: =H13 -> 6689.120479
C46: LLH | D46: 1164.215032 | E46: 1523.771055 | F46: 1745.896302 | G46: 1657.38861 | H46: 1394.780157 | I46: 1407.700111 | J46: 1165.150443 | K46: 1241.966556 | L46: 1221.581074 | M46: 1286.665231 | N46: 1251.155266 | O46: 1223.44576 | R46: LLH | U46: =H59 -> 4679.684 | V46: =U46/V45 -> 0.6995963094
C47: Demand | D47: =AZ9*$V$46 -> 812.3576176 | E47: 835.0878245 | F47: 1080.580719 | G47: 1104.127809 | H47: 898.346164 | I47: 935.6392869 | J47: 910.0756543 | K47: 860.3967149 | L47: 911.3096871 | M47: 1053.11466 | N47: 1079.465735 | O47: 869.9846047 | P47: Annual = | Q47: =SUM(D47:P47) -> 11350.48648 | R47: Demand
D48: =D44 -> Oct | E48: Nov | F48: Dec | G48: Jan | H48: Feb | I48: Mar | J48: Apr | K48: May | L48: Jun | M48: Jul | N48: Aug | O48: Sep
B49: =B45+1 -> 2025 | C49: HLH | D49: =BL6/1000*$V$50 -> 1910.438328 | E49: 2199.586506 | F49: 2493.170877 | G49: 2374.632095 | H49: 2086.264116 | I49: 2151.478136 | J49: 1783.91392 | K49: 1827.698657 | L49: 1998.163892 | M49: 2074.8887 | N49: 2062.749021 | O49: 1854.114067 | R49: HLH | S49: =B49 -> 2025 | T49: =SUM(D49:O50) -> 41106.3438 | U49: =T49/(VLOOKUP(S49,Init!$N$5:$P$38,3)/1000) -> 4692.505 | V49: =I13 -> 6739.241262
C50: LLH | D50: 1170.251198 | E50: 1558.057327 | F50: 1709.930408 | G50: 1700.831561 | H50: 1383.050344 | I50: 1376.860805 | J50: 1151.464118 | K50: 1229.057285 | L50: 1216.072508 | M50: 1307.878309 | N50: 1257.297731 | O50: 1228.493892 | R50: LLH | U50: =I59 -> 4692.505 | V50: =U50/V49 -> 0.6962957427
C51: Demand | D51: =BL9*$V$50 -> 854.8222504 | E51: 839.7167449 | F51: 1084.171231 | G51: 1107.961365 | H51: 855.1729314 | I51: 948.2761922 | J51: 915.5680712 | K51: 864.3350958 | L51: 914.9403766 | M51: 1058.124163 | N51: 1023.951799 | O51: 931.0255063 | P51: Annual = | Q51: =SUM(D51:P51) -> 11398.06573 | R51: Demand
B54: Final Exchange Load Billing Determinants
D55: =RateSummary!$C$10 -> 2020 | E55: =RateSummary!$D$10 -> 2021 | F55: =RateSummary!$E$10 -> 2022 | G55: =RateSummary!$F$10 -> 2023 | H55: =RateSummary!$G$10 -> 2024 | I55: =RateSummary!$H$10 -> 2025
C57: Exchange Load | D57: =U30 -> 5321.909 | E57: =U34 -> 5333.056 | F57: =U38 -> 4941.479 | G57: =U42 -> 4954.222 | H57: =U46 -> 4679.684 | I57: =U50 -> 4692.505
C59: Initial Load | D59: =IF('Exchange Load'!D29>0.001,'Exchange Load'!D29,0.001) -> 5321.909 | E59: =IF('Exchange Load'!E29>0.001,'Exchange Load'!E29,0.001) -> 5333.056 | F59: =IF('Exchange Load'!F29>0.001,'Exchange Load'!F29,0.001) -> 4941.479 | G59: =IF('Exchange Load'!G29>0.001,'Exchange Load'!G29,0.001) -> 4954.222 | H59: =IF('Exchange Load'!H29>0.001,'Exchange Load'!H29,0.001) -> 4679.684 | I59: =IF('Exchange Load'!I29>0.001,'Exchange Load'!I29,0.001) -> 4692.505
C61: Loads (GWh) | D61: =T29 -> 46747.64866 | E61: =T33 -> 46717.57056 | F61: =T37 -> 43287.35604 | G61: =T41 -> 43398.98472 | H61: =T45 -> 41106.34426 | I61: =T49 -> 41106.3438

Sheet RAM IP
B1: Billing Determinants Needed for Rates Analysis Model | R1: Not printed in documentation.
A2: TOC | B2: =Cover!$C$14 -> RAMmodel_REP2020.xls
A3: é
D4: =+DATE(Init!$C$9-1,10,1) -> 2019-10-01 | E4: =+EOMONTH(D4,0)+1 -> 2019-11-01 | F4: 2019-12-01 | G4: 2020-01-01 | H4: 2020-02-01 | I4: 2020-03-01 | J4: 2020-04-01 | K4: 2020-05-01 | L4: 2020-06-01 | M4: 2020-07-01 | N4: 2020-08-01 | O4: 2020-09-01 | P4: 2020-10-01 | Q4: 2020-11-01 | R4: 2020-12-01 | S4: 2021-01-01 | T4: 2021-02-01 | U4: 2021-03-01 | V4: 2021-04-01 | W4: 2021-05-01 | X4: 2021-06-01 | Y4: 2021-07-01 | Z4: 2021-08-01 | AA4: 2021-09-01 | AB4: 2021-10-01 | AC4: 2021-11-01 | AD4: 2021-12-01 | AE4: 2022-01-01 | AF4: 2022-02-01 | AG4: 2022-03-01 | AH4: 2022-04-01 | AI4: 2022-05-01 | AJ4: 2022-06-01 | AK4: =+EOMONTH(AJ4,0)+1 -> 2022-07-01 | AL4: 2022-08-01 | AM4: 2022-09-01 | AN4: 2022-10-01 | AO4: 2022-11-01 | AP4: 2022-12-01 | AQ4: 2023-01-01 | AR4: 2023-02-01 | AS4: 2023-03-01 | AT4: 2023-04-01 | AU4: 2023-05-01 | AV4: 2023-06-01 | AW4: 2023-07-01 | AX4: 2023-08-01 | AY4: 2023-09-01 | AZ4: 2023-10-01 | BA4: 2023-11-01 | BB4: 2023-12-01 | BC4: 2024-01-01 | BD4: 2024-02-01 | BE4: 2024-03-01 | BF4: 2024-04-01 | BG4: 2024-05-01 | BH4: 2024-06-01 | BI4: 2024-07-01 | BJ4: 2024-08-01 | BK4: 2024-09-01 | BL4: 2024-10-01 | BM4: 2024-11-01 | BN4: 2024-12-01 | BO4: 2025-01-01 | BP4: 2025-02-01 | BQ4: =+EOMONTH(BP4,0)+1 -> 2025-03-01 | BR4: 2025-04-01 | BS4: 2025-05-01 | BT4: 2025-06-01 | BU4: 2025-07-01 | BV4: 2025-08-01 | BW4: 2025-09-01
B6: Direct Service Industry Load
C7: IND | D7: =D9/VLOOKUP(D$4,Init!$F:$L,MATCH("HLH",Init!$F$4:$L$4,0),FALSE) -> 11.76897454 | E7: =E9/VLOOKUP(E$4,Init!$F:$L,MATCH("HLH",Init!$F$4:$L$4,0),FALSE) -> 11.8670925 | F7: =F9/VLOOKUP(F$4,Init!$F:$L,MATCH("HLH",Init!$F$4:$L$4,0),FALSE) -> 12.0225075 | G7: =G9/VLOOKUP(G$4,Init!$F:$L,MATCH("HLH",Init!$F$4:$L$4,0),FALSE) -> 11.60177644 | H7: =H9/VLOOKUP(H$4,Init!$F:$L,MATCH("HLH",Init!$F$4:$L$4,0),FALSE) -> 11.73642 | I7: =I9/VLOOKUP(I$4,Init!$F:$L,MATCH("HLH",Init!$F$4:$L$4,0),FALSE) -> 12.22975721 | J7: =J9/VLOOKUP(J$4,Init!$F:$L,MATCH("HLH",Init!$F$4:$L$4,0),FALSE) -> 11.74180288 | K7: =K9/VLOOKUP(K$4,Init!$F:$L,MATCH("HLH",Init!$F$4:$L$4,0),FALSE) -> 12.21354 | L7: =L9/VLOOKUP(L$4,Init!$F:$L,MATCH("HLH",Init!$F$4:$L$4,0),FALSE) -> 11.86582452 | M7: =M9/VLOOKUP(M$4,Init!$F:$L,MATCH("HLH",Init!$F$4:$L$4,0),FALSE) -> 11.59520673 | N7: =N9/VLOOKUP(N$4,Init!$F:$L,MATCH("HLH",Init!$F$4:$L$4,0),FALSE) -> 12.33235096 | O7: =O9/VLOOKUP(O$4,Init!$F:$L,MATCH("HLH",Init!$F$4:$L$4,0),FALSE) -> 11.4250075 | P7: =P9/VLOOKUP(P$4,Init!$F:$L,MATCH("HLH",Init!$F$4:$L$4,0),FALSE) -> 11.76897454 | Q7: =Q9/VLOOKUP(Q$4,Init!$F:$L,MATCH("HLH",Init!$F$4:$L$4,0),FALSE) -> 12.34440885 | R7: =R9/VLOOKUP(R$4,Init!$F:$L,MATCH("HLH",Init!$F$4:$L$4,0),FALSE) -> 11.56010337 | S7: =S9/VLOOKUP(S$4,Init!$F:$L,MATCH("HLH",Init!$F$4:$L$4,0),FALSE) -> 12.0658475 | T7: =T9/VLOOKUP(T$4,Init!$F:$L,MATCH("HLH",Init!$F$4:$L$4,0),FALSE) -> 11.80386979 | U7: =U9/VLOOKUP(U$4,Init!$F:$L,MATCH("HLH",Init!$F$4:$L$4,0),FALSE) -> 11.76097454 | V7: =V9/VLOOKUP(V$4,Init!$F:$L,MATCH("HLH",Init!$F$4:$L$4,0),FALSE) -> 11.74180288 | W7: =W9/VLOOKUP(W$4,Init!$F:$L,MATCH("HLH",Init!$F$4:$L$4,0),FALSE) -> 12.21354 | X7: =X9/VLOOKUP(X$4,Init!$F:$L,MATCH("HLH",Init!$F$4:$L$4,0),FALSE) -> 11.86582452 | Y7: =Y9/VLOOKUP(Y$4,Init!$F:$L,MATCH("HLH",Init!$F$4:$L$4,0),FALSE) -> 11.59520673 | Z7: =Z9/VLOOKUP(Z$4,Init!$F:$L,MATCH("HLH",Init!$F$4:$L$4,0),FALSE) -> 12.33235096 | AA7: =AA9/VLOOKUP(AA$4,Init!$F:$L,MATCH("HLH",Init!$F$4:$L$4,0),FALSE) -> 11.4250075 | AB7: =AB9/VLOOKUP(AB$4,Init!$F:$L,MATCH("HLH",Init!$F$4:$L$4,0),FALSE) -> 12.2216274 | AC7: =AC9/VLOOKUP(AC$4,Init!$F:$L,MATCH("HLH",Init!$F$4:$L$4,0),FALSE) -> 11.8670925 | AD7: =AD9/VLOOKUP(AD$4,Init!$F:$L,MATCH("HLH",Init!$F$4:$L$4,0),FALSE) -> 11.56010337 | AE7: =AE9/VLOOKUP(AE$4,Init!$F:$L,MATCH("HLH",Init!$F$4:$L$4,0),FALSE) -> 12.0658475 | AF7: =AF9/VLOOKUP(AF$4,Init!$F:$L,MATCH("HLH",Init!$F$4:$L$4,0),FALSE) -> 12.2254375 | AG7: =AG9/VLOOKUP(AG$4,Init!$F:$L,MATCH("HLH",Init!$F$4:$L$4,0),FALSE) -> 11.77680324 | AH7: =AH9/VLOOKUP(AH$4,Init!$F:$L,MATCH("HLH",Init!$F$4:$L$4,0),FALSE) -> 11.74180288 | AI7: =AI9/VLOOKUP(AI$4,Init!$F:$L,MATCH("HLH",Init!$F$4:$L$4,0),FALSE) -> 12.21354 | AJ7: =AJ9/VLOOKUP(AJ$4,Init!$F:$L,MATCH("HLH",Init!$F$4:$L$4,0),FALSE) -> 11.86582452 | AK7: =AK9/VLOOKUP(AK$4,Init!$F:$L,MATCH("HLH",Init!$F$4:$L$4,0),FALSE) -> 12.059015 | AL7: =AL9/VLOOKUP(AL$4,Init!$F:$L,MATCH("HLH",Init!$F$4:$L$4,0),FALSE) -> 11.87559722 | AM7: =AM9/VLOOKUP(AM$4,Init!$F:$L,MATCH("HLH",Init!$F$4:$L$4,0),FALSE) -> 11.4250075 | AN7: =AN9/VLOOKUP(AN$4,Init!$F:$L,MATCH("HLH",Init!$F$4:$L$4,0),FALSE) -> 12.2216274 | AO7: =AO9/VLOOKUP(AO$4,Init!$F:$L,MATCH("HLH",Init!$F$4:$L$4,0),FALSE) -> 11.8506325 | AP7: =AP9/VLOOKUP(AP$4,Init!$F:$L,MATCH("HLH",Init!$F$4:$L$4,0),FALSE) -> 11.56010337 | AQ7: =AQ9/VLOOKUP(AQ$4,Init!$F:$L,MATCH("HLH",Init!$F$4:$L$4,0),FALSE) -> 12.0658475 | AR7: =AR9/VLOOKUP(AR$4,Init!$F:$L,MATCH("HLH",Init!$F$4:$L$4,0),FALSE) -> 11.80386979 | AS7: =AS9/VLOOKUP(AS$4,Init!$F:$L,MATCH("HLH",Init!$F$4:$L$4,0),FALSE) -> 11.76097454 | AT7: =AT9/VLOOKUP(AT$4,Init!$F:$L,MATCH("HLH",Init!$F$4:$L$4,0),FALSE) -> 12.211475 | AU7: =AU9/VLOOKUP(AU$4,Init!$F:$L,MATCH("HLH",Init!$F$4:$L$4,0),FALSE) -> 11.74378846 | AV7: =AV9/VLOOKUP(AV$4,Init!$F:$L,MATCH("HLH",Init!$F$4:$L$4,0),FALSE) -> 11.86582452 | AW7: =AW9/VLOOKUP(AW$4,Init!$F:$L,MATCH("HLH",Init!$F$4:$L$4,0),FALSE) -> 12.059015 | AX7: =AX9/VLOOKUP(AX$4,Init!$F:$L,MATCH("HLH",Init!$F$4:$L$4,0),FALSE) -> 11.87559722 | AY7: =AY9/VLOOKUP(AY$4,Init!$F:$L,MATCH("HLH",Init!$F$4:$L$4,0),FALSE) -> 11.4250075 | AZ7: =AZ9/VLOOKUP(AZ$4,Init!$F:$L,MATCH("HLH",Init!$F$4:$L$4,0),FALSE) -> 12.2216274 | BA7: =BA9/VLOOKUP(BA$4,Init!$F:$L,MATCH("HLH",Init!$F$4:$L$4,0),FALSE) -> 11.8670925 | BB7: =BB9/VLOOKUP(BB$4,Init!$F:$L,MATCH("HLH",Init!$F$4:$L$4,0),FALSE) -> 12.0225075 | BC7: =BC9/VLOOKUP(BC$4,Init!$F:$L,MATCH("HLH",Init!$F$4:$L$4,0),FALSE) -> 11.60177644 | BD7: =BD9/VLOOKUP(BD$4,Init!$F:$L,MATCH("HLH",Init!$F$4:$L$4,0),FALSE) -> 11.73642 | BE7: =BE9/VLOOKUP(BE$4,Init!$F:$L,MATCH("HLH",Init!$F$4:$L$4,0),FALSE) -> 12.22975721 | BF7: =BF9/VLOOKUP(BF$4,Init!$F:$L,MATCH("HLH",Init!$F$4:$L$4,0),FALSE) -> 11.74180288 | BG7: =BG9/VLOOKUP(BG$4,Init!$F:$L,MATCH("HLH",Init!$F$4:$L$4,0),FALSE) -> 11.74378846 | BH7: =BH9/VLOOKUP(BH$4,Init!$F:$L,MATCH("HLH",Init!$F$4:$L$4,0),FALSE) -> 12.3404575 | BI7: =BI9/VLOOKUP(BI$4,Init!$F:$L,MATCH("HLH",Init!$F$4:$L$4,0),FALSE) -> 11.59520673 | BJ7: =BJ9/VLOOKUP(BJ$4,Init!$F:$L,MATCH("HLH",Init!$F$4:$L$4,0),FALSE) -> 11.87559722 | BK7: =BK9/VLOOKUP(BK$4,Init!$F:$L,MATCH("HLH",Init!$F$4:$L$4,0),FALSE) -> 11.90104948 | BL7: =BL9/VLOOKUP(BL$4,Init!$F:$L,MATCH("HLH",Init!$F$4:$L$4,0),FALSE) -> 11.76897454 | BM7: =BM9/VLOOKUP(BM$4,Init!$F:$L,MATCH("HLH",Init!$F$4:$L$4,0),FALSE) -> 11.8506325 | BN7: =BN9/VLOOKUP(BN$4,Init!$F:$L,MATCH("HLH",Init!$F$4:$L$4,0),FALSE) -> 12.0225075 | BO7: =BO9/VLOOKUP(BO$4,Init!$F:$L,MATCH("HLH",Init!$F$4:$L$4,0),FALSE) -> 11.60177644 | BP7: =BP9/VLOOKUP(BP$4,Init!$F:$L,MATCH("HLH",Init!$F$4:$L$4,0),FALSE) -> 11.80386979 | BQ7: =BQ9/VLOOKUP(BQ$4,Init!$F:$L,MATCH("HLH",Init!$F$4:$L$4,0),FALSE) -> 12.21331971 | BR7: =BR9/VLOOKUP(BR$4,Init!$F:$L,MATCH("HLH",Init!$F$4:$L$4,0),FALSE) -> 11.74180288 | BS7: =BS9/VLOOKUP(BS$4,Init!$F:$L,MATCH("HLH",Init!$F$4:$L$4,0),FALSE) -> 11.74378846 | BT7: =BT9/VLOOKUP(BT$4,Init!$F:$L,MATCH("HLH",Init!$F$4:$L$4,0),FALSE) -> 12.3404575 | BU7: =BU9/VLOOKUP(BU$4,Init!$F:$L,MATCH("HLH",Init!$F$4:$L$4,0),FALSE) -> 11.59520673 | BV7: =BV9/VLOOKUP(BV$4,Init!$F:$L,MATCH("HLH",Init!$F$4:$L$4,0),FALSE) -> 12.33235096 | BW7: =BW9/VLOOKUP(BW$4,Init!$F:$L,MATCH("HLH",Init!$F$4:$L$4,0),FALSE) -> 11.4250075
C9: HLH | D9: =+INDEX(Loads!$L:$CE,MATCH($C7,Loads!$D:$D,0),MATCH(D$4,Loads!$L$4:$CE$4,0)) -> 5084.197 | E9: =+INDEX(Loads!$L:$CE,MATCH($C7,Loads!$D:$D,0),MATCH(E$4,Loads!$L$4:$CE$4,0)) -> 4746.837 | F9: =+INDEX(Loads!$L:$CE,MATCH($C7,Loads!$D:$D,0),MATCH(F$4,Loads!$L$4:$CE$4,0)) -> 4809.003 | G9: =+INDEX(Loads!$L:$CE,MATCH($C7,Loads!$D:$D,0),MATCH(G$4,Loads!$L$4:$CE$4,0)) -> 4826.339 | H9: =+INDEX(Loads!$L:$CE,MATCH($C7,Loads!$D:$D,0),MATCH(H$4,Loads!$L$4:$CE$4,0)) -> 4694.568 | I9: =+INDEX(Loads!$L:$CE,MATCH($C7,Loads!$D:$D,0),MATCH(I$4,Loads!$L$4:$CE$4,0)) -> 5087.579 | J9: =+INDEX(Loads!$L:$CE,MATCH($C7,Loads!$D:$D,0),MATCH(J$4,Loads!$L$4:$CE$4,0)) -> 4884.59 | K9: =+INDEX(Loads!$L:$CE,MATCH($C7,Loads!$D:$D,0),MATCH(K$4,Loads!$L$4:$CE$4,0)) -> 4885.416 | L9: =+INDEX(Loads!$L:$CE,MATCH($C7,Loads!$D:$D,0),MATCH(L$4,Loads!$L$4:$CE$4,0)) -> 4936.183 | M9: =+INDEX(Loads!$L:$CE,MATCH($C7,Loads!$D:$D,0),MATCH(M$4,Loads!$L$4:$CE$4,0)) -> 4823.606 | N9: =+INDEX(Loads!$L:$CE,MATCH($C7,Loads!$D:$D,0),MATCH(N$4,Loads!$L$4:$CE$4,0)) -> 5130.258 | O9: =+INDEX(Loads!$L:$CE,MATCH($C7,Loads!$D:$D,0),MATCH(O$4,Loads!$L$4:$CE$4,0)) -> 4570.003 | P9: =+INDEX(Loads!$L:$CE,MATCH($C7,Loads!$D:$D,0),MATCH(P$4,Loads!$L$4:$CE$4,0)) -> 5084.197 | Q9: =+INDEX(Loads!$L:$CE,MATCH($C7,Loads!$D:$D,0),MATCH(Q$4,Loads!$L$4:$CE$4,0)) -> 4740.253 | R9: =+INDEX(Loads!$L:$CE,MATCH($C7,Loads!$D:$D,0),MATCH(R$4,Loads!$L$4:$CE$4,0)) -> 4809.003 | S9: =+INDEX(Loads!$L:$CE,MATCH($C7,Loads!$D:$D,0),MATCH(S$4,Loads!$L$4:$CE$4,0)) -> 4826.339 | T9: =+INDEX(Loads!$L:$CE,MATCH($C7,Loads!$D:$D,0),MATCH(T$4,Loads!$L$4:$CE$4,0)) -> 4532.686 | U9: =+INDEX(Loads!$L:$CE,MATCH($C7,Loads!$D:$D,0),MATCH(U$4,Loads!$L$4:$CE$4,0)) -> 5080.741 | V9: =+INDEX(Loads!$L:$CE,MATCH($C7,Loads!$D:$D,0),MATCH(V$4,Loads!$L$4:$CE$4,0)) -> 4884.59 | W9: =+INDEX(Loads!$L:$CE,MATCH($C7,Loads!$D:$D,0),MATCH(W$4,Loads!$L$4:$CE$4,0)) -> 4885.416 | X9: =+INDEX(Loads!$L:$CE,MATCH($C7,Loads!$D:$D,0),MATCH(X$4,Loads!$L$4:$CE$4,0)) -> 4936.183 | Y9: =+INDEX(Loads!$L:$CE,MATCH($C7,Loads!$D:$D,0),MATCH(Y$4,Loads!$L$4:$CE$4,0)) -> 4823.606 | Z9: =+INDEX(Loads!$L:$CE,MATCH($C7,Loads!$D:$D,0),MATCH(Z$4,Loads!$L$4:$CE$4,0)) -> 5130.258 | AA9: =+INDEX(Loads!$L:$CE,MATCH($C7,Loads!$D:$D,0),MATCH(AA$4,Loads!$L$4:$CE$4,0)) -> 4570.003 | AB9: =+INDEX(Loads!$L:$CE,MATCH($C7,Loads!$D:$D,0),MATCH(AB$4,Loads!$L$4:$CE$4,0)) -> 5084.197 | AC9: =+INDEX(Loads!$L:$CE,MATCH($C7,Loads!$D:$D,0),MATCH(AC$4,Loads!$L$4:$CE$4,0)) -> 4746.837 | AD9: =+INDEX(Loads!$L:$CE,MATCH($C7,Loads!$D:$D,0),MATCH(AD$4,Loads!$L$4:$CE$4,0)) -> 4809.003 | AE9: =+INDEX(Loads!$L:$CE,MATCH($C7,Loads!$D:$D,0),MATCH(AE$4,Loads!$L$4:$CE$4,0)) -> 4826.339 | AF9: =+INDEX(Loads!$L:$CE,MATCH($C7,Loads!$D:$D,0),MATCH(AF$4,Loads!$L$4:$CE$4,0)) -> 4694.568 | AG9: =+INDEX(Loads!$L:$CE,MATCH($C7,Loads!$D:$D,0),MATCH(AG$4,Loads!$L$4:$CE$4,0)) -> 5087.579 | AH9: =+INDEX(Loads!$L:$CE,MATCH($C7,Loads!$D:$D,0),MATCH(AH$4,Loads!$L$4:$CE$4,0)) -> 4884.59 | AI9: =+INDEX(Loads!$L:$CE,MATCH($C7,Loads!$D:$D,0),MATCH(AI$4,Loads!$L$4:$CE$4,0)) -> 4885.416 | AJ9: =+INDEX(Loads!$L:$CE,MATCH($C7,Loads!$D:$D,0),MATCH(AJ$4,Loads!$L$4:$CE$4,0)) -> 4936.183 | AK9: =+INDEX(Loads!$L:$CE,MATCH($C7,Loads!$D:$D,0),MATCH(AK$4,Loads!$L$4:$CE$4,0)) -> 4823.606 | AL9: =+INDEX(Loads!$L:$CE,MATCH($C7,Loads!$D:$D,0),MATCH(AL$4,Loads!$L$4:$CE$4,0)) -> 5130.258 | AM9: =+INDEX(Loads!$L:$CE,MATCH($C7,Loads!$D:$D,0),MATCH(AM$4,Loads!$L$4:$CE$4,0)) -> 4570.003 | AN9: =+INDEX(Loads!$L:$CE,MATCH($C7,Loads!$D:$D,0),MATCH(AN$4,Loads!$L$4:$CE$4,0)) -> 5084.197 | AO9: =+INDEX(Loads!$L:$CE,MATCH($C7,Loads!$D:$D,0),MATCH(AO$4,Loads!$L$4:$CE$4,0)) -> 4740.253 | AP9: =+INDEX(Loads!$L:$CE,MATCH($C7,Loads!$D:$D,0),MATCH(AP$4,Loads!$L$4:$CE$4,0)) -> 4809.003 | AQ9: =+INDEX(Loads!$L:$CE,MATCH($C7,Loads!$D:$D,0),MATCH(AQ$4,Loads!$L$4:$CE$4,0)) -> 4826.339 | AR9: =+INDEX(Loads!$L:$CE,MATCH($C7,Loads!$D:$D,0),MATCH(AR$4,Loads!$L$4:$CE$4,0)) -> 4532.686 | AS9: =+INDEX(Loads!$L:$CE,MATCH($C7,Loads!$D:$D,0),MATCH(AS$4,Loads!$L$4:$CE$4,0)) -> 5080.741 | AT9: =+INDEX(Loads!$L:$CE,MATCH($C7,Loads!$D:$D,0),MATCH(AT$4,Loads!$L$4:$CE$4,0)) -> 4884.59 | AU9: =+INDEX(Loads!$L:$CE,MATCH($C7,Loads!$D:$D,0),MATCH(AU$4,Loads!$L$4:$CE$4,0)) -> 4885.416 | AV9: =+INDEX(Loads!$L:$CE,MATCH($C7,Loads!$D:$D,0),MATCH(AV$4,Loads!$L$4:$CE$4,0)) -> 4936.183 | AW9: =+INDEX(Loads!$L:$CE,MATCH($C7,Loads!$D:$D,0),MATCH(AW$4,Loads!$L$4:$CE$4,0)) -> 4823.606 | AX9: =+INDEX(Loads!$L:$CE,MATCH($C7,Loads!$D:$D,0),MATCH(AX$4,Loads!$L$4:$CE$4,0)) -> 5130.258 | AY9: =+INDEX(Loads!$L:$CE,MATCH($C7,Loads!$D:$D,0),MATCH(AY$4,Loads!$L$4:$CE$4,0)) -> 4570.003 | AZ9: =+INDEX(Loads!$L:$CE,MATCH($C7,Loads!$D:$D,0),MATCH(AZ$4,Loads!$L$4:$CE$4,0)) -> 5084.197 | BA9: =+INDEX(Loads!$L:$CE,MATCH($C7,Loads!$D:$D,0),MATCH(BA$4,Loads!$L$4:$CE$4,0)) -> 4746.837 | BB9: =+INDEX(Loads!$L:$CE,MATCH($C7,Loads!$D:$D,0),MATCH(BB$4,Loads!$L$4:$CE$4,0)) -> 4809.003 | BC9: =+INDEX(Loads!$L:$CE,MATCH($C7,Loads!$D:$D,0),MATCH(BC$4,Loads!$L$4:$CE$4,0)) -> 4826.339 | BD9: =+INDEX(Loads!$L:$CE,MATCH($C7,Loads!$D:$D,0),MATCH(BD$4,Loads!$L$4:$CE$4,0)) -> 4694.568 | BE9: =+INDEX(Loads!$L:$CE,MATCH($C7,Loads!$D:$D,0),MATCH(BE$4,Loads!$L$4:$CE$4,0)) -> 5087.579 | BF9: =+INDEX(Loads!$L:$CE,MATCH($C7,Loads!$D:$D,0),MATCH(BF$4,Loads!$L$4:$CE$4,0)) -> 4884.59 | BG9: =+INDEX(Loads!$L:$CE,MATCH($C7,Loads!$D:$D,0),MATCH(BG$4,Loads!$L$4:$CE$4,0)) -> 4885.416 | BH9: =+INDEX(Loads!$L:$CE,MATCH($C7,Loads!$D:$D,0),MATCH(BH$4,Loads!$L$4:$CE$4,0)) -> 4936.183 | BI9: =+INDEX(Loads!$L:$CE,MATCH($C7,Loads!$D:$D,0),MATCH(BI$4,Loads!$L$4:$CE$4,0)) -> 4823.606 | BJ9: =+INDEX(Loads!$L:$CE,MATCH($C7,Loads!$D:$D,0),MATCH(BJ$4,Loads!$L$4:$CE$4,0)) -> 5130.258 | BK9: =+INDEX(Loads!$L:$CE,MATCH($C7,Loads!$D:$D,0),MATCH(BK$4,Loads!$L$4:$CE$4,0)) -> 4570.003 | BL9: =+INDEX(Loads!$L:$CE,MATCH($C7,Loads!$D:$D,0),MATCH(BL$4,Loads!$L$4:$CE$4,0)) -> 5084.197 | BM9: =+INDEX(Loads!$L:$CE,MATCH($C7,Loads!$D:$D,0),MATCH(BM$4,Loads!$L$4:$CE$4,0)) -> 4740.253 | BN9: =+INDEX(Loads!$L:$CE,MATCH($C7,Loads!$D:$D,0),MATCH(BN$4,Loads!$L$4:$CE$4,0)) -> 4809.003 | BO9: =+INDEX(Loads!$L:$CE,MATCH($C7,Loads!$D:$D,0),MATCH(BO$4,Loads!$L$4:$CE$4,0)) -> 4826.339 | BP9: =+INDEX(Loads!$L:$CE,MATCH($C7,Loads!$D:$D,0),MATCH(BP$4,Loads!$L$4:$CE$4,0)) -> 4532.686 | BQ9: =+INDEX(Loads!$L:$CE,MATCH($C7,Loads!$D:$D,0),MATCH(BQ$4,Loads!$L$4:$CE$4,0)) -> 5080.741 | BR9: =+INDEX(Loads!$L:$CE,MATCH($C7,Loads!$D:$D,0),MATCH(BR$4,Loads!$L$4:$CE$4,0)) -> 4884.59 | BS9: =+INDEX(Loads!$L:$CE,MATCH($C7,Loads!$D:$D,0),MATCH(BS$4,Loads!$L$4:$CE$4,0)) -> 4885.416 | BT9: =+INDEX(Loads!$L:$CE,MATCH($C7,Loads!$D:$D,0),MATCH(BT$4,Loads!$L$4:$CE$4,0)) -> 4936.183 | BU9: =+INDEX(Loads!$L:$CE,MATCH($C7,Loads!$D:$D,0),MATCH(BU$4,Loads!$L$4:$CE$4,0)) -> 4823.606 | BV9: =+INDEX(Loads!$L:$CE,MATCH($C7,Loads!$D:$D,0),MATCH(BV$4,Loads!$L$4:$CE$4,0)) -> 5130.258 | BW9: =+INDEX(Loads!$L:$CE,MATCH($C7,Loads!$D:$D,0),MATCH(BW$4,Loads!$L$4:$CE$4,0)) -> 4570.003
